{"text_format":"1","workbook":"xlsx","n_sheets":21,"sheets":["Hoja1","Tabla 1.1","Tabla 1.2","Tabla 2.1","Tabla 2.2","Tabla 3.1","Tabla 3.2.a","Tabla 3.2.b","Tabla 3.3","Datos Tabla 1.1","Datos Tabla 1.2"," Datos Tabla 2.1","Datos Tabla 2.2","Datos Tabla 3.1","Datos Tabla 3.2.a","Datos Tabla 3.2.b","Datos Tabla 3.3","Datos Tabla 4","Obs Tabla 3","CCAA","Tabla 5"],"not_rendered":{"charts":0,"images":0,"macros":1,"external_links":0,"defined_names":26,"comments":0,"pivot_tables":11},"unopened":[],"bounds":{"document_bytes":16777216,"sheet_cells":100000,"rows_first":2000,"rows_last":500,"rows_between":2000,"halvings":0,"cell_chars":16384,"cell_head_chars":4096},"cells_cut":0,"cells_raw":0,"read":"whole","date_system":"1900"}

{"sheet":"Hoja1","index":0,"n_rows":2,"n_cols":1,"rows_kept":2,"cut":false,"hidden":true,"merged":[]}
["Año"]
[1999]

{"sheet":"Tabla 1.1","index":1,"n_rows":89,"n_cols":25,"rows_kept":89,"cut":false,"hidden":false,"merged":[[0,0,0,11],[4,3,5,3],[4,4,5,4],[4,5,5,5],[4,6,4,9],[4,10,4,11]]}
["Tabla 1: Número de controles efectuados por todas las autoridades competentes-autoridades de control-organismos de control\n[todos los artículos se refieren al reglamento (UE) 2018/848]"]
[]
["1. Operadores registrados en posesión de un certificado a 31 de diciembre el año de referencia"]
[]
[null,null,null,"Número de código de la autoridad competente/autoridad de control/organismo de control","Número de operadores","Número de verificaciones del cumplimiento \n(artículo 38, apartado 3)(físicas y no físicas)","Número de controles oficiales físicos sobre el terreno realizados",null,null,null,"Número de muestras recogidas\n[artículo 38, apartado 4, letra c)]"]
[null,null,null,null,null,null,"Controles anuales \n[artículo 38, apartado 3]","Controles adicionales basados en el riesgo\n[artículo 38, apartado 4, letra b)]","Número total de controles\n[artículo 38, apartado 3, y artículo 38, apartado 4, letra b)]","de los cuales, sin previo aviso\n[artículo 38, apartado 4, letra a)]","Número total de muestras","Número de muestras con detecciones"]
[null,null,null,"Año actual","TRUE"]
[]
[null,null,null,"Etiquetas de fila","Número de operadores","Número de verificaciones del cumplimiento","Controles anuales  [artículo 38, apartado 3]","Controles adicionales basados en el riesgo [artículo 38, apartado 4, letra b)]","Número total de controles [artículo 38, apartado 3, y artículo 38, apartado 4, letra b)]","de los cuales, sin previo aviso [artículo 38, apartado 4, letra a)]","Número total de muestras","Número de muestras con detecciones"]
[{"$f":"IF(AND(D10<>\"\",D10<>\"Total general\"),T10,\"\")","v":""},{"$f":"IF(D10=\"Total general\",\"Números totales de todas las autoridades competentes/autoridades de control/organismos de control \",IF(AND(D10<>\"\",D10<>\"total general\"),CONCATENATE($U$11,\" \",V10),\"\"))","v":"Números totales de todas las autoridades competentes/autoridades de control/organismos de control "},null,"Total general",61622,62834,62834,8392,71226,11373,4859,519]
[{"$f":"IF(AND(D11<>\"\",D11<>\"Total general\"),T11,\"\")","v":"1.a."},{"$f":"IF(D11=\"Total general\",\"Números totales de todas las autoridades competentes/autoridades de control/organismos de control \",IF(AND(D11<>\"\",D11<>\"total general\"),CONCATENATE($U$11,\" \",V11),\"\"))","v":"Números de la autoridad competente/autoridad de control/organismo de control 1"},null,"ES-ECO-001-AN",13287,13489,13489,1755,15244,1570,842,73,null,null,null,null,null,null,null,"1.a.","Números de la autoridad competente/autoridad de control/organismo de control",1,"2.a.",{"$f":"B11","v":"Números de la autoridad competente/autoridad de control/organismo de control 1"},"a."]
["1.b.","Números de la autoridad competente/autoridad de control/organismo de control 2",null,"ES-ECO-001-CL",465,467,467,61,528,58,29,4,null,null,null,null,null,null,null,"1.b.",null,2,"2.b.",{"$f":"B12","v":"Números de la autoridad competente/autoridad de control/organismo de control 2"},"b."]
["1.c.","Números de la autoridad competente/autoridad de control/organismo de control 3",null,"ES-ECO-001-CM",2791,2850,2850,386,3236,362,168,12,null,null,null,null,null,null,null,"1.c.",null,3,"2.c.","Números de la autoridad competente/autoridad de control/organismo de control 3","c."]
["1.d.","Números de la autoridad competente/autoridad de control/organismo de control 4",null,"ES-ECO-002-AN",3134,3200,3200,312,3512,407,212,22,null,null,null,null,null,null,null,"1.d.",null,4,"2.d.","Números de la autoridad competente/autoridad de control/organismo de control 4","d."]
["1.e.","Números de la autoridad competente/autoridad de control/organismo de control 5",null,"ES-ECO-002-CL",230,232,232,36,268,28,30,3,null,null,null,null,null,null,null,"1.e.",null,5,"2.e.","Números de la autoridad competente/autoridad de control/organismo de control 5","e."]
["1.f.","Números de la autoridad competente/autoridad de control/organismo de control 6",null,"ES-ECO-002-CM",4002,4342,4342,465,4807,541,275,11,null,null,null,null,null,null,null,"1.f.",null,6,"2.f.","Números de la autoridad competente/autoridad de control/organismo de control 6","f."]
["1.g.","Números de la autoridad competente/autoridad de control/organismo de control 7",null,"ES-ECO-003-AN",4555,4649,4649,560,5209,739,404,98,null,null,null,null,null,null,null,"1.g.",null,7,"2.g.","Números de la autoridad competente/autoridad de control/organismo de control 7","g."]
["1.h.","Números de la autoridad competente/autoridad de control/organismo de control 8",null,"ES-ECO-003-CM",7,7,7,1,8,2,3,0,null,null,null,null,null,null,null,"1.h.",null,8,"2.h.","Números de la autoridad competente/autoridad de control/organismo de control 8","h."]
["1.i.","Números de la autoridad competente/autoridad de control/organismo de control 9",null,"ES-ECO-006-AR",1689,1716,1716,150,1866,1297,529,27,null,null,null,null,null,null,null,"1.i.",null,9,"2.i.","Números de la autoridad competente/autoridad de control/organismo de control 9","i."]
["1.j.","Números de la autoridad competente/autoridad de control/organismo de control 10",null,"ES-ECO-010-AN",105,107,107,15,122,16,8,0,null,null,null,null,null,null,null,"1.j.",null,10,"2.j.","Números de la autoridad competente/autoridad de control/organismo de control 10","j."]
["1.k.","Números de la autoridad competente/autoridad de control/organismo de control 11",null,"ES-ECO-010-CL",0,0,0,0,0,0,0,0,null,null,null,null,null,null,null,"1.k.",null,11,"2.k.","Números de la autoridad competente/autoridad de control/organismo de control 11","k."]
["1.l.","Números de la autoridad competente/autoridad de control/organismo de control 12",null,"ES-ECO-011-AN",1117,1155,1155,147,1302,132,52,3,null,null,null,null,null,null,null,"1.l.",null,12,"2.l.","Números de la autoridad competente/autoridad de control/organismo de control 12","l."]
["1.m.","Números de la autoridad competente/autoridad de control/organismo de control 13",null,"ES-ECO-011-CL",12,12,12,2,14,2,2,0,null,null,null,null,null,null,null,"1.m.",null,13,"2.m.","Números de la autoridad competente/autoridad de control/organismo de control 13","m."]
["1.n.","Números de la autoridad competente/autoridad de control/organismo de control 14",null,"ES-ECO-011-CM",104,103,103,14,117,14,6,0,null,null,null,null,null,null,null,"1.n.",null,14,"2.n.","Números de la autoridad competente/autoridad de control/organismo de control 14","n."]
["1.o.","Números de la autoridad competente/autoridad de control/organismo de control 15",null,"ES-ECO-012-AS",693,700,700,177,877,158,67,8,null,null,null,null,null,null,null,"1.o.",null,15,"2.o.","Números de la autoridad competente/autoridad de control/organismo de control 15","o."]
["1.p.","Números de la autoridad competente/autoridad de control/organismo de control 16",null,"ES-ECO-013-IB",1057,1073,1073,375,1448,161,87,11,null,null,null,null,null,null,null,"1.p.",null,16,"2.p.","Números de la autoridad competente/autoridad de control/organismo de control 16","p."]
["1.q.","Números de la autoridad competente/autoridad de control/organismo de control 17",null,"ES-ECO-014-IC",2110,1837,1837,229,2066,377,183,12,null,null,null,null,null,null,null,"1.q.",null,17,"2.q.","Números de la autoridad competente/autoridad de control/organismo de control 17","q."]
["1.r.","Números de la autoridad competente/autoridad de control/organismo de control 18",null,"ES-ECO-015-CN",253,276,276,30,306,17,11,0,null,null,null,null,null,null,null,"1.r.",null,18,"2.r.","Números de la autoridad competente/autoridad de control/organismo de control 18","r."]
["1.s.","Números de la autoridad competente/autoridad de control/organismo de control 19",null,"ES-ECO-016-CL",1236,1242,1242,139,1381,150,96,6,null,null,null,null,null,null,null,"1.s.",null,19,"2.s.","Números de la autoridad competente/autoridad de control/organismo de control 19","s."]
["1.t.","Números de la autoridad competente/autoridad de control/organismo de control 20",null,"ES-ECO-019-CT",5290,5400,5400,1175,6575,1108,432,40,null,null,null,null,null,null,null,"1.t.",null,20,"2.t.","Números de la autoridad competente/autoridad de control/organismo de control 20","t."]
["1.u.","Números de la autoridad competente/autoridad de control/organismo de control 21",null,"ES-ECO-020-CV",4329,4421,4421,502,4923,645,290,37,null,null,null,null,null,null,null,"1.u.",null,21,"2.u.","Números de la autoridad competente/autoridad de control/organismo de control 21","u."]
["1.v.","Números de la autoridad competente/autoridad de control/organismo de control 22",null,"ES-ECO-021-EX",3327,3509,3509,408,3917,1623,204,25,null,null,null,null,null,null,null,"1.v.",null,22,"2.v.","Números de la autoridad competente/autoridad de control/organismo de control 22","v."]
["1.w.","Números de la autoridad competente/autoridad de control/organismo de control 23",null,"ES-ECO-022-GA",1274,1307,1307,214,1521,194,126,16,null,null,null,null,null,null,null,"1.w.",null,23,"2.w.","Números de la autoridad competente/autoridad de control/organismo de control 23","w."]
["1.x.","Números de la autoridad competente/autoridad de control/organismo de control 24",null,"ES-ECO-023-MA",483,489,489,64,553,76,51,4,null,null,null,null,null,null,null,"1.x.",null,24,"2.x.","Números de la autoridad competente/autoridad de control/organismo de control 24","x."]
["1.y.","Números de la autoridad competente/autoridad de control/organismo de control 25",null,"ES-ECO-024-MU",4839,4946,4946,539,5485,631,357,76,null,null,null,null,null,null,null,"1.y.",null,25,"2.y.","Números de la autoridad competente/autoridad de control/organismo de control 25","y."]
["1.z.","Números de la autoridad competente/autoridad de control/organismo de control 26",null,"ES-ECO-025-NA",767,784,784,93,877,430,83,7,null,null,null,null,null,null,null,"1.z.",null,26,"2.z.","Números de la autoridad competente/autoridad de control/organismo de control 26","z."]
["1.a.a.","Números de la autoridad competente/autoridad de control/organismo de control 27",null,"ES-ECO-026-VAS",768,784,784,97,881,161,62,1,null,null,null,null,null,null,null,"1.a.a.",null,27,"2.a.a.","Números de la autoridad competente/autoridad de control/organismo de control 27","a.a."]
["1.a.b.","Números de la autoridad competente/autoridad de control/organismo de control 28",null,"ES-ECO-028-AN",355,341,341,38,379,40,19,1,null,null,null,null,null,null,null,"1.a.b.",null,28,"2.a.b.","Números de la autoridad competente/autoridad de control/organismo de control 28","a.b."]
["1.a.c.","Números de la autoridad competente/autoridad de control/organismo de control 29",null,"ES-ECO-028-CL",2,2,2,1,3,1,1,0,null,null,null,null,null,null,null,"1.a.c.",null,29,"2.a.c.","Números de la autoridad competente/autoridad de control/organismo de control 29","a.c."]
["1.a.d.","Números de la autoridad competente/autoridad de control/organismo de control 30",null,"ES-ECO-028-CM",1140,1145,1145,141,1286,155,75,2,null,null,null,null,null,null,null,"1.a.d.",null,30,"2.a.d.","Números de la autoridad competente/autoridad de control/organismo de control 30","a.d."]
["1.a.e.","Números de la autoridad competente/autoridad de control/organismo de control 31",null,"ES-ECO-029-AN",16,16,16,2,18,1,2,0,null,null,null,null,null,null,null,"1.a.e.",null,31,"2.a.e.","Números de la autoridad competente/autoridad de control/organismo de control 31","a.e."]
["1.a.f.","Números de la autoridad competente/autoridad de control/organismo de control 32",null,"ES-ECO-029-CL",0,4,4,0,4,0,0,0,null,null,null,null,null,null,null,"1.a.f.",null,32,"2.a.f.","Números de la autoridad competente/autoridad de control/organismo de control 32","a.f."]
["1.a.g.","Números de la autoridad competente/autoridad de control/organismo de control 33",null,"ES-ECO-029-CM",0,0,0,0,0,0,0,0,null,null,null,null,null,null,null,"1.a.g.",null,33,"2.a.g.","Números de la autoridad competente/autoridad de control/organismo de control 33","a.g."]
["1.a.h.","Números de la autoridad competente/autoridad de control/organismo de control 34",null,"ES-ECO-031-CL",225,229,229,35,264,30,14,2,null,null,null,null,null,null,null,"1.a.h.",null,34,"2.a.h.","Números de la autoridad competente/autoridad de control/organismo de control 34","a.h."]
["1.a.i.","Números de la autoridad competente/autoridad de control/organismo de control 35",null,"ES-ECO-032-AN",3,4,4,0,4,0,1,0,null,null,null,null,null,null,null,"1.a.i.",null,35,"2.a.i.","Números de la autoridad competente/autoridad de control/organismo de control 35","a.i."]
["1.a.j.","Números de la autoridad competente/autoridad de control/organismo de control 36",null,"ES-ECO-032-CL",22,22,22,2,24,0,1,0,null,null,null,null,null,null,null,"1.a.j.",null,36,"2.a.j.","Números de la autoridad competente/autoridad de control/organismo de control 36","a.j."]
["1.a.k.","Números de la autoridad competente/autoridad de control/organismo de control 37",null,"ES-ECO-033-CL",44,43,43,6,49,5,4,1,null,null,null,null,null,null,null,"1.a.k.",null,37,"2.a.k.","Números de la autoridad competente/autoridad de control/organismo de control 37","a.k."]
["1.a.l.","Números de la autoridad competente/autoridad de control/organismo de control 38",null,"ES-ECO-033-CM",460,460,460,52,512,52,37,2,null,null,null,null,null,null,null,"1.a.l.",null,38,"2.a.l.","Números de la autoridad competente/autoridad de control/organismo de control 38","a.l."]
["1.a.m.","Números de la autoridad competente/autoridad de control/organismo de control 39",null,"ES-ECO-034-AN",19,21,21,3,24,3,3,2,null,null,null,null,null,null,null,"1.a.m.",null,39,"2.a.m.","Números de la autoridad competente/autoridad de control/organismo de control 39","a.m."]
["1.a.n.","Números de la autoridad competente/autoridad de control/organismo de control 40",null,"ES-ECO-034-CM",903,903,903,108,1011,103,63,8,null,null,null,null,null,null,null,"1.a.n.",null,40,"2.a.n.","Números de la autoridad competente/autoridad de control/organismo de control 40","a.n."]
["1.a.o.","Números de la autoridad competente/autoridad de control/organismo de control 41",null,"ES-ECO-035-RI",505,543,543,57,600,83,26,5,null,null,null,null,null,null,null,"1.a.o.",null,41,"2.a.o.","Números de la autoridad competente/autoridad de control/organismo de control 41","a.o."]
["1.a.p.","Números de la autoridad competente/autoridad de control/organismo de control 42",null,"ES-ECO-037-CM",4,4,4,1,5,1,4,0,null,null,null,null,null,null,null,"1.a.p.",null,42,"2.a.p.","Números de la autoridad competente/autoridad de control/organismo de control 42","a.p."]
["","",null,null,null,null,null,null,null,null,null,null,null,null,null,null,null,null,null,"1.a.q.",null,43,"2.a.q.","","a.q."]
["","",null,null,null,null,null,null,null,null,null,null,null,null,null,null,null,null,null,"1.a.r.",null,44,"2.a.r.","","a.r."]
["","",null,null,null,null,null,null,null,null,null,null,null,null,null,null,null,null,null,"1.a.s.",null,45,"2.a.s.","","a.s."]
["","",null,null,null,null,null,null,null,null,null,null,null,null,null,null,null,null,null,"1.a.t.",null,46,"2.a.t.","","a.t."]
["","",null,null,null,null,null,null,null,null,null,null,null,null,null,null,null,null,null,"1.a.u.",null,47,"2.a.u.","","a.u."]
["","",null,null,null,null,null,null,null,null,null,null,null,null,null,null,null,null,null,"1.a.v.",null,48,"2.a.v.","","a.v."]
["","",null,null,null,null,null,null,null,null,null,null,null,null,null,null,null,null,null,"1.a.w.",null,49,"2.a.w.","","a.w."]
["","",null,null,null,null,null,null,null,null,null,null,null,null,null,null,null,null,null,"1.a.x.",null,50,"2.a.x.","","a.x."]
["","",null,null,null,null,null,null,null,null,null,null,null,null,null,null,null,null,null,"1.a.y.",null,51,"2.a.y.","","a.y."]
["","",null,null,null,null,null,null,null,null,null,null,null,null,null,null,null,null,null,"1.a.z.",null,52,"2.a.z.","","a.z."]
["","",null,null,null,null,null,null,null,null,null,null,null,null,null,null,null,null,null,"1.b.a.",null,53,"2.b.a.","","b.a."]
["","",null,null,null,null,null,null,null,null,null,null,null,null,null,null,null,null,null,"1.b.b.",null,54,"2.b.b.","","b.b."]
["","",null,null,null,null,null,null,null,null,null,null,null,null,null,null,null,null,null,"1.b.c.",null,55,"2.b.c.","","b.c."]
["","",null,null,null,null,null,null,null,null,null,null,null,null,null,null,null,null,null,"1.b.d.",null,56,"2.b.d.","","b.d."]
["","",null,null,null,null,null,null,null,null,null,null,null,null,null,null,null,null,null,"1.b.e.",null,57,"2.b.e.","","b.e."]
["","",null,null,null,null,null,null,null,null,null,null,null,null,null,null,null,null,null,"1.b.f.",null,58,"2.b.f.","","b.f."]
["","",null,null,null,null,null,null,null,null,null,null,null,null,null,null,null,null,null,"1.b.g.",null,59,"2.b.g.","","b.g."]
["","",null,null,null,null,null,null,null,null,null,null,null,null,null,null,null,null,null,"1.b.h.",null,60,"2.b.h.","","b.h."]
["","",null,null,null,null,null,null,null,null,null,null,null,null,null,null,null,null,null,"1.b.i.",null,61,"2.b.i.","","b.i."]
["","",null,null,null,null,null,null,null,null,null,null,null,null,null,null,null,null,null,"1.b.j.",null,62,"2.b.j.","","b.j."]
["","",null,null,null,null,null,null,null,null,null,null,null,null,null,null,null,null,null,"1.b.k.",null,63,"2.b.k.","","b.k."]
["","",null,null,null,null,null,null,null,null,null,null,null,null,null,null,null,null,null,"1.b.l.",null,64,"2.b.l.","","b.l."]
[{"$f":"IF(AND(D75<>\"\",D75<>\"Total general\"),T75,\"\")","v":""},{"$f":"IF(D75=\"Total general\",\"Números totales de todas las autoridades competentes/autoridades de control/organismos de control \",IF(AND(D75<>\"\",D75<>\"total general\"),CONCATENATE($U$11,\" \",V75),\"\"))","v":""},null,null,null,null,null,null,null,null,null,null,null,null,null,null,null,null,null,"1.b.m.",null,65,"2.b.m.","","b.m."]
["","",null,null,null,null,null,null,null,null,null,null,null,null,null,null,null,null,null,"1.b.n.",null,66,"2.b.n.",{"$f":"B76","v":""},"b.n."]
["","",null,null,null,null,null,null,null,null,null,null,null,null,null,null,null,null,null,"1.b.o.",null,67,"2.b.o.","","b.o."]
["","",null,null,null,null,null,null,null,null,null,null,null,null,null,null,null,null,null,"1.b.p.",null,68,"2.b.p.","","b.p."]
["","",null,null,null,null,null,null,null,null,null,null,null,null,null,null,null,null,null,"1.b.q.",null,69,"2.b.q.","","b.q."]
["","",null,null,null,null,null,null,null,null,null,null,null,null,null,null,null,null,null,"1.b.r.",null,70,"2.b.r.","","b.r."]
["","",null,null,null,null,null,null,null,null,null,null,null,null,null,null,null,null,null,"1.b.s.",null,71,"2.b.s.","","b.s."]
["","",null,null,null,null,null,null,null,null,null,null,null,null,null,null,null,null,null,"1.b.t.",null,72,"2.b.t.","","b.t."]
["","",null,null,null,null,null,null,null,null,null,null,null,null,null,null,null,null,null,"1.b.u.",null,73,"2.b.u.","","b.u."]
["","",null,null,null,null,null,null,null,null,null,null,null,null,null,null,null,null,null,"1.b.v.",null,74,"2.b.v.","","b.v."]
["","",null,null,null,null,null,null,null,null,null,null,null,null,null,null,null,null,null,"1.b.w.",null,75,"2.b.w.","","b.w."]
["","",null,null,null,null,null,null,null,null,null,null,null,null,null,null,null,null,null,"1.b.x.",null,76,"2.b.x.","","b.x."]
["","",null,null,null,null,null,null,null,null,null,null,null,null,null,null,null,null,null,"1.b.y.",null,77,"2.b.y.","","b.y."]
["","",null,null,null,null,null,null,null,null,null,null,null,null,null,null,null,null,null,"1.b.z.",null,78,"2.b.z.","","b.z."]
[null,null,null,null,null,null,null,null,null,null,null,null,null,null,null,null,null,null,null,null,null,null,null,{"$f":"B88","v":""}]

{"sheet":"Tabla 1.2","index":2,"n_rows":303,"n_cols":18,"rows_kept":303,"cut":false,"hidden":false,"merged":[[0,0,0,13]]}
[{"$f":"'Tabla 1.1'!A1:L1","v":"Tabla 1: Número de controles efectuados por todas las autoridades competentes-autoridades de control-organismos de control\n[todos los artículos se refieren al reglamento (UE) 2018/848]"}]
[]
["2. Grupos de operadores en posesión de un certificado a 31 de diciembre del año de referencia"]
[]
[]
[null,null,null,"Número de código de la autoridad competente/autoridad de control/organismo de control",null,"Número de grupos",null,null,"Identificación o nombre del grupo","Número total de operadores que son miembros de grupos","Número total de controles oficiales de los grupos","Número de reinspecciones a miembros de los grupos","Inspecciones en las que al menos se recogió una muestra"]
[null,null,"Año actual","TRUE",null,null,"Año actual","TRUE"]
[]
[null,null,"Total general","Número de código de la autoridad competente/autoridad de control/organismo de control","Identificación o nombre del grupo","Recuento de Identificación o nombre del grupo","Total general","Número de código de la autoridad competente/autoridad de control/organismo de control","Identificación o nombre del grupo","Suma de Número total de operadores que son miembros de grupos","Suma de Número total de controles oficiales de los grupos","Suma de Número de reinspecciones a miembros de los grupos","Suma de Inspecciones en las que al menos se recogió una muestra"]
[{"$f":"IFERROR(IF(C10=\"Total general\",\"2.\",IF(D10=\"\",CONCATENATE(VLOOKUP($H10,'Tabla 1.1'!$D$10:$X$87,20,),R10),VLOOKUP($H10,'Tabla 1.1'!$D$10:$X$87,20,))),\"\")","v":"2."},{"$f":"IFERROR(IF(C10=\"Total general\",\"Números totales para todos los grupos de operadores y todas las autoridades competentes/autoridades de control/organismos de control\",IF(D10=\"\",CONCATENATE(\"Grupo de operadores \",VLOOKUP($H10,'Tabla 1.1'!$D$11:$Y$87,22,),R10),VLOOKUP($H10,'Tabla 1.1'!$D$11:$Y$87,21,))),\"\")","v":"Números totales para todos los grupos de operadores y todas las autoridades competentes/autoridades de control/organismos de control"},"Total general",null,null,17,"Total general",null,null,0,0,0,0,null,null,null,null,{"$f":"IF(I10=\"\",0,R9+1)","v":0}]
[{"$f":"IFERROR(IF(C11=\"Total general\",\"2.\",IF(D11=\"\",CONCATENATE(VLOOKUP($H11,'Tabla 1.1'!$D$10:$X$87,20,),R11),VLOOKUP($H11,'Tabla 1.1'!$D$10:$X$87,20,))),\"\")","v":""},{"$f":"IFERROR(IF(C11=\"Total general\",\"Números totales para todos los grupos de operadores y todas las autoridades competentes/autoridades de control/organismos de control\",IF(D11=\"\",CONCATENATE(\"Grupo de operadores \",VLOOKUP($H11,'Tabla 1.1'!$D$11:$Y$87,22,),R11),VLOOKUP($H11,'Tabla 1.1'!$D$11:$Y$87,21,))),\"\")","v":""},null,0,null,17,"Total general",0,null,0,0,0,0,null,null,null,null,{"$f":"IF(I11=\"\",0,R10+1)","v":0}]
[{"$f":"IFERROR(IF(C12=\"Total general\",\"2.\",IF(D12=\"\",CONCATENATE(VLOOKUP($H12,'Tabla 1.1'!$D$10:$X$87,20,),R12),VLOOKUP($H12,'Tabla 1.1'!$D$10:$X$87,20,))),\"\")","v":""},{"$f":"IFERROR(IF(C12=\"Total general\",\"Números totales para todos los grupos de operadores y todas las autoridades competentes/autoridades de control/organismos de control\",IF(D12=\"\",CONCATENATE(\"Grupo de operadores \",VLOOKUP($H12,'Tabla 1.1'!$D$11:$Y$87,22,),R12),VLOOKUP($H12,'Tabla 1.1'!$D$11:$Y$87,21,))),\"\")","v":""},null,null,0,17,"Total general",0,0,0,0,0,0,null,null,null,null,1]
[{"$f":"IFERROR(IF(C13=\"Total general\",\"2.\",IF(D13=\"\",CONCATENATE(VLOOKUP($H13,'Tabla 1.1'!$D$10:$X$87,20,),R13),VLOOKUP($H13,'Tabla 1.1'!$D$10:$X$87,20,))),\"\")","v":""},{"$f":"IFERROR(IF(C13=\"Total general\",\"Números totales para todos los grupos de operadores y todas las autoridades competentes/autoridades de control/organismos de control\",IF(D13=\"\",CONCATENATE(\"Grupo de operadores \",VLOOKUP($H13,'Tabla 1.1'!$D$11:$Y$87,22,),R13),VLOOKUP($H13,'Tabla 1.1'!$D$11:$Y$87,21,))),\"\")","v":""},null,null,null,null,null,null,null,null,null,null,null,null,null,null,null,0]
[{"$f":"IFERROR(IF(C14=\"Total general\",\"2.\",IF(D14=\"\",CONCATENATE(VLOOKUP($H14,'Tabla 1.1'!$D$10:$X$87,20,),R14),VLOOKUP($H14,'Tabla 1.1'!$D$10:$X$87,20,))),\"\")","v":""},{"$f":"IFERROR(IF(C14=\"Total general\",\"Números totales para todos los grupos de operadores y todas las autoridades competentes/autoridades de control/organismos de control\",IF(D14=\"\",CONCATENATE(\"Grupo de operadores \",VLOOKUP($H14,'Tabla 1.1'!$D$11:$Y$87,22,),R14),VLOOKUP($H14,'Tabla 1.1'!$D$11:$Y$87,21,))),\"\")","v":""},null,null,null,null,null,null,null,null,null,null,null,null,null,null,null,0]
[{"$f":"IFERROR(IF(C15=\"Total general\",\"2.\",IF(D15=\"\",CONCATENATE(VLOOKUP($H15,'Tabla 1.1'!$D$10:$X$87,20,),R15),VLOOKUP($H15,'Tabla 1.1'!$D$10:$X$87,20,))),\"\")","v":""},{"$f":"IFERROR(IF(C15=\"Total general\",\"Números totales para todos los grupos de operadores y todas las autoridades competentes/autoridades de control/organismos de control\",IF(D15=\"\",CONCATENATE(\"Grupo de operadores \",VLOOKUP($H15,'Tabla 1.1'!$D$11:$Y$87,22,),R15),VLOOKUP($H15,'Tabla 1.1'!$D$11:$Y$87,21,))),\"\")","v":""},null,null,null,null,null,null,null,null,null,null,null,null,null,null,null,0]
[{"$f":"IFERROR(IF(C16=\"Total general\",\"2.\",IF(D16=\"\",CONCATENATE(VLOOKUP($H16,'Tabla 1.1'!$D$10:$X$87,20,),R16),VLOOKUP($H16,'Tabla 1.1'!$D$10:$X$87,20,))),\"\")","v":""},{"$f":"IFERROR(IF(C16=\"Total general\",\"Números totales para todos los grupos de operadores y todas las autoridades competentes/autoridades de control/organismos de control\",IF(D16=\"\",CONCATENATE(\"Grupo de operadores \",VLOOKUP($H16,'Tabla 1.1'!$D$11:$Y$87,22,),R16),VLOOKUP($H16,'Tabla 1.1'!$D$11:$Y$87,21,))),\"\")","v":""},null,null,null,null,null,null,null,null,null,null,null,null,null,null,null,0]
[{"$f":"IFERROR(IF(C17=\"Total general\",\"2.\",IF(D17=\"\",CONCATENATE(VLOOKUP($H17,'Tabla 1.1'!$D$10:$X$87,20,),R17),VLOOKUP($H17,'Tabla 1.1'!$D$10:$X$87,20,))),\"\")","v":""},{"$f":"IFERROR(IF(C17=\"Total general\",\"Números totales para todos los grupos de operadores y todas las autoridades competentes/autoridades de control/organismos de control\",IF(D17=\"\",CONCATENATE(\"Grupo de operadores \",VLOOKUP($H17,'Tabla 1.1'!$D$11:$Y$87,22,),R17),VLOOKUP($H17,'Tabla 1.1'!$D$11:$Y$87,21,))),\"\")","v":""},null,null,null,null,null,null,null,null,null,null,null,null,null,null,null,0]
[{"$f":"IFERROR(IF(C18=\"Total general\",\"2.\",IF(D18=\"\",CONCATENATE(VLOOKUP($H18,'Tabla 1.1'!$D$10:$X$87,20,),R18),VLOOKUP($H18,'Tabla 1.1'!$D$10:$X$87,20,))),\"\")","v":""},{"$f":"IFERROR(IF(C18=\"Total general\",\"Números totales para todos los grupos de operadores y todas las autoridades competentes/autoridades de control/organismos de control\",IF(D18=\"\",CONCATENATE(\"Grupo de operadores \",VLOOKUP($H18,'Tabla 1.1'!$D$11:$Y$87,22,),R18),VLOOKUP($H18,'Tabla 1.1'!$D$11:$Y$87,21,))),\"\")","v":""},null,null,null,null,null,null,null,null,null,null,null,null,null,null,null,0]
[{"$f":"IFERROR(IF(C19=\"Total general\",\"2.\",IF(D19=\"\",CONCATENATE(VLOOKUP($H19,'Tabla 1.1'!$D$10:$X$87,20,),R19),VLOOKUP($H19,'Tabla 1.1'!$D$10:$X$87,20,))),\"\")","v":""},{"$f":"IFERROR(IF(C19=\"Total general\",\"Números totales para todos los grupos de operadores y todas las autoridades competentes/autoridades de control/organismos de control\",IF(D19=\"\",CONCATENATE(\"Grupo de operadores \",VLOOKUP($H19,'Tabla 1.1'!$D$11:$Y$87,22,),R19),VLOOKUP($H19,'Tabla 1.1'!$D$11:$Y$87,21,))),\"\")","v":""},null,null,null,null,null,null,null,null,null,null,null,null,null,null,null,0]
[{"$f":"IFERROR(IF(C20=\"Total general\",\"2.\",IF(D20=\"\",CONCATENATE(VLOOKUP($H20,'Tabla 1.1'!$D$10:$X$87,20,),R20),VLOOKUP($H20,'Tabla 1.1'!$D$10:$X$87,20,))),\"\")","v":""},{"$f":"IFERROR(IF(C20=\"Total general\",\"Números totales para todos los grupos de operadores y todas las autoridades competentes/autoridades de control/organismos de control\",IF(D20=\"\",CONCATENATE(\"Grupo de operadores \",VLOOKUP($H20,'Tabla 1.1'!$D$11:$Y$87,22,),R20),VLOOKUP($H20,'Tabla 1.1'!$D$11:$Y$87,21,))),\"\")","v":""},null,null,null,null,null,null,null,null,null,null,null,null,null,null,null,0]
[{"$f":"IFERROR(IF(C21=\"Total general\",\"2.\",IF(D21=\"\",CONCATENATE(VLOOKUP($H21,'Tabla 1.1'!$D$10:$X$87,20,),R21),VLOOKUP($H21,'Tabla 1.1'!$D$10:$X$87,20,))),\"\")","v":""},{"$f":"IFERROR(IF(C21=\"Total general\",\"Números totales para todos los grupos de operadores y todas las autoridades competentes/autoridades de control/organismos de control\",IF(D21=\"\",CONCATENATE(\"Grupo de operadores \",VLOOKUP($H21,'Tabla 1.1'!$D$11:$Y$87,22,),R21),VLOOKUP($H21,'Tabla 1.1'!$D$11:$Y$87,21,))),\"\")","v":""},null,null,null,null,null,null,null,null,null,null,null,null,null,null,null,0]
[{"$f":"IFERROR(IF(C22=\"Total general\",\"2.\",IF(D22=\"\",CONCATENATE(VLOOKUP($H22,'Tabla 1.1'!$D$10:$X$87,20,),R22),VLOOKUP($H22,'Tabla 1.1'!$D$10:$X$87,20,))),\"\")","v":""},{"$f":"IFERROR(IF(C22=\"Total general\",\"Números totales para todos los grupos de operadores y todas las autoridades competentes/autoridades de control/organismos de control\",IF(D22=\"\",CONCATENATE(\"Grupo de operadores \",VLOOKUP($H22,'Tabla 1.1'!$D$11:$Y$87,22,),R22),VLOOKUP($H22,'Tabla 1.1'!$D$11:$Y$87,21,))),\"\")","v":""},null,null,null,null,null,null,null,null,null,null,null,null,null,null,null,0]
[{"$f":"IFERROR(IF(C23=\"Total general\",\"2.\",IF(D23=\"\",CONCATENATE(VLOOKUP($H23,'Tabla 1.1'!$D$10:$X$87,20,),R23),VLOOKUP($H23,'Tabla 1.1'!$D$10:$X$87,20,))),\"\")","v":""},{"$f":"IFERROR(IF(C23=\"Total general\",\"Números totales para todos los grupos de operadores y todas las autoridades competentes/autoridades de control/organismos de control\",IF(D23=\"\",CONCATENATE(\"Grupo de operadores \",VLOOKUP($H23,'Tabla 1.1'!$D$11:$Y$87,22,),R23),VLOOKUP($H23,'Tabla 1.1'!$D$11:$Y$87,21,))),\"\")","v":""},null,null,null,null,null,null,null,null,null,null,null,null,null,null,null,0]
[{"$f":"IFERROR(IF(C24=\"Total general\",\"2.\",IF(D24=\"\",CONCATENATE(VLOOKUP($H24,'Tabla 1.1'!$D$10:$X$87,20,),R24),VLOOKUP($H24,'Tabla 1.1'!$D$10:$X$87,20,))),\"\")","v":""},{"$f":"IFERROR(IF(C24=\"Total general\",\"Números totales para todos los grupos de operadores y todas las autoridades competentes/autoridades de control/organismos de control\",IF(D24=\"\",CONCATENATE(\"Grupo de operadores \",VLOOKUP($H24,'Tabla 1.1'!$D$11:$Y$87,22,),R24),VLOOKUP($H24,'Tabla 1.1'!$D$11:$Y$87,21,))),\"\")","v":""},null,null,null,null,null,null,null,null,null,null,null,null,null,null,null,0]
[{"$f":"IFERROR(IF(C25=\"Total general\",\"2.\",IF(D25=\"\",CONCATENATE(VLOOKUP($H25,'Tabla 1.1'!$D$10:$X$87,20,),R25),VLOOKUP($H25,'Tabla 1.1'!$D$10:$X$87,20,))),\"\")","v":""},{"$f":"IFERROR(IF(C25=\"Total general\",\"Números totales para todos los grupos de operadores y todas las autoridades competentes/autoridades de control/organismos de control\",IF(D25=\"\",CONCATENATE(\"Grupo de operadores \",VLOOKUP($H25,'Tabla 1.1'!$D$11:$Y$87,22,),R25),VLOOKUP($H25,'Tabla 1.1'!$D$11:$Y$87,21,))),\"\")","v":""},null,null,null,null,null,null,null,null,null,null,null,null,null,null,null,0]
[{"$f":"IFERROR(IF(C26=\"Total general\",\"2.\",IF(D26=\"\",CONCATENATE(VLOOKUP($H26,'Tabla 1.1'!$D$10:$X$87,20,),R26),VLOOKUP($H26,'Tabla 1.1'!$D$10:$X$87,20,))),\"\")","v":""},{"$f":"IFERROR(IF(C26=\"Total general\",\"Números totales para todos los grupos de operadores y todas las autoridades competentes/autoridades de control/organismos de control\",IF(D26=\"\",CONCATENATE(\"Grupo de operadores \",VLOOKUP($H26,'Tabla 1.1'!$D$11:$Y$87,22,),R26),VLOOKUP($H26,'Tabla 1.1'!$D$11:$Y$87,21,))),\"\")","v":""},null,null,null,null,null,null,null,null,null,null,null,null,null,null,null,0]
[{"$f":"IFERROR(IF(C27=\"Total general\",\"2.\",IF(D27=\"\",CONCATENATE(VLOOKUP($H27,'Tabla 1.1'!$D$10:$X$87,20,),R27),VLOOKUP($H27,'Tabla 1.1'!$D$10:$X$87,20,))),\"\")","v":""},{"$f":"IFERROR(IF(C27=\"Total general\",\"Números totales para todos los grupos de operadores y todas las autoridades competentes/autoridades de control/organismos de control\",IF(D27=\"\",CONCATENATE(\"Grupo de operadores \",VLOOKUP($H27,'Tabla 1.1'!$D$11:$Y$87,22,),R27),VLOOKUP($H27,'Tabla 1.1'!$D$11:$Y$87,21,))),\"\")","v":""},null,null,null,null,null,null,null,null,null,null,null,null,null,null,null,0]
[{"$f":"IFERROR(IF(C28=\"Total general\",\"2.\",IF(D28=\"\",CONCATENATE(VLOOKUP($H28,'Tabla 1.1'!$D$10:$X$87,20,),R28),VLOOKUP($H28,'Tabla 1.1'!$D$10:$X$87,20,))),\"\")","v":""},{"$f":"IFERROR(IF(C28=\"Total general\",\"Números totales para todos los grupos de operadores y todas las autoridades competentes/autoridades de control/organismos de control\",IF(D28=\"\",CONCATENATE(\"Grupo de operadores \",VLOOKUP($H28,'Tabla 1.1'!$D$11:$Y$87,22,),R28),VLOOKUP($H28,'Tabla 1.1'!$D$11:$Y$87,21,))),\"\")","v":""},null,null,null,null,null,null,null,null,null,null,null,null,null,null,null,0]
[{"$f":"IFERROR(IF(C29=\"Total general\",\"2.\",IF(D29=\"\",CONCATENATE(VLOOKUP($H29,'Tabla 1.1'!$D$10:$X$87,20,),R29),VLOOKUP($H29,'Tabla 1.1'!$D$10:$X$87,20,))),\"\")","v":""},{"$f":"IFERROR(IF(C29=\"Total general\",\"Números totales para todos los grupos de operadores y todas las autoridades competentes/autoridades de control/organismos de control\",IF(D29=\"\",CONCATENATE(\"Grupo de operadores \",VLOOKUP($H29,'Tabla 1.1'!$D$11:$Y$87,22,),R29),VLOOKUP($H29,'Tabla 1.1'!$D$11:$Y$87,21,))),\"\")","v":""},null,null,null,null,null,null,null,null,null,null,null,null,null,null,null,0]
[{"$f":"IFERROR(IF(C30=\"Total general\",\"2.\",IF(D30=\"\",CONCATENATE(VLOOKUP($H30,'Tabla 1.1'!$D$10:$X$87,20,),R30),VLOOKUP($H30,'Tabla 1.1'!$D$10:$X$87,20,))),\"\")","v":""},{"$f":"IFERROR(IF(C30=\"Total general\",\"Números totales para todos los grupos de operadores y todas las autoridades competentes/autoridades de control/organismos de control\",IF(D30=\"\",CONCATENATE(\"Grupo de operadores \",VLOOKUP($H30,'Tabla 1.1'!$D$11:$Y$87,22,),R30),VLOOKUP($H30,'Tabla 1.1'!$D$11:$Y$87,21,))),\"\")","v":""},null,null,null,null,null,null,null,null,null,null,null,null,null,null,null,0]
[{"$f":"IFERROR(IF(C31=\"Total general\",\"2.\",IF(D31=\"\",CONCATENATE(VLOOKUP($H31,'Tabla 1.1'!$D$10:$X$87,20,),R31),VLOOKUP($H31,'Tabla 1.1'!$D$10:$X$87,20,))),\"\")","v":""},{"$f":"IFERROR(IF(C31=\"Total general\",\"Números totales para todos los grupos de operadores y todas las autoridades competentes/autoridades de control/organismos de control\",IF(D31=\"\",CONCATENATE(\"Grupo de operadores \",VLOOKUP($H31,'Tabla 1.1'!$D$11:$Y$87,22,),R31),VLOOKUP($H31,'Tabla 1.1'!$D$11:$Y$87,21,))),\"\")","v":""},null,null,null,null,null,null,null,null,null,null,null,null,null,null,null,0]
[{"$f":"IFERROR(IF(C32=\"Total general\",\"2.\",IF(D32=\"\",CONCATENATE(VLOOKUP($H32,'Tabla 1.1'!$D$10:$X$87,20,),R32),VLOOKUP($H32,'Tabla 1.1'!$D$10:$X$87,20,))),\"\")","v":""},{"$f":"IFERROR(IF(C32=\"Total general\",\"Números totales para todos los grupos de operadores y todas las autoridades competentes/autoridades de control/organismos de control\",IF(D32=\"\",CONCATENATE(\"Grupo de operadores \",VLOOKUP($H32,'Tabla 1.1'!$D$11:$Y$87,22,),R32),VLOOKUP($H32,'Tabla 1.1'!$D$11:$Y$87,21,))),\"\")","v":""},null,null,null,null,null,null,null,null,null,null,null,null,null,null,null,0]
[{"$f":"IFERROR(IF(C33=\"Total general\",\"2.\",IF(D33=\"\",CONCATENATE(VLOOKUP($H33,'Tabla 1.1'!$D$10:$X$87,20,),R33),VLOOKUP($H33,'Tabla 1.1'!$D$10:$X$87,20,))),\"\")","v":""},{"$f":"IFERROR(IF(C33=\"Total general\",\"Números totales para todos los grupos de operadores y todas las autoridades competentes/autoridades de control/organismos de control\",IF(D33=\"\",CONCATENATE(\"Grupo de operadores \",VLOOKUP($H33,'Tabla 1.1'!$D$11:$Y$87,22,),R33),VLOOKUP($H33,'Tabla 1.1'!$D$11:$Y$87,21,))),\"\")","v":""},null,null,null,null,null,null,null,null,null,null,null,null,null,null,null,0]
[{"$f":"IFERROR(IF(C34=\"Total general\",\"2.\",IF(D34=\"\",CONCATENATE(VLOOKUP($H34,'Tabla 1.1'!$D$10:$X$87,20,),R34),VLOOKUP($H34,'Tabla 1.1'!$D$10:$X$87,20,))),\"\")","v":""},{"$f":"IFERROR(IF(C34=\"Total general\",\"Números totales para todos los grupos de operadores y todas las autoridades competentes/autoridades de control/organismos de control\",IF(D34=\"\",CONCATENATE(\"Grupo de operadores \",VLOOKUP($H34,'Tabla 1.1'!$D$11:$Y$87,22,),R34),VLOOKUP($H34,'Tabla 1.1'!$D$11:$Y$87,21,))),\"\")","v":""},null,null,null,null,null,null,null,null,null,null,null,null,null,null,null,0]
[{"$f":"IFERROR(IF(C35=\"Total general\",\"2.\",IF(D35=\"\",CONCATENATE(VLOOKUP($H35,'Tabla 1.1'!$D$10:$X$87,20,),R35),VLOOKUP($H35,'Tabla 1.1'!$D$10:$X$87,20,))),\"\")","v":""},{"$f":"IFERROR(IF(C35=\"Total general\",\"Números totales para todos los grupos de operadores y todas las autoridades competentes/autoridades de control/organismos de control\",IF(D35=\"\",CONCATENATE(\"Grupo de operadores \",VLOOKUP($H35,'Tabla 1.1'!$D$11:$Y$87,22,),R35),VLOOKUP($H35,'Tabla 1.1'!$D$11:$Y$87,21,))),\"\")","v":""},null,null,null,null,null,null,null,null,null,null,null,null,null,null,null,0]
[{"$f":"IFERROR(IF(C36=\"Total general\",\"2.\",IF(D36=\"\",CONCATENATE(VLOOKUP($H36,'Tabla 1.1'!$D$10:$X$87,20,),R36),VLOOKUP($H36,'Tabla 1.1'!$D$10:$X$87,20,))),\"\")","v":""},{"$f":"IFERROR(IF(C36=\"Total general\",\"Números totales para todos los grupos de operadores y todas las autoridades competentes/autoridades de control/organismos de control\",IF(D36=\"\",CONCATENATE(\"Grupo de operadores \",VLOOKUP($H36,'Tabla 1.1'!$D$11:$Y$87,22,),R36),VLOOKUP($H36,'Tabla 1.1'!$D$11:$Y$87,21,))),\"\")","v":""},null,null,null,null,null,null,null,null,null,null,null,null,null,null,null,0]
[{"$f":"IFERROR(IF(C37=\"Total general\",\"2.\",IF(D37=\"\",CONCATENATE(VLOOKUP($H37,'Tabla 1.1'!$D$10:$X$87,20,),R37),VLOOKUP($H37,'Tabla 1.1'!$D$10:$X$87,20,))),\"\")","v":""},{"$f":"IFERROR(IF(C37=\"Total general\",\"Números totales para todos los grupos de operadores y todas las autoridades competentes/autoridades de control/organismos de control\",IF(D37=\"\",CONCATENATE(\"Grupo de operadores \",VLOOKUP($H37,'Tabla 1.1'!$D$11:$Y$87,22,),R37),VLOOKUP($H37,'Tabla 1.1'!$D$11:$Y$87,21,))),\"\")","v":""},null,null,null,null,null,null,null,null,null,null,null,null,null,null,null,0]
[{"$f":"IFERROR(IF(C38=\"Total general\",\"2.\",IF(D38=\"\",CONCATENATE(VLOOKUP($H38,'Tabla 1.1'!$D$10:$X$87,20,),R38),VLOOKUP($H38,'Tabla 1.1'!$D$10:$X$87,20,))),\"\")","v":""},{"$f":"IFERROR(IF(C38=\"Total general\",\"Números totales para todos los grupos de operadores y todas las autoridades competentes/autoridades de control/organismos de control\",IF(D38=\"\",CONCATENATE(\"Grupo de operadores \",VLOOKUP($H38,'Tabla 1.1'!$D$11:$Y$87,22,),R38),VLOOKUP($H38,'Tabla 1.1'!$D$11:$Y$87,21,))),\"\")","v":""},null,null,null,null,null,null,null,null,null,null,null,null,null,null,null,0]
[{"$f":"IFERROR(IF(C39=\"Total general\",\"2.\",IF(D39=\"\",CONCATENATE(VLOOKUP($H39,'Tabla 1.1'!$D$10:$X$87,20,),R39),VLOOKUP($H39,'Tabla 1.1'!$D$10:$X$87,20,))),\"\")","v":""},{"$f":"IFERROR(IF(C39=\"Total general\",\"Números totales para todos los grupos de operadores y todas las autoridades competentes/autoridades de control/organismos de control\",IF(D39=\"\",CONCATENATE(\"Grupo de operadores \",VLOOKUP($H39,'Tabla 1.1'!$D$11:$Y$87,22,),R39),VLOOKUP($H39,'Tabla 1.1'!$D$11:$Y$87,21,))),\"\")","v":""},null,null,null,null,null,null,null,null,null,null,null,null,null,null,null,0]
[{"$f":"IFERROR(IF(C40=\"Total general\",\"2.\",IF(D40=\"\",CONCATENATE(VLOOKUP($H40,'Tabla 1.1'!$D$10:$X$87,20,),R40),VLOOKUP($H40,'Tabla 1.1'!$D$10:$X$87,20,))),\"\")","v":""},{"$f":"IFERROR(IF(C40=\"Total general\",\"Números totales para todos los grupos de operadores y todas las autoridades competentes/autoridades de control/organismos de control\",IF(D40=\"\",CONCATENATE(\"Grupo de operadores \",VLOOKUP($H40,'Tabla 1.1'!$D$11:$Y$87,22,),R40),VLOOKUP($H40,'Tabla 1.1'!$D$11:$Y$87,21,))),\"\")","v":""},null,null,null,null,null,null,null,null,null,null,null,null,null,null,null,0]
[{"$f":"IFERROR(IF(C41=\"Total general\",\"2.\",IF(D41=\"\",CONCATENATE(VLOOKUP($H41,'Tabla 1.1'!$D$10:$X$87,20,),R41),VLOOKUP($H41,'Tabla 1.1'!$D$10:$X$87,20,))),\"\")","v":""},{"$f":"IFERROR(IF(C41=\"Total general\",\"Números totales para todos los grupos de operadores y todas las autoridades competentes/autoridades de control/organismos de control\",IF(D41=\"\",CONCATENATE(\"Grupo de operadores \",VLOOKUP($H41,'Tabla 1.1'!$D$11:$Y$87,22,),R41),VLOOKUP($H41,'Tabla 1.1'!$D$11:$Y$87,21,))),\"\")","v":""},null,null,null,null,null,null,null,null,null,null,null,null,null,null,null,0]
[{"$f":"IFERROR(IF(C42=\"Total general\",\"2.\",IF(D42=\"\",CONCATENATE(VLOOKUP($H42,'Tabla 1.1'!$D$10:$X$87,20,),R42),VLOOKUP($H42,'Tabla 1.1'!$D$10:$X$87,20,))),\"\")","v":""},{"$f":"IFERROR(IF(C42=\"Total general\",\"Números totales para todos los grupos de operadores y todas las autoridades competentes/autoridades de control/organismos de control\",IF(D42=\"\",CONCATENATE(\"Grupo de operadores \",VLOOKUP($H42,'Tabla 1.1'!$D$11:$Y$87,22,),R42),VLOOKUP($H42,'Tabla 1.1'!$D$11:$Y$87,21,))),\"\")","v":""},null,null,null,null,null,null,null,null,null,null,null,null,null,null,null,0]
[{"$f":"IFERROR(IF(C43=\"Total general\",\"2.\",IF(D43=\"\",CONCATENATE(VLOOKUP($H43,'Tabla 1.1'!$D$10:$X$87,20,),R43),VLOOKUP($H43,'Tabla 1.1'!$D$10:$X$87,20,))),\"\")","v":""},{"$f":"IFERROR(IF(C43=\"Total general\",\"Números totales para todos los grupos de operadores y todas las autoridades competentes/autoridades de control/organismos de control\",IF(D43=\"\",CONCATENATE(\"Grupo de operadores \",VLOOKUP($H43,'Tabla 1.1'!$D$11:$Y$87,22,),R43),VLOOKUP($H43,'Tabla 1.1'!$D$11:$Y$87,21,))),\"\")","v":""},null,null,null,null,null,null,null,null,null,null,null,null,null,null,null,0]
[{"$f":"IFERROR(IF(C44=\"Total general\",\"2.\",IF(D44=\"\",CONCATENATE(VLOOKUP($H44,'Tabla 1.1'!$D$10:$X$87,20,),R44),VLOOKUP($H44,'Tabla 1.1'!$D$10:$X$87,20,))),\"\")","v":""},{"$f":"IFERROR(IF(C44=\"Total general\",\"Números totales para todos los grupos de operadores y todas las autoridades competentes/autoridades de control/organismos de control\",IF(D44=\"\",CONCATENATE(\"Grupo de operadores \",VLOOKUP($H44,'Tabla 1.1'!$D$11:$Y$87,22,),R44),VLOOKUP($H44,'Tabla 1.1'!$D$11:$Y$87,21,))),\"\")","v":""},null,null,null,null,null,null,null,null,null,null,null,null,null,null,null,0]
[{"$f":"IFERROR(IF(C45=\"Total general\",\"2.\",IF(D45=\"\",CONCATENATE(VLOOKUP($H45,'Tabla 1.1'!$D$10:$X$87,20,),R45),VLOOKUP($H45,'Tabla 1.1'!$D$10:$X$87,20,))),\"\")","v":""},{"$f":"IFERROR(IF(C45=\"Total general\",\"Números totales para todos los grupos de operadores y todas las autoridades competentes/autoridades de control/organismos de control\",IF(D45=\"\",CONCATENATE(\"Grupo de operadores \",VLOOKUP($H45,'Tabla 1.1'!$D$11:$Y$87,22,),R45),VLOOKUP($H45,'Tabla 1.1'!$D$11:$Y$87,21,))),\"\")","v":""},null,null,null,null,null,null,null,null,null,null,null,null,null,null,null,0]
[{"$f":"IFERROR(IF(C46=\"Total general\",\"2.\",IF(D46=\"\",CONCATENATE(VLOOKUP($H46,'Tabla 1.1'!$D$10:$X$87,20,),R46),VLOOKUP($H46,'Tabla 1.1'!$D$10:$X$87,20,))),\"\")","v":""},{"$f":"IFERROR(IF(C46=\"Total general\",\"Números totales para todos los grupos de operadores y todas las autoridades competentes/autoridades de control/organismos de control\",IF(D46=\"\",CONCATENATE(\"Grupo de operadores \",VLOOKUP($H46,'Tabla 1.1'!$D$11:$Y$87,22,),R46),VLOOKUP($H46,'Tabla 1.1'!$D$11:$Y$87,21,))),\"\")","v":""},null,null,null,null,null,null,null,null,null,null,null,null,null,null,null,0]
[{"$f":"IFERROR(IF(C47=\"Total general\",\"2.\",IF(D47=\"\",CONCATENATE(VLOOKUP($H47,'Tabla 1.1'!$D$10:$X$87,20,),R47),VLOOKUP($H47,'Tabla 1.1'!$D$10:$X$87,20,))),\"\")","v":""},{"$f":"IFERROR(IF(C47=\"Total general\",\"Números totales para todos los grupos de operadores y todas las autoridades competentes/autoridades de control/organismos de control\",IF(D47=\"\",CONCATENATE(\"Grupo de operadores \",VLOOKUP($H47,'Tabla 1.1'!$D$11:$Y$87,22,),R47),VLOOKUP($H47,'Tabla 1.1'!$D$11:$Y$87,21,))),\"\")","v":""},null,null,null,null,null,null,null,null,null,null,null,null,null,null,null,0]
[{"$f":"IFERROR(IF(C48=\"Total general\",\"2.\",IF(D48=\"\",CONCATENATE(VLOOKUP($H48,'Tabla 1.1'!$D$10:$X$87,20,),R48),VLOOKUP($H48,'Tabla 1.1'!$D$10:$X$87,20,))),\"\")","v":""},{"$f":"IFERROR(IF(C48=\"Total general\",\"Números totales para todos los grupos de operadores y todas las autoridades competentes/autoridades de control/organismos de control\",IF(D48=\"\",CONCATENATE(\"Grupo de operadores \",VLOOKUP($H48,'Tabla 1.1'!$D$11:$Y$87,22,),R48),VLOOKUP($H48,'Tabla 1.1'!$D$11:$Y$87,21,))),\"\")","v":""},null,null,null,null,null,null,null,null,null,null,null,null,null,null,null,0]
[{"$f":"IFERROR(IF(C49=\"Total general\",\"2.\",IF(D49=\"\",CONCATENATE(VLOOKUP($H49,'Tabla 1.1'!$D$10:$X$87,20,),R49),VLOOKUP($H49,'Tabla 1.1'!$D$10:$X$87,20,))),\"\")","v":""},{"$f":"IFERROR(IF(C49=\"Total general\",\"Números totales para todos los grupos de operadores y todas las autoridades competentes/autoridades de control/organismos de control\",IF(D49=\"\",CONCATENATE(\"Grupo de operadores \",VLOOKUP($H49,'Tabla 1.1'!$D$11:$Y$87,22,),R49),VLOOKUP($H49,'Tabla 1.1'!$D$11:$Y$87,21,))),\"\")","v":""},null,null,null,null,null,null,null,null,null,null,null,null,null,null,null,0]
[{"$f":"IFERROR(IF(C50=\"Total general\",\"2.\",IF(D50=\"\",CONCATENATE(VLOOKUP($H50,'Tabla 1.1'!$D$10:$X$87,20,),R50),VLOOKUP($H50,'Tabla 1.1'!$D$10:$X$87,20,))),\"\")","v":""},{"$f":"IFERROR(IF(C50=\"Total general\",\"Números totales para todos los grupos de operadores y todas las autoridades competentes/autoridades de control/organismos de control\",IF(D50=\"\",CONCATENATE(\"Grupo de operadores \",VLOOKUP($H50,'Tabla 1.1'!$D$11:$Y$87,22,),R50),VLOOKUP($H50,'Tabla 1.1'!$D$11:$Y$87,21,))),\"\")","v":""},null,null,null,null,null,null,null,null,null,null,null,null,null,null,null,0]
[{"$f":"IFERROR(IF(C51=\"Total general\",\"2.\",IF(D51=\"\",CONCATENATE(VLOOKUP($H51,'Tabla 1.1'!$D$10:$X$87,20,),R51),VLOOKUP($H51,'Tabla 1.1'!$D$10:$X$87,20,))),\"\")","v":""},{"$f":"IFERROR(IF(C51=\"Total general\",\"Números totales para todos los grupos de operadores y todas las autoridades competentes/autoridades de control/organismos de control\",IF(D51=\"\",CONCATENATE(\"Grupo de operadores \",VLOOKUP($H51,'Tabla 1.1'!$D$11:$Y$87,22,),R51),VLOOKUP($H51,'Tabla 1.1'!$D$11:$Y$87,21,))),\"\")","v":""},null,null,null,null,null,null,null,null,null,null,null,null,null,null,null,0]
[{"$f":"IFERROR(IF(C52=\"Total general\",\"2.\",IF(D52=\"\",CONCATENATE(VLOOKUP($H52,'Tabla 1.1'!$D$10:$X$87,20,),R52),VLOOKUP($H52,'Tabla 1.1'!$D$10:$X$87,20,))),\"\")","v":""},{"$f":"IFERROR(IF(C52=\"Total general\",\"Números totales para todos los grupos de operadores y todas las autoridades competentes/autoridades de control/organismos de control\",IF(D52=\"\",CONCATENATE(\"Grupo de operadores \",VLOOKUP($H52,'Tabla 1.1'!$D$11:$Y$87,22,),R52),VLOOKUP($H52,'Tabla 1.1'!$D$11:$Y$87,21,))),\"\")","v":""},null,null,null,null,null,null,null,null,null,null,null,null,null,null,null,0]
[{"$f":"IFERROR(IF(C53=\"Total general\",\"2.\",IF(D53=\"\",CONCATENATE(VLOOKUP($H53,'Tabla 1.1'!$D$10:$X$87,20,),R53),VLOOKUP($H53,'Tabla 1.1'!$D$10:$X$87,20,))),\"\")","v":""},{"$f":"IFERROR(IF(C53=\"Total general\",\"Números totales para todos los grupos de operadores y todas las autoridades competentes/autoridades de control/organismos de control\",IF(D53=\"\",CONCATENATE(\"Grupo de operadores \",VLOOKUP($H53,'Tabla 1.1'!$D$11:$Y$87,22,),R53),VLOOKUP($H53,'Tabla 1.1'!$D$11:$Y$87,21,))),\"\")","v":""},null,null,null,null,null,null,null,null,null,null,null,null,null,null,null,0]
[{"$f":"IFERROR(IF(C54=\"Total general\",\"2.\",IF(D54=\"\",CONCATENATE(VLOOKUP($H54,'Tabla 1.1'!$D$10:$X$87,20,),R54),VLOOKUP($H54,'Tabla 1.1'!$D$10:$X$87,20,))),\"\")","v":""},{"$f":"IFERROR(IF(C54=\"Total general\",\"Números totales para todos los grupos de operadores y todas las autoridades competentes/autoridades de control/organismos de control\",IF(D54=\"\",CONCATENATE(\"Grupo de operadores \",VLOOKUP($H54,'Tabla 1.1'!$D$11:$Y$87,22,),R54),VLOOKUP($H54,'Tabla 1.1'!$D$11:$Y$87,21,))),\"\")","v":""},null,null,null,null,null,null,null,null,null,null,null,null,null,null,null,0]
[{"$f":"IFERROR(IF(C55=\"Total general\",\"2.\",IF(D55=\"\",CONCATENATE(VLOOKUP($H55,'Tabla 1.1'!$D$10:$X$87,20,),R55),VLOOKUP($H55,'Tabla 1.1'!$D$10:$X$87,20,))),\"\")","v":""},{"$f":"IFERROR(IF(C55=\"Total general\",\"Números totales para todos los grupos de operadores y todas las autoridades competentes/autoridades de control/organismos de control\",IF(D55=\"\",CONCATENATE(\"Grupo de operadores \",VLOOKUP($H55,'Tabla 1.1'!$D$11:$Y$87,22,),R55),VLOOKUP($H55,'Tabla 1.1'!$D$11:$Y$87,21,))),\"\")","v":""},null,null,null,null,null,null,null,null,null,null,null,null,null,null,null,0]
[{"$f":"IFERROR(IF(C56=\"Total general\",\"2.\",IF(D56=\"\",CONCATENATE(VLOOKUP($H56,'Tabla 1.1'!$D$10:$X$87,20,),R56),VLOOKUP($H56,'Tabla 1.1'!$D$10:$X$87,20,))),\"\")","v":""},{"$f":"IFERROR(IF(C56=\"Total general\",\"Números totales para todos los grupos de operadores y todas las autoridades competentes/autoridades de control/organismos de control\",IF(D56=\"\",CONCATENATE(\"Grupo de operadores \",VLOOKUP($H56,'Tabla 1.1'!$D$11:$Y$87,22,),R56),VLOOKUP($H56,'Tabla 1.1'!$D$11:$Y$87,21,))),\"\")","v":""},null,null,null,null,null,null,null,null,null,null,null,null,null,null,null,0]
[{"$f":"IFERROR(IF(C57=\"Total general\",\"2.\",IF(D57=\"\",CONCATENATE(VLOOKUP($H57,'Tabla 1.1'!$D$10:$X$87,20,),R57),VLOOKUP($H57,'Tabla 1.1'!$D$10:$X$87,20,))),\"\")","v":""},{"$f":"IFERROR(IF(C57=\"Total general\",\"Números totales para todos los grupos de operadores y todas las autoridades competentes/autoridades de control/organismos de control\",IF(D57=\"\",CONCATENATE(\"Grupo de operadores \",VLOOKUP($H57,'Tabla 1.1'!$D$11:$Y$87,22,),R57),VLOOKUP($H57,'Tabla 1.1'!$D$11:$Y$87,21,))),\"\")","v":""},null,null,null,null,null,null,null,null,null,null,null,null,null,null,null,0]
[{"$f":"IFERROR(IF(C58=\"Total general\",\"2.\",IF(D58=\"\",CONCATENATE(VLOOKUP($H58,'Tabla 1.1'!$D$10:$X$87,20,),R58),VLOOKUP($H58,'Tabla 1.1'!$D$10:$X$87,20,))),\"\")","v":""},{"$f":"IFERROR(IF(C58=\"Total general\",\"Números totales para todos los grupos de operadores y todas las autoridades competentes/autoridades de control/organismos de control\",IF(D58=\"\",CONCATENATE(\"Grupo de operadores \",VLOOKUP($H58,'Tabla 1.1'!$D$11:$Y$87,22,),R58),VLOOKUP($H58,'Tabla 1.1'!$D$11:$Y$87,21,))),\"\")","v":""},null,null,null,null,null,null,null,null,null,null,null,null,null,null,null,0]
[{"$f":"IFERROR(IF(C59=\"Total general\",\"2.\",IF(D59=\"\",CONCATENATE(VLOOKUP($H59,'Tabla 1.1'!$D$10:$X$87,20,),R59),VLOOKUP($H59,'Tabla 1.1'!$D$10:$X$87,20,))),\"\")","v":""},{"$f":"IFERROR(IF(C59=\"Total general\",\"Números totales para todos los grupos de operadores y todas las autoridades competentes/autoridades de control/organismos de control\",IF(D59=\"\",CONCATENATE(\"Grupo de operadores \",VLOOKUP($H59,'Tabla 1.1'!$D$11:$Y$87,22,),R59),VLOOKUP($H59,'Tabla 1.1'!$D$11:$Y$87,21,))),\"\")","v":""},null,null,null,null,null,null,null,null,null,null,null,null,null,null,null,0]
[{"$f":"IFERROR(IF(C60=\"Total general\",\"2.\",IF(D60=\"\",CONCATENATE(VLOOKUP($H60,'Tabla 1.1'!$D$10:$X$87,20,),R60),VLOOKUP($H60,'Tabla 1.1'!$D$10:$X$87,20,))),\"\")","v":""},{"$f":"IFERROR(IF(C60=\"Total general\",\"Números totales para todos los grupos de operadores y todas las autoridades competentes/autoridades de control/organismos de control\",IF(D60=\"\",CONCATENATE(\"Grupo de operadores \",VLOOKUP($H60,'Tabla 1.1'!$D$11:$Y$87,22,),R60),VLOOKUP($H60,'Tabla 1.1'!$D$11:$Y$87,21,))),\"\")","v":""},null,null,null,null,null,null,null,null,null,null,null,null,null,null,null,0]
[{"$f":"IFERROR(IF(C61=\"Total general\",\"2.\",IF(D61=\"\",CONCATENATE(VLOOKUP($H61,'Tabla 1.1'!$D$10:$X$87,20,),R61),VLOOKUP($H61,'Tabla 1.1'!$D$10:$X$87,20,))),\"\")","v":""},{"$f":"IFERROR(IF(C61=\"Total general\",\"Números totales para todos los grupos de operadores y todas las autoridades competentes/autoridades de control/organismos de control\",IF(D61=\"\",CONCATENATE(\"Grupo de operadores \",VLOOKUP($H61,'Tabla 1.1'!$D$11:$Y$87,22,),R61),VLOOKUP($H61,'Tabla 1.1'!$D$11:$Y$87,21,))),\"\")","v":""},null,null,null,null,null,null,null,null,null,null,null,null,null,null,null,0]
[{"$f":"IFERROR(IF(C62=\"Total general\",\"2.\",IF(D62=\"\",CONCATENATE(VLOOKUP($H62,'Tabla 1.1'!$D$10:$X$87,20,),R62),VLOOKUP($H62,'Tabla 1.1'!$D$10:$X$87,20,))),\"\")","v":""},{"$f":"IFERROR(IF(C62=\"Total general\",\"Números totales para todos los grupos de operadores y todas las autoridades competentes/autoridades de control/organismos de control\",IF(D62=\"\",CONCATENATE(\"Grupo de operadores \",VLOOKUP($H62,'Tabla 1.1'!$D$11:$Y$87,22,),R62),VLOOKUP($H62,'Tabla 1.1'!$D$11:$Y$87,21,))),\"\")","v":""},null,null,null,null,null,null,null,null,null,null,null,null,null,null,null,0]
[{"$f":"IFERROR(IF(C63=\"Total general\",\"2.\",IF(D63=\"\",CONCATENATE(VLOOKUP($H63,'Tabla 1.1'!$D$10:$X$87,20,),R63),VLOOKUP($H63,'Tabla 1.1'!$D$10:$X$87,20,))),\"\")","v":""},{"$f":"IFERROR(IF(C63=\"Total general\",\"Números totales para todos los grupos de operadores y todas las autoridades competentes/autoridades de control/organismos de control\",IF(D63=\"\",CONCATENATE(\"Grupo de operadores \",VLOOKUP($H63,'Tabla 1.1'!$D$11:$Y$87,22,),R63),VLOOKUP($H63,'Tabla 1.1'!$D$11:$Y$87,21,))),\"\")","v":""},null,null,null,null,null,null,null,null,null,null,null,null,null,null,null,0]
[{"$f":"IFERROR(IF(C64=\"Total general\",\"2.\",IF(D64=\"\",CONCATENATE(VLOOKUP($H64,'Tabla 1.1'!$D$10:$X$87,20,),R64),VLOOKUP($H64,'Tabla 1.1'!$D$10:$X$87,20,))),\"\")","v":""},{"$f":"IFERROR(IF(C64=\"Total general\",\"Números totales para todos los grupos de operadores y todas las autoridades competentes/autoridades de control/organismos de control\",IF(D64=\"\",CONCATENATE(\"Grupo de operadores \",VLOOKUP($H64,'Tabla 1.1'!$D$11:$Y$87,22,),R64),VLOOKUP($H64,'Tabla 1.1'!$D$11:$Y$87,21,))),\"\")","v":""},null,null,null,null,null,null,null,null,null,null,null,null,null,null,null,0]
[{"$f":"IFERROR(IF(C65=\"Total general\",\"2.\",IF(D65=\"\",CONCATENATE(VLOOKUP($H65,'Tabla 1.1'!$D$10:$X$87,20,),R65),VLOOKUP($H65,'Tabla 1.1'!$D$10:$X$87,20,))),\"\")","v":""},{"$f":"IFERROR(IF(C65=\"Total general\",\"Números totales para todos los grupos de operadores y todas las autoridades competentes/autoridades de control/organismos de control\",IF(D65=\"\",CONCATENATE(\"Grupo de operadores \",VLOOKUP($H65,'Tabla 1.1'!$D$11:$Y$87,22,),R65),VLOOKUP($H65,'Tabla 1.1'!$D$11:$Y$87,21,))),\"\")","v":""},null,null,null,null,null,null,null,null,null,null,null,null,null,null,null,0]
[{"$f":"IFERROR(IF(C66=\"Total general\",\"2.\",IF(D66=\"\",CONCATENATE(VLOOKUP($H66,'Tabla 1.1'!$D$10:$X$87,20,),R66),VLOOKUP($H66,'Tabla 1.1'!$D$10:$X$87,20,))),\"\")","v":""},{"$f":"IFERROR(IF(C66=\"Total general\",\"Números totales para todos los grupos de operadores y todas las autoridades competentes/autoridades de control/organismos de control\",IF(D66=\"\",CONCATENATE(\"Grupo de operadores \",VLOOKUP($H66,'Tabla 1.1'!$D$11:$Y$87,22,),R66),VLOOKUP($H66,'Tabla 1.1'!$D$11:$Y$87,21,))),\"\")","v":""},null,null,null,null,null,null,null,null,null,null,null,null,null,null,null,0]
[{"$f":"IFERROR(IF(C67=\"Total general\",\"2.\",IF(D67=\"\",CONCATENATE(VLOOKUP($H67,'Tabla 1.1'!$D$10:$X$87,20,),R67),VLOOKUP($H67,'Tabla 1.1'!$D$10:$X$87,20,))),\"\")","v":""},{"$f":"IFERROR(IF(C67=\"Total general\",\"Números totales para todos los grupos de operadores y todas las autoridades competentes/autoridades de control/organismos de control\",IF(D67=\"\",CONCATENATE(\"Grupo de operadores \",VLOOKUP($H67,'Tabla 1.1'!$D$11:$Y$87,22,),R67),VLOOKUP($H67,'Tabla 1.1'!$D$11:$Y$87,21,))),\"\")","v":""},null,null,null,null,null,null,null,null,null,null,null,null,null,null,null,0]
[{"$f":"IFERROR(IF(C68=\"Total general\",\"2.\",IF(D68=\"\",CONCATENATE(VLOOKUP($H68,'Tabla 1.1'!$D$10:$X$87,20,),R68),VLOOKUP($H68,'Tabla 1.1'!$D$10:$X$87,20,))),\"\")","v":""},{"$f":"IFERROR(IF(C68=\"Total general\",\"Números totales para todos los grupos de operadores y todas las autoridades competentes/autoridades de control/organismos de control\",IF(D68=\"\",CONCATENATE(\"Grupo de operadores \",VLOOKUP($H68,'Tabla 1.1'!$D$11:$Y$87,22,),R68),VLOOKUP($H68,'Tabla 1.1'!$D$11:$Y$87,21,))),\"\")","v":""},null,null,null,null,null,null,null,null,null,null,null,null,null,null,null,0]
[{"$f":"IFERROR(IF(C69=\"Total general\",\"2.\",IF(D69=\"\",CONCATENATE(VLOOKUP($H69,'Tabla 1.1'!$D$10:$X$87,20,),R69),VLOOKUP($H69,'Tabla 1.1'!$D$10:$X$87,20,))),\"\")","v":""},{"$f":"IFERROR(IF(C69=\"Total general\",\"Números totales para todos los grupos de operadores y todas las autoridades competentes/autoridades de control/organismos de control\",IF(D69=\"\",CONCATENATE(\"Grupo de operadores \",VLOOKUP($H69,'Tabla 1.1'!$D$11:$Y$87,22,),R69),VLOOKUP($H69,'Tabla 1.1'!$D$11:$Y$87,21,))),\"\")","v":""},null,null,null,null,null,null,null,null,null,null,null,null,null,null,null,0]
[{"$f":"IFERROR(IF(C70=\"Total general\",\"2.\",IF(D70=\"\",CONCATENATE(VLOOKUP($H70,'Tabla 1.1'!$D$10:$X$87,20,),R70),VLOOKUP($H70,'Tabla 1.1'!$D$10:$X$87,20,))),\"\")","v":""},{"$f":"IFERROR(IF(C70=\"Total general\",\"Números totales para todos los grupos de operadores y todas las autoridades competentes/autoridades de control/organismos de control\",IF(D70=\"\",CONCATENATE(\"Grupo de operadores \",VLOOKUP($H70,'Tabla 1.1'!$D$11:$Y$87,22,),R70),VLOOKUP($H70,'Tabla 1.1'!$D$11:$Y$87,21,))),\"\")","v":""},null,null,null,null,null,null,null,null,null,null,null,null,null,null,null,0]
[{"$f":"IFERROR(IF(C71=\"Total general\",\"2.\",IF(D71=\"\",CONCATENATE(VLOOKUP($H71,'Tabla 1.1'!$D$10:$X$87,20,),R71),VLOOKUP($H71,'Tabla 1.1'!$D$10:$X$87,20,))),\"\")","v":""},{"$f":"IFERROR(IF(C71=\"Total general\",\"Números totales para todos los grupos de operadores y todas las autoridades competentes/autoridades de control/organismos de control\",IF(D71=\"\",CONCATENATE(\"Grupo de operadores \",VLOOKUP($H71,'Tabla 1.1'!$D$11:$Y$87,22,),R71),VLOOKUP($H71,'Tabla 1.1'!$D$11:$Y$87,21,))),\"\")","v":""},null,null,null,null,null,null,null,null,null,null,null,null,null,null,null,0]
[{"$f":"IFERROR(IF(C72=\"Total general\",\"2.\",IF(D72=\"\",CONCATENATE(VLOOKUP($H72,'Tabla 1.1'!$D$10:$X$87,20,),R72),VLOOKUP($H72,'Tabla 1.1'!$D$10:$X$87,20,))),\"\")","v":""},{"$f":"IFERROR(IF(C72=\"Total general\",\"Números totales para todos los grupos de operadores y todas las autoridades competentes/autoridades de control/organismos de control\",IF(D72=\"\",CONCATENATE(\"Grupo de operadores \",VLOOKUP($H72,'Tabla 1.1'!$D$11:$Y$87,22,),R72),VLOOKUP($H72,'Tabla 1.1'!$D$11:$Y$87,21,))),\"\")","v":""},null,null,null,null,null,null,null,null,null,null,null,null,null,null,null,0]
[{"$f":"IFERROR(IF(C73=\"Total general\",\"2.\",IF(D73=\"\",CONCATENATE(VLOOKUP($H73,'Tabla 1.1'!$D$10:$X$87,20,),R73),VLOOKUP($H73,'Tabla 1.1'!$D$10:$X$87,20,))),\"\")","v":""},{"$f":"IFERROR(IF(C73=\"Total general\",\"Números totales para todos los grupos de operadores y todas las autoridades competentes/autoridades de control/organismos de control\",IF(D73=\"\",CONCATENATE(\"Grupo de operadores \",VLOOKUP($H73,'Tabla 1.1'!$D$11:$Y$87,22,),R73),VLOOKUP($H73,'Tabla 1.1'!$D$11:$Y$87,21,))),\"\")","v":""},null,null,null,null,null,null,null,null,null,null,null,null,null,null,null,0]
[{"$f":"IFERROR(IF(C74=\"Total general\",\"2.\",IF(D74=\"\",CONCATENATE(VLOOKUP($H74,'Tabla 1.1'!$D$10:$X$87,20,),R74),VLOOKUP($H74,'Tabla 1.1'!$D$10:$X$87,20,))),\"\")","v":""},{"$f":"IFERROR(IF(C74=\"Total general\",\"Números totales para todos los grupos de operadores y todas las autoridades competentes/autoridades de control/organismos de control\",IF(D74=\"\",CONCATENATE(\"Grupo de operadores \",VLOOKUP($H74,'Tabla 1.1'!$D$11:$Y$87,22,),R74),VLOOKUP($H74,'Tabla 1.1'!$D$11:$Y$87,21,))),\"\")","v":""},null,null,null,null,null,null,null,null,null,null,null,null,null,null,null,0]
[{"$f":"IFERROR(IF(C75=\"Total general\",\"2.\",IF(D75=\"\",CONCATENATE(VLOOKUP($H75,'Tabla 1.1'!$D$10:$X$87,20,),R75),VLOOKUP($H75,'Tabla 1.1'!$D$10:$X$87,20,))),\"\")","v":""},{"$f":"IFERROR(IF(C75=\"Total general\",\"Números totales para todos los grupos de operadores y todas las autoridades competentes/autoridades de control/organismos de control\",IF(D75=\"\",CONCATENATE(\"Grupo de operadores \",VLOOKUP($H75,'Tabla 1.1'!$D$11:$Y$87,22,),R75),VLOOKUP($H75,'Tabla 1.1'!$D$11:$Y$87,21,))),\"\")","v":""},null,null,null,null,null,null,null,null,null,null,null,null,null,null,null,{"$f":"IF(I75=\"\",0,R74+1)","v":0}]
[{"$f":"IFERROR(IF(C76=\"Total general\",\"2.\",IF(D76=\"\",CONCATENATE(VLOOKUP($H76,'Tabla 1.1'!$D$10:$X$87,20,),R76),VLOOKUP($H76,'Tabla 1.1'!$D$10:$X$87,20,))),\"\")","v":""},{"$f":"IFERROR(IF(C76=\"Total general\",\"Números totales para todos los grupos de operadores y todas las autoridades competentes/autoridades de control/organismos de control\",IF(D76=\"\",CONCATENATE(\"Grupo de operadores \",VLOOKUP($H76,'Tabla 1.1'!$D$11:$Y$87,22,),R76),VLOOKUP($H76,'Tabla 1.1'!$D$11:$Y$87,21,))),\"\")","v":""},null,null,null,null,null,null,null,null,null,null,null,null,null,null,null,0]
[{"$f":"IFERROR(IF(C77=\"Total general\",\"2.\",IF(D77=\"\",CONCATENATE(VLOOKUP($H77,'Tabla 1.1'!$D$10:$X$87,20,),R77),VLOOKUP($H77,'Tabla 1.1'!$D$10:$X$87,20,))),\"\")","v":""},{"$f":"IFERROR(IF(C77=\"Total general\",\"Números totales para todos los grupos de operadores y todas las autoridades competentes/autoridades de control/organismos de control\",IF(D77=\"\",CONCATENATE(\"Grupo de operadores \",VLOOKUP($H77,'Tabla 1.1'!$D$11:$Y$87,22,),R77),VLOOKUP($H77,'Tabla 1.1'!$D$11:$Y$87,21,))),\"\")","v":""},null,null,null,null,null,null,null,null,null,null,null,null,null,null,null,0]
[{"$f":"IFERROR(IF(C78=\"Total general\",\"2.\",IF(D78=\"\",CONCATENATE(VLOOKUP($H78,'Tabla 1.1'!$D$10:$X$87,20,),R78),VLOOKUP($H78,'Tabla 1.1'!$D$10:$X$87,20,))),\"\")","v":""},{"$f":"IFERROR(IF(C78=\"Total general\",\"Números totales para todos los grupos de operadores y todas las autoridades competentes/autoridades de control/organismos de control\",IF(D78=\"\",CONCATENATE(\"Grupo de operadores \",VLOOKUP($H78,'Tabla 1.1'!$D$11:$Y$87,22,),R78),VLOOKUP($H78,'Tabla 1.1'!$D$11:$Y$87,21,))),\"\")","v":""},null,null,null,null,null,null,null,null,null,null,null,null,null,null,null,0]
[{"$f":"IFERROR(IF(C79=\"Total general\",\"2.\",IF(D79=\"\",CONCATENATE(VLOOKUP($H79,'Tabla 1.1'!$D$10:$X$87,20,),R79),VLOOKUP($H79,'Tabla 1.1'!$D$10:$X$87,20,))),\"\")","v":""},{"$f":"IFERROR(IF(C79=\"Total general\",\"Números totales para todos los grupos de operadores y todas las autoridades competentes/autoridades de control/organismos de control\",IF(D79=\"\",CONCATENATE(\"Grupo de operadores \",VLOOKUP($H79,'Tabla 1.1'!$D$11:$Y$87,22,),R79),VLOOKUP($H79,'Tabla 1.1'!$D$11:$Y$87,21,))),\"\")","v":""},null,null,null,null,null,null,null,null,null,null,null,null,null,null,null,0]
[{"$f":"IFERROR(IF(C80=\"Total general\",\"2.\",IF(D80=\"\",CONCATENATE(VLOOKUP($H80,'Tabla 1.1'!$D$10:$X$87,20,),R80),VLOOKUP($H80,'Tabla 1.1'!$D$10:$X$87,20,))),\"\")","v":""},{"$f":"IFERROR(IF(C80=\"Total general\",\"Números totales para todos los grupos de operadores y todas las autoridades competentes/autoridades de control/organismos de control\",IF(D80=\"\",CONCATENATE(\"Grupo de operadores \",VLOOKUP($H80,'Tabla 1.1'!$D$11:$Y$87,22,),R80),VLOOKUP($H80,'Tabla 1.1'!$D$11:$Y$87,21,))),\"\")","v":""},null,null,null,null,null,null,null,null,null,null,null,null,null,null,null,0]
[{"$f":"IFERROR(IF(C81=\"Total general\",\"2.\",IF(D81=\"\",CONCATENATE(VLOOKUP($H81,'Tabla 1.1'!$D$10:$X$87,20,),R81),VLOOKUP($H81,'Tabla 1.1'!$D$10:$X$87,20,))),\"\")","v":""},{"$f":"IFERROR(IF(C81=\"Total general\",\"Números totales para todos los grupos de operadores y todas las autoridades competentes/autoridades de control/organismos de control\",IF(D81=\"\",CONCATENATE(\"Grupo de operadores \",VLOOKUP($H81,'Tabla 1.1'!$D$11:$Y$87,22,),R81),VLOOKUP($H81,'Tabla 1.1'!$D$11:$Y$87,21,))),\"\")","v":""},null,null,null,null,null,null,null,null,null,null,null,null,null,null,null,0]
[{"$f":"IFERROR(IF(C82=\"Total general\",\"2.\",IF(D82=\"\",CONCATENATE(VLOOKUP($H82,'Tabla 1.1'!$D$10:$X$87,20,),R82),VLOOKUP($H82,'Tabla 1.1'!$D$10:$X$87,20,))),\"\")","v":""},{"$f":"IFERROR(IF(C82=\"Total general\",\"Números totales para todos los grupos de operadores y todas las autoridades competentes/autoridades de control/organismos de control\",IF(D82=\"\",CONCATENATE(\"Grupo de operadores \",VLOOKUP($H82,'Tabla 1.1'!$D$11:$Y$87,22,),R82),VLOOKUP($H82,'Tabla 1.1'!$D$11:$Y$87,21,))),\"\")","v":""},null,null,null,null,null,null,null,null,null,null,null,null,null,null,null,0]
[{"$f":"IFERROR(IF(C83=\"Total general\",\"2.\",IF(D83=\"\",CONCATENATE(VLOOKUP($H83,'Tabla 1.1'!$D$10:$X$87,20,),R83),VLOOKUP($H83,'Tabla 1.1'!$D$10:$X$87,20,))),\"\")","v":""},{"$f":"IFERROR(IF(C83=\"Total general\",\"Números totales para todos los grupos de operadores y todas las autoridades competentes/autoridades de control/organismos de control\",IF(D83=\"\",CONCATENATE(\"Grupo de operadores \",VLOOKUP($H83,'Tabla 1.1'!$D$11:$Y$87,22,),R83),VLOOKUP($H83,'Tabla 1.1'!$D$11:$Y$87,21,))),\"\")","v":""},null,null,null,null,null,null,null,null,null,null,null,null,null,null,null,0]
[{"$f":"IFERROR(IF(C84=\"Total general\",\"2.\",IF(D84=\"\",CONCATENATE(VLOOKUP($H84,'Tabla 1.1'!$D$10:$X$87,20,),R84),VLOOKUP($H84,'Tabla 1.1'!$D$10:$X$87,20,))),\"\")","v":""},{"$f":"IFERROR(IF(C84=\"Total general\",\"Números totales para todos los grupos de operadores y todas las autoridades competentes/autoridades de control/organismos de control\",IF(D84=\"\",CONCATENATE(\"Grupo de operadores \",VLOOKUP($H84,'Tabla 1.1'!$D$11:$Y$87,22,),R84),VLOOKUP($H84,'Tabla 1.1'!$D$11:$Y$87,21,))),\"\")","v":""},null,null,null,null,null,null,null,null,null,null,null,null,null,null,null,0]
[{"$f":"IFERROR(IF(C85=\"Total general\",\"2.\",IF(D85=\"\",CONCATENATE(VLOOKUP($H85,'Tabla 1.1'!$D$10:$X$87,20,),R85),VLOOKUP($H85,'Tabla 1.1'!$D$10:$X$87,20,))),\"\")","v":""},{"$f":"IFERROR(IF(C85=\"Total general\",\"Números totales para todos los grupos de operadores y todas las autoridades competentes/autoridades de control/organismos de control\",IF(D85=\"\",CONCATENATE(\"Grupo de operadores \",VLOOKUP($H85,'Tabla 1.1'!$D$11:$Y$87,22,),R85),VLOOKUP($H85,'Tabla 1.1'!$D$11:$Y$87,21,))),\"\")","v":""},null,null,null,null,null,null,null,null,null,null,null,null,null,null,null,0]
[{"$f":"IFERROR(IF(C86=\"Total general\",\"2.\",IF(D86=\"\",CONCATENATE(VLOOKUP($H86,'Tabla 1.1'!$D$10:$X$87,20,),R86),VLOOKUP($H86,'Tabla 1.1'!$D$10:$X$87,20,))),\"\")","v":""},{"$f":"IFERROR(IF(C86=\"Total general\",\"Números totales para todos los grupos de operadores y todas las autoridades competentes/autoridades de control/organismos de control\",IF(D86=\"\",CONCATENATE(\"Grupo de operadores \",VLOOKUP($H86,'Tabla 1.1'!$D$11:$Y$87,22,),R86),VLOOKUP($H86,'Tabla 1.1'!$D$11:$Y$87,21,))),\"\")","v":""},null,null,null,null,null,null,null,null,null,null,null,null,null,null,null,0]
[{"$f":"IFERROR(IF(C87=\"Total general\",\"2.\",IF(D87=\"\",CONCATENATE(VLOOKUP($H87,'Tabla 1.1'!$D$10:$X$87,20,),R87),VLOOKUP($H87,'Tabla 1.1'!$D$10:$X$87,20,))),\"\")","v":""},{"$f":"IFERROR(IF(C87=\"Total general\",\"Números totales para todos los grupos de operadores y todas las autoridades competentes/autoridades de control/organismos de control\",IF(D87=\"\",CONCATENATE(\"Grupo de operadores \",VLOOKUP($H87,'Tabla 1.1'!$D$11:$Y$87,22,),R87),VLOOKUP($H87,'Tabla 1.1'!$D$11:$Y$87,21,))),\"\")","v":""},null,null,null,null,null,null,null,null,null,null,null,null,null,null,null,0]
[{"$f":"IFERROR(IF(C88=\"Total general\",\"2.\",IF(D88=\"\",CONCATENATE(VLOOKUP($H88,'Tabla 1.1'!$D$10:$X$87,20,),R88),VLOOKUP($H88,'Tabla 1.1'!$D$10:$X$87,20,))),\"\")","v":""},{"$f":"IFERROR(IF(C88=\"Total general\",\"Números totales para todos los grupos de operadores y todas las autoridades competentes/autoridades de control/organismos de control\",IF(D88=\"\",CONCATENATE(\"Grupo de operadores \",VLOOKUP($H88,'Tabla 1.1'!$D$11:$Y$87,22,),R88),VLOOKUP($H88,'Tabla 1.1'!$D$11:$Y$87,21,))),\"\")","v":""},null,null,null,null,null,null,null,null,null,null,null,null,null,null,null,0]
[{"$f":"IFERROR(IF(C89=\"Total general\",\"2.\",IF(D89=\"\",CONCATENATE(VLOOKUP($H89,'Tabla 1.1'!$D$10:$X$87,20,),R89),VLOOKUP($H89,'Tabla 1.1'!$D$10:$X$87,20,))),\"\")","v":""},{"$f":"IFERROR(IF(C89=\"Total general\",\"Números totales para todos los grupos de operadores y todas las autoridades competentes/autoridades de control/organismos de control\",IF(D89=\"\",CONCATENATE(\"Grupo de operadores \",VLOOKUP($H89,'Tabla 1.1'!$D$11:$Y$87,22,),R89),VLOOKUP($H89,'Tabla 1.1'!$D$11:$Y$87,21,))),\"\")","v":""},null,null,null,null,null,null,null,null,null,null,null,null,null,null,null,0]
[{"$f":"IFERROR(IF(C90=\"Total general\",\"2.\",IF(D90=\"\",CONCATENATE(VLOOKUP($H90,'Tabla 1.1'!$D$10:$X$87,20,),R90),VLOOKUP($H90,'Tabla 1.1'!$D$10:$X$87,20,))),\"\")","v":""},{"$f":"IFERROR(IF(C90=\"Total general\",\"Números totales para todos los grupos de operadores y todas las autoridades competentes/autoridades de control/organismos de control\",IF(D90=\"\",CONCATENATE(\"Grupo de operadores \",VLOOKUP($H90,'Tabla 1.1'!$D$11:$Y$87,22,),R90),VLOOKUP($H90,'Tabla 1.1'!$D$11:$Y$87,21,))),\"\")","v":""},null,null,null,null,null,null,null,null,null,null,null,null,null,null,null,0]
[{"$f":"IFERROR(IF(C91=\"Total general\",\"2.\",IF(D91=\"\",CONCATENATE(VLOOKUP($H91,'Tabla 1.1'!$D$10:$X$87,20,),R91),VLOOKUP($H91,'Tabla 1.1'!$D$10:$X$87,20,))),\"\")","v":""},{"$f":"IFERROR(IF(C91=\"Total general\",\"Números totales para todos los grupos de operadores y todas las autoridades competentes/autoridades de control/organismos de control\",IF(D91=\"\",CONCATENATE(\"Grupo de operadores \",VLOOKUP($H91,'Tabla 1.1'!$D$11:$Y$87,22,),R91),VLOOKUP($H91,'Tabla 1.1'!$D$11:$Y$87,21,))),\"\")","v":""},null,null,null,null,null,null,null,null,null,null,null,null,null,null,null,0]
[{"$f":"IFERROR(IF(C92=\"Total general\",\"2.\",IF(D92=\"\",CONCATENATE(VLOOKUP($H92,'Tabla 1.1'!$D$10:$X$87,20,),R92),VLOOKUP($H92,'Tabla 1.1'!$D$10:$X$87,20,))),\"\")","v":""},{"$f":"IFERROR(IF(C92=\"Total general\",\"Números totales para todos los grupos de operadores y todas las autoridades competentes/autoridades de control/organismos de control\",IF(D92=\"\",CONCATENATE(\"Grupo de operadores \",VLOOKUP($H92,'Tabla 1.1'!$D$11:$Y$87,22,),R92),VLOOKUP($H92,'Tabla 1.1'!$D$11:$Y$87,21,))),\"\")","v":""},null,null,null,null,null,null,null,null,null,null,null,null,null,null,null,0]
[{"$f":"IFERROR(IF(C93=\"Total general\",\"2.\",IF(D93=\"\",CONCATENATE(VLOOKUP($H93,'Tabla 1.1'!$D$10:$X$87,20,),R93),VLOOKUP($H93,'Tabla 1.1'!$D$10:$X$87,20,))),\"\")","v":""},{"$f":"IFERROR(IF(C93=\"Total general\",\"Números totales para todos los grupos de operadores y todas las autoridades competentes/autoridades de control/organismos de control\",IF(D93=\"\",CONCATENATE(\"Grupo de operadores \",VLOOKUP($H93,'Tabla 1.1'!$D$11:$Y$87,22,),R93),VLOOKUP($H93,'Tabla 1.1'!$D$11:$Y$87,21,))),\"\")","v":""},null,null,null,null,null,null,null,null,null,null,null,null,null,null,null,0]
[{"$f":"IFERROR(IF(C94=\"Total general\",\"2.\",IF(D94=\"\",CONCATENATE(VLOOKUP($H94,'Tabla 1.1'!$D$10:$X$87,20,),R94),VLOOKUP($H94,'Tabla 1.1'!$D$10:$X$87,20,))),\"\")","v":""},{"$f":"IFERROR(IF(C94=\"Total general\",\"Números totales para todos los grupos de operadores y todas las autoridades competentes/autoridades de control/organismos de control\",IF(D94=\"\",CONCATENATE(\"Grupo de operadores \",VLOOKUP($H94,'Tabla 1.1'!$D$11:$Y$87,22,),R94),VLOOKUP($H94,'Tabla 1.1'!$D$11:$Y$87,21,))),\"\")","v":""},null,null,null,null,null,null,null,null,null,null,null,null,null,null,null,0]
[{"$f":"IFERROR(IF(C95=\"Total general\",\"2.\",IF(D95=\"\",CONCATENATE(VLOOKUP($H95,'Tabla 1.1'!$D$10:$X$87,20,),R95),VLOOKUP($H95,'Tabla 1.1'!$D$10:$X$87,20,))),\"\")","v":""},{"$f":"IFERROR(IF(C95=\"Total general\",\"Números totales para todos los grupos de operadores y todas las autoridades competentes/autoridades de control/organismos de control\",IF(D95=\"\",CONCATENATE(\"Grupo de operadores \",VLOOKUP($H95,'Tabla 1.1'!$D$11:$Y$87,22,),R95),VLOOKUP($H95,'Tabla 1.1'!$D$11:$Y$87,21,))),\"\")","v":""},null,null,null,null,null,null,null,null,null,null,null,null,null,null,null,0]
[{"$f":"IFERROR(IF(C96=\"Total general\",\"2.\",IF(D96=\"\",CONCATENATE(VLOOKUP($H96,'Tabla 1.1'!$D$10:$X$87,20,),R96),VLOOKUP($H96,'Tabla 1.1'!$D$10:$X$87,20,))),\"\")","v":""},{"$f":"IFERROR(IF(C96=\"Total general\",\"Números totales para todos los grupos de operadores y todas las autoridades competentes/autoridades de control/organismos de control\",IF(D96=\"\",CONCATENATE(\"Grupo de operadores \",VLOOKUP($H96,'Tabla 1.1'!$D$11:$Y$87,22,),R96),VLOOKUP($H96,'Tabla 1.1'!$D$11:$Y$87,21,))),\"\")","v":""},null,null,null,null,null,null,null,null,null,null,null,null,null,null,null,0]
[{"$f":"IFERROR(IF(C97=\"Total general\",\"2.\",IF(D97=\"\",CONCATENATE(VLOOKUP($H97,'Tabla 1.1'!$D$10:$X$87,20,),R97),VLOOKUP($H97,'Tabla 1.1'!$D$10:$X$87,20,))),\"\")","v":""},{"$f":"IFERROR(IF(C97=\"Total general\",\"Números totales para todos los grupos de operadores y todas las autoridades competentes/autoridades de control/organismos de control\",IF(D97=\"\",CONCATENATE(\"Grupo de operadores \",VLOOKUP($H97,'Tabla 1.1'!$D$11:$Y$87,22,),R97),VLOOKUP($H97,'Tabla 1.1'!$D$11:$Y$87,21,))),\"\")","v":""},null,null,null,null,null,null,null,null,null,null,null,null,null,null,null,0]
[{"$f":"IFERROR(IF(C98=\"Total general\",\"2.\",IF(D98=\"\",CONCATENATE(VLOOKUP($H98,'Tabla 1.1'!$D$10:$X$87,20,),R98),VLOOKUP($H98,'Tabla 1.1'!$D$10:$X$87,20,))),\"\")","v":""},{"$f":"IFERROR(IF(C98=\"Total general\",\"Números totales para todos los grupos de operadores y todas las autoridades competentes/autoridades de control/organismos de control\",IF(D98=\"\",CONCATENATE(\"Grupo de operadores \",VLOOKUP($H98,'Tabla 1.1'!$D$11:$Y$87,22,),R98),VLOOKUP($H98,'Tabla 1.1'!$D$11:$Y$87,21,))),\"\")","v":""},null,null,null,null,null,null,null,null,null,null,null,null,null,null,null,0]
[{"$f":"IFERROR(IF(C99=\"Total general\",\"2.\",IF(D99=\"\",CONCATENATE(VLOOKUP($H99,'Tabla 1.1'!$D$10:$X$87,20,),R99),VLOOKUP($H99,'Tabla 1.1'!$D$10:$X$87,20,))),\"\")","v":""},{"$f":"IFERROR(IF(C99=\"Total general\",\"Números totales para todos los grupos de operadores y todas las autoridades competentes/autoridades de control/organismos de control\",IF(D99=\"\",CONCATENATE(\"Grupo de operadores \",VLOOKUP($H99,'Tabla 1.1'!$D$11:$Y$87,22,),R99),VLOOKUP($H99,'Tabla 1.1'!$D$11:$Y$87,21,))),\"\")","v":""},null,null,null,null,null,null,null,null,null,null,null,null,null,null,null,0]
[{"$f":"IFERROR(IF(C100=\"Total general\",\"2.\",IF(D100=\"\",CONCATENATE(VLOOKUP($H100,'Tabla 1.1'!$D$10:$X$87,20,),R100),VLOOKUP($H100,'Tabla 1.1'!$D$10:$X$87,20,))),\"\")","v":""},{"$f":"IFERROR(IF(C100=\"Total general\",\"Números totales para todos los grupos de operadores y todas las autoridades competentes/autoridades de control/organismos de control\",IF(D100=\"\",CONCATENATE(\"Grupo de operadores \",VLOOKUP($H100,'Tabla 1.1'!$D$11:$Y$87,22,),R100),VLOOKUP($H100,'Tabla 1.1'!$D$11:$Y$87,21,))),\"\")","v":""},null,null,null,null,null,null,null,null,null,null,null,null,null,null,null,0]
[{"$f":"IFERROR(IF(C101=\"Total general\",\"2.\",IF(D101=\"\",CONCATENATE(VLOOKUP($H101,'Tabla 1.1'!$D$10:$X$87,20,),R101),VLOOKUP($H101,'Tabla 1.1'!$D$10:$X$87,20,))),\"\")","v":""},{"$f":"IFERROR(IF(C101=\"Total general\",\"Números totales para todos los grupos de operadores y todas las autoridades competentes/autoridades de control/organismos de control\",IF(D101=\"\",CONCATENATE(\"Grupo de operadores \",VLOOKUP($H101,'Tabla 1.1'!$D$11:$Y$87,22,),R101),VLOOKUP($H101,'Tabla 1.1'!$D$11:$Y$87,21,))),\"\")","v":""},null,null,null,null,null,null,null,null,null,null,null,null,null,null,null,0]
[{"$f":"IFERROR(IF(C102=\"Total general\",\"2.\",IF(D102=\"\",CONCATENATE(VLOOKUP($H102,'Tabla 1.1'!$D$10:$X$87,20,),R102),VLOOKUP($H102,'Tabla 1.1'!$D$10:$X$87,20,))),\"\")","v":""},{"$f":"IFERROR(IF(C102=\"Total general\",\"Números totales para todos los grupos de operadores y todas las autoridades competentes/autoridades de control/organismos de control\",IF(D102=\"\",CONCATENATE(\"Grupo de operadores \",VLOOKUP($H102,'Tabla 1.1'!$D$11:$Y$87,22,),R102),VLOOKUP($H102,'Tabla 1.1'!$D$11:$Y$87,21,))),\"\")","v":""},null,null,null,null,null,null,null,null,null,null,null,null,null,null,null,0]
[{"$f":"IFERROR(IF(C103=\"Total general\",\"2.\",IF(D103=\"\",CONCATENATE(VLOOKUP($H103,'Tabla 1.1'!$D$10:$X$87,20,),R103),VLOOKUP($H103,'Tabla 1.1'!$D$10:$X$87,20,))),\"\")","v":""},{"$f":"IFERROR(IF(C103=\"Total general\",\"Números totales para todos los grupos de operadores y todas las autoridades competentes/autoridades de control/organismos de control\",IF(D103=\"\",CONCATENATE(\"Grupo de operadores \",VLOOKUP($H103,'Tabla 1.1'!$D$11:$Y$87,22,),R103),VLOOKUP($H103,'Tabla 1.1'!$D$11:$Y$87,21,))),\"\")","v":""},null,null,null,null,null,null,null,null,null,null,null,null,null,null,null,0]
[{"$f":"IFERROR(IF(C104=\"Total general\",\"2.\",IF(D104=\"\",CONCATENATE(VLOOKUP($H104,'Tabla 1.1'!$D$10:$X$87,20,),R104),VLOOKUP($H104,'Tabla 1.1'!$D$10:$X$87,20,))),\"\")","v":""},{"$f":"IFERROR(IF(C104=\"Total general\",\"Números totales para todos los grupos de operadores y todas las autoridades competentes/autoridades de control/organismos de control\",IF(D104=\"\",CONCATENATE(\"Grupo de operadores \",VLOOKUP($H104,'Tabla 1.1'!$D$11:$Y$87,22,),R104),VLOOKUP($H104,'Tabla 1.1'!$D$11:$Y$87,21,))),\"\")","v":""},null,null,null,null,null,null,null,null,null,null,null,null,null,null,null,0]
[{"$f":"IFERROR(IF(C105=\"Total general\",\"2.\",IF(D105=\"\",CONCATENATE(VLOOKUP($H105,'Tabla 1.1'!$D$10:$X$87,20,),R105),VLOOKUP($H105,'Tabla 1.1'!$D$10:$X$87,20,))),\"\")","v":""},{"$f":"IFERROR(IF(C105=\"Total general\",\"Números totales para todos los grupos de operadores y todas las autoridades competentes/autoridades de control/organismos de control\",IF(D105=\"\",CONCATENATE(\"Grupo de operadores \",VLOOKUP($H105,'Tabla 1.1'!$D$11:$Y$87,22,),R105),VLOOKUP($H105,'Tabla 1.1'!$D$11:$Y$87,21,))),\"\")","v":""},null,null,null,null,null,null,null,null,null,null,null,null,null,null,null,0]
[{"$f":"IFERROR(IF(C106=\"Total general\",\"2.\",IF(D106=\"\",CONCATENATE(VLOOKUP($H106,'Tabla 1.1'!$D$10:$X$87,20,),R106),VLOOKUP($H106,'Tabla 1.1'!$D$10:$X$87,20,))),\"\")","v":""},{"$f":"IFERROR(IF(C106=\"Total general\",\"Números totales para todos los grupos de operadores y todas las autoridades competentes/autoridades de control/organismos de control\",IF(D106=\"\",CONCATENATE(\"Grupo de operadores \",VLOOKUP($H106,'Tabla 1.1'!$D$11:$Y$87,22,),R106),VLOOKUP($H106,'Tabla 1.1'!$D$11:$Y$87,21,))),\"\")","v":""},null,null,null,null,null,null,null,null,null,null,null,null,null,null,null,0]
[{"$f":"IFERROR(IF(C107=\"Total general\",\"2.\",IF(D107=\"\",CONCATENATE(VLOOKUP($H107,'Tabla 1.1'!$D$10:$X$87,20,),R107),VLOOKUP($H107,'Tabla 1.1'!$D$10:$X$87,20,))),\"\")","v":""},{"$f":"IFERROR(IF(C107=\"Total general\",\"Números totales para todos los grupos de operadores y todas las autoridades competentes/autoridades de control/organismos de control\",IF(D107=\"\",CONCATENATE(\"Grupo de operadores \",VLOOKUP($H107,'Tabla 1.1'!$D$11:$Y$87,22,),R107),VLOOKUP($H107,'Tabla 1.1'!$D$11:$Y$87,21,))),\"\")","v":""},null,null,null,null,null,null,null,null,null,null,null,null,null,null,null,0]
[{"$f":"IFERROR(IF(C108=\"Total general\",\"2.\",IF(D108=\"\",CONCATENATE(VLOOKUP($H108,'Tabla 1.1'!$D$10:$X$87,20,),R108),VLOOKUP($H108,'Tabla 1.1'!$D$10:$X$87,20,))),\"\")","v":""},{"$f":"IFERROR(IF(C108=\"Total general\",\"Números totales para todos los grupos de operadores y todas las autoridades competentes/autoridades de control/organismos de control\",IF(D108=\"\",CONCATENATE(\"Grupo de operadores \",VLOOKUP($H108,'Tabla 1.1'!$D$11:$Y$87,22,),R108),VLOOKUP($H108,'Tabla 1.1'!$D$11:$Y$87,21,))),\"\")","v":""},null,null,null,null,null,null,null,null,null,null,null,null,null,null,null,0]
[{"$f":"IFERROR(IF(C109=\"Total general\",\"2.\",IF(D109=\"\",CONCATENATE(VLOOKUP($H109,'Tabla 1.1'!$D$10:$X$87,20,),R109),VLOOKUP($H109,'Tabla 1.1'!$D$10:$X$87,20,))),\"\")","v":""},{"$f":"IFERROR(IF(C109=\"Total general\",\"Números totales para todos los grupos de operadores y todas las autoridades competentes/autoridades de control/organismos de control\",IF(D109=\"\",CONCATENATE(\"Grupo de operadores \",VLOOKUP($H109,'Tabla 1.1'!$D$11:$Y$87,22,),R109),VLOOKUP($H109,'Tabla 1.1'!$D$11:$Y$87,21,))),\"\")","v":""},null,null,null,null,null,null,null,null,null,null,null,null,null,null,null,0]
[{"$f":"IFERROR(IF(C110=\"Total general\",\"2.\",IF(D110=\"\",CONCATENATE(VLOOKUP($H110,'Tabla 1.1'!$D$10:$X$87,20,),R110),VLOOKUP($H110,'Tabla 1.1'!$D$10:$X$87,20,))),\"\")","v":""},{"$f":"IFERROR(IF(C110=\"Total general\",\"Números totales para todos los grupos de operadores y todas las autoridades competentes/autoridades de control/organismos de control\",IF(D110=\"\",CONCATENATE(\"Grupo de operadores \",VLOOKUP($H110,'Tabla 1.1'!$D$11:$Y$87,22,),R110),VLOOKUP($H110,'Tabla 1.1'!$D$11:$Y$87,21,))),\"\")","v":""},null,null,null,null,null,null,null,null,null,null,null,null,null,null,null,0]
[{"$f":"IFERROR(IF(C111=\"Total general\",\"2.\",IF(D111=\"\",CONCATENATE(VLOOKUP($H111,'Tabla 1.1'!$D$10:$X$87,20,),R111),VLOOKUP($H111,'Tabla 1.1'!$D$10:$X$87,20,))),\"\")","v":""},{"$f":"IFERROR(IF(C111=\"Total general\",\"Números totales para todos los grupos de operadores y todas las autoridades competentes/autoridades de control/organismos de control\",IF(D111=\"\",CONCATENATE(\"Grupo de operadores \",VLOOKUP($H111,'Tabla 1.1'!$D$11:$Y$87,22,),R111),VLOOKUP($H111,'Tabla 1.1'!$D$11:$Y$87,21,))),\"\")","v":""},null,null,null,null,null,null,null,null,null,null,null,null,null,null,null,0]
[{"$f":"IFERROR(IF(C112=\"Total general\",\"2.\",IF(D112=\"\",CONCATENATE(VLOOKUP($H112,'Tabla 1.1'!$D$10:$X$87,20,),R112),VLOOKUP($H112,'Tabla 1.1'!$D$10:$X$87,20,))),\"\")","v":""},{"$f":"IFERROR(IF(C112=\"Total general\",\"Números totales para todos los grupos de operadores y todas las autoridades competentes/autoridades de control/organismos de control\",IF(D112=\"\",CONCATENATE(\"Grupo de operadores \",VLOOKUP($H112,'Tabla 1.1'!$D$11:$Y$87,22,),R112),VLOOKUP($H112,'Tabla 1.1'!$D$11:$Y$87,21,))),\"\")","v":""},null,null,null,null,null,null,null,null,null,null,null,null,null,null,null,0]
[{"$f":"IFERROR(IF(C113=\"Total general\",\"2.\",IF(D113=\"\",CONCATENATE(VLOOKUP($H113,'Tabla 1.1'!$D$10:$X$87,20,),R113),VLOOKUP($H113,'Tabla 1.1'!$D$10:$X$87,20,))),\"\")","v":""},{"$f":"IFERROR(IF(C113=\"Total general\",\"Números totales para todos los grupos de operadores y todas las autoridades competentes/autoridades de control/organismos de control\",IF(D113=\"\",CONCATENATE(\"Grupo de operadores \",VLOOKUP($H113,'Tabla 1.1'!$D$11:$Y$87,22,),R113),VLOOKUP($H113,'Tabla 1.1'!$D$11:$Y$87,21,))),\"\")","v":""},null,null,null,null,null,null,null,null,null,null,null,null,null,null,null,0]
[{"$f":"IFERROR(IF(C114=\"Total general\",\"2.\",IF(D114=\"\",CONCATENATE(VLOOKUP($H114,'Tabla 1.1'!$D$10:$X$87,20,),R114),VLOOKUP($H114,'Tabla 1.1'!$D$10:$X$87,20,))),\"\")","v":""},{"$f":"IFERROR(IF(C114=\"Total general\",\"Números totales para todos los grupos de operadores y todas las autoridades competentes/autoridades de control/organismos de control\",IF(D114=\"\",CONCATENATE(\"Grupo de operadores \",VLOOKUP($H114,'Tabla 1.1'!$D$11:$Y$87,22,),R114),VLOOKUP($H114,'Tabla 1.1'!$D$11:$Y$87,21,))),\"\")","v":""},null,null,null,null,null,null,null,null,null,null,null,null,null,null,null,0]
[{"$f":"IFERROR(IF(C115=\"Total general\",\"2.\",IF(D115=\"\",CONCATENATE(VLOOKUP($H115,'Tabla 1.1'!$D$10:$X$87,20,),R115),VLOOKUP($H115,'Tabla 1.1'!$D$10:$X$87,20,))),\"\")","v":""},{"$f":"IFERROR(IF(C115=\"Total general\",\"Números totales para todos los grupos de operadores y todas las autoridades competentes/autoridades de control/organismos de control\",IF(D115=\"\",CONCATENATE(\"Grupo de operadores \",VLOOKUP($H115,'Tabla 1.1'!$D$11:$Y$87,22,),R115),VLOOKUP($H115,'Tabla 1.1'!$D$11:$Y$87,21,))),\"\")","v":""},null,null,null,null,null,null,null,null,null,null,null,null,null,null,null,0]
[{"$f":"IFERROR(IF(C116=\"Total general\",\"2.\",IF(D116=\"\",CONCATENATE(VLOOKUP($H116,'Tabla 1.1'!$D$10:$X$87,20,),R116),VLOOKUP($H116,'Tabla 1.1'!$D$10:$X$87,20,))),\"\")","v":""},{"$f":"IFERROR(IF(C116=\"Total general\",\"Números totales para todos los grupos de operadores y todas las autoridades competentes/autoridades de control/organismos de control\",IF(D116=\"\",CONCATENATE(\"Grupo de operadores \",VLOOKUP($H116,'Tabla 1.1'!$D$11:$Y$87,22,),R116),VLOOKUP($H116,'Tabla 1.1'!$D$11:$Y$87,21,))),\"\")","v":""},null,null,null,null,null,null,null,null,null,null,null,null,null,null,null,0]
[{"$f":"IFERROR(IF(C117=\"Total general\",\"2.\",IF(D117=\"\",CONCATENATE(VLOOKUP($H117,'Tabla 1.1'!$D$10:$X$87,20,),R117),VLOOKUP($H117,'Tabla 1.1'!$D$10:$X$87,20,))),\"\")","v":""},{"$f":"IFERROR(IF(C117=\"Total general\",\"Números totales para todos los grupos de operadores y todas las autoridades competentes/autoridades de control/organismos de control\",IF(D117=\"\",CONCATENATE(\"Grupo de operadores \",VLOOKUP($H117,'Tabla 1.1'!$D$11:$Y$87,22,),R117),VLOOKUP($H117,'Tabla 1.1'!$D$11:$Y$87,21,))),\"\")","v":""},null,null,null,null,null,null,null,null,null,null,null,null,null,null,null,0]
[{"$f":"IFERROR(IF(C118=\"Total general\",\"2.\",IF(D118=\"\",CONCATENATE(VLOOKUP($H118,'Tabla 1.1'!$D$10:$X$87,20,),R118),VLOOKUP($H118,'Tabla 1.1'!$D$10:$X$87,20,))),\"\")","v":""},{"$f":"IFERROR(IF(C118=\"Total general\",\"Números totales para todos los grupos de operadores y todas las autoridades competentes/autoridades de control/organismos de control\",IF(D118=\"\",CONCATENATE(\"Grupo de operadores \",VLOOKUP($H118,'Tabla 1.1'!$D$11:$Y$87,22,),R118),VLOOKUP($H118,'Tabla 1.1'!$D$11:$Y$87,21,))),\"\")","v":""},null,null,null,null,null,null,null,null,null,null,null,null,null,null,null,0]
[{"$f":"IFERROR(IF(C119=\"Total general\",\"2.\",IF(D119=\"\",CONCATENATE(VLOOKUP($H119,'Tabla 1.1'!$D$10:$X$87,20,),R119),VLOOKUP($H119,'Tabla 1.1'!$D$10:$X$87,20,))),\"\")","v":""},{"$f":"IFERROR(IF(C119=\"Total general\",\"Números totales para todos los grupos de operadores y todas las autoridades competentes/autoridades de control/organismos de control\",IF(D119=\"\",CONCATENATE(\"Grupo de operadores \",VLOOKUP($H119,'Tabla 1.1'!$D$11:$Y$87,22,),R119),VLOOKUP($H119,'Tabla 1.1'!$D$11:$Y$87,21,))),\"\")","v":""},null,null,null,null,null,null,null,null,null,null,null,null,null,null,null,0]
[{"$f":"IFERROR(IF(C120=\"Total general\",\"2.\",IF(D120=\"\",CONCATENATE(VLOOKUP($H120,'Tabla 1.1'!$D$10:$X$87,20,),R120),VLOOKUP($H120,'Tabla 1.1'!$D$10:$X$87,20,))),\"\")","v":""},{"$f":"IFERROR(IF(C120=\"Total general\",\"Números totales para todos los grupos de operadores y todas las autoridades competentes/autoridades de control/organismos de control\",IF(D120=\"\",CONCATENATE(\"Grupo de operadores \",VLOOKUP($H120,'Tabla 1.1'!$D$11:$Y$87,22,),R120),VLOOKUP($H120,'Tabla 1.1'!$D$11:$Y$87,21,))),\"\")","v":""},null,null,null,null,null,null,null,null,null,null,null,null,null,null,null,0]
[{"$f":"IFERROR(IF(C121=\"Total general\",\"2.\",IF(D121=\"\",CONCATENATE(VLOOKUP($H121,'Tabla 1.1'!$D$10:$X$87,20,),R121),VLOOKUP($H121,'Tabla 1.1'!$D$10:$X$87,20,))),\"\")","v":""},{"$f":"IFERROR(IF(C121=\"Total general\",\"Números totales para todos los grupos de operadores y todas las autoridades competentes/autoridades de control/organismos de control\",IF(D121=\"\",CONCATENATE(\"Grupo de operadores \",VLOOKUP($H121,'Tabla 1.1'!$D$11:$Y$87,22,),R121),VLOOKUP($H121,'Tabla 1.1'!$D$11:$Y$87,21,))),\"\")","v":""},null,null,null,null,null,null,null,null,null,null,null,null,null,null,null,0]
[{"$f":"IFERROR(IF(C122=\"Total general\",\"2.\",IF(D122=\"\",CONCATENATE(VLOOKUP($H122,'Tabla 1.1'!$D$10:$X$87,20,),R122),VLOOKUP($H122,'Tabla 1.1'!$D$10:$X$87,20,))),\"\")","v":""},{"$f":"IFERROR(IF(C122=\"Total general\",\"Números totales para todos los grupos de operadores y todas las autoridades competentes/autoridades de control/organismos de control\",IF(D122=\"\",CONCATENATE(\"Grupo de operadores \",VLOOKUP($H122,'Tabla 1.1'!$D$11:$Y$87,22,),R122),VLOOKUP($H122,'Tabla 1.1'!$D$11:$Y$87,21,))),\"\")","v":""},null,null,null,null,null,null,null,null,null,null,null,null,null,null,null,0]
[{"$f":"IFERROR(IF(C123=\"Total general\",\"2.\",IF(D123=\"\",CONCATENATE(VLOOKUP($H123,'Tabla 1.1'!$D$10:$X$87,20,),R123),VLOOKUP($H123,'Tabla 1.1'!$D$10:$X$87,20,))),\"\")","v":""},{"$f":"IFERROR(IF(C123=\"Total general\",\"Números totales para todos los grupos de operadores y todas las autoridades competentes/autoridades de control/organismos de control\",IF(D123=\"\",CONCATENATE(\"Grupo de operadores \",VLOOKUP($H123,'Tabla 1.1'!$D$11:$Y$87,22,),R123),VLOOKUP($H123,'Tabla 1.1'!$D$11:$Y$87,21,))),\"\")","v":""},null,null,null,null,null,null,null,null,null,null,null,null,null,null,null,0]
[{"$f":"IFERROR(IF(C124=\"Total general\",\"2.\",IF(D124=\"\",CONCATENATE(VLOOKUP($H124,'Tabla 1.1'!$D$10:$X$87,20,),R124),VLOOKUP($H124,'Tabla 1.1'!$D$10:$X$87,20,))),\"\")","v":""},{"$f":"IFERROR(IF(C124=\"Total general\",\"Números totales para todos los grupos de operadores y todas las autoridades competentes/autoridades de control/organismos de control\",IF(D124=\"\",CONCATENATE(\"Grupo de operadores \",VLOOKUP($H124,'Tabla 1.1'!$D$11:$Y$87,22,),R124),VLOOKUP($H124,'Tabla 1.1'!$D$11:$Y$87,21,))),\"\")","v":""},null,null,null,null,null,null,null,null,null,null,null,null,null,null,null,0]
[{"$f":"IFERROR(IF(C125=\"Total general\",\"2.\",IF(D125=\"\",CONCATENATE(VLOOKUP($H125,'Tabla 1.1'!$D$10:$X$87,20,),R125),VLOOKUP($H125,'Tabla 1.1'!$D$10:$X$87,20,))),\"\")","v":""},{"$f":"IFERROR(IF(C125=\"Total general\",\"Números totales para todos los grupos de operadores y todas las autoridades competentes/autoridades de control/organismos de control\",IF(D125=\"\",CONCATENATE(\"Grupo de operadores \",VLOOKUP($H125,'Tabla 1.1'!$D$11:$Y$87,22,),R125),VLOOKUP($H125,'Tabla 1.1'!$D$11:$Y$87,21,))),\"\")","v":""},null,null,null,null,null,null,null,null,null,null,null,null,null,null,null,0]
[{"$f":"IFERROR(IF(C126=\"Total general\",\"2.\",IF(D126=\"\",CONCATENATE(VLOOKUP($H126,'Tabla 1.1'!$D$10:$X$87,20,),R126),VLOOKUP($H126,'Tabla 1.1'!$D$10:$X$87,20,))),\"\")","v":""},{"$f":"IFERROR(IF(C126=\"Total general\",\"Números totales para todos los grupos de operadores y todas las autoridades competentes/autoridades de control/organismos de control\",IF(D126=\"\",CONCATENATE(\"Grupo de operadores \",VLOOKUP($H126,'Tabla 1.1'!$D$11:$Y$87,22,),R126),VLOOKUP($H126,'Tabla 1.1'!$D$11:$Y$87,21,))),\"\")","v":""},null,null,null,null,null,null,null,null,null,null,null,null,null,null,null,0]
[{"$f":"IFERROR(IF(C127=\"Total general\",\"2.\",IF(D127=\"\",CONCATENATE(VLOOKUP($H127,'Tabla 1.1'!$D$10:$X$87,20,),R127),VLOOKUP($H127,'Tabla 1.1'!$D$10:$X$87,20,))),\"\")","v":""},{"$f":"IFERROR(IF(C127=\"Total general\",\"Números totales para todos los grupos de operadores y todas las autoridades competentes/autoridades de control/organismos de control\",IF(D127=\"\",CONCATENATE(\"Grupo de operadores \",VLOOKUP($H127,'Tabla 1.1'!$D$11:$Y$87,22,),R127),VLOOKUP($H127,'Tabla 1.1'!$D$11:$Y$87,21,))),\"\")","v":""},null,null,null,null,null,null,null,null,null,null,null,null,null,null,null,0]
[{"$f":"IFERROR(IF(C128=\"Total general\",\"2.\",IF(D128=\"\",CONCATENATE(VLOOKUP($H128,'Tabla 1.1'!$D$10:$X$87,20,),R128),VLOOKUP($H128,'Tabla 1.1'!$D$10:$X$87,20,))),\"\")","v":""},{"$f":"IFERROR(IF(C128=\"Total general\",\"Números totales para todos los grupos de operadores y todas las autoridades competentes/autoridades de control/organismos de control\",IF(D128=\"\",CONCATENATE(\"Grupo de operadores \",VLOOKUP($H128,'Tabla 1.1'!$D$11:$Y$87,22,),R128),VLOOKUP($H128,'Tabla 1.1'!$D$11:$Y$87,21,))),\"\")","v":""},null,null,null,null,null,null,null,null,null,null,null,null,null,null,null,0]
[{"$f":"IFERROR(IF(C129=\"Total general\",\"2.\",IF(D129=\"\",CONCATENATE(VLOOKUP($H129,'Tabla 1.1'!$D$10:$X$87,20,),R129),VLOOKUP($H129,'Tabla 1.1'!$D$10:$X$87,20,))),\"\")","v":""},{"$f":"IFERROR(IF(C129=\"Total general\",\"Números totales para todos los grupos de operadores y todas las autoridades competentes/autoridades de control/organismos de control\",IF(D129=\"\",CONCATENATE(\"Grupo de operadores \",VLOOKUP($H129,'Tabla 1.1'!$D$11:$Y$87,22,),R129),VLOOKUP($H129,'Tabla 1.1'!$D$11:$Y$87,21,))),\"\")","v":""},null,null,null,null,null,null,null,null,null,null,null,null,null,null,null,0]
[{"$f":"IFERROR(IF(C130=\"Total general\",\"2.\",IF(D130=\"\",CONCATENATE(VLOOKUP($H130,'Tabla 1.1'!$D$10:$X$87,20,),R130),VLOOKUP($H130,'Tabla 1.1'!$D$10:$X$87,20,))),\"\")","v":""},{"$f":"IFERROR(IF(C130=\"Total general\",\"Números totales para todos los grupos de operadores y todas las autoridades competentes/autoridades de control/organismos de control\",IF(D130=\"\",CONCATENATE(\"Grupo de operadores \",VLOOKUP($H130,'Tabla 1.1'!$D$11:$Y$87,22,),R130),VLOOKUP($H130,'Tabla 1.1'!$D$11:$Y$87,21,))),\"\")","v":""},null,null,null,null,null,null,null,null,null,null,null,null,null,null,null,0]
[{"$f":"IFERROR(IF(C131=\"Total general\",\"2.\",IF(D131=\"\",CONCATENATE(VLOOKUP($H131,'Tabla 1.1'!$D$10:$X$87,20,),R131),VLOOKUP($H131,'Tabla 1.1'!$D$10:$X$87,20,))),\"\")","v":""},{"$f":"IFERROR(IF(C131=\"Total general\",\"Números totales para todos los grupos de operadores y todas las autoridades competentes/autoridades de control/organismos de control\",IF(D131=\"\",CONCATENATE(\"Grupo de operadores \",VLOOKUP($H131,'Tabla 1.1'!$D$11:$Y$87,22,),R131),VLOOKUP($H131,'Tabla 1.1'!$D$11:$Y$87,21,))),\"\")","v":""},null,null,null,null,null,null,null,null,null,null,null,null,null,null,null,0]
[{"$f":"IFERROR(IF(C132=\"Total general\",\"2.\",IF(D132=\"\",CONCATENATE(VLOOKUP($H132,'Tabla 1.1'!$D$10:$X$87,20,),R132),VLOOKUP($H132,'Tabla 1.1'!$D$10:$X$87,20,))),\"\")","v":""},{"$f":"IFERROR(IF(C132=\"Total general\",\"Números totales para todos los grupos de operadores y todas las autoridades competentes/autoridades de control/organismos de control\",IF(D132=\"\",CONCATENATE(\"Grupo de operadores \",VLOOKUP($H132,'Tabla 1.1'!$D$11:$Y$87,22,),R132),VLOOKUP($H132,'Tabla 1.1'!$D$11:$Y$87,21,))),\"\")","v":""},null,null,null,null,null,null,null,null,null,null,null,null,null,null,null,0]
[{"$f":"IFERROR(IF(C133=\"Total general\",\"2.\",IF(D133=\"\",CONCATENATE(VLOOKUP($H133,'Tabla 1.1'!$D$10:$X$87,20,),R133),VLOOKUP($H133,'Tabla 1.1'!$D$10:$X$87,20,))),\"\")","v":""},{"$f":"IFERROR(IF(C133=\"Total general\",\"Números totales para todos los grupos de operadores y todas las autoridades competentes/autoridades de control/organismos de control\",IF(D133=\"\",CONCATENATE(\"Grupo de operadores \",VLOOKUP($H133,'Tabla 1.1'!$D$11:$Y$87,22,),R133),VLOOKUP($H133,'Tabla 1.1'!$D$11:$Y$87,21,))),\"\")","v":""},null,null,null,null,null,null,null,null,null,null,null,null,null,null,null,0]
[{"$f":"IFERROR(IF(C134=\"Total general\",\"2.\",IF(D134=\"\",CONCATENATE(VLOOKUP($H134,'Tabla 1.1'!$D$10:$X$87,20,),R134),VLOOKUP($H134,'Tabla 1.1'!$D$10:$X$87,20,))),\"\")","v":""},{"$f":"IFERROR(IF(C134=\"Total general\",\"Números totales para todos los grupos de operadores y todas las autoridades competentes/autoridades de control/organismos de control\",IF(D134=\"\",CONCATENATE(\"Grupo de operadores \",VLOOKUP($H134,'Tabla 1.1'!$D$11:$Y$87,22,),R134),VLOOKUP($H134,'Tabla 1.1'!$D$11:$Y$87,21,))),\"\")","v":""},null,null,null,null,null,null,null,null,null,null,null,null,null,null,null,0]
[{"$f":"IFERROR(IF(C135=\"Total general\",\"2.\",IF(D135=\"\",CONCATENATE(VLOOKUP($H135,'Tabla 1.1'!$D$10:$X$87,20,),R135),VLOOKUP($H135,'Tabla 1.1'!$D$10:$X$87,20,))),\"\")","v":""},{"$f":"IFERROR(IF(C135=\"Total general\",\"Números totales para todos los grupos de operadores y todas las autoridades competentes/autoridades de control/organismos de control\",IF(D135=\"\",CONCATENATE(\"Grupo de operadores \",VLOOKUP($H135,'Tabla 1.1'!$D$11:$Y$87,22,),R135),VLOOKUP($H135,'Tabla 1.1'!$D$11:$Y$87,21,))),\"\")","v":""},null,null,null,null,null,null,null,null,null,null,null,null,null,null,null,0]
[{"$f":"IFERROR(IF(C136=\"Total general\",\"2.\",IF(D136=\"\",CONCATENATE(VLOOKUP($H136,'Tabla 1.1'!$D$10:$X$87,20,),R136),VLOOKUP($H136,'Tabla 1.1'!$D$10:$X$87,20,))),\"\")","v":""},{"$f":"IFERROR(IF(C136=\"Total general\",\"Números totales para todos los grupos de operadores y todas las autoridades competentes/autoridades de control/organismos de control\",IF(D136=\"\",CONCATENATE(\"Grupo de operadores \",VLOOKUP($H136,'Tabla 1.1'!$D$11:$Y$87,22,),R136),VLOOKUP($H136,'Tabla 1.1'!$D$11:$Y$87,21,))),\"\")","v":""},null,null,null,null,null,null,null,null,null,null,null,null,null,null,null,0]
[{"$f":"IFERROR(IF(C137=\"Total general\",\"2.\",IF(D137=\"\",CONCATENATE(VLOOKUP($H137,'Tabla 1.1'!$D$10:$X$87,20,),R137),VLOOKUP($H137,'Tabla 1.1'!$D$10:$X$87,20,))),\"\")","v":""},{"$f":"IFERROR(IF(C137=\"Total general\",\"Números totales para todos los grupos de operadores y todas las autoridades competentes/autoridades de control/organismos de control\",IF(D137=\"\",CONCATENATE(\"Grupo de operadores \",VLOOKUP($H137,'Tabla 1.1'!$D$11:$Y$87,22,),R137),VLOOKUP($H137,'Tabla 1.1'!$D$11:$Y$87,21,))),\"\")","v":""},null,null,null,null,null,null,null,null,null,null,null,null,null,null,null,0]
[{"$f":"IFERROR(IF(C138=\"Total general\",\"2.\",IF(D138=\"\",CONCATENATE(VLOOKUP($H138,'Tabla 1.1'!$D$10:$X$87,20,),R138),VLOOKUP($H138,'Tabla 1.1'!$D$10:$X$87,20,))),\"\")","v":""},{"$f":"IFERROR(IF(C138=\"Total general\",\"Números totales para todos los grupos de operadores y todas las autoridades competentes/autoridades de control/organismos de control\",IF(D138=\"\",CONCATENATE(\"Grupo de operadores \",VLOOKUP($H138,'Tabla 1.1'!$D$11:$Y$87,22,),R138),VLOOKUP($H138,'Tabla 1.1'!$D$11:$Y$87,21,))),\"\")","v":""},null,null,null,null,null,null,null,null,null,null,null,null,null,null,null,0]
[{"$f":"IFERROR(IF(C139=\"Total general\",\"2.\",IF(D139=\"\",CONCATENATE(VLOOKUP($H139,'Tabla 1.1'!$D$10:$X$87,20,),R139),VLOOKUP($H139,'Tabla 1.1'!$D$10:$X$87,20,))),\"\")","v":""},{"$f":"IFERROR(IF(C139=\"Total general\",\"Números totales para todos los grupos de operadores y todas las autoridades competentes/autoridades de control/organismos de control\",IF(D139=\"\",CONCATENATE(\"Grupo de operadores \",VLOOKUP($H139,'Tabla 1.1'!$D$11:$Y$87,22,),R139),VLOOKUP($H139,'Tabla 1.1'!$D$11:$Y$87,21,))),\"\")","v":""},null,null,null,null,null,null,null,null,null,null,null,null,null,null,null,{"$f":"IF(I139=\"\",0,R138+1)","v":0}]
[{"$f":"IFERROR(IF(C140=\"Total general\",\"2.\",IF(D140=\"\",CONCATENATE(VLOOKUP($H140,'Tabla 1.1'!$D$10:$X$87,20,),R140),VLOOKUP($H140,'Tabla 1.1'!$D$10:$X$87,20,))),\"\")","v":""},{"$f":"IFERROR(IF(C140=\"Total general\",\"Números totales para todos los grupos de operadores y todas las autoridades competentes/autoridades de control/organismos de control\",IF(D140=\"\",CONCATENATE(\"Grupo de operadores \",VLOOKUP($H140,'Tabla 1.1'!$D$11:$Y$87,22,),R140),VLOOKUP($H140,'Tabla 1.1'!$D$11:$Y$87,21,))),\"\")","v":""},null,null,null,null,null,null,null,null,null,null,null,null,null,null,null,0]
[{"$f":"IFERROR(IF(C141=\"Total general\",\"2.\",IF(D141=\"\",CONCATENATE(VLOOKUP($H141,'Tabla 1.1'!$D$10:$X$87,20,),R141),VLOOKUP($H141,'Tabla 1.1'!$D$10:$X$87,20,))),\"\")","v":""},{"$f":"IFERROR(IF(C141=\"Total general\",\"Números totales para todos los grupos de operadores y todas las autoridades competentes/autoridades de control/organismos de control\",IF(D141=\"\",CONCATENATE(\"Grupo de operadores \",VLOOKUP($H141,'Tabla 1.1'!$D$11:$Y$87,22,),R141),VLOOKUP($H141,'Tabla 1.1'!$D$11:$Y$87,21,))),\"\")","v":""},null,null,null,null,null,null,null,null,null,null,null,null,null,null,null,0]
[{"$f":"IFERROR(IF(C142=\"Total general\",\"2.\",IF(D142=\"\",CONCATENATE(VLOOKUP($H142,'Tabla 1.1'!$D$10:$X$87,20,),R142),VLOOKUP($H142,'Tabla 1.1'!$D$10:$X$87,20,))),\"\")","v":""},{"$f":"IFERROR(IF(C142=\"Total general\",\"Números totales para todos los grupos de operadores y todas las autoridades competentes/autoridades de control/organismos de control\",IF(D142=\"\",CONCATENATE(\"Grupo de operadores \",VLOOKUP($H142,'Tabla 1.1'!$D$11:$Y$87,22,),R142),VLOOKUP($H142,'Tabla 1.1'!$D$11:$Y$87,21,))),\"\")","v":""},null,null,null,null,null,null,null,null,null,null,null,null,null,null,null,0]
[{"$f":"IFERROR(IF(C143=\"Total general\",\"2.\",IF(D143=\"\",CONCATENATE(VLOOKUP($H143,'Tabla 1.1'!$D$10:$X$87,20,),R143),VLOOKUP($H143,'Tabla 1.1'!$D$10:$X$87,20,))),\"\")","v":""},{"$f":"IFERROR(IF(C143=\"Total general\",\"Números totales para todos los grupos de operadores y todas las autoridades competentes/autoridades de control/organismos de control\",IF(D143=\"\",CONCATENATE(\"Grupo de operadores \",VLOOKUP($H143,'Tabla 1.1'!$D$11:$Y$87,22,),R143),VLOOKUP($H143,'Tabla 1.1'!$D$11:$Y$87,21,))),\"\")","v":""},null,null,null,null,null,null,null,null,null,null,null,null,null,null,null,0]
[{"$f":"IFERROR(IF(C144=\"Total general\",\"2.\",IF(D144=\"\",CONCATENATE(VLOOKUP($H144,'Tabla 1.1'!$D$10:$X$87,20,),R144),VLOOKUP($H144,'Tabla 1.1'!$D$10:$X$87,20,))),\"\")","v":""},{"$f":"IFERROR(IF(C144=\"Total general\",\"Números totales para todos los grupos de operadores y todas las autoridades competentes/autoridades de control/organismos de control\",IF(D144=\"\",CONCATENATE(\"Grupo de operadores \",VLOOKUP($H144,'Tabla 1.1'!$D$11:$Y$87,22,),R144),VLOOKUP($H144,'Tabla 1.1'!$D$11:$Y$87,21,))),\"\")","v":""},null,null,null,null,null,null,null,null,null,null,null,null,null,null,null,0]
[{"$f":"IFERROR(IF(C145=\"Total general\",\"2.\",IF(D145=\"\",CONCATENATE(VLOOKUP($H145,'Tabla 1.1'!$D$10:$X$87,20,),R145),VLOOKUP($H145,'Tabla 1.1'!$D$10:$X$87,20,))),\"\")","v":""},{"$f":"IFERROR(IF(C145=\"Total general\",\"Números totales para todos los grupos de operadores y todas las autoridades competentes/autoridades de control/organismos de control\",IF(D145=\"\",CONCATENATE(\"Grupo de operadores \",VLOOKUP($H145,'Tabla 1.1'!$D$11:$Y$87,22,),R145),VLOOKUP($H145,'Tabla 1.1'!$D$11:$Y$87,21,))),\"\")","v":""},null,null,null,null,null,null,null,null,null,null,null,null,null,null,null,0]
[{"$f":"IFERROR(IF(C146=\"Total general\",\"2.\",IF(D146=\"\",CONCATENATE(VLOOKUP($H146,'Tabla 1.1'!$D$10:$X$87,20,),R146),VLOOKUP($H146,'Tabla 1.1'!$D$10:$X$87,20,))),\"\")","v":""},{"$f":"IFERROR(IF(C146=\"Total general\",\"Números totales para todos los grupos de operadores y todas las autoridades competentes/autoridades de control/organismos de control\",IF(D146=\"\",CONCATENATE(\"Grupo de operadores \",VLOOKUP($H146,'Tabla 1.1'!$D$11:$Y$87,22,),R146),VLOOKUP($H146,'Tabla 1.1'!$D$11:$Y$87,21,))),\"\")","v":""},null,null,null,null,null,null,null,null,null,null,null,null,null,null,null,0]
[{"$f":"IFERROR(IF(C147=\"Total general\",\"2.\",IF(D147=\"\",CONCATENATE(VLOOKUP($H147,'Tabla 1.1'!$D$10:$X$87,20,),R147),VLOOKUP($H147,'Tabla 1.1'!$D$10:$X$87,20,))),\"\")","v":""},{"$f":"IFERROR(IF(C147=\"Total general\",\"Números totales para todos los grupos de operadores y todas las autoridades competentes/autoridades de control/organismos de control\",IF(D147=\"\",CONCATENATE(\"Grupo de operadores \",VLOOKUP($H147,'Tabla 1.1'!$D$11:$Y$87,22,),R147),VLOOKUP($H147,'Tabla 1.1'!$D$11:$Y$87,21,))),\"\")","v":""},null,null,null,null,null,null,null,null,null,null,null,null,null,null,null,0]
[{"$f":"IFERROR(IF(C148=\"Total general\",\"2.\",IF(D148=\"\",CONCATENATE(VLOOKUP($H148,'Tabla 1.1'!$D$10:$X$87,20,),R148),VLOOKUP($H148,'Tabla 1.1'!$D$10:$X$87,20,))),\"\")","v":""},{"$f":"IFERROR(IF(C148=\"Total general\",\"Números totales para todos los grupos de operadores y todas las autoridades competentes/autoridades de control/organismos de control\",IF(D148=\"\",CONCATENATE(\"Grupo de operadores \",VLOOKUP($H148,'Tabla 1.1'!$D$11:$Y$87,22,),R148),VLOOKUP($H148,'Tabla 1.1'!$D$11:$Y$87,21,))),\"\")","v":""},null,null,null,null,null,null,null,null,null,null,null,null,null,null,null,0]
[{"$f":"IFERROR(IF(C149=\"Total general\",\"2.\",IF(D149=\"\",CONCATENATE(VLOOKUP($H149,'Tabla 1.1'!$D$10:$X$87,20,),R149),VLOOKUP($H149,'Tabla 1.1'!$D$10:$X$87,20,))),\"\")","v":""},{"$f":"IFERROR(IF(C149=\"Total general\",\"Números totales para todos los grupos de operadores y todas las autoridades competentes/autoridades de control/organismos de control\",IF(D149=\"\",CONCATENATE(\"Grupo de operadores \",VLOOKUP($H149,'Tabla 1.1'!$D$11:$Y$87,22,),R149),VLOOKUP($H149,'Tabla 1.1'!$D$11:$Y$87,21,))),\"\")","v":""},null,null,null,null,null,null,null,null,null,null,null,null,null,null,null,0]
[{"$f":"IFERROR(IF(C150=\"Total general\",\"2.\",IF(D150=\"\",CONCATENATE(VLOOKUP($H150,'Tabla 1.1'!$D$10:$X$87,20,),R150),VLOOKUP($H150,'Tabla 1.1'!$D$10:$X$87,20,))),\"\")","v":""},{"$f":"IFERROR(IF(C150=\"Total general\",\"Números totales para todos los grupos de operadores y todas las autoridades competentes/autoridades de control/organismos de control\",IF(D150=\"\",CONCATENATE(\"Grupo de operadores \",VLOOKUP($H150,'Tabla 1.1'!$D$11:$Y$87,22,),R150),VLOOKUP($H150,'Tabla 1.1'!$D$11:$Y$87,21,))),\"\")","v":""},null,null,null,null,null,null,null,null,null,null,null,null,null,null,null,0]
[{"$f":"IFERROR(IF(C151=\"Total general\",\"2.\",IF(D151=\"\",CONCATENATE(VLOOKUP($H151,'Tabla 1.1'!$D$10:$X$87,20,),R151),VLOOKUP($H151,'Tabla 1.1'!$D$10:$X$87,20,))),\"\")","v":""},{"$f":"IFERROR(IF(C151=\"Total general\",\"Números totales para todos los grupos de operadores y todas las autoridades competentes/autoridades de control/organismos de control\",IF(D151=\"\",CONCATENATE(\"Grupo de operadores \",VLOOKUP($H151,'Tabla 1.1'!$D$11:$Y$87,22,),R151),VLOOKUP($H151,'Tabla 1.1'!$D$11:$Y$87,21,))),\"\")","v":""},null,null,null,null,null,null,null,null,null,null,null,null,null,null,null,0]
[{"$f":"IFERROR(IF(C152=\"Total general\",\"2.\",IF(D152=\"\",CONCATENATE(VLOOKUP($H152,'Tabla 1.1'!$D$10:$X$87,20,),R152),VLOOKUP($H152,'Tabla 1.1'!$D$10:$X$87,20,))),\"\")","v":""},{"$f":"IFERROR(IF(C152=\"Total general\",\"Números totales para todos los grupos de operadores y todas las autoridades competentes/autoridades de control/organismos de control\",IF(D152=\"\",CONCATENATE(\"Grupo de operadores \",VLOOKUP($H152,'Tabla 1.1'!$D$11:$Y$87,22,),R152),VLOOKUP($H152,'Tabla 1.1'!$D$11:$Y$87,21,))),\"\")","v":""},null,null,null,null,null,null,null,null,null,null,null,null,null,null,null,0]
[{"$f":"IFERROR(IF(C153=\"Total general\",\"2.\",IF(D153=\"\",CONCATENATE(VLOOKUP($H153,'Tabla 1.1'!$D$10:$X$87,20,),R153),VLOOKUP($H153,'Tabla 1.1'!$D$10:$X$87,20,))),\"\")","v":""},{"$f":"IFERROR(IF(C153=\"Total general\",\"Números totales para todos los grupos de operadores y todas las autoridades competentes/autoridades de control/organismos de control\",IF(D153=\"\",CONCATENATE(\"Grupo de operadores \",VLOOKUP($H153,'Tabla 1.1'!$D$11:$Y$87,22,),R153),VLOOKUP($H153,'Tabla 1.1'!$D$11:$Y$87,21,))),\"\")","v":""},null,null,null,null,null,null,null,null,null,null,null,null,null,null,null,0]
[{"$f":"IFERROR(IF(C154=\"Total general\",\"2.\",IF(D154=\"\",CONCATENATE(VLOOKUP($H154,'Tabla 1.1'!$D$10:$X$87,20,),R154),VLOOKUP($H154,'Tabla 1.1'!$D$10:$X$87,20,))),\"\")","v":""},{"$f":"IFERROR(IF(C154=\"Total general\",\"Números totales para todos los grupos de operadores y todas las autoridades competentes/autoridades de control/organismos de control\",IF(D154=\"\",CONCATENATE(\"Grupo de operadores \",VLOOKUP($H154,'Tabla 1.1'!$D$11:$Y$87,22,),R154),VLOOKUP($H154,'Tabla 1.1'!$D$11:$Y$87,21,))),\"\")","v":""},null,null,null,null,null,null,null,null,null,null,null,null,null,null,null,0]
[{"$f":"IFERROR(IF(C155=\"Total general\",\"2.\",IF(D155=\"\",CONCATENATE(VLOOKUP($H155,'Tabla 1.1'!$D$10:$X$87,20,),R155),VLOOKUP($H155,'Tabla 1.1'!$D$10:$X$87,20,))),\"\")","v":""},{"$f":"IFERROR(IF(C155=\"Total general\",\"Números totales para todos los grupos de operadores y todas las autoridades competentes/autoridades de control/organismos de control\",IF(D155=\"\",CONCATENATE(\"Grupo de operadores \",VLOOKUP($H155,'Tabla 1.1'!$D$11:$Y$87,22,),R155),VLOOKUP($H155,'Tabla 1.1'!$D$11:$Y$87,21,))),\"\")","v":""},null,null,null,null,null,null,null,null,null,null,null,null,null,null,null,0]
[{"$f":"IFERROR(IF(C156=\"Total general\",\"2.\",IF(D156=\"\",CONCATENATE(VLOOKUP($H156,'Tabla 1.1'!$D$10:$X$87,20,),R156),VLOOKUP($H156,'Tabla 1.1'!$D$10:$X$87,20,))),\"\")","v":""},{"$f":"IFERROR(IF(C156=\"Total general\",\"Números totales para todos los grupos de operadores y todas las autoridades competentes/autoridades de control/organismos de control\",IF(D156=\"\",CONCATENATE(\"Grupo de operadores \",VLOOKUP($H156,'Tabla 1.1'!$D$11:$Y$87,22,),R156),VLOOKUP($H156,'Tabla 1.1'!$D$11:$Y$87,21,))),\"\")","v":""},null,null,null,null,null,null,null,null,null,null,null,null,null,null,null,0]
[{"$f":"IFERROR(IF(C157=\"Total general\",\"2.\",IF(D157=\"\",CONCATENATE(VLOOKUP($H157,'Tabla 1.1'!$D$10:$X$87,20,),R157),VLOOKUP($H157,'Tabla 1.1'!$D$10:$X$87,20,))),\"\")","v":""},{"$f":"IFERROR(IF(C157=\"Total general\",\"Números totales para todos los grupos de operadores y todas las autoridades competentes/autoridades de control/organismos de control\",IF(D157=\"\",CONCATENATE(\"Grupo de operadores \",VLOOKUP($H157,'Tabla 1.1'!$D$11:$Y$87,22,),R157),VLOOKUP($H157,'Tabla 1.1'!$D$11:$Y$87,21,))),\"\")","v":""},null,null,null,null,null,null,null,null,null,null,null,null,null,null,null,0]
[{"$f":"IFERROR(IF(C158=\"Total general\",\"2.\",IF(D158=\"\",CONCATENATE(VLOOKUP($H158,'Tabla 1.1'!$D$10:$X$87,20,),R158),VLOOKUP($H158,'Tabla 1.1'!$D$10:$X$87,20,))),\"\")","v":""},{"$f":"IFERROR(IF(C158=\"Total general\",\"Números totales para todos los grupos de operadores y todas las autoridades competentes/autoridades de control/organismos de control\",IF(D158=\"\",CONCATENATE(\"Grupo de operadores \",VLOOKUP($H158,'Tabla 1.1'!$D$11:$Y$87,22,),R158),VLOOKUP($H158,'Tabla 1.1'!$D$11:$Y$87,21,))),\"\")","v":""},null,null,null,null,null,null,null,null,null,null,null,null,null,null,null,0]
[{"$f":"IFERROR(IF(C159=\"Total general\",\"2.\",IF(D159=\"\",CONCATENATE(VLOOKUP($H159,'Tabla 1.1'!$D$10:$X$87,20,),R159),VLOOKUP($H159,'Tabla 1.1'!$D$10:$X$87,20,))),\"\")","v":""},{"$f":"IFERROR(IF(C159=\"Total general\",\"Números totales para todos los grupos de operadores y todas las autoridades competentes/autoridades de control/organismos de control\",IF(D159=\"\",CONCATENATE(\"Grupo de operadores \",VLOOKUP($H159,'Tabla 1.1'!$D$11:$Y$87,22,),R159),VLOOKUP($H159,'Tabla 1.1'!$D$11:$Y$87,21,))),\"\")","v":""},null,null,null,null,null,null,null,null,null,null,null,null,null,null,null,0]
[{"$f":"IFERROR(IF(C160=\"Total general\",\"2.\",IF(D160=\"\",CONCATENATE(VLOOKUP($H160,'Tabla 1.1'!$D$10:$X$87,20,),R160),VLOOKUP($H160,'Tabla 1.1'!$D$10:$X$87,20,))),\"\")","v":""},{"$f":"IFERROR(IF(C160=\"Total general\",\"Números totales para todos los grupos de operadores y todas las autoridades competentes/autoridades de control/organismos de control\",IF(D160=\"\",CONCATENATE(\"Grupo de operadores \",VLOOKUP($H160,'Tabla 1.1'!$D$11:$Y$87,22,),R160),VLOOKUP($H160,'Tabla 1.1'!$D$11:$Y$87,21,))),\"\")","v":""},null,null,null,null,null,null,null,null,null,null,null,null,null,null,null,0]
[{"$f":"IFERROR(IF(C161=\"Total general\",\"2.\",IF(D161=\"\",CONCATENATE(VLOOKUP($H161,'Tabla 1.1'!$D$10:$X$87,20,),R161),VLOOKUP($H161,'Tabla 1.1'!$D$10:$X$87,20,))),\"\")","v":""},{"$f":"IFERROR(IF(C161=\"Total general\",\"Números totales para todos los grupos de operadores y todas las autoridades competentes/autoridades de control/organismos de control\",IF(D161=\"\",CONCATENATE(\"Grupo de operadores \",VLOOKUP($H161,'Tabla 1.1'!$D$11:$Y$87,22,),R161),VLOOKUP($H161,'Tabla 1.1'!$D$11:$Y$87,21,))),\"\")","v":""},null,null,null,null,null,null,null,null,null,null,null,null,null,null,null,0]
[{"$f":"IFERROR(IF(C162=\"Total general\",\"2.\",IF(D162=\"\",CONCATENATE(VLOOKUP($H162,'Tabla 1.1'!$D$10:$X$87,20,),R162),VLOOKUP($H162,'Tabla 1.1'!$D$10:$X$87,20,))),\"\")","v":""},{"$f":"IFERROR(IF(C162=\"Total general\",\"Números totales para todos los grupos de operadores y todas las autoridades competentes/autoridades de control/organismos de control\",IF(D162=\"\",CONCATENATE(\"Grupo de operadores \",VLOOKUP($H162,'Tabla 1.1'!$D$11:$Y$87,22,),R162),VLOOKUP($H162,'Tabla 1.1'!$D$11:$Y$87,21,))),\"\")","v":""},null,null,null,null,null,null,null,null,null,null,null,null,null,null,null,0]
[{"$f":"IFERROR(IF(C163=\"Total general\",\"2.\",IF(D163=\"\",CONCATENATE(VLOOKUP($H163,'Tabla 1.1'!$D$10:$X$87,20,),R163),VLOOKUP($H163,'Tabla 1.1'!$D$10:$X$87,20,))),\"\")","v":""},{"$f":"IFERROR(IF(C163=\"Total general\",\"Números totales para todos los grupos de operadores y todas las autoridades competentes/autoridades de control/organismos de control\",IF(D163=\"\",CONCATENATE(\"Grupo de operadores \",VLOOKUP($H163,'Tabla 1.1'!$D$11:$Y$87,22,),R163),VLOOKUP($H163,'Tabla 1.1'!$D$11:$Y$87,21,))),\"\")","v":""},null,null,null,null,null,null,null,null,null,null,null,null,null,null,null,0]
[{"$f":"IFERROR(IF(C164=\"Total general\",\"2.\",IF(D164=\"\",CONCATENATE(VLOOKUP($H164,'Tabla 1.1'!$D$10:$X$87,20,),R164),VLOOKUP($H164,'Tabla 1.1'!$D$10:$X$87,20,))),\"\")","v":""},{"$f":"IFERROR(IF(C164=\"Total general\",\"Números totales para todos los grupos de operadores y todas las autoridades competentes/autoridades de control/organismos de control\",IF(D164=\"\",CONCATENATE(\"Grupo de operadores \",VLOOKUP($H164,'Tabla 1.1'!$D$11:$Y$87,22,),R164),VLOOKUP($H164,'Tabla 1.1'!$D$11:$Y$87,21,))),\"\")","v":""},null,null,null,null,null,null,null,null,null,null,null,null,null,null,null,0]
[{"$f":"IFERROR(IF(C165=\"Total general\",\"2.\",IF(D165=\"\",CONCATENATE(VLOOKUP($H165,'Tabla 1.1'!$D$10:$X$87,20,),R165),VLOOKUP($H165,'Tabla 1.1'!$D$10:$X$87,20,))),\"\")","v":""},{"$f":"IFERROR(IF(C165=\"Total general\",\"Números totales para todos los grupos de operadores y todas las autoridades competentes/autoridades de control/organismos de control\",IF(D165=\"\",CONCATENATE(\"Grupo de operadores \",VLOOKUP($H165,'Tabla 1.1'!$D$11:$Y$87,22,),R165),VLOOKUP($H165,'Tabla 1.1'!$D$11:$Y$87,21,))),\"\")","v":""},null,null,null,null,null,null,null,null,null,null,null,null,null,null,null,0]
[{"$f":"IFERROR(IF(C166=\"Total general\",\"2.\",IF(D166=\"\",CONCATENATE(VLOOKUP($H166,'Tabla 1.1'!$D$10:$X$87,20,),R166),VLOOKUP($H166,'Tabla 1.1'!$D$10:$X$87,20,))),\"\")","v":""},{"$f":"IFERROR(IF(C166=\"Total general\",\"Números totales para todos los grupos de operadores y todas las autoridades competentes/autoridades de control/organismos de control\",IF(D166=\"\",CONCATENATE(\"Grupo de operadores \",VLOOKUP($H166,'Tabla 1.1'!$D$11:$Y$87,22,),R166),VLOOKUP($H166,'Tabla 1.1'!$D$11:$Y$87,21,))),\"\")","v":""},null,null,null,null,null,null,null,null,null,null,null,null,null,null,null,0]
[{"$f":"IFERROR(IF(C167=\"Total general\",\"2.\",IF(D167=\"\",CONCATENATE(VLOOKUP($H167,'Tabla 1.1'!$D$10:$X$87,20,),R167),VLOOKUP($H167,'Tabla 1.1'!$D$10:$X$87,20,))),\"\")","v":""},{"$f":"IFERROR(IF(C167=\"Total general\",\"Números totales para todos los grupos de operadores y todas las autoridades competentes/autoridades de control/organismos de control\",IF(D167=\"\",CONCATENATE(\"Grupo de operadores \",VLOOKUP($H167,'Tabla 1.1'!$D$11:$Y$87,22,),R167),VLOOKUP($H167,'Tabla 1.1'!$D$11:$Y$87,21,))),\"\")","v":""},null,null,null,null,null,null,null,null,null,null,null,null,null,null,null,0]
[{"$f":"IFERROR(IF(C168=\"Total general\",\"2.\",IF(D168=\"\",CONCATENATE(VLOOKUP($H168,'Tabla 1.1'!$D$10:$X$87,20,),R168),VLOOKUP($H168,'Tabla 1.1'!$D$10:$X$87,20,))),\"\")","v":""},{"$f":"IFERROR(IF(C168=\"Total general\",\"Números totales para todos los grupos de operadores y todas las autoridades competentes/autoridades de control/organismos de control\",IF(D168=\"\",CONCATENATE(\"Grupo de operadores \",VLOOKUP($H168,'Tabla 1.1'!$D$11:$Y$87,22,),R168),VLOOKUP($H168,'Tabla 1.1'!$D$11:$Y$87,21,))),\"\")","v":""},null,null,null,null,null,null,null,null,null,null,null,null,null,null,null,0]
[{"$f":"IFERROR(IF(C169=\"Total general\",\"2.\",IF(D169=\"\",CONCATENATE(VLOOKUP($H169,'Tabla 1.1'!$D$10:$X$87,20,),R169),VLOOKUP($H169,'Tabla 1.1'!$D$10:$X$87,20,))),\"\")","v":""},{"$f":"IFERROR(IF(C169=\"Total general\",\"Números totales para todos los grupos de operadores y todas las autoridades competentes/autoridades de control/organismos de control\",IF(D169=\"\",CONCATENATE(\"Grupo de operadores \",VLOOKUP($H169,'Tabla 1.1'!$D$11:$Y$87,22,),R169),VLOOKUP($H169,'Tabla 1.1'!$D$11:$Y$87,21,))),\"\")","v":""},null,null,null,null,null,null,null,null,null,null,null,null,null,null,null,0]
[{"$f":"IFERROR(IF(C170=\"Total general\",\"2.\",IF(D170=\"\",CONCATENATE(VLOOKUP($H170,'Tabla 1.1'!$D$10:$X$87,20,),R170),VLOOKUP($H170,'Tabla 1.1'!$D$10:$X$87,20,))),\"\")","v":""},{"$f":"IFERROR(IF(C170=\"Total general\",\"Números totales para todos los grupos de operadores y todas las autoridades competentes/autoridades de control/organismos de control\",IF(D170=\"\",CONCATENATE(\"Grupo de operadores \",VLOOKUP($H170,'Tabla 1.1'!$D$11:$Y$87,22,),R170),VLOOKUP($H170,'Tabla 1.1'!$D$11:$Y$87,21,))),\"\")","v":""},null,null,null,null,null,null,null,null,null,null,null,null,null,null,null,0]
[{"$f":"IFERROR(IF(C171=\"Total general\",\"2.\",IF(D171=\"\",CONCATENATE(VLOOKUP($H171,'Tabla 1.1'!$D$10:$X$87,20,),R171),VLOOKUP($H171,'Tabla 1.1'!$D$10:$X$87,20,))),\"\")","v":""},{"$f":"IFERROR(IF(C171=\"Total general\",\"Números totales para todos los grupos de operadores y todas las autoridades competentes/autoridades de control/organismos de control\",IF(D171=\"\",CONCATENATE(\"Grupo de operadores \",VLOOKUP($H171,'Tabla 1.1'!$D$11:$Y$87,22,),R171),VLOOKUP($H171,'Tabla 1.1'!$D$11:$Y$87,21,))),\"\")","v":""},null,null,null,null,null,null,null,null,null,null,null,null,null,null,null,0]
[{"$f":"IFERROR(IF(C172=\"Total general\",\"2.\",IF(D172=\"\",CONCATENATE(VLOOKUP($H172,'Tabla 1.1'!$D$10:$X$87,20,),R172),VLOOKUP($H172,'Tabla 1.1'!$D$10:$X$87,20,))),\"\")","v":""},{"$f":"IFERROR(IF(C172=\"Total general\",\"Números totales para todos los grupos de operadores y todas las autoridades competentes/autoridades de control/organismos de control\",IF(D172=\"\",CONCATENATE(\"Grupo de operadores \",VLOOKUP($H172,'Tabla 1.1'!$D$11:$Y$87,22,),R172),VLOOKUP($H172,'Tabla 1.1'!$D$11:$Y$87,21,))),\"\")","v":""},null,null,null,null,null,null,null,null,null,null,null,null,null,null,null,0]
[{"$f":"IFERROR(IF(C173=\"Total general\",\"2.\",IF(D173=\"\",CONCATENATE(VLOOKUP($H173,'Tabla 1.1'!$D$10:$X$87,20,),R173),VLOOKUP($H173,'Tabla 1.1'!$D$10:$X$87,20,))),\"\")","v":""},{"$f":"IFERROR(IF(C173=\"Total general\",\"Números totales para todos los grupos de operadores y todas las autoridades competentes/autoridades de control/organismos de control\",IF(D173=\"\",CONCATENATE(\"Grupo de operadores \",VLOOKUP($H173,'Tabla 1.1'!$D$11:$Y$87,22,),R173),VLOOKUP($H173,'Tabla 1.1'!$D$11:$Y$87,21,))),\"\")","v":""},null,null,null,null,null,null,null,null,null,null,null,null,null,null,null,0]
[{"$f":"IFERROR(IF(C174=\"Total general\",\"2.\",IF(D174=\"\",CONCATENATE(VLOOKUP($H174,'Tabla 1.1'!$D$10:$X$87,20,),R174),VLOOKUP($H174,'Tabla 1.1'!$D$10:$X$87,20,))),\"\")","v":""},{"$f":"IFERROR(IF(C174=\"Total general\",\"Números totales para todos los grupos de operadores y todas las autoridades competentes/autoridades de control/organismos de control\",IF(D174=\"\",CONCATENATE(\"Grupo de operadores \",VLOOKUP($H174,'Tabla 1.1'!$D$11:$Y$87,22,),R174),VLOOKUP($H174,'Tabla 1.1'!$D$11:$Y$87,21,))),\"\")","v":""},null,null,null,null,null,null,null,null,null,null,null,null,null,null,null,0]
[{"$f":"IFERROR(IF(C175=\"Total general\",\"2.\",IF(D175=\"\",CONCATENATE(VLOOKUP($H175,'Tabla 1.1'!$D$10:$X$87,20,),R175),VLOOKUP($H175,'Tabla 1.1'!$D$10:$X$87,20,))),\"\")","v":""},{"$f":"IFERROR(IF(C175=\"Total general\",\"Números totales para todos los grupos de operadores y todas las autoridades competentes/autoridades de control/organismos de control\",IF(D175=\"\",CONCATENATE(\"Grupo de operadores \",VLOOKUP($H175,'Tabla 1.1'!$D$11:$Y$87,22,),R175),VLOOKUP($H175,'Tabla 1.1'!$D$11:$Y$87,21,))),\"\")","v":""},null,null,null,null,null,null,null,null,null,null,null,null,null,null,null,0]
[{"$f":"IFERROR(IF(C176=\"Total general\",\"2.\",IF(D176=\"\",CONCATENATE(VLOOKUP($H176,'Tabla 1.1'!$D$10:$X$87,20,),R176),VLOOKUP($H176,'Tabla 1.1'!$D$10:$X$87,20,))),\"\")","v":""},{"$f":"IFERROR(IF(C176=\"Total general\",\"Números totales para todos los grupos de operadores y todas las autoridades competentes/autoridades de control/organismos de control\",IF(D176=\"\",CONCATENATE(\"Grupo de operadores \",VLOOKUP($H176,'Tabla 1.1'!$D$11:$Y$87,22,),R176),VLOOKUP($H176,'Tabla 1.1'!$D$11:$Y$87,21,))),\"\")","v":""},null,null,null,null,null,null,null,null,null,null,null,null,null,null,null,0]
[{"$f":"IFERROR(IF(C177=\"Total general\",\"2.\",IF(D177=\"\",CONCATENATE(VLOOKUP($H177,'Tabla 1.1'!$D$10:$X$87,20,),R177),VLOOKUP($H177,'Tabla 1.1'!$D$10:$X$87,20,))),\"\")","v":""},{"$f":"IFERROR(IF(C177=\"Total general\",\"Números totales para todos los grupos de operadores y todas las autoridades competentes/autoridades de control/organismos de control\",IF(D177=\"\",CONCATENATE(\"Grupo de operadores \",VLOOKUP($H177,'Tabla 1.1'!$D$11:$Y$87,22,),R177),VLOOKUP($H177,'Tabla 1.1'!$D$11:$Y$87,21,))),\"\")","v":""},null,null,null,null,null,null,null,null,null,null,null,null,null,null,null,0]
[{"$f":"IFERROR(IF(C178=\"Total general\",\"2.\",IF(D178=\"\",CONCATENATE(VLOOKUP($H178,'Tabla 1.1'!$D$10:$X$87,20,),R178),VLOOKUP($H178,'Tabla 1.1'!$D$10:$X$87,20,))),\"\")","v":""},{"$f":"IFERROR(IF(C178=\"Total general\",\"Números totales para todos los grupos de operadores y todas las autoridades competentes/autoridades de control/organismos de control\",IF(D178=\"\",CONCATENATE(\"Grupo de operadores \",VLOOKUP($H178,'Tabla 1.1'!$D$11:$Y$87,22,),R178),VLOOKUP($H178,'Tabla 1.1'!$D$11:$Y$87,21,))),\"\")","v":""},null,null,null,null,null,null,null,null,null,null,null,null,null,null,null,0]
[{"$f":"IFERROR(IF(C179=\"Total general\",\"2.\",IF(D179=\"\",CONCATENATE(VLOOKUP($H179,'Tabla 1.1'!$D$10:$X$87,20,),R179),VLOOKUP($H179,'Tabla 1.1'!$D$10:$X$87,20,))),\"\")","v":""},{"$f":"IFERROR(IF(C179=\"Total general\",\"Números totales para todos los grupos de operadores y todas las autoridades competentes/autoridades de control/organismos de control\",IF(D179=\"\",CONCATENATE(\"Grupo de operadores \",VLOOKUP($H179,'Tabla 1.1'!$D$11:$Y$87,22,),R179),VLOOKUP($H179,'Tabla 1.1'!$D$11:$Y$87,21,))),\"\")","v":""},null,null,null,null,null,null,null,null,null,null,null,null,null,null,null,0]
[{"$f":"IFERROR(IF(C180=\"Total general\",\"2.\",IF(D180=\"\",CONCATENATE(VLOOKUP($H180,'Tabla 1.1'!$D$10:$X$87,20,),R180),VLOOKUP($H180,'Tabla 1.1'!$D$10:$X$87,20,))),\"\")","v":""},{"$f":"IFERROR(IF(C180=\"Total general\",\"Números totales para todos los grupos de operadores y todas las autoridades competentes/autoridades de control/organismos de control\",IF(D180=\"\",CONCATENATE(\"Grupo de operadores \",VLOOKUP($H180,'Tabla 1.1'!$D$11:$Y$87,22,),R180),VLOOKUP($H180,'Tabla 1.1'!$D$11:$Y$87,21,))),\"\")","v":""},null,null,null,null,null,null,null,null,null,null,null,null,null,null,null,0]
[{"$f":"IFERROR(IF(C181=\"Total general\",\"2.\",IF(D181=\"\",CONCATENATE(VLOOKUP($H181,'Tabla 1.1'!$D$10:$X$87,20,),R181),VLOOKUP($H181,'Tabla 1.1'!$D$10:$X$87,20,))),\"\")","v":""},{"$f":"IFERROR(IF(C181=\"Total general\",\"Números totales para todos los grupos de operadores y todas las autoridades competentes/autoridades de control/organismos de control\",IF(D181=\"\",CONCATENATE(\"Grupo de operadores \",VLOOKUP($H181,'Tabla 1.1'!$D$11:$Y$87,22,),R181),VLOOKUP($H181,'Tabla 1.1'!$D$11:$Y$87,21,))),\"\")","v":""},null,null,null,null,null,null,null,null,null,null,null,null,null,null,null,0]
[{"$f":"IFERROR(IF(C182=\"Total general\",\"2.\",IF(D182=\"\",CONCATENATE(VLOOKUP($H182,'Tabla 1.1'!$D$10:$X$87,20,),R182),VLOOKUP($H182,'Tabla 1.1'!$D$10:$X$87,20,))),\"\")","v":""},{"$f":"IFERROR(IF(C182=\"Total general\",\"Números totales para todos los grupos de operadores y todas las autoridades competentes/autoridades de control/organismos de control\",IF(D182=\"\",CONCATENATE(\"Grupo de operadores \",VLOOKUP($H182,'Tabla 1.1'!$D$11:$Y$87,22,),R182),VLOOKUP($H182,'Tabla 1.1'!$D$11:$Y$87,21,))),\"\")","v":""},null,null,null,null,null,null,null,null,null,null,null,null,null,null,null,0]
[{"$f":"IFERROR(IF(C183=\"Total general\",\"2.\",IF(D183=\"\",CONCATENATE(VLOOKUP($H183,'Tabla 1.1'!$D$10:$X$87,20,),R183),VLOOKUP($H183,'Tabla 1.1'!$D$10:$X$87,20,))),\"\")","v":""},{"$f":"IFERROR(IF(C183=\"Total general\",\"Números totales para todos los grupos de operadores y todas las autoridades competentes/autoridades de control/organismos de control\",IF(D183=\"\",CONCATENATE(\"Grupo de operadores \",VLOOKUP($H183,'Tabla 1.1'!$D$11:$Y$87,22,),R183),VLOOKUP($H183,'Tabla 1.1'!$D$11:$Y$87,21,))),\"\")","v":""},null,null,null,null,null,null,null,null,null,null,null,null,null,null,null,0]
[{"$f":"IFERROR(IF(C184=\"Total general\",\"2.\",IF(D184=\"\",CONCATENATE(VLOOKUP($H184,'Tabla 1.1'!$D$10:$X$87,20,),R184),VLOOKUP($H184,'Tabla 1.1'!$D$10:$X$87,20,))),\"\")","v":""},{"$f":"IFERROR(IF(C184=\"Total general\",\"Números totales para todos los grupos de operadores y todas las autoridades competentes/autoridades de control/organismos de control\",IF(D184=\"\",CONCATENATE(\"Grupo de operadores \",VLOOKUP($H184,'Tabla 1.1'!$D$11:$Y$87,22,),R184),VLOOKUP($H184,'Tabla 1.1'!$D$11:$Y$87,21,))),\"\")","v":""},null,null,null,null,null,null,null,null,null,null,null,null,null,null,null,0]
[{"$f":"IFERROR(IF(C185=\"Total general\",\"2.\",IF(D185=\"\",CONCATENATE(VLOOKUP($H185,'Tabla 1.1'!$D$10:$X$87,20,),R185),VLOOKUP($H185,'Tabla 1.1'!$D$10:$X$87,20,))),\"\")","v":""},{"$f":"IFERROR(IF(C185=\"Total general\",\"Números totales para todos los grupos de operadores y todas las autoridades competentes/autoridades de control/organismos de control\",IF(D185=\"\",CONCATENATE(\"Grupo de operadores \",VLOOKUP($H185,'Tabla 1.1'!$D$11:$Y$87,22,),R185),VLOOKUP($H185,'Tabla 1.1'!$D$11:$Y$87,21,))),\"\")","v":""},null,null,null,null,null,null,null,null,null,null,null,null,null,null,null,0]
[{"$f":"IFERROR(IF(C186=\"Total general\",\"2.\",IF(D186=\"\",CONCATENATE(VLOOKUP($H186,'Tabla 1.1'!$D$10:$X$87,20,),R186),VLOOKUP($H186,'Tabla 1.1'!$D$10:$X$87,20,))),\"\")","v":""},{"$f":"IFERROR(IF(C186=\"Total general\",\"Números totales para todos los grupos de operadores y todas las autoridades competentes/autoridades de control/organismos de control\",IF(D186=\"\",CONCATENATE(\"Grupo de operadores \",VLOOKUP($H186,'Tabla 1.1'!$D$11:$Y$87,22,),R186),VLOOKUP($H186,'Tabla 1.1'!$D$11:$Y$87,21,))),\"\")","v":""},null,null,null,null,null,null,null,null,null,null,null,null,null,null,null,0]
[{"$f":"IFERROR(IF(C187=\"Total general\",\"2.\",IF(D187=\"\",CONCATENATE(VLOOKUP($H187,'Tabla 1.1'!$D$10:$X$87,20,),R187),VLOOKUP($H187,'Tabla 1.1'!$D$10:$X$87,20,))),\"\")","v":""},{"$f":"IFERROR(IF(C187=\"Total general\",\"Números totales para todos los grupos de operadores y todas las autoridades competentes/autoridades de control/organismos de control\",IF(D187=\"\",CONCATENATE(\"Grupo de operadores \",VLOOKUP($H187,'Tabla 1.1'!$D$11:$Y$87,22,),R187),VLOOKUP($H187,'Tabla 1.1'!$D$11:$Y$87,21,))),\"\")","v":""},null,null,null,null,null,null,null,null,null,null,null,null,null,null,null,0]
[{"$f":"IFERROR(IF(C188=\"Total general\",\"2.\",IF(D188=\"\",CONCATENATE(VLOOKUP($H188,'Tabla 1.1'!$D$10:$X$87,20,),R188),VLOOKUP($H188,'Tabla 1.1'!$D$10:$X$87,20,))),\"\")","v":""},{"$f":"IFERROR(IF(C188=\"Total general\",\"Números totales para todos los grupos de operadores y todas las autoridades competentes/autoridades de control/organismos de control\",IF(D188=\"\",CONCATENATE(\"Grupo de operadores \",VLOOKUP($H188,'Tabla 1.1'!$D$11:$Y$87,22,),R188),VLOOKUP($H188,'Tabla 1.1'!$D$11:$Y$87,21,))),\"\")","v":""},null,null,null,null,null,null,null,null,null,null,null,null,null,null,null,0]
[{"$f":"IFERROR(IF(C189=\"Total general\",\"2.\",IF(D189=\"\",CONCATENATE(VLOOKUP($H189,'Tabla 1.1'!$D$10:$X$87,20,),R189),VLOOKUP($H189,'Tabla 1.1'!$D$10:$X$87,20,))),\"\")","v":""},{"$f":"IFERROR(IF(C189=\"Total general\",\"Números totales para todos los grupos de operadores y todas las autoridades competentes/autoridades de control/organismos de control\",IF(D189=\"\",CONCATENATE(\"Grupo de operadores \",VLOOKUP($H189,'Tabla 1.1'!$D$11:$Y$87,22,),R189),VLOOKUP($H189,'Tabla 1.1'!$D$11:$Y$87,21,))),\"\")","v":""},null,null,null,null,null,null,null,null,null,null,null,null,null,null,null,0]
[{"$f":"IFERROR(IF(C190=\"Total general\",\"2.\",IF(D190=\"\",CONCATENATE(VLOOKUP($H190,'Tabla 1.1'!$D$10:$X$87,20,),R190),VLOOKUP($H190,'Tabla 1.1'!$D$10:$X$87,20,))),\"\")","v":""},{"$f":"IFERROR(IF(C190=\"Total general\",\"Números totales para todos los grupos de operadores y todas las autoridades competentes/autoridades de control/organismos de control\",IF(D190=\"\",CONCATENATE(\"Grupo de operadores \",VLOOKUP($H190,'Tabla 1.1'!$D$11:$Y$87,22,),R190),VLOOKUP($H190,'Tabla 1.1'!$D$11:$Y$87,21,))),\"\")","v":""},null,null,null,null,null,null,null,null,null,null,null,null,null,null,null,0]
[{"$f":"IFERROR(IF(C191=\"Total general\",\"2.\",IF(D191=\"\",CONCATENATE(VLOOKUP($H191,'Tabla 1.1'!$D$10:$X$87,20,),R191),VLOOKUP($H191,'Tabla 1.1'!$D$10:$X$87,20,))),\"\")","v":""},{"$f":"IFERROR(IF(C191=\"Total general\",\"Números totales para todos los grupos de operadores y todas las autoridades competentes/autoridades de control/organismos de control\",IF(D191=\"\",CONCATENATE(\"Grupo de operadores \",VLOOKUP($H191,'Tabla 1.1'!$D$11:$Y$87,22,),R191),VLOOKUP($H191,'Tabla 1.1'!$D$11:$Y$87,21,))),\"\")","v":""},null,null,null,null,null,null,null,null,null,null,null,null,null,null,null,0]
[{"$f":"IFERROR(IF(C192=\"Total general\",\"2.\",IF(D192=\"\",CONCATENATE(VLOOKUP($H192,'Tabla 1.1'!$D$10:$X$87,20,),R192),VLOOKUP($H192,'Tabla 1.1'!$D$10:$X$87,20,))),\"\")","v":""},{"$f":"IFERROR(IF(C192=\"Total general\",\"Números totales para todos los grupos de operadores y todas las autoridades competentes/autoridades de control/organismos de control\",IF(D192=\"\",CONCATENATE(\"Grupo de operadores \",VLOOKUP($H192,'Tabla 1.1'!$D$11:$Y$87,22,),R192),VLOOKUP($H192,'Tabla 1.1'!$D$11:$Y$87,21,))),\"\")","v":""},null,null,null,null,null,null,null,null,null,null,null,null,null,null,null,0]
[{"$f":"IFERROR(IF(C193=\"Total general\",\"2.\",IF(D193=\"\",CONCATENATE(VLOOKUP($H193,'Tabla 1.1'!$D$10:$X$87,20,),R193),VLOOKUP($H193,'Tabla 1.1'!$D$10:$X$87,20,))),\"\")","v":""},{"$f":"IFERROR(IF(C193=\"Total general\",\"Números totales para todos los grupos de operadores y todas las autoridades competentes/autoridades de control/organismos de control\",IF(D193=\"\",CONCATENATE(\"Grupo de operadores \",VLOOKUP($H193,'Tabla 1.1'!$D$11:$Y$87,22,),R193),VLOOKUP($H193,'Tabla 1.1'!$D$11:$Y$87,21,))),\"\")","v":""},null,null,null,null,null,null,null,null,null,null,null,null,null,null,null,0]
[{"$f":"IFERROR(IF(C194=\"Total general\",\"2.\",IF(D194=\"\",CONCATENATE(VLOOKUP($H194,'Tabla 1.1'!$D$10:$X$87,20,),R194),VLOOKUP($H194,'Tabla 1.1'!$D$10:$X$87,20,))),\"\")","v":""},{"$f":"IFERROR(IF(C194=\"Total general\",\"Números totales para todos los grupos de operadores y todas las autoridades competentes/autoridades de control/organismos de control\",IF(D194=\"\",CONCATENATE(\"Grupo de operadores \",VLOOKUP($H194,'Tabla 1.1'!$D$11:$Y$87,22,),R194),VLOOKUP($H194,'Tabla 1.1'!$D$11:$Y$87,21,))),\"\")","v":""},null,null,null,null,null,null,null,null,null,null,null,null,null,null,null,0]
[{"$f":"IFERROR(IF(C195=\"Total general\",\"2.\",IF(D195=\"\",CONCATENATE(VLOOKUP($H195,'Tabla 1.1'!$D$10:$X$87,20,),R195),VLOOKUP($H195,'Tabla 1.1'!$D$10:$X$87,20,))),\"\")","v":""},{"$f":"IFERROR(IF(C195=\"Total general\",\"Números totales para todos los grupos de operadores y todas las autoridades competentes/autoridades de control/organismos de control\",IF(D195=\"\",CONCATENATE(\"Grupo de operadores \",VLOOKUP($H195,'Tabla 1.1'!$D$11:$Y$87,22,),R195),VLOOKUP($H195,'Tabla 1.1'!$D$11:$Y$87,21,))),\"\")","v":""},null,null,null,null,null,null,null,null,null,null,null,null,null,null,null,0]
[{"$f":"IFERROR(IF(C196=\"Total general\",\"2.\",IF(D196=\"\",CONCATENATE(VLOOKUP($H196,'Tabla 1.1'!$D$10:$X$87,20,),R196),VLOOKUP($H196,'Tabla 1.1'!$D$10:$X$87,20,))),\"\")","v":""},{"$f":"IFERROR(IF(C196=\"Total general\",\"Números totales para todos los grupos de operadores y todas las autoridades competentes/autoridades de control/organismos de control\",IF(D196=\"\",CONCATENATE(\"Grupo de operadores \",VLOOKUP($H196,'Tabla 1.1'!$D$11:$Y$87,22,),R196),VLOOKUP($H196,'Tabla 1.1'!$D$11:$Y$87,21,))),\"\")","v":""},null,null,null,null,null,null,null,null,null,null,null,null,null,null,null,0]
[{"$f":"IFERROR(IF(C197=\"Total general\",\"2.\",IF(D197=\"\",CONCATENATE(VLOOKUP($H197,'Tabla 1.1'!$D$10:$X$87,20,),R197),VLOOKUP($H197,'Tabla 1.1'!$D$10:$X$87,20,))),\"\")","v":""},{"$f":"IFERROR(IF(C197=\"Total general\",\"Números totales para todos los grupos de operadores y todas las autoridades competentes/autoridades de control/organismos de control\",IF(D197=\"\",CONCATENATE(\"Grupo de operadores \",VLOOKUP($H197,'Tabla 1.1'!$D$11:$Y$87,22,),R197),VLOOKUP($H197,'Tabla 1.1'!$D$11:$Y$87,21,))),\"\")","v":""},null,null,null,null,null,null,null,null,null,null,null,null,null,null,null,0]
[{"$f":"IFERROR(IF(C198=\"Total general\",\"2.\",IF(D198=\"\",CONCATENATE(VLOOKUP($H198,'Tabla 1.1'!$D$10:$X$87,20,),R198),VLOOKUP($H198,'Tabla 1.1'!$D$10:$X$87,20,))),\"\")","v":""},{"$f":"IFERROR(IF(C198=\"Total general\",\"Números totales para todos los grupos de operadores y todas las autoridades competentes/autoridades de control/organismos de control\",IF(D198=\"\",CONCATENATE(\"Grupo de operadores \",VLOOKUP($H198,'Tabla 1.1'!$D$11:$Y$87,22,),R198),VLOOKUP($H198,'Tabla 1.1'!$D$11:$Y$87,21,))),\"\")","v":""},null,null,null,null,null,null,null,null,null,null,null,null,null,null,null,0]
[{"$f":"IFERROR(IF(C199=\"Total general\",\"2.\",IF(D199=\"\",CONCATENATE(VLOOKUP($H199,'Tabla 1.1'!$D$10:$X$87,20,),R199),VLOOKUP($H199,'Tabla 1.1'!$D$10:$X$87,20,))),\"\")","v":""},{"$f":"IFERROR(IF(C199=\"Total general\",\"Números totales para todos los grupos de operadores y todas las autoridades competentes/autoridades de control/organismos de control\",IF(D199=\"\",CONCATENATE(\"Grupo de operadores \",VLOOKUP($H199,'Tabla 1.1'!$D$11:$Y$87,22,),R199),VLOOKUP($H199,'Tabla 1.1'!$D$11:$Y$87,21,))),\"\")","v":""},null,null,null,null,null,null,null,null,null,null,null,null,null,null,null,0]
[{"$f":"IFERROR(IF(C200=\"Total general\",\"2.\",IF(D200=\"\",CONCATENATE(VLOOKUP($H200,'Tabla 1.1'!$D$10:$X$87,20,),R200),VLOOKUP($H200,'Tabla 1.1'!$D$10:$X$87,20,))),\"\")","v":""},{"$f":"IFERROR(IF(C200=\"Total general\",\"Números totales para todos los grupos de operadores y todas las autoridades competentes/autoridades de control/organismos de control\",IF(D200=\"\",CONCATENATE(\"Grupo de operadores \",VLOOKUP($H200,'Tabla 1.1'!$D$11:$Y$87,22,),R200),VLOOKUP($H200,'Tabla 1.1'!$D$11:$Y$87,21,))),\"\")","v":""},null,null,null,null,null,null,null,null,null,null,null,null,null,null,null,0]
[{"$f":"IFERROR(IF(C201=\"Total general\",\"2.\",IF(D201=\"\",CONCATENATE(VLOOKUP($H201,'Tabla 1.1'!$D$10:$X$87,20,),R201),VLOOKUP($H201,'Tabla 1.1'!$D$10:$X$87,20,))),\"\")","v":""},{"$f":"IFERROR(IF(C201=\"Total general\",\"Números totales para todos los grupos de operadores y todas las autoridades competentes/autoridades de control/organismos de control\",IF(D201=\"\",CONCATENATE(\"Grupo de operadores \",VLOOKUP($H201,'Tabla 1.1'!$D$11:$Y$87,22,),R201),VLOOKUP($H201,'Tabla 1.1'!$D$11:$Y$87,21,))),\"\")","v":""},null,null,null,null,null,null,null,null,null,null,null,null,null,null,null,0]
[{"$f":"IFERROR(IF(C202=\"Total general\",\"2.\",IF(D202=\"\",CONCATENATE(VLOOKUP($H202,'Tabla 1.1'!$D$10:$X$87,20,),R202),VLOOKUP($H202,'Tabla 1.1'!$D$10:$X$87,20,))),\"\")","v":""},{"$f":"IFERROR(IF(C202=\"Total general\",\"Números totales para todos los grupos de operadores y todas las autoridades competentes/autoridades de control/organismos de control\",IF(D202=\"\",CONCATENATE(\"Grupo de operadores \",VLOOKUP($H202,'Tabla 1.1'!$D$11:$Y$87,22,),R202),VLOOKUP($H202,'Tabla 1.1'!$D$11:$Y$87,21,))),\"\")","v":""},null,null,null,null,null,null,null,null,null,null,null,null,null,null,null,0]
[{"$f":"IFERROR(IF(C203=\"Total general\",\"2.\",IF(D203=\"\",CONCATENATE(VLOOKUP($H203,'Tabla 1.1'!$D$10:$X$87,20,),R203),VLOOKUP($H203,'Tabla 1.1'!$D$10:$X$87,20,))),\"\")","v":""},{"$f":"IFERROR(IF(C203=\"Total general\",\"Números totales para todos los grupos de operadores y todas las autoridades competentes/autoridades de control/organismos de control\",IF(D203=\"\",CONCATENATE(\"Grupo de operadores \",VLOOKUP($H203,'Tabla 1.1'!$D$11:$Y$87,22,),R203),VLOOKUP($H203,'Tabla 1.1'!$D$11:$Y$87,21,))),\"\")","v":""},null,null,null,null,null,null,null,null,null,null,null,null,null,null,null,{"$f":"IF(I203=\"\",0,R202+1)","v":0}]
[{"$f":"IFERROR(IF(C204=\"Total general\",\"2.\",IF(D204=\"\",CONCATENATE(VLOOKUP($H204,'Tabla 1.1'!$D$10:$X$87,20,),R204),VLOOKUP($H204,'Tabla 1.1'!$D$10:$X$87,20,))),\"\")","v":""},{"$f":"IFERROR(IF(C204=\"Total general\",\"Números totales para todos los grupos de operadores y todas las autoridades competentes/autoridades de control/organismos de control\",IF(D204=\"\",CONCATENATE(\"Grupo de operadores \",VLOOKUP($H204,'Tabla 1.1'!$D$11:$Y$87,22,),R204),VLOOKUP($H204,'Tabla 1.1'!$D$11:$Y$87,21,))),\"\")","v":""},null,null,null,null,null,null,null,null,null,null,null,null,null,null,null,0]
[{"$f":"IFERROR(IF(C205=\"Total general\",\"2.\",IF(D205=\"\",CONCATENATE(VLOOKUP($H205,'Tabla 1.1'!$D$10:$X$87,20,),R205),VLOOKUP($H205,'Tabla 1.1'!$D$10:$X$87,20,))),\"\")","v":""},{"$f":"IFERROR(IF(C205=\"Total general\",\"Números totales para todos los grupos de operadores y todas las autoridades competentes/autoridades de control/organismos de control\",IF(D205=\"\",CONCATENATE(\"Grupo de operadores \",VLOOKUP($H205,'Tabla 1.1'!$D$11:$Y$87,22,),R205),VLOOKUP($H205,'Tabla 1.1'!$D$11:$Y$87,21,))),\"\")","v":""},null,null,null,null,null,null,null,null,null,null,null,null,null,null,null,0]
[{"$f":"IFERROR(IF(C206=\"Total general\",\"2.\",IF(D206=\"\",CONCATENATE(VLOOKUP($H206,'Tabla 1.1'!$D$10:$X$87,20,),R206),VLOOKUP($H206,'Tabla 1.1'!$D$10:$X$87,20,))),\"\")","v":""},{"$f":"IFERROR(IF(C206=\"Total general\",\"Números totales para todos los grupos de operadores y todas las autoridades competentes/autoridades de control/organismos de control\",IF(D206=\"\",CONCATENATE(\"Grupo de operadores \",VLOOKUP($H206,'Tabla 1.1'!$D$11:$Y$87,22,),R206),VLOOKUP($H206,'Tabla 1.1'!$D$11:$Y$87,21,))),\"\")","v":""},null,null,null,null,null,null,null,null,null,null,null,null,null,null,null,0]
[{"$f":"IFERROR(IF(C207=\"Total general\",\"2.\",IF(D207=\"\",CONCATENATE(VLOOKUP($H207,'Tabla 1.1'!$D$10:$X$87,20,),R207),VLOOKUP($H207,'Tabla 1.1'!$D$10:$X$87,20,))),\"\")","v":""},{"$f":"IFERROR(IF(C207=\"Total general\",\"Números totales para todos los grupos de operadores y todas las autoridades competentes/autoridades de control/organismos de control\",IF(D207=\"\",CONCATENATE(\"Grupo de operadores \",VLOOKUP($H207,'Tabla 1.1'!$D$11:$Y$87,22,),R207),VLOOKUP($H207,'Tabla 1.1'!$D$11:$Y$87,21,))),\"\")","v":""},null,null,null,null,null,null,null,null,null,null,null,null,null,null,null,0]
[{"$f":"IFERROR(IF(C208=\"Total general\",\"2.\",IF(D208=\"\",CONCATENATE(VLOOKUP($H208,'Tabla 1.1'!$D$10:$X$87,20,),R208),VLOOKUP($H208,'Tabla 1.1'!$D$10:$X$87,20,))),\"\")","v":""},{"$f":"IFERROR(IF(C208=\"Total general\",\"Números totales para todos los grupos de operadores y todas las autoridades competentes/autoridades de control/organismos de control\",IF(D208=\"\",CONCATENATE(\"Grupo de operadores \",VLOOKUP($H208,'Tabla 1.1'!$D$11:$Y$87,22,),R208),VLOOKUP($H208,'Tabla 1.1'!$D$11:$Y$87,21,))),\"\")","v":""},null,null,null,null,null,null,null,null,null,null,null,null,null,null,null,0]
[{"$f":"IFERROR(IF(C209=\"Total general\",\"2.\",IF(D209=\"\",CONCATENATE(VLOOKUP($H209,'Tabla 1.1'!$D$10:$X$87,20,),R209),VLOOKUP($H209,'Tabla 1.1'!$D$10:$X$87,20,))),\"\")","v":""},{"$f":"IFERROR(IF(C209=\"Total general\",\"Números totales para todos los grupos de operadores y todas las autoridades competentes/autoridades de control/organismos de control\",IF(D209=\"\",CONCATENATE(\"Grupo de operadores \",VLOOKUP($H209,'Tabla 1.1'!$D$11:$Y$87,22,),R209),VLOOKUP($H209,'Tabla 1.1'!$D$11:$Y$87,21,))),\"\")","v":""},null,null,null,null,null,null,null,null,null,null,null,null,null,null,null,0]
[{"$f":"IFERROR(IF(C210=\"Total general\",\"2.\",IF(D210=\"\",CONCATENATE(VLOOKUP($H210,'Tabla 1.1'!$D$10:$X$87,20,),R210),VLOOKUP($H210,'Tabla 1.1'!$D$10:$X$87,20,))),\"\")","v":""},{"$f":"IFERROR(IF(C210=\"Total general\",\"Números totales para todos los grupos de operadores y todas las autoridades competentes/autoridades de control/organismos de control\",IF(D210=\"\",CONCATENATE(\"Grupo de operadores \",VLOOKUP($H210,'Tabla 1.1'!$D$11:$Y$87,22,),R210),VLOOKUP($H210,'Tabla 1.1'!$D$11:$Y$87,21,))),\"\")","v":""},null,null,null,null,null,null,null,null,null,null,null,null,null,null,null,0]
[{"$f":"IFERROR(IF(C211=\"Total general\",\"2.\",IF(D211=\"\",CONCATENATE(VLOOKUP($H211,'Tabla 1.1'!$D$10:$X$87,20,),R211),VLOOKUP($H211,'Tabla 1.1'!$D$10:$X$87,20,))),\"\")","v":""},{"$f":"IFERROR(IF(C211=\"Total general\",\"Números totales para todos los grupos de operadores y todas las autoridades competentes/autoridades de control/organismos de control\",IF(D211=\"\",CONCATENATE(\"Grupo de operadores \",VLOOKUP($H211,'Tabla 1.1'!$D$11:$Y$87,22,),R211),VLOOKUP($H211,'Tabla 1.1'!$D$11:$Y$87,21,))),\"\")","v":""},null,null,null,null,null,null,null,null,null,null,null,null,null,null,null,0]
[{"$f":"IFERROR(IF(C212=\"Total general\",\"2.\",IF(D212=\"\",CONCATENATE(VLOOKUP($H212,'Tabla 1.1'!$D$10:$X$87,20,),R212),VLOOKUP($H212,'Tabla 1.1'!$D$10:$X$87,20,))),\"\")","v":""},{"$f":"IFERROR(IF(C212=\"Total general\",\"Números totales para todos los grupos de operadores y todas las autoridades competentes/autoridades de control/organismos de control\",IF(D212=\"\",CONCATENATE(\"Grupo de operadores \",VLOOKUP($H212,'Tabla 1.1'!$D$11:$Y$87,22,),R212),VLOOKUP($H212,'Tabla 1.1'!$D$11:$Y$87,21,))),\"\")","v":""},null,null,null,null,null,null,null,null,null,null,null,null,null,null,null,0]
[{"$f":"IFERROR(IF(C213=\"Total general\",\"2.\",IF(D213=\"\",CONCATENATE(VLOOKUP($H213,'Tabla 1.1'!$D$10:$X$87,20,),R213),VLOOKUP($H213,'Tabla 1.1'!$D$10:$X$87,20,))),\"\")","v":""},{"$f":"IFERROR(IF(C213=\"Total general\",\"Números totales para todos los grupos de operadores y todas las autoridades competentes/autoridades de control/organismos de control\",IF(D213=\"\",CONCATENATE(\"Grupo de operadores \",VLOOKUP($H213,'Tabla 1.1'!$D$11:$Y$87,22,),R213),VLOOKUP($H213,'Tabla 1.1'!$D$11:$Y$87,21,))),\"\")","v":""},null,null,null,null,null,null,null,null,null,null,null,null,null,null,null,0]
[{"$f":"IFERROR(IF(C214=\"Total general\",\"2.\",IF(D214=\"\",CONCATENATE(VLOOKUP($H214,'Tabla 1.1'!$D$10:$X$87,20,),R214),VLOOKUP($H214,'Tabla 1.1'!$D$10:$X$87,20,))),\"\")","v":""},{"$f":"IFERROR(IF(C214=\"Total general\",\"Números totales para todos los grupos de operadores y todas las autoridades competentes/autoridades de control/organismos de control\",IF(D214=\"\",CONCATENATE(\"Grupo de operadores \",VLOOKUP($H214,'Tabla 1.1'!$D$11:$Y$87,22,),R214),VLOOKUP($H214,'Tabla 1.1'!$D$11:$Y$87,21,))),\"\")","v":""},null,null,null,null,null,null,null,null,null,null,null,null,null,null,null,0]
[{"$f":"IFERROR(IF(C215=\"Total general\",\"2.\",IF(D215=\"\",CONCATENATE(VLOOKUP($H215,'Tabla 1.1'!$D$10:$X$87,20,),R215),VLOOKUP($H215,'Tabla 1.1'!$D$10:$X$87,20,))),\"\")","v":""},{"$f":"IFERROR(IF(C215=\"Total general\",\"Números totales para todos los grupos de operadores y todas las autoridades competentes/autoridades de control/organismos de control\",IF(D215=\"\",CONCATENATE(\"Grupo de operadores \",VLOOKUP($H215,'Tabla 1.1'!$D$11:$Y$87,22,),R215),VLOOKUP($H215,'Tabla 1.1'!$D$11:$Y$87,21,))),\"\")","v":""},null,null,null,null,null,null,null,null,null,null,null,null,null,null,null,0]
[{"$f":"IFERROR(IF(C216=\"Total general\",\"2.\",IF(D216=\"\",CONCATENATE(VLOOKUP($H216,'Tabla 1.1'!$D$10:$X$87,20,),R216),VLOOKUP($H216,'Tabla 1.1'!$D$10:$X$87,20,))),\"\")","v":""},{"$f":"IFERROR(IF(C216=\"Total general\",\"Números totales para todos los grupos de operadores y todas las autoridades competentes/autoridades de control/organismos de control\",IF(D216=\"\",CONCATENATE(\"Grupo de operadores \",VLOOKUP($H216,'Tabla 1.1'!$D$11:$Y$87,22,),R216),VLOOKUP($H216,'Tabla 1.1'!$D$11:$Y$87,21,))),\"\")","v":""},null,null,null,null,null,null,null,null,null,null,null,null,null,null,null,0]
[{"$f":"IFERROR(IF(C217=\"Total general\",\"2.\",IF(D217=\"\",CONCATENATE(VLOOKUP($H217,'Tabla 1.1'!$D$10:$X$87,20,),R217),VLOOKUP($H217,'Tabla 1.1'!$D$10:$X$87,20,))),\"\")","v":""},{"$f":"IFERROR(IF(C217=\"Total general\",\"Números totales para todos los grupos de operadores y todas las autoridades competentes/autoridades de control/organismos de control\",IF(D217=\"\",CONCATENATE(\"Grupo de operadores \",VLOOKUP($H217,'Tabla 1.1'!$D$11:$Y$87,22,),R217),VLOOKUP($H217,'Tabla 1.1'!$D$11:$Y$87,21,))),\"\")","v":""},null,null,null,null,null,null,null,null,null,null,null,null,null,null,null,0]
[{"$f":"IFERROR(IF(C218=\"Total general\",\"2.\",IF(D218=\"\",CONCATENATE(VLOOKUP($H218,'Tabla 1.1'!$D$10:$X$87,20,),R218),VLOOKUP($H218,'Tabla 1.1'!$D$10:$X$87,20,))),\"\")","v":""},{"$f":"IFERROR(IF(C218=\"Total general\",\"Números totales para todos los grupos de operadores y todas las autoridades competentes/autoridades de control/organismos de control\",IF(D218=\"\",CONCATENATE(\"Grupo de operadores \",VLOOKUP($H218,'Tabla 1.1'!$D$11:$Y$87,22,),R218),VLOOKUP($H218,'Tabla 1.1'!$D$11:$Y$87,21,))),\"\")","v":""},null,null,null,null,null,null,null,null,null,null,null,null,null,null,null,0]
[{"$f":"IFERROR(IF(C219=\"Total general\",\"2.\",IF(D219=\"\",CONCATENATE(VLOOKUP($H219,'Tabla 1.1'!$D$10:$X$87,20,),R219),VLOOKUP($H219,'Tabla 1.1'!$D$10:$X$87,20,))),\"\")","v":""},{"$f":"IFERROR(IF(C219=\"Total general\",\"Números totales para todos los grupos de operadores y todas las autoridades competentes/autoridades de control/organismos de control\",IF(D219=\"\",CONCATENATE(\"Grupo de operadores \",VLOOKUP($H219,'Tabla 1.1'!$D$11:$Y$87,22,),R219),VLOOKUP($H219,'Tabla 1.1'!$D$11:$Y$87,21,))),\"\")","v":""},null,null,null,null,null,null,null,null,null,null,null,null,null,null,null,0]
[{"$f":"IFERROR(IF(C220=\"Total general\",\"2.\",IF(D220=\"\",CONCATENATE(VLOOKUP($H220,'Tabla 1.1'!$D$10:$X$87,20,),R220),VLOOKUP($H220,'Tabla 1.1'!$D$10:$X$87,20,))),\"\")","v":""},{"$f":"IFERROR(IF(C220=\"Total general\",\"Números totales para todos los grupos de operadores y todas las autoridades competentes/autoridades de control/organismos de control\",IF(D220=\"\",CONCATENATE(\"Grupo de operadores \",VLOOKUP($H220,'Tabla 1.1'!$D$11:$Y$87,22,),R220),VLOOKUP($H220,'Tabla 1.1'!$D$11:$Y$87,21,))),\"\")","v":""},null,null,null,null,null,null,null,null,null,null,null,null,null,null,null,0]
[{"$f":"IFERROR(IF(C221=\"Total general\",\"2.\",IF(D221=\"\",CONCATENATE(VLOOKUP($H221,'Tabla 1.1'!$D$10:$X$87,20,),R221),VLOOKUP($H221,'Tabla 1.1'!$D$10:$X$87,20,))),\"\")","v":""},{"$f":"IFERROR(IF(C221=\"Total general\",\"Números totales para todos los grupos de operadores y todas las autoridades competentes/autoridades de control/organismos de control\",IF(D221=\"\",CONCATENATE(\"Grupo de operadores \",VLOOKUP($H221,'Tabla 1.1'!$D$11:$Y$87,22,),R221),VLOOKUP($H221,'Tabla 1.1'!$D$11:$Y$87,21,))),\"\")","v":""},null,null,null,null,null,null,null,null,null,null,null,null,null,null,null,0]
[{"$f":"IFERROR(IF(C222=\"Total general\",\"2.\",IF(D222=\"\",CONCATENATE(VLOOKUP($H222,'Tabla 1.1'!$D$10:$X$87,20,),R222),VLOOKUP($H222,'Tabla 1.1'!$D$10:$X$87,20,))),\"\")","v":""},{"$f":"IFERROR(IF(C222=\"Total general\",\"Números totales para todos los grupos de operadores y todas las autoridades competentes/autoridades de control/organismos de control\",IF(D222=\"\",CONCATENATE(\"Grupo de operadores \",VLOOKUP($H222,'Tabla 1.1'!$D$11:$Y$87,22,),R222),VLOOKUP($H222,'Tabla 1.1'!$D$11:$Y$87,21,))),\"\")","v":""},null,null,null,null,null,null,null,null,null,null,null,null,null,null,null,0]
[{"$f":"IFERROR(IF(C223=\"Total general\",\"2.\",IF(D223=\"\",CONCATENATE(VLOOKUP($H223,'Tabla 1.1'!$D$10:$X$87,20,),R223),VLOOKUP($H223,'Tabla 1.1'!$D$10:$X$87,20,))),\"\")","v":""},{"$f":"IFERROR(IF(C223=\"Total general\",\"Números totales para todos los grupos de operadores y todas las autoridades competentes/autoridades de control/organismos de control\",IF(D223=\"\",CONCATENATE(\"Grupo de operadores \",VLOOKUP($H223,'Tabla 1.1'!$D$11:$Y$87,22,),R223),VLOOKUP($H223,'Tabla 1.1'!$D$11:$Y$87,21,))),\"\")","v":""},null,null,null,null,null,null,null,null,null,null,null,null,null,null,null,0]
[{"$f":"IFERROR(IF(C224=\"Total general\",\"2.\",IF(D224=\"\",CONCATENATE(VLOOKUP($H224,'Tabla 1.1'!$D$10:$X$87,20,),R224),VLOOKUP($H224,'Tabla 1.1'!$D$10:$X$87,20,))),\"\")","v":""},{"$f":"IFERROR(IF(C224=\"Total general\",\"Números totales para todos los grupos de operadores y todas las autoridades competentes/autoridades de control/organismos de control\",IF(D224=\"\",CONCATENATE(\"Grupo de operadores \",VLOOKUP($H224,'Tabla 1.1'!$D$11:$Y$87,22,),R224),VLOOKUP($H224,'Tabla 1.1'!$D$11:$Y$87,21,))),\"\")","v":""},null,null,null,null,null,null,null,null,null,null,null,null,null,null,null,0]
[{"$f":"IFERROR(IF(C225=\"Total general\",\"2.\",IF(D225=\"\",CONCATENATE(VLOOKUP($H225,'Tabla 1.1'!$D$10:$X$87,20,),R225),VLOOKUP($H225,'Tabla 1.1'!$D$10:$X$87,20,))),\"\")","v":""},{"$f":"IFERROR(IF(C225=\"Total general\",\"Números totales para todos los grupos de operadores y todas las autoridades competentes/autoridades de control/organismos de control\",IF(D225=\"\",CONCATENATE(\"Grupo de operadores \",VLOOKUP($H225,'Tabla 1.1'!$D$11:$Y$87,22,),R225),VLOOKUP($H225,'Tabla 1.1'!$D$11:$Y$87,21,))),\"\")","v":""},null,null,null,null,null,null,null,null,null,null,null,null,null,null,null,0]
[{"$f":"IFERROR(IF(C226=\"Total general\",\"2.\",IF(D226=\"\",CONCATENATE(VLOOKUP($H226,'Tabla 1.1'!$D$10:$X$87,20,),R226),VLOOKUP($H226,'Tabla 1.1'!$D$10:$X$87,20,))),\"\")","v":""},{"$f":"IFERROR(IF(C226=\"Total general\",\"Números totales para todos los grupos de operadores y todas las autoridades competentes/autoridades de control/organismos de control\",IF(D226=\"\",CONCATENATE(\"Grupo de operadores \",VLOOKUP($H226,'Tabla 1.1'!$D$11:$Y$87,22,),R226),VLOOKUP($H226,'Tabla 1.1'!$D$11:$Y$87,21,))),\"\")","v":""},null,null,null,null,null,null,null,null,null,null,null,null,null,null,null,0]
[{"$f":"IFERROR(IF(C227=\"Total general\",\"2.\",IF(D227=\"\",CONCATENATE(VLOOKUP($H227,'Tabla 1.1'!$D$10:$X$87,20,),R227),VLOOKUP($H227,'Tabla 1.1'!$D$10:$X$87,20,))),\"\")","v":""},{"$f":"IFERROR(IF(C227=\"Total general\",\"Números totales para todos los grupos de operadores y todas las autoridades competentes/autoridades de control/organismos de control\",IF(D227=\"\",CONCATENATE(\"Grupo de operadores \",VLOOKUP($H227,'Tabla 1.1'!$D$11:$Y$87,22,),R227),VLOOKUP($H227,'Tabla 1.1'!$D$11:$Y$87,21,))),\"\")","v":""},null,null,null,null,null,null,null,null,null,null,null,null,null,null,null,0]
[{"$f":"IFERROR(IF(C228=\"Total general\",\"2.\",IF(D228=\"\",CONCATENATE(VLOOKUP($H228,'Tabla 1.1'!$D$10:$X$87,20,),R228),VLOOKUP($H228,'Tabla 1.1'!$D$10:$X$87,20,))),\"\")","v":""},{"$f":"IFERROR(IF(C228=\"Total general\",\"Números totales para todos los grupos de operadores y todas las autoridades competentes/autoridades de control/organismos de control\",IF(D228=\"\",CONCATENATE(\"Grupo de operadores \",VLOOKUP($H228,'Tabla 1.1'!$D$11:$Y$87,22,),R228),VLOOKUP($H228,'Tabla 1.1'!$D$11:$Y$87,21,))),\"\")","v":""},null,null,null,null,null,null,null,null,null,null,null,null,null,null,null,0]
[{"$f":"IFERROR(IF(C229=\"Total general\",\"2.\",IF(D229=\"\",CONCATENATE(VLOOKUP($H229,'Tabla 1.1'!$D$10:$X$87,20,),R229),VLOOKUP($H229,'Tabla 1.1'!$D$10:$X$87,20,))),\"\")","v":""},{"$f":"IFERROR(IF(C229=\"Total general\",\"Números totales para todos los grupos de operadores y todas las autoridades competentes/autoridades de control/organismos de control\",IF(D229=\"\",CONCATENATE(\"Grupo de operadores \",VLOOKUP($H229,'Tabla 1.1'!$D$11:$Y$87,22,),R229),VLOOKUP($H229,'Tabla 1.1'!$D$11:$Y$87,21,))),\"\")","v":""},null,null,null,null,null,null,null,null,null,null,null,null,null,null,null,0]
[{"$f":"IFERROR(IF(C230=\"Total general\",\"2.\",IF(D230=\"\",CONCATENATE(VLOOKUP($H230,'Tabla 1.1'!$D$10:$X$87,20,),R230),VLOOKUP($H230,'Tabla 1.1'!$D$10:$X$87,20,))),\"\")","v":""},{"$f":"IFERROR(IF(C230=\"Total general\",\"Números totales para todos los grupos de operadores y todas las autoridades competentes/autoridades de control/organismos de control\",IF(D230=\"\",CONCATENATE(\"Grupo de operadores \",VLOOKUP($H230,'Tabla 1.1'!$D$11:$Y$87,22,),R230),VLOOKUP($H230,'Tabla 1.1'!$D$11:$Y$87,21,))),\"\")","v":""},null,null,null,null,null,null,null,null,null,null,null,null,null,null,null,0]
[{"$f":"IFERROR(IF(C231=\"Total general\",\"2.\",IF(D231=\"\",CONCATENATE(VLOOKUP($H231,'Tabla 1.1'!$D$10:$X$87,20,),R231),VLOOKUP($H231,'Tabla 1.1'!$D$10:$X$87,20,))),\"\")","v":""},{"$f":"IFERROR(IF(C231=\"Total general\",\"Números totales para todos los grupos de operadores y todas las autoridades competentes/autoridades de control/organismos de control\",IF(D231=\"\",CONCATENATE(\"Grupo de operadores \",VLOOKUP($H231,'Tabla 1.1'!$D$11:$Y$87,22,),R231),VLOOKUP($H231,'Tabla 1.1'!$D$11:$Y$87,21,))),\"\")","v":""},null,null,null,null,null,null,null,null,null,null,null,null,null,null,null,0]
[{"$f":"IFERROR(IF(C232=\"Total general\",\"2.\",IF(D232=\"\",CONCATENATE(VLOOKUP($H232,'Tabla 1.1'!$D$10:$X$87,20,),R232),VLOOKUP($H232,'Tabla 1.1'!$D$10:$X$87,20,))),\"\")","v":""},{"$f":"IFERROR(IF(C232=\"Total general\",\"Números totales para todos los grupos de operadores y todas las autoridades competentes/autoridades de control/organismos de control\",IF(D232=\"\",CONCATENATE(\"Grupo de operadores \",VLOOKUP($H232,'Tabla 1.1'!$D$11:$Y$87,22,),R232),VLOOKUP($H232,'Tabla 1.1'!$D$11:$Y$87,21,))),\"\")","v":""},null,null,null,null,null,null,null,null,null,null,null,null,null,null,null,0]
[{"$f":"IFERROR(IF(C233=\"Total general\",\"2.\",IF(D233=\"\",CONCATENATE(VLOOKUP($H233,'Tabla 1.1'!$D$10:$X$87,20,),R233),VLOOKUP($H233,'Tabla 1.1'!$D$10:$X$87,20,))),\"\")","v":""},{"$f":"IFERROR(IF(C233=\"Total general\",\"Números totales para todos los grupos de operadores y todas las autoridades competentes/autoridades de control/organismos de control\",IF(D233=\"\",CONCATENATE(\"Grupo de operadores \",VLOOKUP($H233,'Tabla 1.1'!$D$11:$Y$87,22,),R233),VLOOKUP($H233,'Tabla 1.1'!$D$11:$Y$87,21,))),\"\")","v":""},null,null,null,null,null,null,null,null,null,null,null,null,null,null,null,0]
[{"$f":"IFERROR(IF(C234=\"Total general\",\"2.\",IF(D234=\"\",CONCATENATE(VLOOKUP($H234,'Tabla 1.1'!$D$10:$X$87,20,),R234),VLOOKUP($H234,'Tabla 1.1'!$D$10:$X$87,20,))),\"\")","v":""},{"$f":"IFERROR(IF(C234=\"Total general\",\"Números totales para todos los grupos de operadores y todas las autoridades competentes/autoridades de control/organismos de control\",IF(D234=\"\",CONCATENATE(\"Grupo de operadores \",VLOOKUP($H234,'Tabla 1.1'!$D$11:$Y$87,22,),R234),VLOOKUP($H234,'Tabla 1.1'!$D$11:$Y$87,21,))),\"\")","v":""},null,null,null,null,null,null,null,null,null,null,null,null,null,null,null,0]
[{"$f":"IFERROR(IF(C235=\"Total general\",\"2.\",IF(D235=\"\",CONCATENATE(VLOOKUP($H235,'Tabla 1.1'!$D$10:$X$87,20,),R235),VLOOKUP($H235,'Tabla 1.1'!$D$10:$X$87,20,))),\"\")","v":""},{"$f":"IFERROR(IF(C235=\"Total general\",\"Números totales para todos los grupos de operadores y todas las autoridades competentes/autoridades de control/organismos de control\",IF(D235=\"\",CONCATENATE(\"Grupo de operadores \",VLOOKUP($H235,'Tabla 1.1'!$D$11:$Y$87,22,),R235),VLOOKUP($H235,'Tabla 1.1'!$D$11:$Y$87,21,))),\"\")","v":""},null,null,null,null,null,null,null,null,null,null,null,null,null,null,null,0]
[{"$f":"IFERROR(IF(C236=\"Total general\",\"2.\",IF(D236=\"\",CONCATENATE(VLOOKUP($H236,'Tabla 1.1'!$D$10:$X$87,20,),R236),VLOOKUP($H236,'Tabla 1.1'!$D$10:$X$87,20,))),\"\")","v":""},{"$f":"IFERROR(IF(C236=\"Total general\",\"Números totales para todos los grupos de operadores y todas las autoridades competentes/autoridades de control/organismos de control\",IF(D236=\"\",CONCATENATE(\"Grupo de operadores \",VLOOKUP($H236,'Tabla 1.1'!$D$11:$Y$87,22,),R236),VLOOKUP($H236,'Tabla 1.1'!$D$11:$Y$87,21,))),\"\")","v":""},null,null,null,null,null,null,null,null,null,null,null,null,null,null,null,0]
[{"$f":"IFERROR(IF(C237=\"Total general\",\"2.\",IF(D237=\"\",CONCATENATE(VLOOKUP($H237,'Tabla 1.1'!$D$10:$X$87,20,),R237),VLOOKUP($H237,'Tabla 1.1'!$D$10:$X$87,20,))),\"\")","v":""},{"$f":"IFERROR(IF(C237=\"Total general\",\"Números totales para todos los grupos de operadores y todas las autoridades competentes/autoridades de control/organismos de control\",IF(D237=\"\",CONCATENATE(\"Grupo de operadores \",VLOOKUP($H237,'Tabla 1.1'!$D$11:$Y$87,22,),R237),VLOOKUP($H237,'Tabla 1.1'!$D$11:$Y$87,21,))),\"\")","v":""},null,null,null,null,null,null,null,null,null,null,null,null,null,null,null,0]
[{"$f":"IFERROR(IF(C238=\"Total general\",\"2.\",IF(D238=\"\",CONCATENATE(VLOOKUP($H238,'Tabla 1.1'!$D$10:$X$87,20,),R238),VLOOKUP($H238,'Tabla 1.1'!$D$10:$X$87,20,))),\"\")","v":""},{"$f":"IFERROR(IF(C238=\"Total general\",\"Números totales para todos los grupos de operadores y todas las autoridades competentes/autoridades de control/organismos de control\",IF(D238=\"\",CONCATENATE(\"Grupo de operadores \",VLOOKUP($H238,'Tabla 1.1'!$D$11:$Y$87,22,),R238),VLOOKUP($H238,'Tabla 1.1'!$D$11:$Y$87,21,))),\"\")","v":""},null,null,null,null,null,null,null,null,null,null,null,null,null,null,null,0]
[{"$f":"IFERROR(IF(C239=\"Total general\",\"2.\",IF(D239=\"\",CONCATENATE(VLOOKUP($H239,'Tabla 1.1'!$D$10:$X$87,20,),R239),VLOOKUP($H239,'Tabla 1.1'!$D$10:$X$87,20,))),\"\")","v":""},{"$f":"IFERROR(IF(C239=\"Total general\",\"Números totales para todos los grupos de operadores y todas las autoridades competentes/autoridades de control/organismos de control\",IF(D239=\"\",CONCATENATE(\"Grupo de operadores \",VLOOKUP($H239,'Tabla 1.1'!$D$11:$Y$87,22,),R239),VLOOKUP($H239,'Tabla 1.1'!$D$11:$Y$87,21,))),\"\")","v":""},null,null,null,null,null,null,null,null,null,null,null,null,null,null,null,0]
[{"$f":"IFERROR(IF(C240=\"Total general\",\"2.\",IF(D240=\"\",CONCATENATE(VLOOKUP($H240,'Tabla 1.1'!$D$10:$X$87,20,),R240),VLOOKUP($H240,'Tabla 1.1'!$D$10:$X$87,20,))),\"\")","v":""},{"$f":"IFERROR(IF(C240=\"Total general\",\"Números totales para todos los grupos de operadores y todas las autoridades competentes/autoridades de control/organismos de control\",IF(D240=\"\",CONCATENATE(\"Grupo de operadores \",VLOOKUP($H240,'Tabla 1.1'!$D$11:$Y$87,22,),R240),VLOOKUP($H240,'Tabla 1.1'!$D$11:$Y$87,21,))),\"\")","v":""},null,null,null,null,null,null,null,null,null,null,null,null,null,null,null,0]
[{"$f":"IFERROR(IF(C241=\"Total general\",\"2.\",IF(D241=\"\",CONCATENATE(VLOOKUP($H241,'Tabla 1.1'!$D$10:$X$87,20,),R241),VLOOKUP($H241,'Tabla 1.1'!$D$10:$X$87,20,))),\"\")","v":""},{"$f":"IFERROR(IF(C241=\"Total general\",\"Números totales para todos los grupos de operadores y todas las autoridades competentes/autoridades de control/organismos de control\",IF(D241=\"\",CONCATENATE(\"Grupo de operadores \",VLOOKUP($H241,'Tabla 1.1'!$D$11:$Y$87,22,),R241),VLOOKUP($H241,'Tabla 1.1'!$D$11:$Y$87,21,))),\"\")","v":""},null,null,null,null,null,null,null,null,null,null,null,null,null,null,null,0]
[{"$f":"IFERROR(IF(C242=\"Total general\",\"2.\",IF(D242=\"\",CONCATENATE(VLOOKUP($H242,'Tabla 1.1'!$D$10:$X$87,20,),R242),VLOOKUP($H242,'Tabla 1.1'!$D$10:$X$87,20,))),\"\")","v":""},{"$f":"IFERROR(IF(C242=\"Total general\",\"Números totales para todos los grupos de operadores y todas las autoridades competentes/autoridades de control/organismos de control\",IF(D242=\"\",CONCATENATE(\"Grupo de operadores \",VLOOKUP($H242,'Tabla 1.1'!$D$11:$Y$87,22,),R242),VLOOKUP($H242,'Tabla 1.1'!$D$11:$Y$87,21,))),\"\")","v":""},null,null,null,null,null,null,null,null,null,null,null,null,null,null,null,0]
[{"$f":"IFERROR(IF(C243=\"Total general\",\"2.\",IF(D243=\"\",CONCATENATE(VLOOKUP($H243,'Tabla 1.1'!$D$10:$X$87,20,),R243),VLOOKUP($H243,'Tabla 1.1'!$D$10:$X$87,20,))),\"\")","v":""},{"$f":"IFERROR(IF(C243=\"Total general\",\"Números totales para todos los grupos de operadores y todas las autoridades competentes/autoridades de control/organismos de control\",IF(D243=\"\",CONCATENATE(\"Grupo de operadores \",VLOOKUP($H243,'Tabla 1.1'!$D$11:$Y$87,22,),R243),VLOOKUP($H243,'Tabla 1.1'!$D$11:$Y$87,21,))),\"\")","v":""},null,null,null,null,null,null,null,null,null,null,null,null,null,null,null,0]
[{"$f":"IFERROR(IF(C244=\"Total general\",\"2.\",IF(D244=\"\",CONCATENATE(VLOOKUP($H244,'Tabla 1.1'!$D$10:$X$87,20,),R244),VLOOKUP($H244,'Tabla 1.1'!$D$10:$X$87,20,))),\"\")","v":""},{"$f":"IFERROR(IF(C244=\"Total general\",\"Números totales para todos los grupos de operadores y todas las autoridades competentes/autoridades de control/organismos de control\",IF(D244=\"\",CONCATENATE(\"Grupo de operadores \",VLOOKUP($H244,'Tabla 1.1'!$D$11:$Y$87,22,),R244),VLOOKUP($H244,'Tabla 1.1'!$D$11:$Y$87,21,))),\"\")","v":""},null,null,null,null,null,null,null,null,null,null,null,null,null,null,null,0]
[{"$f":"IFERROR(IF(C245=\"Total general\",\"2.\",IF(D245=\"\",CONCATENATE(VLOOKUP($H245,'Tabla 1.1'!$D$10:$X$87,20,),R245),VLOOKUP($H245,'Tabla 1.1'!$D$10:$X$87,20,))),\"\")","v":""},{"$f":"IFERROR(IF(C245=\"Total general\",\"Números totales para todos los grupos de operadores y todas las autoridades competentes/autoridades de control/organismos de control\",IF(D245=\"\",CONCATENATE(\"Grupo de operadores \",VLOOKUP($H245,'Tabla 1.1'!$D$11:$Y$87,22,),R245),VLOOKUP($H245,'Tabla 1.1'!$D$11:$Y$87,21,))),\"\")","v":""},null,null,null,null,null,null,null,null,null,null,null,null,null,null,null,0]
[{"$f":"IFERROR(IF(C246=\"Total general\",\"2.\",IF(D246=\"\",CONCATENATE(VLOOKUP($H246,'Tabla 1.1'!$D$10:$X$87,20,),R246),VLOOKUP($H246,'Tabla 1.1'!$D$10:$X$87,20,))),\"\")","v":""},{"$f":"IFERROR(IF(C246=\"Total general\",\"Números totales para todos los grupos de operadores y todas las autoridades competentes/autoridades de control/organismos de control\",IF(D246=\"\",CONCATENATE(\"Grupo de operadores \",VLOOKUP($H246,'Tabla 1.1'!$D$11:$Y$87,22,),R246),VLOOKUP($H246,'Tabla 1.1'!$D$11:$Y$87,21,))),\"\")","v":""},null,null,null,null,null,null,null,null,null,null,null,null,null,null,null,0]
[{"$f":"IFERROR(IF(C247=\"Total general\",\"2.\",IF(D247=\"\",CONCATENATE(VLOOKUP($H247,'Tabla 1.1'!$D$10:$X$87,20,),R247),VLOOKUP($H247,'Tabla 1.1'!$D$10:$X$87,20,))),\"\")","v":""},{"$f":"IFERROR(IF(C247=\"Total general\",\"Números totales para todos los grupos de operadores y todas las autoridades competentes/autoridades de control/organismos de control\",IF(D247=\"\",CONCATENATE(\"Grupo de operadores \",VLOOKUP($H247,'Tabla 1.1'!$D$11:$Y$87,22,),R247),VLOOKUP($H247,'Tabla 1.1'!$D$11:$Y$87,21,))),\"\")","v":""},null,null,null,null,null,null,null,null,null,null,null,null,null,null,null,0]
[{"$f":"IFERROR(IF(C248=\"Total general\",\"2.\",IF(D248=\"\",CONCATENATE(VLOOKUP($H248,'Tabla 1.1'!$D$10:$X$87,20,),R248),VLOOKUP($H248,'Tabla 1.1'!$D$10:$X$87,20,))),\"\")","v":""},{"$f":"IFERROR(IF(C248=\"Total general\",\"Números totales para todos los grupos de operadores y todas las autoridades competentes/autoridades de control/organismos de control\",IF(D248=\"\",CONCATENATE(\"Grupo de operadores \",VLOOKUP($H248,'Tabla 1.1'!$D$11:$Y$87,22,),R248),VLOOKUP($H248,'Tabla 1.1'!$D$11:$Y$87,21,))),\"\")","v":""},null,null,null,null,null,null,null,null,null,null,null,null,null,null,null,0]
[{"$f":"IFERROR(IF(C249=\"Total general\",\"2.\",IF(D249=\"\",CONCATENATE(VLOOKUP($H249,'Tabla 1.1'!$D$10:$X$87,20,),R249),VLOOKUP($H249,'Tabla 1.1'!$D$10:$X$87,20,))),\"\")","v":""},{"$f":"IFERROR(IF(C249=\"Total general\",\"Números totales para todos los grupos de operadores y todas las autoridades competentes/autoridades de control/organismos de control\",IF(D249=\"\",CONCATENATE(\"Grupo de operadores \",VLOOKUP($H249,'Tabla 1.1'!$D$11:$Y$87,22,),R249),VLOOKUP($H249,'Tabla 1.1'!$D$11:$Y$87,21,))),\"\")","v":""},null,null,null,null,null,null,null,null,null,null,null,null,null,null,null,0]
[{"$f":"IFERROR(IF(C250=\"Total general\",\"2.\",IF(D250=\"\",CONCATENATE(VLOOKUP($H250,'Tabla 1.1'!$D$10:$X$87,20,),R250),VLOOKUP($H250,'Tabla 1.1'!$D$10:$X$87,20,))),\"\")","v":""},{"$f":"IFERROR(IF(C250=\"Total general\",\"Números totales para todos los grupos de operadores y todas las autoridades competentes/autoridades de control/organismos de control\",IF(D250=\"\",CONCATENATE(\"Grupo de operadores \",VLOOKUP($H250,'Tabla 1.1'!$D$11:$Y$87,22,),R250),VLOOKUP($H250,'Tabla 1.1'!$D$11:$Y$87,21,))),\"\")","v":""},null,null,null,null,null,null,null,null,null,null,null,null,null,null,null,0]
[{"$f":"IFERROR(IF(C251=\"Total general\",\"2.\",IF(D251=\"\",CONCATENATE(VLOOKUP($H251,'Tabla 1.1'!$D$10:$X$87,20,),R251),VLOOKUP($H251,'Tabla 1.1'!$D$10:$X$87,20,))),\"\")","v":""},{"$f":"IFERROR(IF(C251=\"Total general\",\"Números totales para todos los grupos de operadores y todas las autoridades competentes/autoridades de control/organismos de control\",IF(D251=\"\",CONCATENATE(\"Grupo de operadores \",VLOOKUP($H251,'Tabla 1.1'!$D$11:$Y$87,22,),R251),VLOOKUP($H251,'Tabla 1.1'!$D$11:$Y$87,21,))),\"\")","v":""},null,null,null,null,null,null,null,null,null,null,null,null,null,null,null,0]
[{"$f":"IFERROR(IF(C252=\"Total general\",\"2.\",IF(D252=\"\",CONCATENATE(VLOOKUP($H252,'Tabla 1.1'!$D$10:$X$87,20,),R252),VLOOKUP($H252,'Tabla 1.1'!$D$10:$X$87,20,))),\"\")","v":""},{"$f":"IFERROR(IF(C252=\"Total general\",\"Números totales para todos los grupos de operadores y todas las autoridades competentes/autoridades de control/organismos de control\",IF(D252=\"\",CONCATENATE(\"Grupo de operadores \",VLOOKUP($H252,'Tabla 1.1'!$D$11:$Y$87,22,),R252),VLOOKUP($H252,'Tabla 1.1'!$D$11:$Y$87,21,))),\"\")","v":""},null,null,null,null,null,null,null,null,null,null,null,null,null,null,null,0]
[{"$f":"IFERROR(IF(C253=\"Total general\",\"2.\",IF(D253=\"\",CONCATENATE(VLOOKUP($H253,'Tabla 1.1'!$D$10:$X$87,20,),R253),VLOOKUP($H253,'Tabla 1.1'!$D$10:$X$87,20,))),\"\")","v":""},{"$f":"IFERROR(IF(C253=\"Total general\",\"Números totales para todos los grupos de operadores y todas las autoridades competentes/autoridades de control/organismos de control\",IF(D253=\"\",CONCATENATE(\"Grupo de operadores \",VLOOKUP($H253,'Tabla 1.1'!$D$11:$Y$87,22,),R253),VLOOKUP($H253,'Tabla 1.1'!$D$11:$Y$87,21,))),\"\")","v":""},null,null,null,null,null,null,null,null,null,null,null,null,null,null,null,0]
[{"$f":"IFERROR(IF(C254=\"Total general\",\"2.\",IF(D254=\"\",CONCATENATE(VLOOKUP($H254,'Tabla 1.1'!$D$10:$X$87,20,),R254),VLOOKUP($H254,'Tabla 1.1'!$D$10:$X$87,20,))),\"\")","v":""},{"$f":"IFERROR(IF(C254=\"Total general\",\"Números totales para todos los grupos de operadores y todas las autoridades competentes/autoridades de control/organismos de control\",IF(D254=\"\",CONCATENATE(\"Grupo de operadores \",VLOOKUP($H254,'Tabla 1.1'!$D$11:$Y$87,22,),R254),VLOOKUP($H254,'Tabla 1.1'!$D$11:$Y$87,21,))),\"\")","v":""},null,null,null,null,null,null,null,null,null,null,null,null,null,null,null,0]
[{"$f":"IFERROR(IF(C255=\"Total general\",\"2.\",IF(D255=\"\",CONCATENATE(VLOOKUP($H255,'Tabla 1.1'!$D$10:$X$87,20,),R255),VLOOKUP($H255,'Tabla 1.1'!$D$10:$X$87,20,))),\"\")","v":""},{"$f":"IFERROR(IF(C255=\"Total general\",\"Números totales para todos los grupos de operadores y todas las autoridades competentes/autoridades de control/organismos de control\",IF(D255=\"\",CONCATENATE(\"Grupo de operadores \",VLOOKUP($H255,'Tabla 1.1'!$D$11:$Y$87,22,),R255),VLOOKUP($H255,'Tabla 1.1'!$D$11:$Y$87,21,))),\"\")","v":""},null,null,null,null,null,null,null,null,null,null,null,null,null,null,null,0]
[{"$f":"IFERROR(IF(C256=\"Total general\",\"2.\",IF(D256=\"\",CONCATENATE(VLOOKUP($H256,'Tabla 1.1'!$D$10:$X$87,20,),R256),VLOOKUP($H256,'Tabla 1.1'!$D$10:$X$87,20,))),\"\")","v":""},{"$f":"IFERROR(IF(C256=\"Total general\",\"Números totales para todos los grupos de operadores y todas las autoridades competentes/autoridades de control/organismos de control\",IF(D256=\"\",CONCATENATE(\"Grupo de operadores \",VLOOKUP($H256,'Tabla 1.1'!$D$11:$Y$87,22,),R256),VLOOKUP($H256,'Tabla 1.1'!$D$11:$Y$87,21,))),\"\")","v":""},null,null,null,null,null,null,null,null,null,null,null,null,null,null,null,0]
[{"$f":"IFERROR(IF(C257=\"Total general\",\"2.\",IF(D257=\"\",CONCATENATE(VLOOKUP($H257,'Tabla 1.1'!$D$10:$X$87,20,),R257),VLOOKUP($H257,'Tabla 1.1'!$D$10:$X$87,20,))),\"\")","v":""},{"$f":"IFERROR(IF(C257=\"Total general\",\"Números totales para todos los grupos de operadores y todas las autoridades competentes/autoridades de control/organismos de control\",IF(D257=\"\",CONCATENATE(\"Grupo de operadores \",VLOOKUP($H257,'Tabla 1.1'!$D$11:$Y$87,22,),R257),VLOOKUP($H257,'Tabla 1.1'!$D$11:$Y$87,21,))),\"\")","v":""},null,null,null,null,null,null,null,null,null,null,null,null,null,null,null,0]
[{"$f":"IFERROR(IF(C258=\"Total general\",\"2.\",IF(D258=\"\",CONCATENATE(VLOOKUP($H258,'Tabla 1.1'!$D$10:$X$87,20,),R258),VLOOKUP($H258,'Tabla 1.1'!$D$10:$X$87,20,))),\"\")","v":""},{"$f":"IFERROR(IF(C258=\"Total general\",\"Números totales para todos los grupos de operadores y todas las autoridades competentes/autoridades de control/organismos de control\",IF(D258=\"\",CONCATENATE(\"Grupo de operadores \",VLOOKUP($H258,'Tabla 1.1'!$D$11:$Y$87,22,),R258),VLOOKUP($H258,'Tabla 1.1'!$D$11:$Y$87,21,))),\"\")","v":""},null,null,null,null,null,null,null,null,null,null,null,null,null,null,null,0]
[{"$f":"IFERROR(IF(C259=\"Total general\",\"2.\",IF(D259=\"\",CONCATENATE(VLOOKUP($H259,'Tabla 1.1'!$D$10:$X$87,20,),R259),VLOOKUP($H259,'Tabla 1.1'!$D$10:$X$87,20,))),\"\")","v":""},{"$f":"IFERROR(IF(C259=\"Total general\",\"Números totales para todos los grupos de operadores y todas las autoridades competentes/autoridades de control/organismos de control\",IF(D259=\"\",CONCATENATE(\"Grupo de operadores \",VLOOKUP($H259,'Tabla 1.1'!$D$11:$Y$87,22,),R259),VLOOKUP($H259,'Tabla 1.1'!$D$11:$Y$87,21,))),\"\")","v":""},null,null,null,null,null,null,null,null,null,null,null,null,null,null,null,0]
[{"$f":"IFERROR(IF(C260=\"Total general\",\"2.\",IF(D260=\"\",CONCATENATE(VLOOKUP($H260,'Tabla 1.1'!$D$10:$X$87,20,),R260),VLOOKUP($H260,'Tabla 1.1'!$D$10:$X$87,20,))),\"\")","v":""},{"$f":"IFERROR(IF(C260=\"Total general\",\"Números totales para todos los grupos de operadores y todas las autoridades competentes/autoridades de control/organismos de control\",IF(D260=\"\",CONCATENATE(\"Grupo de operadores \",VLOOKUP($H260,'Tabla 1.1'!$D$11:$Y$87,22,),R260),VLOOKUP($H260,'Tabla 1.1'!$D$11:$Y$87,21,))),\"\")","v":""},null,null,null,null,null,null,null,null,null,null,null,null,null,null,null,0]
[{"$f":"IFERROR(IF(C261=\"Total general\",\"2.\",IF(D261=\"\",CONCATENATE(VLOOKUP($H261,'Tabla 1.1'!$D$10:$X$87,20,),R261),VLOOKUP($H261,'Tabla 1.1'!$D$10:$X$87,20,))),\"\")","v":""},{"$f":"IFERROR(IF(C261=\"Total general\",\"Números totales para todos los grupos de operadores y todas las autoridades competentes/autoridades de control/organismos de control\",IF(D261=\"\",CONCATENATE(\"Grupo de operadores \",VLOOKUP($H261,'Tabla 1.1'!$D$11:$Y$87,22,),R261),VLOOKUP($H261,'Tabla 1.1'!$D$11:$Y$87,21,))),\"\")","v":""},null,null,null,null,null,null,null,null,null,null,null,null,null,null,null,0]
[{"$f":"IFERROR(IF(C262=\"Total general\",\"2.\",IF(D262=\"\",CONCATENATE(VLOOKUP($H262,'Tabla 1.1'!$D$10:$X$87,20,),R262),VLOOKUP($H262,'Tabla 1.1'!$D$10:$X$87,20,))),\"\")","v":""},{"$f":"IFERROR(IF(C262=\"Total general\",\"Números totales para todos los grupos de operadores y todas las autoridades competentes/autoridades de control/organismos de control\",IF(D262=\"\",CONCATENATE(\"Grupo de operadores \",VLOOKUP($H262,'Tabla 1.1'!$D$11:$Y$87,22,),R262),VLOOKUP($H262,'Tabla 1.1'!$D$11:$Y$87,21,))),\"\")","v":""},null,null,null,null,null,null,null,null,null,null,null,null,null,null,null,0]
[{"$f":"IFERROR(IF(C263=\"Total general\",\"2.\",IF(D263=\"\",CONCATENATE(VLOOKUP($H263,'Tabla 1.1'!$D$10:$X$87,20,),R263),VLOOKUP($H263,'Tabla 1.1'!$D$10:$X$87,20,))),\"\")","v":""},{"$f":"IFERROR(IF(C263=\"Total general\",\"Números totales para todos los grupos de operadores y todas las autoridades competentes/autoridades de control/organismos de control\",IF(D263=\"\",CONCATENATE(\"Grupo de operadores \",VLOOKUP($H263,'Tabla 1.1'!$D$11:$Y$87,22,),R263),VLOOKUP($H263,'Tabla 1.1'!$D$11:$Y$87,21,))),\"\")","v":""},null,null,null,null,null,null,null,null,null,null,null,null,null,null,null,0]
[{"$f":"IFERROR(IF(C264=\"Total general\",\"2.\",IF(D264=\"\",CONCATENATE(VLOOKUP($H264,'Tabla 1.1'!$D$10:$X$87,20,),R264),VLOOKUP($H264,'Tabla 1.1'!$D$10:$X$87,20,))),\"\")","v":""},{"$f":"IFERROR(IF(C264=\"Total general\",\"Números totales para todos los grupos de operadores y todas las autoridades competentes/autoridades de control/organismos de control\",IF(D264=\"\",CONCATENATE(\"Grupo de operadores \",VLOOKUP($H264,'Tabla 1.1'!$D$11:$Y$87,22,),R264),VLOOKUP($H264,'Tabla 1.1'!$D$11:$Y$87,21,))),\"\")","v":""},null,null,null,null,null,null,null,null,null,null,null,null,null,null,null,0]
[{"$f":"IFERROR(IF(C265=\"Total general\",\"2.\",IF(D265=\"\",CONCATENATE(VLOOKUP($H265,'Tabla 1.1'!$D$10:$X$87,20,),R265),VLOOKUP($H265,'Tabla 1.1'!$D$10:$X$87,20,))),\"\")","v":""},{"$f":"IFERROR(IF(C265=\"Total general\",\"Números totales para todos los grupos de operadores y todas las autoridades competentes/autoridades de control/organismos de control\",IF(D265=\"\",CONCATENATE(\"Grupo de operadores \",VLOOKUP($H265,'Tabla 1.1'!$D$11:$Y$87,22,),R265),VLOOKUP($H265,'Tabla 1.1'!$D$11:$Y$87,21,))),\"\")","v":""},null,null,null,null,null,null,null,null,null,null,null,null,null,null,null,0]
[{"$f":"IFERROR(IF(C266=\"Total general\",\"2.\",IF(D266=\"\",CONCATENATE(VLOOKUP($H266,'Tabla 1.1'!$D$10:$X$87,20,),R266),VLOOKUP($H266,'Tabla 1.1'!$D$10:$X$87,20,))),\"\")","v":""},{"$f":"IFERROR(IF(C266=\"Total general\",\"Números totales para todos los grupos de operadores y todas las autoridades competentes/autoridades de control/organismos de control\",IF(D266=\"\",CONCATENATE(\"Grupo de operadores \",VLOOKUP($H266,'Tabla 1.1'!$D$11:$Y$87,22,),R266),VLOOKUP($H266,'Tabla 1.1'!$D$11:$Y$87,21,))),\"\")","v":""},null,null,null,null,null,null,null,null,null,null,null,null,null,null,null,0]
[{"$f":"IFERROR(IF(C267=\"Total general\",\"2.\",IF(D267=\"\",CONCATENATE(VLOOKUP($H267,'Tabla 1.1'!$D$10:$X$87,20,),R267),VLOOKUP($H267,'Tabla 1.1'!$D$10:$X$87,20,))),\"\")","v":""},{"$f":"IFERROR(IF(C267=\"Total general\",\"Números totales para todos los grupos de operadores y todas las autoridades competentes/autoridades de control/organismos de control\",IF(D267=\"\",CONCATENATE(\"Grupo de operadores \",VLOOKUP($H267,'Tabla 1.1'!$D$11:$Y$87,22,),R267),VLOOKUP($H267,'Tabla 1.1'!$D$11:$Y$87,21,))),\"\")","v":""},null,null,null,null,null,null,null,null,null,null,null,null,null,null,null,{"$f":"IF(I267=\"\",0,R266+1)","v":0}]
[{"$f":"IFERROR(IF(C268=\"Total general\",\"2.\",IF(D268=\"\",CONCATENATE(VLOOKUP($H268,'Tabla 1.1'!$D$10:$X$87,20,),R268),VLOOKUP($H268,'Tabla 1.1'!$D$10:$X$87,20,))),\"\")","v":""},{"$f":"IFERROR(IF(C268=\"Total general\",\"Números totales para todos los grupos de operadores y todas las autoridades competentes/autoridades de control/organismos de control\",IF(D268=\"\",CONCATENATE(\"Grupo de operadores \",VLOOKUP($H268,'Tabla 1.1'!$D$11:$Y$87,22,),R268),VLOOKUP($H268,'Tabla 1.1'!$D$11:$Y$87,21,))),\"\")","v":""},null,null,null,null,null,null,null,null,null,null,null,null,null,null,null,0]
[{"$f":"IFERROR(IF(C269=\"Total general\",\"2.\",IF(D269=\"\",CONCATENATE(VLOOKUP($H269,'Tabla 1.1'!$D$10:$X$87,20,),R269),VLOOKUP($H269,'Tabla 1.1'!$D$10:$X$87,20,))),\"\")","v":""},{"$f":"IFERROR(IF(C269=\"Total general\",\"Números totales para todos los grupos de operadores y todas las autoridades competentes/autoridades de control/organismos de control\",IF(D269=\"\",CONCATENATE(\"Grupo de operadores \",VLOOKUP($H269,'Tabla 1.1'!$D$11:$Y$87,22,),R269),VLOOKUP($H269,'Tabla 1.1'!$D$11:$Y$87,21,))),\"\")","v":""},null,null,null,null,null,null,null,null,null,null,null,null,null,null,null,0]
[{"$f":"IFERROR(IF(C270=\"Total general\",\"2.\",IF(D270=\"\",CONCATENATE(VLOOKUP($H270,'Tabla 1.1'!$D$10:$X$87,20,),R270),VLOOKUP($H270,'Tabla 1.1'!$D$10:$X$87,20,))),\"\")","v":""},{"$f":"IFERROR(IF(C270=\"Total general\",\"Números totales para todos los grupos de operadores y todas las autoridades competentes/autoridades de control/organismos de control\",IF(D270=\"\",CONCATENATE(\"Grupo de operadores \",VLOOKUP($H270,'Tabla 1.1'!$D$11:$Y$87,22,),R270),VLOOKUP($H270,'Tabla 1.1'!$D$11:$Y$87,21,))),\"\")","v":""},null,null,null,null,null,null,null,null,null,null,null,null,null,null,null,0]
[{"$f":"IFERROR(IF(C271=\"Total general\",\"2.\",IF(D271=\"\",CONCATENATE(VLOOKUP($H271,'Tabla 1.1'!$D$10:$X$87,20,),R271),VLOOKUP($H271,'Tabla 1.1'!$D$10:$X$87,20,))),\"\")","v":""},{"$f":"IFERROR(IF(C271=\"Total general\",\"Números totales para todos los grupos de operadores y todas las autoridades competentes/autoridades de control/organismos de control\",IF(D271=\"\",CONCATENATE(\"Grupo de operadores \",VLOOKUP($H271,'Tabla 1.1'!$D$11:$Y$87,22,),R271),VLOOKUP($H271,'Tabla 1.1'!$D$11:$Y$87,21,))),\"\")","v":""},null,null,null,null,null,null,null,null,null,null,null,null,null,null,null,0]
[{"$f":"IFERROR(IF(C272=\"Total general\",\"2.\",IF(D272=\"\",CONCATENATE(VLOOKUP($H272,'Tabla 1.1'!$D$10:$X$87,20,),R272),VLOOKUP($H272,'Tabla 1.1'!$D$10:$X$87,20,))),\"\")","v":""},{"$f":"IFERROR(IF(C272=\"Total general\",\"Números totales para todos los grupos de operadores y todas las autoridades competentes/autoridades de control/organismos de control\",IF(D272=\"\",CONCATENATE(\"Grupo de operadores \",VLOOKUP($H272,'Tabla 1.1'!$D$11:$Y$87,22,),R272),VLOOKUP($H272,'Tabla 1.1'!$D$11:$Y$87,21,))),\"\")","v":""},null,null,null,null,null,null,null,null,null,null,null,null,null,null,null,0]
[{"$f":"IFERROR(IF(C273=\"Total general\",\"2.\",IF(D273=\"\",CONCATENATE(VLOOKUP($H273,'Tabla 1.1'!$D$10:$X$87,20,),R273),VLOOKUP($H273,'Tabla 1.1'!$D$10:$X$87,20,))),\"\")","v":""},{"$f":"IFERROR(IF(C273=\"Total general\",\"Números totales para todos los grupos de operadores y todas las autoridades competentes/autoridades de control/organismos de control\",IF(D273=\"\",CONCATENATE(\"Grupo de operadores \",VLOOKUP($H273,'Tabla 1.1'!$D$11:$Y$87,22,),R273),VLOOKUP($H273,'Tabla 1.1'!$D$11:$Y$87,21,))),\"\")","v":""},null,null,null,null,null,null,null,null,null,null,null,null,null,null,null,0]
[{"$f":"IFERROR(IF(C274=\"Total general\",\"2.\",IF(D274=\"\",CONCATENATE(VLOOKUP($H274,'Tabla 1.1'!$D$10:$X$87,20,),R274),VLOOKUP($H274,'Tabla 1.1'!$D$10:$X$87,20,))),\"\")","v":""},{"$f":"IFERROR(IF(C274=\"Total general\",\"Números totales para todos los grupos de operadores y todas las autoridades competentes/autoridades de control/organismos de control\",IF(D274=\"\",CONCATENATE(\"Grupo de operadores \",VLOOKUP($H274,'Tabla 1.1'!$D$11:$Y$87,22,),R274),VLOOKUP($H274,'Tabla 1.1'!$D$11:$Y$87,21,))),\"\")","v":""},null,null,null,null,null,null,null,null,null,null,null,null,null,null,null,0]
[{"$f":"IFERROR(IF(C275=\"Total general\",\"2.\",IF(D275=\"\",CONCATENATE(VLOOKUP($H275,'Tabla 1.1'!$D$10:$X$87,20,),R275),VLOOKUP($H275,'Tabla 1.1'!$D$10:$X$87,20,))),\"\")","v":""},{"$f":"IFERROR(IF(C275=\"Total general\",\"Números totales para todos los grupos de operadores y todas las autoridades competentes/autoridades de control/organismos de control\",IF(D275=\"\",CONCATENATE(\"Grupo de operadores \",VLOOKUP($H275,'Tabla 1.1'!$D$11:$Y$87,22,),R275),VLOOKUP($H275,'Tabla 1.1'!$D$11:$Y$87,21,))),\"\")","v":""},null,null,null,null,null,null,null,null,null,null,null,null,null,null,null,0]
[{"$f":"IFERROR(IF(C276=\"Total general\",\"2.\",IF(D276=\"\",CONCATENATE(VLOOKUP($H276,'Tabla 1.1'!$D$10:$X$87,20,),R276),VLOOKUP($H276,'Tabla 1.1'!$D$10:$X$87,20,))),\"\")","v":""},{"$f":"IFERROR(IF(C276=\"Total general\",\"Números totales para todos los grupos de operadores y todas las autoridades competentes/autoridades de control/organismos de control\",IF(D276=\"\",CONCATENATE(\"Grupo de operadores \",VLOOKUP($H276,'Tabla 1.1'!$D$11:$Y$87,22,),R276),VLOOKUP($H276,'Tabla 1.1'!$D$11:$Y$87,21,))),\"\")","v":""},null,null,null,null,null,null,null,null,null,null,null,null,null,null,null,0]
[{"$f":"IFERROR(IF(C277=\"Total general\",\"2.\",IF(D277=\"\",CONCATENATE(VLOOKUP($H277,'Tabla 1.1'!$D$10:$X$87,20,),R277),VLOOKUP($H277,'Tabla 1.1'!$D$10:$X$87,20,))),\"\")","v":""},{"$f":"IFERROR(IF(C277=\"Total general\",\"Números totales para todos los grupos de operadores y todas las autoridades competentes/autoridades de control/organismos de control\",IF(D277=\"\",CONCATENATE(\"Grupo de operadores \",VLOOKUP($H277,'Tabla 1.1'!$D$11:$Y$87,22,),R277),VLOOKUP($H277,'Tabla 1.1'!$D$11:$Y$87,21,))),\"\")","v":""},null,null,null,null,null,null,null,null,null,null,null,null,null,null,null,0]
[{"$f":"IFERROR(IF(C278=\"Total general\",\"2.\",IF(D278=\"\",CONCATENATE(VLOOKUP($H278,'Tabla 1.1'!$D$10:$X$87,20,),R278),VLOOKUP($H278,'Tabla 1.1'!$D$10:$X$87,20,))),\"\")","v":""},{"$f":"IFERROR(IF(C278=\"Total general\",\"Números totales para todos los grupos de operadores y todas las autoridades competentes/autoridades de control/organismos de control\",IF(D278=\"\",CONCATENATE(\"Grupo de operadores \",VLOOKUP($H278,'Tabla 1.1'!$D$11:$Y$87,22,),R278),VLOOKUP($H278,'Tabla 1.1'!$D$11:$Y$87,21,))),\"\")","v":""},null,null,null,null,null,null,null,null,null,null,null,null,null,null,null,0]
[{"$f":"IFERROR(IF(C279=\"Total general\",\"2.\",IF(D279=\"\",CONCATENATE(VLOOKUP($H279,'Tabla 1.1'!$D$10:$X$87,20,),R279),VLOOKUP($H279,'Tabla 1.1'!$D$10:$X$87,20,))),\"\")","v":""},{"$f":"IFERROR(IF(C279=\"Total general\",\"Números totales para todos los grupos de operadores y todas las autoridades competentes/autoridades de control/organismos de control\",IF(D279=\"\",CONCATENATE(\"Grupo de operadores \",VLOOKUP($H279,'Tabla 1.1'!$D$11:$Y$87,22,),R279),VLOOKUP($H279,'Tabla 1.1'!$D$11:$Y$87,21,))),\"\")","v":""},null,null,null,null,null,null,null,null,null,null,null,null,null,null,null,0]
[{"$f":"IFERROR(IF(C280=\"Total general\",\"2.\",IF(D280=\"\",CONCATENATE(VLOOKUP($H280,'Tabla 1.1'!$D$10:$X$87,20,),R280),VLOOKUP($H280,'Tabla 1.1'!$D$10:$X$87,20,))),\"\")","v":""},{"$f":"IFERROR(IF(C280=\"Total general\",\"Números totales para todos los grupos de operadores y todas las autoridades competentes/autoridades de control/organismos de control\",IF(D280=\"\",CONCATENATE(\"Grupo de operadores \",VLOOKUP($H280,'Tabla 1.1'!$D$11:$Y$87,22,),R280),VLOOKUP($H280,'Tabla 1.1'!$D$11:$Y$87,21,))),\"\")","v":""},null,null,null,null,null,null,null,null,null,null,null,null,null,null,null,0]
[{"$f":"IFERROR(IF(C281=\"Total general\",\"2.\",IF(D281=\"\",CONCATENATE(VLOOKUP($H281,'Tabla 1.1'!$D$10:$X$87,20,),R281),VLOOKUP($H281,'Tabla 1.1'!$D$10:$X$87,20,))),\"\")","v":""},{"$f":"IFERROR(IF(C281=\"Total general\",\"Números totales para todos los grupos de operadores y todas las autoridades competentes/autoridades de control/organismos de control\",IF(D281=\"\",CONCATENATE(\"Grupo de operadores \",VLOOKUP($H281,'Tabla 1.1'!$D$11:$Y$87,22,),R281),VLOOKUP($H281,'Tabla 1.1'!$D$11:$Y$87,21,))),\"\")","v":""},null,null,null,null,null,null,null,null,null,null,null,null,null,null,null,0]
[{"$f":"IFERROR(IF(C282=\"Total general\",\"2.\",IF(D282=\"\",CONCATENATE(VLOOKUP($H282,'Tabla 1.1'!$D$10:$X$87,20,),R282),VLOOKUP($H282,'Tabla 1.1'!$D$10:$X$87,20,))),\"\")","v":""},{"$f":"IFERROR(IF(C282=\"Total general\",\"Números totales para todos los grupos de operadores y todas las autoridades competentes/autoridades de control/organismos de control\",IF(D282=\"\",CONCATENATE(\"Grupo de operadores \",VLOOKUP($H282,'Tabla 1.1'!$D$11:$Y$87,22,),R282),VLOOKUP($H282,'Tabla 1.1'!$D$11:$Y$87,21,))),\"\")","v":""},null,null,null,null,null,null,null,null,null,null,null,null,null,null,null,0]
[{"$f":"IFERROR(IF(C283=\"Total general\",\"2.\",IF(D283=\"\",CONCATENATE(VLOOKUP($H283,'Tabla 1.1'!$D$10:$X$87,20,),R283),VLOOKUP($H283,'Tabla 1.1'!$D$10:$X$87,20,))),\"\")","v":""},{"$f":"IFERROR(IF(C283=\"Total general\",\"Números totales para todos los grupos de operadores y todas las autoridades competentes/autoridades de control/organismos de control\",IF(D283=\"\",CONCATENATE(\"Grupo de operadores \",VLOOKUP($H283,'Tabla 1.1'!$D$11:$Y$87,22,),R283),VLOOKUP($H283,'Tabla 1.1'!$D$11:$Y$87,21,))),\"\")","v":""},null,null,null,null,null,null,null,null,null,null,null,null,null,null,null,0]
[{"$f":"IFERROR(IF(C284=\"Total general\",\"2.\",IF(D284=\"\",CONCATENATE(VLOOKUP($H284,'Tabla 1.1'!$D$10:$X$87,20,),R284),VLOOKUP($H284,'Tabla 1.1'!$D$10:$X$87,20,))),\"\")","v":""},{"$f":"IFERROR(IF(C284=\"Total general\",\"Números totales para todos los grupos de operadores y todas las autoridades competentes/autoridades de control/organismos de control\",IF(D284=\"\",CONCATENATE(\"Grupo de operadores \",VLOOKUP($H284,'Tabla 1.1'!$D$11:$Y$87,22,),R284),VLOOKUP($H284,'Tabla 1.1'!$D$11:$Y$87,21,))),\"\")","v":""},null,null,null,null,null,null,null,null,null,null,null,null,null,null,null,0]
[{"$f":"IFERROR(IF(C285=\"Total general\",\"2.\",IF(D285=\"\",CONCATENATE(VLOOKUP($H285,'Tabla 1.1'!$D$10:$X$87,20,),R285),VLOOKUP($H285,'Tabla 1.1'!$D$10:$X$87,20,))),\"\")","v":""},{"$f":"IFERROR(IF(C285=\"Total general\",\"Números totales para todos los grupos de operadores y todas las autoridades competentes/autoridades de control/organismos de control\",IF(D285=\"\",CONCATENATE(\"Grupo de operadores \",VLOOKUP($H285,'Tabla 1.1'!$D$11:$Y$87,22,),R285),VLOOKUP($H285,'Tabla 1.1'!$D$11:$Y$87,21,))),\"\")","v":""},null,null,null,null,null,null,null,null,null,null,null,null,null,null,null,0]
[{"$f":"IFERROR(IF(C286=\"Total general\",\"2.\",IF(D286=\"\",CONCATENATE(VLOOKUP($H286,'Tabla 1.1'!$D$10:$X$87,20,),R286),VLOOKUP($H286,'Tabla 1.1'!$D$10:$X$87,20,))),\"\")","v":""},{"$f":"IFERROR(IF(C286=\"Total general\",\"Números totales para todos los grupos de operadores y todas las autoridades competentes/autoridades de control/organismos de control\",IF(D286=\"\",CONCATENATE(\"Grupo de operadores \",VLOOKUP($H286,'Tabla 1.1'!$D$11:$Y$87,22,),R286),VLOOKUP($H286,'Tabla 1.1'!$D$11:$Y$87,21,))),\"\")","v":""},null,null,null,null,null,null,null,null,null,null,null,null,null,null,null,0]
[{"$f":"IFERROR(IF(C287=\"Total general\",\"2.\",IF(D287=\"\",CONCATENATE(VLOOKUP($H287,'Tabla 1.1'!$D$10:$X$87,20,),R287),VLOOKUP($H287,'Tabla 1.1'!$D$10:$X$87,20,))),\"\")","v":""},{"$f":"IFERROR(IF(C287=\"Total general\",\"Números totales para todos los grupos de operadores y todas las autoridades competentes/autoridades de control/organismos de control\",IF(D287=\"\",CONCATENATE(\"Grupo de operadores \",VLOOKUP($H287,'Tabla 1.1'!$D$11:$Y$87,22,),R287),VLOOKUP($H287,'Tabla 1.1'!$D$11:$Y$87,21,))),\"\")","v":""},null,null,null,null,null,null,null,null,null,null,null,null,null,null,null,0]
[{"$f":"IFERROR(IF(C288=\"Total general\",\"2.\",IF(D288=\"\",CONCATENATE(VLOOKUP($H288,'Tabla 1.1'!$D$10:$X$87,20,),R288),VLOOKUP($H288,'Tabla 1.1'!$D$10:$X$87,20,))),\"\")","v":""},{"$f":"IFERROR(IF(C288=\"Total general\",\"Números totales para todos los grupos de operadores y todas las autoridades competentes/autoridades de control/organismos de control\",IF(D288=\"\",CONCATENATE(\"Grupo de operadores \",VLOOKUP($H288,'Tabla 1.1'!$D$11:$Y$87,22,),R288),VLOOKUP($H288,'Tabla 1.1'!$D$11:$Y$87,21,))),\"\")","v":""},null,null,null,null,null,null,null,null,null,null,null,null,null,null,null,0]
[{"$f":"IFERROR(IF(C289=\"Total general\",\"2.\",IF(D289=\"\",CONCATENATE(VLOOKUP($H289,'Tabla 1.1'!$D$10:$X$87,20,),R289),VLOOKUP($H289,'Tabla 1.1'!$D$10:$X$87,20,))),\"\")","v":""},{"$f":"IFERROR(IF(C289=\"Total general\",\"Números totales para todos los grupos de operadores y todas las autoridades competentes/autoridades de control/organismos de control\",IF(D289=\"\",CONCATENATE(\"Grupo de operadores \",VLOOKUP($H289,'Tabla 1.1'!$D$11:$Y$87,22,),R289),VLOOKUP($H289,'Tabla 1.1'!$D$11:$Y$87,21,))),\"\")","v":""},null,null,null,null,null,null,null,null,null,null,null,null,null,null,null,0]
[{"$f":"IFERROR(IF(C290=\"Total general\",\"2.\",IF(D290=\"\",CONCATENATE(VLOOKUP($H290,'Tabla 1.1'!$D$10:$X$87,20,),R290),VLOOKUP($H290,'Tabla 1.1'!$D$10:$X$87,20,))),\"\")","v":""},{"$f":"IFERROR(IF(C290=\"Total general\",\"Números totales para todos los grupos de operadores y todas las autoridades competentes/autoridades de control/organismos de control\",IF(D290=\"\",CONCATENATE(\"Grupo de operadores \",VLOOKUP($H290,'Tabla 1.1'!$D$11:$Y$87,22,),R290),VLOOKUP($H290,'Tabla 1.1'!$D$11:$Y$87,21,))),\"\")","v":""},null,null,null,null,null,null,null,null,null,null,null,null,null,null,null,0]
[{"$f":"IFERROR(IF(C291=\"Total general\",\"2.\",IF(D291=\"\",CONCATENATE(VLOOKUP($H291,'Tabla 1.1'!$D$10:$X$87,20,),R291),VLOOKUP($H291,'Tabla 1.1'!$D$10:$X$87,20,))),\"\")","v":""},{"$f":"IFERROR(IF(C291=\"Total general\",\"Números totales para todos los grupos de operadores y todas las autoridades competentes/autoridades de control/organismos de control\",IF(D291=\"\",CONCATENATE(\"Grupo de operadores \",VLOOKUP($H291,'Tabla 1.1'!$D$11:$Y$87,22,),R291),VLOOKUP($H291,'Tabla 1.1'!$D$11:$Y$87,21,))),\"\")","v":""},null,null,null,null,null,null,null,null,null,null,null,null,null,null,null,0]
[{"$f":"IFERROR(IF(C292=\"Total general\",\"2.\",IF(D292=\"\",CONCATENATE(VLOOKUP($H292,'Tabla 1.1'!$D$10:$X$87,20,),R292),VLOOKUP($H292,'Tabla 1.1'!$D$10:$X$87,20,))),\"\")","v":""},{"$f":"IFERROR(IF(C292=\"Total general\",\"Números totales para todos los grupos de operadores y todas las autoridades competentes/autoridades de control/organismos de control\",IF(D292=\"\",CONCATENATE(\"Grupo de operadores \",VLOOKUP($H292,'Tabla 1.1'!$D$11:$Y$87,22,),R292),VLOOKUP($H292,'Tabla 1.1'!$D$11:$Y$87,21,))),\"\")","v":""},null,null,null,null,null,null,null,null,null,null,null,null,null,null,null,0]
[{"$f":"IFERROR(IF(C293=\"Total general\",\"2.\",IF(D293=\"\",CONCATENATE(VLOOKUP($H293,'Tabla 1.1'!$D$10:$X$87,20,),R293),VLOOKUP($H293,'Tabla 1.1'!$D$10:$X$87,20,))),\"\")","v":""},{"$f":"IFERROR(IF(C293=\"Total general\",\"Números totales para todos los grupos de operadores y todas las autoridades competentes/autoridades de control/organismos de control\",IF(D293=\"\",CONCATENATE(\"Grupo de operadores \",VLOOKUP($H293,'Tabla 1.1'!$D$11:$Y$87,22,),R293),VLOOKUP($H293,'Tabla 1.1'!$D$11:$Y$87,21,))),\"\")","v":""},null,null,null,null,null,null,null,null,null,null,null,null,null,null,null,0]
[{"$f":"IFERROR(IF(C294=\"Total general\",\"2.\",IF(D294=\"\",CONCATENATE(VLOOKUP($H294,'Tabla 1.1'!$D$10:$X$87,20,),R294),VLOOKUP($H294,'Tabla 1.1'!$D$10:$X$87,20,))),\"\")","v":""},{"$f":"IFERROR(IF(C294=\"Total general\",\"Números totales para todos los grupos de operadores y todas las autoridades competentes/autoridades de control/organismos de control\",IF(D294=\"\",CONCATENATE(\"Grupo de operadores \",VLOOKUP($H294,'Tabla 1.1'!$D$11:$Y$87,22,),R294),VLOOKUP($H294,'Tabla 1.1'!$D$11:$Y$87,21,))),\"\")","v":""},null,null,null,null,null,null,null,null,null,null,null,null,null,null,null,0]
[{"$f":"IFERROR(IF(C295=\"Total general\",\"2.\",IF(D295=\"\",CONCATENATE(VLOOKUP($H295,'Tabla 1.1'!$D$10:$X$87,20,),R295),VLOOKUP($H295,'Tabla 1.1'!$D$10:$X$87,20,))),\"\")","v":""},{"$f":"IFERROR(IF(C295=\"Total general\",\"Números totales para todos los grupos de operadores y todas las autoridades competentes/autoridades de control/organismos de control\",IF(D295=\"\",CONCATENATE(\"Grupo de operadores \",VLOOKUP($H295,'Tabla 1.1'!$D$11:$Y$87,22,),R295),VLOOKUP($H295,'Tabla 1.1'!$D$11:$Y$87,21,))),\"\")","v":""},null,null,null,null,null,null,null,null,null,null,null,null,null,null,null,0]
[{"$f":"IFERROR(IF(C296=\"Total general\",\"2.\",IF(D296=\"\",CONCATENATE(VLOOKUP($H296,'Tabla 1.1'!$D$10:$X$87,20,),R296),VLOOKUP($H296,'Tabla 1.1'!$D$10:$X$87,20,))),\"\")","v":""},{"$f":"IFERROR(IF(C296=\"Total general\",\"Números totales para todos los grupos de operadores y todas las autoridades competentes/autoridades de control/organismos de control\",IF(D296=\"\",CONCATENATE(\"Grupo de operadores \",VLOOKUP($H296,'Tabla 1.1'!$D$11:$Y$87,22,),R296),VLOOKUP($H296,'Tabla 1.1'!$D$11:$Y$87,21,))),\"\")","v":""},null,null,null,null,null,null,null,null,null,null,null,null,null,null,null,0]
[{"$f":"IFERROR(IF(C297=\"Total general\",\"2.\",IF(D297=\"\",CONCATENATE(VLOOKUP($H297,'Tabla 1.1'!$D$10:$X$87,20,),R297),VLOOKUP($H297,'Tabla 1.1'!$D$10:$X$87,20,))),\"\")","v":""},{"$f":"IFERROR(IF(C297=\"Total general\",\"Números totales para todos los grupos de operadores y todas las autoridades competentes/autoridades de control/organismos de control\",IF(D297=\"\",CONCATENATE(\"Grupo de operadores \",VLOOKUP($H297,'Tabla 1.1'!$D$11:$Y$87,22,),R297),VLOOKUP($H297,'Tabla 1.1'!$D$11:$Y$87,21,))),\"\")","v":""},null,null,null,null,null,null,null,null,null,null,null,null,null,null,null,0]
[{"$f":"IFERROR(IF(C298=\"Total general\",\"2.\",IF(D298=\"\",CONCATENATE(VLOOKUP($H298,'Tabla 1.1'!$D$10:$X$87,20,),R298),VLOOKUP($H298,'Tabla 1.1'!$D$10:$X$87,20,))),\"\")","v":""},{"$f":"IFERROR(IF(C298=\"Total general\",\"Números totales para todos los grupos de operadores y todas las autoridades competentes/autoridades de control/organismos de control\",IF(D298=\"\",CONCATENATE(\"Grupo de operadores \",VLOOKUP($H298,'Tabla 1.1'!$D$11:$Y$87,22,),R298),VLOOKUP($H298,'Tabla 1.1'!$D$11:$Y$87,21,))),\"\")","v":""},null,null,null,null,null,null,null,null,null,null,null,null,null,null,null,0]
[{"$f":"IFERROR(IF(C299=\"Total general\",\"2.\",IF(D299=\"\",CONCATENATE(VLOOKUP($H299,'Tabla 1.1'!$D$10:$X$87,20,),R299),VLOOKUP($H299,'Tabla 1.1'!$D$10:$X$87,20,))),\"\")","v":""},{"$f":"IFERROR(IF(C299=\"Total general\",\"Números totales para todos los grupos de operadores y todas las autoridades competentes/autoridades de control/organismos de control\",IF(D299=\"\",CONCATENATE(\"Grupo de operadores \",VLOOKUP($H299,'Tabla 1.1'!$D$11:$Y$87,22,),R299),VLOOKUP($H299,'Tabla 1.1'!$D$11:$Y$87,21,))),\"\")","v":""},null,null,null,null,null,null,null,null,null,null,null,null,null,null,null,0]
[{"$f":"IFERROR(IF(C300=\"Total general\",\"2.\",IF(D300=\"\",CONCATENATE(VLOOKUP($H300,'Tabla 1.1'!$D$10:$X$87,20,),R300),VLOOKUP($H300,'Tabla 1.1'!$D$10:$X$87,20,))),\"\")","v":""},{"$f":"IFERROR(IF(C300=\"Total general\",\"Números totales para todos los grupos de operadores y todas las autoridades competentes/autoridades de control/organismos de control\",IF(D300=\"\",CONCATENATE(\"Grupo de operadores \",VLOOKUP($H300,'Tabla 1.1'!$D$11:$Y$87,22,),R300),VLOOKUP($H300,'Tabla 1.1'!$D$11:$Y$87,21,))),\"\")","v":""},null,null,null,null,null,null,null,null,null,null,null,null,null,null,null,0]
[{"$f":"IFERROR(IF(C301=\"Total general\",\"2.\",IF(D301=\"\",CONCATENATE(VLOOKUP($H301,'Tabla 1.1'!$D$10:$X$87,20,),R301),VLOOKUP($H301,'Tabla 1.1'!$D$10:$X$87,20,))),\"\")","v":""},{"$f":"IFERROR(IF(C301=\"Total general\",\"Números totales para todos los grupos de operadores y todas las autoridades competentes/autoridades de control/organismos de control\",IF(D301=\"\",CONCATENATE(\"Grupo de operadores \",VLOOKUP($H301,'Tabla 1.1'!$D$11:$Y$87,22,),R301),VLOOKUP($H301,'Tabla 1.1'!$D$11:$Y$87,21,))),\"\")","v":""},null,null,null,null,null,null,null,null,null,null,null,null,null,null,null,0]
[{"$f":"IFERROR(IF(C302=\"Total general\",\"2.\",IF(D302=\"\",CONCATENATE(VLOOKUP($H302,'Tabla 1.1'!$D$10:$X$87,20,),R302),VLOOKUP($H302,'Tabla 1.1'!$D$10:$X$87,20,))),\"\")","v":""},{"$f":"IFERROR(IF(C302=\"Total general\",\"Números totales para todos los grupos de operadores y todas las autoridades competentes/autoridades de control/organismos de control\",IF(D302=\"\",CONCATENATE(\"Grupo de operadores \",VLOOKUP($H302,'Tabla 1.1'!$D$11:$Y$87,22,),R302),VLOOKUP($H302,'Tabla 1.1'!$D$11:$Y$87,21,))),\"\")","v":""},null,null,null,null,null,null,null,null,null,null,null,null,null,null,null,0]
[{"$f":"IFERROR(IF(C303=\"Total general\",\"2.\",IF(D303=\"\",CONCATENATE(VLOOKUP($H303,'Tabla 1.1'!$D$10:$X$87,20,),R303),VLOOKUP($H303,'Tabla 1.1'!$D$10:$X$87,20,))),\"\")","v":""},{"$f":"IFERROR(IF(C303=\"Total general\",\"Números totales para todos los grupos de operadores y todas las autoridades competentes/autoridades de control/organismos de control\",IF(D303=\"\",CONCATENATE(\"Grupo de operadores \",VLOOKUP($H303,'Tabla 1.1'!$D$11:$Y$87,22,),R303),VLOOKUP($H303,'Tabla 1.1'!$D$11:$Y$87,21,))),\"\")","v":""},null,null,null,null,null,null,null,null,null,null,null,null,null,null,null,0]

{"sheet":"Tabla 2.1","index":3,"n_rows":90,"n_cols":11,"rows_kept":90,"cut":false,"hidden":false,"merged":[[0,0,0,10],[4,2,5,2],[4,3,4,10]]}
["Tabla 2: INCUMPLIMIENTOS\nDatos por autoridad competente/autoridad de control/organismo de control"]
[]
["1. Tipo y número de casos de incumplimientos graves y críticos demostrados"]
[]
[null,null,"Número de código de la autoridad competente/autoridad de control/organismo de control","Tipo de casos por tipo de incumplimientos demostrados en los controles oficiales realizados"]
[null,null,null,"Normas de producción generales","Normas de producción específicas","Sustancias o productos no autorizados","Excepciones","Documentos y registros","Normas para los grupos de operadores","Etiquetado","Otros"]
[null,null,"Año actual","TRUE"]
[]
[null,null,"Etiquetas de fila","Normas de producción generales","Normas de producción específicas","Sustancias o productos no autorizados","Excepciones","Documentos y registros","Normas para los grupos de operadores","Etiquetado","Otros"]
[{"$f":"IFERROR(IF(C10=\"Total general\",\"1.\",VLOOKUP($C10,'Tabla 1.1'!$D$10:$X$87,17,)),\"\")","v":"1."},{"$f":"IF(C10=\"Total general\",\"Casos de incumplimiento demostrados-TOTAL\",IF(C10=\"\",\"\",CONCATENATE(\"Casos demostrados por la autoridad competente/autoridad de control/organismo de control \",A10)))","v":"Casos de incumplimiento demostrados-TOTAL"},"Total general",812,238,439,506,534,0,60,54]
[{"$f":"IFERROR(IF(C11=\" \",\"1.\",VLOOKUP($C11,'Tabla 1.1'!$D$10:$X$87,17,)),\"\")","v":"1.a."},{"$f":"IF(C11=\" \",\"Casos de incumplimiento demostrados-TOTAL\",IF(C11=\"\",\"\",CONCATENATE(\"Casos demostrados por la autoridad competente/autoridad de control/organismo de control \",A11)))","v":"Casos demostrados por la autoridad competente/autoridad de control/organismo de control 1.a."},"ES-ECO-001-AN",44,22,51,46,15,0,1,0]
[{"$f":"IFERROR(IF(C12=\" \",\"1.\",VLOOKUP($C12,'Tabla 1.1'!$D$10:$X$87,17,)),\"\")","v":"1.b."},"Casos demostrados por la autoridad competente/autoridad de control/organismo de control 1.b.","ES-ECO-001-CL",6,1,1,1,0,0,0,0]
[{"$f":"IFERROR(IF(C13=\" \",\"1.\",VLOOKUP($C13,'Tabla 1.1'!$D$10:$X$87,17,)),\"\")","v":"1.c."},"Casos demostrados por la autoridad competente/autoridad de control/organismo de control 1.c.","ES-ECO-001-CM",38,0,10,17,5,0,0,0]
[{"$f":"IFERROR(IF(C14=\" \",\"1.\",VLOOKUP($C14,'Tabla 1.1'!$D$10:$X$87,17,)),\"\")","v":"1.d."},{"$f":"IF(C14=\" \",\"Casos de incumplimiento demostrados-TOTAL\",IF(C14=\"\",\"\",CONCATENATE(\"Casos demostrados por la autoridad competente/autoridad de control/organismo de control \",A14)))","v":"Casos demostrados por la autoridad competente/autoridad de control/organismo de control 1.d."},"ES-ECO-002-AN",71,0,36,15,42,0,3,4]
[{"$f":"IFERROR(IF(C15=\" \",\"1.\",VLOOKUP($C15,'Tabla 1.1'!$D$10:$X$87,17,)),\"\")","v":"1.e."},"Casos demostrados por la autoridad competente/autoridad de control/organismo de control 1.e.","ES-ECO-002-CL",1,0,3,0,0,0,0,0]
[{"$f":"IFERROR(IF(C16=\" \",\"1.\",VLOOKUP($C16,'Tabla 1.1'!$D$10:$X$87,17,)),\"\")","v":"1.f."},"Casos demostrados por la autoridad competente/autoridad de control/organismo de control 1.f.","ES-ECO-002-CM",55,0,26,37,64,0,0,1]
[{"$f":"IFERROR(IF(C17=\" \",\"1.\",VLOOKUP($C17,'Tabla 1.1'!$D$10:$X$87,17,)),\"\")","v":"1.g."},"Casos demostrados por la autoridad competente/autoridad de control/organismo de control 1.g.","ES-ECO-003-AN",85,22,61,37,9,0,3,12]
[{"$f":"IFERROR(IF(C18=\" \",\"1.\",VLOOKUP($C18,'Tabla 1.1'!$D$10:$X$87,17,)),\"\")","v":"1.h."},"Casos demostrados por la autoridad competente/autoridad de control/organismo de control 1.h.","ES-ECO-003-CM",0,0,0,0,0,0,0,0]
[{"$f":"IFERROR(IF(C19=\" \",\"1.\",VLOOKUP($C19,'Tabla 1.1'!$D$10:$X$87,17,)),\"\")","v":"1.i."},"Casos demostrados por la autoridad competente/autoridad de control/organismo de control 1.i.","ES-ECO-006-AR",102,4,42,37,26,0,1,0]
[{"$f":"IFERROR(IF(C20=\" \",\"1.\",VLOOKUP($C20,'Tabla 1.1'!$D$10:$X$87,17,)),\"\")","v":"1.j."},"Casos demostrados por la autoridad competente/autoridad de control/organismo de control 1.j.","ES-ECO-010-AN",15,2,0,6,7,0,0,1]
[{"$f":"IFERROR(IF(C21=\" \",\"1.\",VLOOKUP($C21,'Tabla 1.1'!$D$10:$X$87,17,)),\"\")","v":"1.k."},"Casos demostrados por la autoridad competente/autoridad de control/organismo de control 1.k.","ES-ECO-010-CL",0,0,0,0,0,0,0,0]
[{"$f":"IFERROR(IF(C22=\" \",\"1.\",VLOOKUP($C22,'Tabla 1.1'!$D$10:$X$87,17,)),\"\")","v":"1.l."},"Casos demostrados por la autoridad competente/autoridad de control/organismo de control 1.l.","ES-ECO-011-AN",1,0,0,0,0,0,0,0]
[{"$f":"IFERROR(IF(C23=\" \",\"1.\",VLOOKUP($C23,'Tabla 1.1'!$D$10:$X$87,17,)),\"\")","v":"1.m."},"Casos demostrados por la autoridad competente/autoridad de control/organismo de control 1.m.","ES-ECO-011-CL",0,0,0,0,0,0,0,0]
[{"$f":"IFERROR(IF(C24=\" \",\"1.\",VLOOKUP($C24,'Tabla 1.1'!$D$10:$X$87,17,)),\"\")","v":"1.n."},"Casos demostrados por la autoridad competente/autoridad de control/organismo de control 1.n.","ES-ECO-011-CM",0,0,0,0,0,0,0,0]
[{"$f":"IFERROR(IF(C25=\" \",\"1.\",VLOOKUP($C25,'Tabla 1.1'!$D$10:$X$87,17,)),\"\")","v":"1.o."},"Casos demostrados por la autoridad competente/autoridad de control/organismo de control 1.o.","ES-ECO-012-AS",3,11,8,0,16,0,1,1]
[{"$f":"IFERROR(IF(C26=\" \",\"1.\",VLOOKUP($C26,'Tabla 1.1'!$D$10:$X$87,17,)),\"\")","v":"1.p."},"Casos demostrados por la autoridad competente/autoridad de control/organismo de control 1.p.","ES-ECO-013-IB",12,4,5,9,42,0,1,0]
[{"$f":"IFERROR(IF(C27=\" \",\"1.\",VLOOKUP($C27,'Tabla 1.1'!$D$10:$X$87,17,)),\"\")","v":"1.q."},"Casos demostrados por la autoridad competente/autoridad de control/organismo de control 1.q.","ES-ECO-014-IC",0,3,18,4,39,0,2,30]
[{"$f":"IFERROR(IF(C28=\" \",\"1.\",VLOOKUP($C28,'Tabla 1.1'!$D$10:$X$87,17,)),\"\")","v":"1.r."},"Casos demostrados por la autoridad competente/autoridad de control/organismo de control 1.r.","ES-ECO-015-CN",2,1,0,0,1,0,0,0]
[{"$f":"IFERROR(IF(C29=\" \",\"1.\",VLOOKUP($C29,'Tabla 1.1'!$D$10:$X$87,17,)),\"\")","v":"1.s."},"Casos demostrados por la autoridad competente/autoridad de control/organismo de control 1.s.","ES-ECO-016-CL",2,0,4,0,0,0,0,0]
[{"$f":"IFERROR(IF(C30=\" \",\"1.\",VLOOKUP($C30,'Tabla 1.1'!$D$10:$X$87,17,)),\"\")","v":"1.t."},"Casos demostrados por la autoridad competente/autoridad de control/organismo de control 1.t.","ES-ECO-019-CT",21,27,19,2,3,0,11,3]
[{"$f":"IFERROR(IF(C31=\" \",\"1.\",VLOOKUP($C31,'Tabla 1.1'!$D$10:$X$87,17,)),\"\")","v":"1.u."},"Casos demostrados por la autoridad competente/autoridad de control/organismo de control 1.u.","ES-ECO-020-CV",250,69,49,112,132,0,29,0]
[{"$f":"IFERROR(IF(C32=\" \",\"1.\",VLOOKUP($C32,'Tabla 1.1'!$D$10:$X$87,17,)),\"\")","v":"1.v."},"Casos demostrados por la autoridad competente/autoridad de control/organismo de control 1.v.","ES-ECO-021-EX",37,17,21,47,70,0,2,0]
[{"$f":"IFERROR(IF(C33=\" \",\"1.\",VLOOKUP($C33,'Tabla 1.1'!$D$10:$X$87,17,)),\"\")","v":"1.w."},"Casos demostrados por la autoridad competente/autoridad de control/organismo de control 1.w.","ES-ECO-022-GA",9,4,13,3,3,0,1,0]
[{"$f":"IFERROR(IF(C34=\" \",\"1.\",VLOOKUP($C34,'Tabla 1.1'!$D$10:$X$87,17,)),\"\")","v":"1.x."},"Casos demostrados por la autoridad competente/autoridad de control/organismo de control 1.x.","ES-ECO-023-MA",14,3,3,4,12,0,2,2]
[{"$f":"IFERROR(IF(C35=\" \",\"1.\",VLOOKUP($C35,'Tabla 1.1'!$D$10:$X$87,17,)),\"\")","v":"1.y."},"Casos demostrados por la autoridad competente/autoridad de control/organismo de control 1.y.","ES-ECO-024-MU",6,1,26,0,17,0,2,0]
[{"$f":"IFERROR(IF(C36=\" \",\"1.\",VLOOKUP($C36,'Tabla 1.1'!$D$10:$X$87,17,)),\"\")","v":"1.z."},"Casos demostrados por la autoridad competente/autoridad de control/organismo de control 1.z.","ES-ECO-025-NA",16,6,10,10,0,0,0,0]
[{"$f":"IFERROR(IF(C37=\" \",\"1.\",VLOOKUP($C37,'Tabla 1.1'!$D$10:$X$87,17,)),\"\")","v":"1.a.a."},"Casos demostrados por la autoridad competente/autoridad de control/organismo de control 1.a.a.","ES-ECO-026-VAS",3,8,2,0,3,0,0,0]
[{"$f":"IFERROR(IF(C38=\" \",\"1.\",VLOOKUP($C38,'Tabla 1.1'!$D$10:$X$87,17,)),\"\")","v":"1.a.b."},"Casos demostrados por la autoridad competente/autoridad de control/organismo de control 1.a.b.","ES-ECO-028-AN",0,1,1,4,0,0,0,0]
[{"$f":"IFERROR(IF(C39=\" \",\"1.\",VLOOKUP($C39,'Tabla 1.1'!$D$10:$X$87,17,)),\"\")","v":"1.a.c."},"Casos demostrados por la autoridad competente/autoridad de control/organismo de control 1.a.c.","ES-ECO-028-CL",0,0,0,0,0,0,0,0]
[{"$f":"IFERROR(IF(C40=\" \",\"1.\",VLOOKUP($C40,'Tabla 1.1'!$D$10:$X$87,17,)),\"\")","v":"1.a.d."},"Casos demostrados por la autoridad competente/autoridad de control/organismo de control 1.a.d.","ES-ECO-028-CM",1,23,14,33,1,0,0,0]
[{"$f":"IFERROR(IF(C41=\" \",\"1.\",VLOOKUP($C41,'Tabla 1.1'!$D$10:$X$87,17,)),\"\")","v":"1.a.e."},"Casos demostrados por la autoridad competente/autoridad de control/organismo de control 1.a.e.","ES-ECO-029-AN",0,0,0,0,0,0,0,0]
[{"$f":"IFERROR(IF(C42=\" \",\"1.\",VLOOKUP($C42,'Tabla 1.1'!$D$10:$X$87,17,)),\"\")","v":"1.a.f."},"Casos demostrados por la autoridad competente/autoridad de control/organismo de control 1.a.f.","ES-ECO-029-CL",0,0,0,0,0,0,0,0]
[{"$f":"IFERROR(IF(C43=\" \",\"1.\",VLOOKUP($C43,'Tabla 1.1'!$D$10:$X$87,17,)),\"\")","v":"1.a.g."},"Casos demostrados por la autoridad competente/autoridad de control/organismo de control 1.a.g.","ES-ECO-029-CM",0,0,0,0,0,0,0,0]
[{"$f":"IFERROR(IF(C44=\" \",\"1.\",VLOOKUP($C44,'Tabla 1.1'!$D$10:$X$87,17,)),\"\")","v":"1.a.h."},"Casos demostrados por la autoridad competente/autoridad de control/organismo de control 1.a.h.","ES-ECO-031-CL",1,0,1,0,3,0,0,0]
[{"$f":"IFERROR(IF(C45=\" \",\"1.\",VLOOKUP($C45,'Tabla 1.1'!$D$10:$X$87,17,)),\"\")","v":"1.a.i."},"Casos demostrados por la autoridad competente/autoridad de control/organismo de control 1.a.i.","ES-ECO-032-AN",0,0,0,0,0,0,0,0]
[{"$f":"IFERROR(IF(C46=\" \",\"1.\",VLOOKUP($C46,'Tabla 1.1'!$D$10:$X$87,17,)),\"\")","v":"1.a.j."},"Casos demostrados por la autoridad competente/autoridad de control/organismo de control 1.a.j.","ES-ECO-032-CL",2,0,0,0,0,0,0,0]
[{"$f":"IFERROR(IF(C47=\" \",\"1.\",VLOOKUP($C47,'Tabla 1.1'!$D$10:$X$87,17,)),\"\")","v":"1.a.k."},"Casos demostrados por la autoridad competente/autoridad de control/organismo de control 1.a.k.","ES-ECO-033-CL",0,1,0,0,0,0,0,0]
[{"$f":"IFERROR(IF(C48=\" \",\"1.\",VLOOKUP($C48,'Tabla 1.1'!$D$10:$X$87,17,)),\"\")","v":"1.a.l."},"Casos demostrados por la autoridad competente/autoridad de control/organismo de control 1.a.l.","ES-ECO-033-CM",11,4,2,22,16,0,0,0]
[{"$f":"IFERROR(IF(C49=\" \",\"1.\",VLOOKUP($C49,'Tabla 1.1'!$D$10:$X$87,17,)),\"\")","v":"1.a.m."},"Casos demostrados por la autoridad competente/autoridad de control/organismo de control 1.a.m.","ES-ECO-034-AN",3,0,2,0,1,0,0,0]
[{"$f":"IFERROR(IF(C50=\" \",\"1.\",VLOOKUP($C50,'Tabla 1.1'!$D$10:$X$87,17,)),\"\")","v":"1.a.n."},"Casos demostrados por la autoridad competente/autoridad de control/organismo de control 1.a.n.","ES-ECO-034-CM",0,1,8,60,4,0,0,0]
[{"$f":"IFERROR(IF(C51=\" \",\"1.\",VLOOKUP($C51,'Tabla 1.1'!$D$10:$X$87,17,)),\"\")","v":"1.a.o."},"Casos demostrados por la autoridad competente/autoridad de control/organismo de control 1.a.o.","ES-ECO-035-RI",1,3,3,0,3,0,1,0]
[{"$f":"IFERROR(IF(C52=\" \",\"1.\",VLOOKUP($C52,'Tabla 1.1'!$D$10:$X$87,17,)),\"\")","v":"1.a.p."},"Casos demostrados por la autoridad competente/autoridad de control/organismo de control 1.a.p.","ES-ECO-037-CM",0,0,0,0,0,0,0,0]
[{"$f":"IFERROR(IF(C53=\" \",\"1.\",VLOOKUP($C53,'Tabla 1.1'!$D$10:$X$87,17,)),\"\")","v":""},""]
[{"$f":"IFERROR(IF(C54=\" \",\"1.\",VLOOKUP($C54,'Tabla 1.1'!$D$10:$X$87,17,)),\"\")","v":""},""]
[{"$f":"IFERROR(IF(C55=\" \",\"1.\",VLOOKUP($C55,'Tabla 1.1'!$D$10:$X$87,17,)),\"\")","v":""},""]
[{"$f":"IFERROR(IF(C56=\" \",\"1.\",VLOOKUP($C56,'Tabla 1.1'!$D$10:$X$87,17,)),\"\")","v":""},""]
[{"$f":"IFERROR(IF(C57=\" \",\"1.\",VLOOKUP($C57,'Tabla 1.1'!$D$10:$X$87,17,)),\"\")","v":""},""]
[{"$f":"IFERROR(IF(C58=\" \",\"1.\",VLOOKUP($C58,'Tabla 1.1'!$D$10:$X$87,17,)),\"\")","v":""},""]
[{"$f":"IFERROR(IF(C59=\" \",\"1.\",VLOOKUP($C59,'Tabla 1.1'!$D$10:$X$87,17,)),\"\")","v":""},""]
[{"$f":"IFERROR(IF(C60=\" \",\"1.\",VLOOKUP($C60,'Tabla 1.1'!$D$10:$X$87,17,)),\"\")","v":""},""]
[{"$f":"IFERROR(IF(C61=\" \",\"1.\",VLOOKUP($C61,'Tabla 1.1'!$D$10:$X$87,17,)),\"\")","v":""},""]
[{"$f":"IFERROR(IF(C62=\" \",\"1.\",VLOOKUP($C62,'Tabla 1.1'!$D$10:$X$87,17,)),\"\")","v":""},""]
[{"$f":"IFERROR(IF(C63=\" \",\"1.\",VLOOKUP($C63,'Tabla 1.1'!$D$10:$X$87,17,)),\"\")","v":""},""]
[{"$f":"IFERROR(IF(C64=\" \",\"1.\",VLOOKUP($C64,'Tabla 1.1'!$D$10:$X$87,17,)),\"\")","v":""},""]
[{"$f":"IFERROR(IF(C65=\" \",\"1.\",VLOOKUP($C65,'Tabla 1.1'!$D$10:$X$87,17,)),\"\")","v":""},""]
[{"$f":"IFERROR(IF(C66=\" \",\"1.\",VLOOKUP($C66,'Tabla 1.1'!$D$10:$X$87,17,)),\"\")","v":""},""]
[{"$f":"IFERROR(IF(C67=\" \",\"1.\",VLOOKUP($C67,'Tabla 1.1'!$D$10:$X$87,17,)),\"\")","v":""},""]
[{"$f":"IFERROR(IF(C68=\" \",\"1.\",VLOOKUP($C68,'Tabla 1.1'!$D$10:$X$87,17,)),\"\")","v":""},""]
[{"$f":"IFERROR(IF(C69=\" \",\"1.\",VLOOKUP($C69,'Tabla 1.1'!$D$10:$X$87,17,)),\"\")","v":""},""]
[{"$f":"IFERROR(IF(C70=\" \",\"1.\",VLOOKUP($C70,'Tabla 1.1'!$D$10:$X$87,17,)),\"\")","v":""},""]
[{"$f":"IFERROR(IF(C71=\" \",\"1.\",VLOOKUP($C71,'Tabla 1.1'!$D$10:$X$87,17,)),\"\")","v":""},""]
[{"$f":"IFERROR(IF(C72=\" \",\"1.\",VLOOKUP($C72,'Tabla 1.1'!$D$10:$X$87,17,)),\"\")","v":""},""]
[{"$f":"IFERROR(IF(C73=\" \",\"1.\",VLOOKUP($C73,'Tabla 1.1'!$D$10:$X$87,17,)),\"\")","v":""},""]
[{"$f":"IFERROR(IF(C74=\" \",\"1.\",VLOOKUP($C74,'Tabla 1.1'!$D$10:$X$87,17,)),\"\")","v":""},""]
[{"$f":"IFERROR(IF(C75=\" \",\"1.\",VLOOKUP($C75,'Tabla 1.1'!$D$10:$X$87,17,)),\"\")","v":""},{"$f":"IF(C75=\" \",\"Casos de incumplimiento demostrados-TOTAL\",IF(C75=\"\",\"\",CONCATENATE(\"Casos demostrados por la autoridad competente/autoridad de control/organismo de control \",A75)))","v":""}]
[{"$f":"IFERROR(IF(C76=\" \",\"1.\",VLOOKUP($C76,'Tabla 1.1'!$D$10:$X$87,17,)),\"\")","v":""},""]
[{"$f":"IFERROR(IF(C77=\" \",\"1.\",VLOOKUP($C77,'Tabla 1.1'!$D$10:$X$87,17,)),\"\")","v":""},""]
[{"$f":"IFERROR(IF(C78=\" \",\"1.\",VLOOKUP($C78,'Tabla 1.1'!$D$10:$X$87,17,)),\"\")","v":""},""]
[{"$f":"IFERROR(IF(C79=\" \",\"1.\",VLOOKUP($C79,'Tabla 1.1'!$D$10:$X$87,17,)),\"\")","v":""},""]
[{"$f":"IFERROR(IF(C80=\" \",\"1.\",VLOOKUP($C80,'Tabla 1.1'!$D$10:$X$87,17,)),\"\")","v":""},""]
[{"$f":"IFERROR(IF(C81=\" \",\"1.\",VLOOKUP($C81,'Tabla 1.1'!$D$10:$X$87,17,)),\"\")","v":""},""]
[{"$f":"IFERROR(IF(C82=\" \",\"1.\",VLOOKUP($C82,'Tabla 1.1'!$D$10:$X$87,17,)),\"\")","v":""},""]
[{"$f":"IFERROR(IF(C83=\" \",\"1.\",VLOOKUP($C83,'Tabla 1.1'!$D$10:$X$87,17,)),\"\")","v":""},""]
[{"$f":"IFERROR(IF(C84=\" \",\"1.\",VLOOKUP($C84,'Tabla 1.1'!$D$10:$X$87,17,)),\"\")","v":""},""]
[{"$f":"IFERROR(IF(C85=\" \",\"1.\",VLOOKUP($C85,'Tabla 1.1'!$D$10:$X$87,17,)),\"\")","v":""},""]
[{"$f":"IFERROR(IF(C86=\" \",\"1.\",VLOOKUP($C86,'Tabla 1.1'!$D$10:$X$87,17,)),\"\")","v":""},""]
[{"$f":"IFERROR(IF(C87=\" \",\"1.\",VLOOKUP($C87,'Tabla 1.1'!$D$10:$X$87,17,)),\"\")","v":""},""]
[{"$f":"IFERROR(IF(C88=\" \",\"1.\",VLOOKUP($C88,'Tabla 1.1'!$D$10:$X$87,17,)),\"\")","v":""},""]
[{"$f":"IFERROR(IF(C89=\" \",\"1.\",VLOOKUP($C89,'Tabla 1.1'!$D$10:$X$87,17,)),\"\")","v":""},""]
[{"$f":"IFERROR(IF(C90=\" \",\"1.\",VLOOKUP($C90,'Tabla 1.1'!$D$10:$X$87,17,)),\"\")","v":""},""]

{"sheet":"Tabla 2.2","index":4,"n_rows":11,"n_cols":11,"rows_kept":11,"cut":false,"hidden":false,"merged":[[4,1,5,1],[4,2,4,10],[0,0,0,11]]}
["Tabla 2: INCUMPLIMIENTOS\nDatos por autoridad competente/autoridad de control/organismo de control"]
[]
[null,"2. Medidas adoptadas con respecto a los casos demostrados de incumplimientos graves y críticos"]
[]
[null,"Número de casos de incumplimientos demostrados","Medidas adoptadas con respecto a los casos de incumplimientos demostrados"]
[null,null,"Mejora de la aplicación de las medidas cautelares y de los controles puestos en marcha por el operador","Ausencia de referencia a la producción ecológica en el etiquetado y la publicidad de todo el lote o campaña de producción de que se trate","Prohibición de comercializar el producto o productos afectados con referencia a la producción ecológica durante un periodo determinado","Nuevo período de conversión","Limitación del alcance del certificado","Suspensión del certificado","Retirada del certificado","Medida correctora aún por decidir","Otras"]
[null,"(A)","(B1)","(B2)","(B3)","(B4)","(B5)","(B6)","(B7)","(B8)","(B9)"]
[null,"Año actual","TRUE"]
[]
[null,"Suma de Número de casos de incumplimientos demostrados","Suma de Mejora de la aplicación de las medidas cautelares y de los controles puestos en marcha por el operad","Suma de Ausencia de referencia a la producción ecológica en el etiquetado y la publicidad de todo el lote o","Suma de Prohibición de comercializar el producto o productos afectados con referencia a la producción ecológ","Suma de Nuevo período de conversión","Suma de Limitación del alcance del certificado","Suma de Suspensión del certificado","Suma de Retirada del certificado","Suma de Medida correctora aún por decidir","Suma de Otras"]
[null,2643,764,535,76,173,10,717,303,44,17]

{"sheet":"Tabla 3.1","index":5,"n_rows":11,"n_cols":6,"rows_kept":11,"cut":false,"hidden":false,"merged":[[0,0,0,6]]}
["Tabla 3: SUPERVISIÓN Y AUDITORÍAS"]
[]
["3.1.- Nuevos organismos de control en los que la autoridad competente haya delegado tareas de control/organismos de control cuya delegación haya sido requerida"]
[]
[null,"Año actual","TRUE",null,"Año actual","TRUE"]
[null,null,null,"Número de organismos de control",null,"Observaciones en caso necesario"]
[null,"Leyenda","Cod Leyenda","Suma de Número de organismos de control","Cod Leyenda","Calculated Column 2"]
[null,"Número al inicio del año de referencia (1 de enero del año N)","(A)",27,"(A)"]
[null,"Nuevos organismos de control durante el año N","(B)",0,"(B)"]
[null,"Organismos de control a los que se ha retirado la delegación durante el año N","(C)",0,"(C)"," De los 9 OC que estaban autorizados al inicio del año en CLM, el ES-ECO-029-CM ha dejado de tener operadores a lo largo del año, pero sigue teniendo la delegación de tareas."]
[null,"Número al final del año de referencia (31 de diciembre del año N)","(D)",27,"(D)"]

{"sheet":"Tabla 3.2.a","index":6,"n_rows":12,"n_cols":6,"rows_kept":12,"cut":false,"hidden":false,"merged":[[0,0,0,5]]}
["Tabla 3: SUPERVISIÓN Y AUDITORÍAS"]
[]
["3.2.- Supervisión de organismos de control por la autoridad competente"]
[]
[null,"3.2.a.- Números totales a la supervisión de organismos de control"]
[]
[null,"Número de organismos de control al final del año de referencia","Número de auditorías de supervisión de organismos de control realizadas por la autoridad competente durante el año de referencia","Cobertura de organismos de control mediante la auditoría de supervisión de la autoridad competente","Observaciones en caso necesario"]
[null,"(D)","(E)","F) = (E)/(D)"]
[null,"Año actual","TRUE",null,"Año actual","TRUE"]
[]
[null,"Suma de Número de organismos de control al final del año de referencia","Suma de Número de auditorías de supervisión de organismos de control realizadas por la autoridad competente","Cobertura","Etiquetas de fila"]
["Número de organismos de control - Número de auditorías de supervisión durante el año de referencia - cobertura",27,25,0.92592592592592593," En España a 31/12/2024 tres AC tenían delegado el control en 27 OC. De ellos, 5 estaban siendo evaluados por parte de su AC sobre el mantenimiento de la delegación (3 por no tener operadores y 2 por tener la acreditación de ENAC en suspensión temporal). La AC no pudo hacer auditoría completa sobre ES-ECO-010-CL ni ES-ECO-029-CM por no tener operadores certificados. Adicionalmente, señalar que aunque en la presente tabla se contabilizan 27 OC, en la tabla 3.2.b aparecen 28 entradas ya que también se incluye la información de la supervisión efectuada por una Autoridad Competente con sistema mixto (Autoridad de Control y Organismos de Control) a su Autoridad de Control (ES-ECO-016-CL)"]

{"sheet":"Tabla 3.2.b","index":7,"n_rows":456,"n_cols":11,"rows_kept":456,"cut":false,"hidden":false,"merged":[[0,0,0,16]]}
["Tabla 3: SUPERVISIÓN Y AUDITORÍAS"]
[]
["3.2.- Supervisión de organismos de control por la autoridad competente"]
[]
[null,"3.2.b.- Números totales a la supervisión de organismos de control"]
[]
[null,"Lista de todos los organismos de control bajo supervisión de la autoridad competente","Número de operadores","Número de grupos de operadores","Auditoría realizada por la autoridad competente durante el año de referencia\nsí=1/no=0","Número de expedientes de operadores revisados en la auditoría de supervisión durante el año de referencia","Cobertura del número de expedientes de operadores revisados frente al número total de operadores","Número de expedientes de grupos de operadores revisados en el transcurso de la auditoría durante el año de referencia","Cobertura del número de expedientes de grupos de operadores revisados frente al número total de grupos de operadores","Indíquese el número de referencia del formulario individual cumplimentado para el organismo de control"]
[null,"Número de código","(G)","(H)","(I)","(J)","(K)= (J)/(G)","(L)","(M)= (L)/(H)","(N)"]
[null,"ES-ECO-001-AN",13287,0,1,20,1.5052306766011891E-3,null,null,null,true]
[null,"ES-ECO-001-CL",465,0,1,5,1.0752688172043012E-2,null,null,null,true]
[null,"ES-ECO-001-CM",2791,0,1,39,1.3973486205661053E-2,null,null,null,true]
[null,"ES-ECO-002-AN",3134,0,1,13,4.1480536056158262E-3,null,null,null,true]
[null,"ES-ECO-002-CL",230,0,1,5,2.1739130434782608E-2,null,null,null,true]
[null,"ES-ECO-002-CM",4002,0,1,44,1.0994502748625687E-2,null,null,null,true]
[null,"ES-ECO-003-AN",4555,0,1,13,2.8540065861690448E-3,null,null,null,true]
[null,"ES-ECO-003-CM",7,0,1,2,0.2857142857142857,null,null,null,true]
[null,"ES-ECO-010-AN",105,0,1,5,4.7619047619047616E-2,null,null,null,true]
[null,"ES-ECO-010-CL",0,0,0,0,null,null,null,null,true]
[null,"ES-ECO-011-AN",1117,0,1,8,7.162041181736795E-3,null,null,null,true]
[null,"ES-ECO-011-CL",12,0,1,3,0.25,null,null,null,true]
[null,"ES-ECO-011-CM",104,0,1,3,2.8846153846153848E-2,null,null,null,true]
[null,"ES-ECO-016-CL",1236,0,1,7,5.6634304207119745E-3,null,null,null,true]
[null,"ES-ECO-028-AN",355,0,1,5,1.408450704225352E-2,null,null,null,true]
[null,"ES-ECO-028-CL",2,0,1,2,1,null,null,null,true]
[null,"ES-ECO-028-CM",1140,0,1,19,1.6666666666666666E-2,null,null,null,true]
[null,"ES-ECO-029-AN",16,0,1,3,0.1875,null,null,null,true]
[null,"ES-ECO-029-CL",0,0,1,7,null,null,null,null,true]
[null,"ES-ECO-029-CM",0,0,0,0,null,null,null,null,true]
[null,"ES-ECO-031-CL",225,0,1,5,2.2222222222222223E-2,null,null,null,true]
[null,"ES-ECO-032-AN",3,0,1,3,1,null,null,null,true]
[null,"ES-ECO-032-CL",22,0,1,3,0.13636363636363635,null,null,null,true]
[null,"ES-ECO-033-CL",44,0,1,3,6.8181818181818177E-2,null,null,null,true]
[null,"ES-ECO-033-CM",460,0,1,6,1.3043478260869565E-2,null,null,null,true]
[null,"ES-ECO-034-AN",19,0,1,2,0.10526315789473684,null,null,null,true]
[null,"ES-ECO-034-CM",903,0,1,11,1.2181616832779624E-2,null,null,null,true]
[null,"ES-ECO-037-CM",4,0,1,1,0.25,null,null,null,true]
[null,null,null,null,null,null,null,null,null,null,true]
[null,null,null,null,null,null,null,null,null,null,true]
[null,null,null,null,null,null,null,null,null,null,true]
[null,null,null,null,null,null,null,null,null,null,true]
[null,null,null,null,null,null,null,null,null,null,true]
[null,null,null,null,null,null,null,null,null,null,true]
[null,null,null,null,null,null,null,null,null,null,true]
[null,null,null,null,null,null,null,null,null,null,true]
[null,null,null,null,null,null,null,null,null,null,true]
[null,null,null,null,null,null,null,null,null,null,true]
[null,null,null,null,null,null,null,null,null,null,true]
[null,null,null,null,null,null,null,null,null,null,true]
[null,null,null,null,null,null,null,null,null,null,true]
[null,null,null,null,null,null,null,null,null,null,true]
[null,null,null,null,null,null,null,null,null,null,true]
[null,null,null,null,null,null,null,null,null,null,true]
[null,null,null,null,null,null,null,null,null,null,true]
[null,null,null,null,null,null,null,null,null,null,true]
[null,null,null,null,null,null,null,null,null,null,true]
[null,null,null,null,null,null,null,null,null,null,true]
[null,null,null,null,null,null,null,null,null,null,true]
[null,null,null,null,null,null,null,null,null,null,true]
[null,null,null,null,null,null,null,null,null,null,true]
[null,null,null,null,null,null,null,null,null,null,true]
[null,null,null,null,null,null,null,null,null,null,true]
[null,null,null,null,null,null,null,null,null,null,true]
[null,null,null,null,null,null,null,null,null,null,true]
[null,null,null,null,null,null,null,null,null,null,true]
[null,null,null,null,null,null,null,null,null,null,true]
[null,null,null,null,null,null,null,null,null,null,true]
[null,null,null,null,null,null,null,null,null,null,true]
[null,null,null,null,null,null,null,null,null,null,true]
[null,null,null,null,null,null,null,null,null,null,true]
[null,null,null,null,null,null,null,null,null,null,true]
[null,null,null,null,null,null,null,null,null,null,true]
[null,null,null,null,null,null,null,null,null,null,true]
[null,null,null,null,null,null,null,null,null,null,true]
[null,null,null,null,null,null,null,null,null,null,true]
[null,null,null,null,null,null,null,null,null,null,true]
[null,null,null,null,null,null,null,null,null,null,true]
[null,null,null,null,null,null,null,null,null,null,true]
[null,null,null,null,null,null,null,null,null,null,true]
[null,null,null,null,null,null,null,null,null,null,true]
[null,null,null,null,null,null,null,null,null,null,true]
[null,null,null,null,null,null,null,null,null,null,true]
[null,null,null,null,null,null,null,null,null,null,true]
[null,null,null,null,null,null,null,null,null,null,true]
[null,null,null,null,null,null,null,null,null,null,true]
[null,null,null,null,null,null,null,null,null,null,true]
[null,null,null,null,null,null,null,null,null,null,true]
[null,null,null,null,null,null,null,null,null,null,true]
[null,null,null,null,null,null,null,null,null,null,true]
[null,null,null,null,null,null,null,null,null,null,true]
[null,null,null,null,null,null,null,null,null,null,true]
[null,null,null,null,null,null,null,null,null,null,true]
[null,null,null,null,null,null,null,null,null,null,true]
[null,null,null,null,null,null,null,null,null,null,true]
[null,null,null,null,null,null,null,null,null,null,true]
[null,null,null,null,null,null,null,null,null,null,true]
[null,null,null,null,null,null,null,null,null,null,true]
[null,null,null,null,null,null,null,null,null,null,true]
[null,null,null,null,null,null,null,null,null,null,true]
[null,null,null,null,null,null,null,null,null,null,true]
[null,null,null,null,null,null,null,null,null,null,true]
[null,null,null,null,null,null,null,null,null,null,true]
[null,null,null,null,null,null,null,null,null,null,true]
[null,null,null,null,null,null,null,null,null,null,true]
[null,null,null,null,null,null,null,null,null,null,true]
[null,null,null,null,null,null,null,null,null,null,true]
[null,null,null,null,null,null,null,null,null,null,true]
[null,null,null,null,null,null,null,null,null,null,true]
[null,null,null,null,null,null,null,null,null,null,true]
[null,null,null,null,null,null,null,null,null,null,true]
[null,null,null,null,null,null,null,null,null,null,true]
[null,null,null,null,null,null,null,null,null,null,true]
[null,null,null,null,null,null,null,null,null,null,true]
[null,null,null,null,null,null,null,null,null,null,true]
[null,null,null,null,null,null,null,null,null,null,true]
[null,null,null,null,null,null,null,null,null,null,true]
[null,null,null,null,null,null,null,null,null,null,true]
[null,null,null,null,null,null,null,null,null,null,true]
[null,null,null,null,null,null,null,null,null,null,true]
[null,null,null,null,null,null,null,null,null,null,true]
[null,null,null,null,null,null,null,null,null,null,true]
[null,null,null,null,null,null,null,null,null,null,true]
[null,null,null,null,null,null,null,null,null,null,true]
[null,null,null,null,null,null,null,null,null,null,true]
[null,null,null,null,null,null,null,null,null,null,true]
[null,null,null,null,null,null,null,null,null,null,true]
[null,null,null,null,null,null,null,null,null,null,true]
[null,null,null,null,null,null,null,null,null,null,true]
[null,null,null,null,null,null,null,null,null,null,true]
[null,null,null,null,null,null,null,null,null,null,true]
[null,null,null,null,null,null,null,null,null,null,true]
[null,null,null,null,null,null,null,null,null,null,true]
[null,null,null,null,null,null,null,null,null,null,true]
[null,null,null,null,null,null,null,null,null,null,true]
[null,null,null,null,null,null,null,null,null,null,true]
[null,null,null,null,null,null,null,null,null,null,true]
[null,null,null,null,null,null,null,null,null,null,true]
[null,null,null,null,null,null,null,null,null,null,true]
[null,null,null,null,null,null,null,null,null,null,true]
[null,null,null,null,null,null,null,null,null,null,true]
[null,null,null,null,null,null,null,null,null,null,true]
[null,null,null,null,null,null,null,null,null,null,true]
[null,null,null,null,null,null,null,null,null,null,true]
[null,null,null,null,null,null,null,null,null,null,true]
[null,null,null,null,null,null,null,null,null,null,true]
[null,null,null,null,null,null,null,null,null,null,true]
[null,null,null,null,null,null,null,null,null,null,true]
[null,null,null,null,null,null,null,null,null,null,true]
[null,null,null,null,null,null,null,null,null,null,true]
[null,null,null,null,null,null,null,null,null,null,true]
[null,null,null,null,null,null,null,null,null,null,true]
[null,null,null,null,null,null,null,null,null,null,true]
[null,null,null,null,null,null,null,null,null,null,true]
[null,null,null,null,null,null,null,null,null,null,true]
[null,null,null,null,null,null,null,null,null,null,true]
[null,null,null,null,null,null,null,null,null,null,true]
[null,null,null,null,null,null,null,null,null,null,true]
[null,null,null,null,null,null,null,null,null,null,true]
[null,null,null,null,null,null,null,null,null,null,true]
[null,null,null,null,null,null,null,null,null,null,true]
[null,null,null,null,null,null,null,null,null,null,true]
[null,null,null,null,null,null,null,null,null,null,true]
[null,null,null,null,null,null,null,null,null,null,true]
[null,null,null,null,null,null,null,null,null,null,true]
[null,null,null,null,null,null,null,null,null,null,true]
[null,null,null,null,null,null,null,null,null,null,true]
[null,null,null,null,null,null,null,null,null,null,true]
[null,null,null,null,null,null,null,null,null,null,true]
[null,null,null,null,null,null,null,null,null,null,true]
[null,null,null,null,null,null,null,null,null,null,true]
[null,null,null,null,null,null,null,null,null,null,true]
[null,null,null,null,null,null,null,null,null,null,true]
[null,null,null,null,null,null,null,null,null,null,true]
[null,null,null,null,null,null,null,null,null,null,true]
[null,null,null,null,null,null,null,null,null,null,true]
[null,null,null,null,null,null,null,null,null,null,true]
[null,null,null,null,null,null,null,null,null,null,true]
[null,null,null,null,null,null,null,null,null,null,true]
[null,null,null,null,null,null,null,null,null,null,true]
[null,null,null,null,null,null,null,null,null,null,true]
[null,null,null,null,null,null,null,null,null,null,true]
[null,null,null,null,null,null,null,null,null,null,true]
[null,null,null,null,null,null,null,null,null,null,true]
[null,null,null,null,null,null,null,null,null,null,true]
[null,null,null,null,null,null,null,null,null,null,true]
[null,null,null,null,null,null,null,null,null,null,true]
[null,null,null,null,null,null,null,null,null,null,true]
[null,null,null,null,null,null,null,null,null,null,true]
[null,null,null,null,null,null,null,null,null,null,true]
[null,null,null,null,null,null,null,null,null,null,true]
[null,null,null,null,null,null,null,null,null,null,true]
[null,null,null,null,null,null,null,null,null,null,true]
[null,null,null,null,null,null,null,null,null,null,true]
[null,null,null,null,null,null,null,null,null,null,true]
[null,null,null,null,null,null,null,null,null,null,true]
[null,null,null,null,null,null,null,null,null,null,true]
[null,null,null,null,null,null,null,null,null,null,true]
[null,null,null,null,null,null,null,null,null,null,true]
[null,null,null,null,null,null,null,null,null,null,true]
[null,null,null,null,null,null,null,null,null,null,true]
[null,null,null,null,null,null,null,null,null,null,true]
[null,null,null,null,null,null,null,null,null,null,true]
[null,null,null,null,null,null,null,null,null,null,true]
[null,null,null,null,null,null,null,null,null,null,true]
[null,null,null,null,null,null,null,null,null,null,true]
[null,null,null,null,null,null,null,null,null,null,true]
[null,null,null,null,null,null,null,null,null,null,true]
[null,null,null,null,null,null,null,null,null,null,true]
[null,null,null,null,null,null,null,null,null,null,true]
[null,null,null,null,null,null,null,null,null,null,true]
[null,null,null,null,null,null,null,null,null,null,true]
[null,null,null,null,null,null,null,null,null,null,true]
[null,null,null,null,null,null,null,null,null,null,true]
[null,null,null,null,null,null,null,null,null,null,true]
[null,null,null,null,null,null,null,null,null,null,true]
[null,null,null,null,null,null,null,null,null,null,true]
[null,null,null,null,null,null,null,null,null,null,true]
[null,null,null,null,null,null,null,null,null,null,true]
[null,null,null,null,null,null,null,null,null,null,true]
[null,null,null,null,null,null,null,null,null,null,true]
[null,null,null,null,null,null,null,null,null,null,true]
[null,null,null,null,null,null,null,null,null,null,true]
[null,null,null,null,null,null,null,null,null,null,true]
[null,null,null,null,null,null,null,null,null,null,true]
[null,null,null,null,null,null,null,null,null,null,true]
[null,null,null,null,null,null,null,null,null,null,true]
[null,null,null,null,null,null,null,null,null,null,true]
[null,null,null,null,null,null,null,null,null,null,true]
[null,null,null,null,null,null,null,null,null,null,true]
[null,null,null,null,null,null,null,null,null,null,true]
[null,null,null,null,null,null,null,null,null,null,true]
[null,null,null,null,null,null,null,null,null,null,true]
[null,null,null,null,null,null,null,null,null,null,true]
[null,null,null,null,null,null,null,null,null,null,true]
[null,null,null,null,null,null,null,null,null,null,true]
[null,null,null,null,null,null,null,null,null,null,true]
[null,null,null,null,null,null,null,null,null,null,true]
[null,null,null,null,null,null,null,null,null,null,true]
[null,null,null,null,null,null,null,null,null,null,true]
[null,null,null,null,null,null,null,null,null,null,true]
[null,null,null,null,null,null,null,null,null,null,true]
[null,null,null,null,null,null,null,null,null,null,true]
[null,null,null,null,null,null,null,null,null,null,true]
[null,null,null,null,null,null,null,null,null,null,true]
[null,null,null,null,null,null,null,null,null,null,true]
[null,null,null,null,null,null,null,null,null,null,true]
[null,null,null,null,null,null,null,null,null,null,true]
[null,null,null,null,null,null,null,null,null,null,true]
[null,null,null,null,null,null,null,null,null,null,true]
[null,null,null,null,null,null,null,null,null,null,true]
[null,null,null,null,null,null,null,null,null,null,true]
[null,null,null,null,null,null,null,null,null,null,true]
[null,null,null,null,null,null,null,null,null,null,true]
[null,null,null,null,null,null,null,null,null,null,true]
[null,null,null,null,null,null,null,null,null,null,true]
[null,null,null,null,null,null,null,null,null,null,true]
[null,null,null,null,null,null,null,null,null,null,true]
[null,null,null,null,null,null,null,null,null,null,true]
[null,null,null,null,null,null,null,null,null,null,true]
[null,null,null,null,null,null,null,null,null,null,true]
[null,null,null,null,null,null,null,null,null,null,true]
[null,null,null,null,null,null,null,null,null,null,true]
[null,null,null,null,null,null,null,null,null,null,true]
[null,null,null,null,null,null,null,null,null,null,true]
[null,null,null,null,null,null,null,null,null,null,true]
[null,null,null,null,null,null,null,null,null,null,true]
[null,null,null,null,null,null,null,null,null,null,true]
[null,null,null,null,null,null,null,null,null,null,true]
[null,null,null,null,null,null,null,null,null,null,true]
[null,null,null,null,null,null,null,null,null,null,true]
[null,null,null,null,null,null,null,null,null,null,true]
[null,null,null,null,null,null,null,null,null,null,true]
[null,null,null,null,null,null,null,null,null,null,true]
[null,null,null,null,null,null,null,null,null,null,true]
[null,null,null,null,null,null,null,null,null,null,true]
[null,null,null,null,null,null,null,null,null,null,true]
[null,null,null,null,null,null,null,null,null,null,true]
[null,null,null,null,null,null,null,null,null,null,true]
[null,null,null,null,null,null,null,null,null,null,true]
[null,null,null,null,null,null,null,null,null,null,true]
[null,null,null,null,null,null,null,null,null,null,true]
[null,null,null,null,null,null,null,null,null,null,true]
[null,null,null,null,null,null,null,null,null,null,true]
[null,null,null,null,null,null,null,null,null,null,true]
[null,null,null,null,null,null,null,null,null,null,true]
[null,null,null,null,null,null,null,null,null,null,true]
[null,null,null,null,null,null,null,null,null,null,true]
[null,null,null,null,null,null,null,null,null,null,true]
[null,null,null,null,null,null,null,null,null,null,true]
[null,null,null,null,null,null,null,null,null,null,true]
[null,null,null,null,null,null,null,null,null,null,true]
[null,null,null,null,null,null,null,null,null,null,true]
[null,null,null,null,null,null,null,null,null,null,true]
[null,null,null,null,null,null,null,null,null,null,true]
[null,null,null,null,null,null,null,null,null,null,true]
[null,null,null,null,null,null,null,null,null,null,true]
[null,null,null,null,null,null,null,null,null,null,true]
[null,null,null,null,null,null,null,null,null,null,true]
[null,null,null,null,null,null,null,null,null,null,true]
[null,null,null,null,null,null,null,null,null,null,true]
[null,null,null,null,null,null,null,null,null,null,true]
[null,null,null,null,null,null,null,null,null,null,true]
[null,null,null,null,null,null,null,null,null,null,true]
[null,null,null,null,null,null,null,null,null,null,true]
[null,null,null,null,null,null,null,null,null,null,true]
[null,null,null,null,null,null,null,null,null,null,true]
[null,null,null,null,null,null,null,null,null,null,true]
[null,null,null,null,null,null,null,null,null,null,true]
[null,null,null,null,null,null,null,null,null,null,true]
[null,null,null,null,null,null,null,null,null,null,true]
[null,null,null,null,null,null,null,null,null,null,true]
[null,null,null,null,null,null,null,null,null,null,true]
[null,null,null,null,null,null,null,null,null,null,true]
[null,null,null,null,null,null,null,null,null,null,true]
[null,null,null,null,null,null,null,null,null,null,true]
[null,null,null,null,null,null,null,null,null,null,true]
[null,null,null,null,null,null,null,null,null,null,true]
[null,null,null,null,null,null,null,null,null,null,true]
[null,null,null,null,null,null,null,null,null,null,true]
[null,null,null,null,null,null,null,null,null,null,true]
[null,null,null,null,null,null,null,null,null,null,true]
[null,null,null,null,null,null,null,null,null,null,true]
[null,null,null,null,null,null,null,null,null,null,true]
[null,null,null,null,null,null,null,null,null,null,true]
[null,null,null,null,null,null,null,null,null,null,true]
[null,null,null,null,null,null,null,null,null,null,true]
[null,null,null,null,null,null,null,null,null,null,true]
[null,null,null,null,null,null,null,null,null,null,true]
[null,null,null,null,null,null,null,null,null,null,true]
[null,null,null,null,null,null,null,null,null,null,true]
[null,null,null,null,null,null,null,null,null,null,true]
[null,null,null,null,null,null,null,null,null,null,true]
[null,null,null,null,null,null,null,null,null,null,true]
[null,null,null,null,null,null,null,null,null,null,true]
[null,null,null,null,null,null,null,null,null,null,true]
[null,null,null,null,null,null,null,null,null,null,true]
[null,null,null,null,null,null,null,null,null,null,true]
[null,null,null,null,null,null,null,null,null,null,true]
[null,null,null,null,null,null,null,null,null,null,true]
[null,null,null,null,null,null,null,null,null,null,true]
[null,null,null,null,null,null,null,null,null,null,true]
[null,null,null,null,null,null,null,null,null,null,true]
[null,null,null,null,null,null,null,null,null,null,true]
[null,null,null,null,null,null,null,null,null,null,true]
[null,null,null,null,null,null,null,null,null,null,true]
[null,null,null,null,null,null,null,null,null,null,true]
[null,null,null,null,null,null,null,null,null,null,true]
[null,null,null,null,null,null,null,null,null,null,true]
[null,null,null,null,null,null,null,null,null,null,true]
[null,null,null,null,null,null,null,null,null,null,true]
[null,null,null,null,null,null,null,null,null,null,true]
[null,null,null,null,null,null,null,null,null,null,true]
[null,null,null,null,null,null,null,null,null,null,true]
[null,null,null,null,null,null,null,null,null,null,true]
[null,null,null,null,null,null,null,null,null,null,true]
[null,null,null,null,null,null,null,null,null,null,true]
[null,null,null,null,null,null,null,null,null,null,true]
[null,null,null,null,null,null,null,null,null,null,true]
[null,null,null,null,null,null,null,null,null,null,true]
[null,null,null,null,null,null,null,null,null,null,true]
[null,null,null,null,null,null,null,null,null,null,true]
[null,null,null,null,null,null,null,null,null,null,true]
[null,null,null,null,null,null,null,null,null,null,true]
[null,null,null,null,null,null,null,null,null,null,true]
[null,null,null,null,null,null,null,null,null,null,true]
[null,null,null,null,null,null,null,null,null,null,true]
[null,null,null,null,null,null,null,null,null,null,true]
[null,null,null,null,null,null,null,null,null,null,true]
[null,null,null,null,null,null,null,null,null,null,true]
[null,null,null,null,null,null,null,null,null,null,true]
[null,null,null,null,null,null,null,null,null,null,true]
[null,null,null,null,null,null,null,null,null,null,true]
[null,null,null,null,null,null,null,null,null,null,true]
[null,null,null,null,null,null,null,null,null,null,true]
[null,null,null,null,null,null,null,null,null,null,true]
[null,null,null,null,null,null,null,null,null,null,true]
[null,null,null,null,null,null,null,null,null,null,true]
[null,null,null,null,null,null,null,null,null,null,true]
[null,null,null,null,null,null,null,null,null,null,true]
[null,null,null,null,null,null,null,null,null,null,true]
[null,null,null,null,null,null,null,null,null,null,true]
[null,null,null,null,null,null,null,null,null,null,true]
[null,null,null,null,null,null,null,null,null,null,true]
[null,null,null,null,null,null,null,null,null,null,true]
[null,null,null,null,null,null,null,null,null,null,true]
[null,null,null,null,null,null,null,null,null,null,true]
[null,null,null,null,null,null,null,null,null,null,true]
[null,null,null,null,null,null,null,null,null,null,true]
[null,null,null,null,null,null,null,null,null,null,true]
[null,null,null,null,null,null,null,null,null,null,true]
[null,null,null,null,null,null,null,null,null,null,true]
[null,null,null,null,null,null,null,null,null,null,true]
[null,null,null,null,null,null,null,null,null,null,true]
[null,null,null,null,null,null,null,null,null,null,true]
[null,null,null,null,null,null,null,null,null,null,true]
[null,null,null,null,null,null,null,null,null,null,true]
[null,null,null,null,null,null,null,null,null,null,true]
[null,null,null,null,null,null,null,null,null,null,true]
[null,null,null,null,null,null,null,null,null,null,true]
[null,null,null,null,null,null,null,null,null,null,true]
[null,null,null,null,null,null,null,null,null,null,true]
[null,null,null,null,null,null,null,null,null,null,true]
[null,null,null,null,null,null,null,null,null,null,true]
[null,null,null,null,null,null,null,null,null,null,true]
[null,null,null,null,null,null,null,null,null,null,true]
[null,null,null,null,null,null,null,null,null,null,true]
[null,null,null,null,null,null,null,null,null,null,true]
[null,null,null,null,null,null,null,null,null,null,true]
[null,null,null,null,null,null,null,null,null,null,true]
[null,null,null,null,null,null,null,null,null,null,true]
[null,null,null,null,null,null,null,null,null,null,true]
[null,null,null,null,null,null,null,null,null,null,true]
[null,null,null,null,null,null,null,null,null,null,true]
[null,null,null,null,null,null,null,null,null,null,true]
[null,null,null,null,null,null,null,null,null,null,true]
[null,null,null,null,null,null,null,null,null,null,true]
[null,null,null,null,null,null,null,null,null,null,true]
[null,null,null,null,null,null,null,null,null,null,true]
[null,null,null,null,null,null,null,null,null,null,true]
[null,null,null,null,null,null,null,null,null,null,true]
[null,null,null,null,null,null,null,null,null,null,true]
[null,null,null,null,null,null,null,null,null,null,true]
[null,null,null,null,null,null,null,null,null,null,true]
[null,null,null,null,null,null,null,null,null,null,true]
[null,null,null,null,null,null,null,null,null,null,true]
[null,null,null,null,null,null,null,null,null,null,true]
[null,null,null,null,null,null,null,null,null,null,true]
[null,null,null,null,null,null,null,null,null,null,true]
[null,null,null,null,null,null,null,null,null,null,true]
[null,null,null,null,null,null,null,null,null,null,true]
[null,null,null,null,null,null,null,null,null,null,true]
[null,null,null,null,null,null,null,null,null,null,true]
[null,null,null,null,null,null,null,null,null,null,true]
[null,null,null,null,null,null,null,null,null,null,true]
[null,null,null,null,null,null,null,null,null,null,true]
[null,null,null,null,null,null,null,null,null,null,true]
[null,null,null,null,null,null,null,null,null,null,true]
[null,null,null,null,null,null,null,null,null,null,true]
[null,null,null,null,null,null,null,null,null,null,true]
[null,null,null,null,null,null,null,null,null,null,true]
[null,null,null,null,null,null,null,null,null,null,true]
[null,null,null,null,null,null,null,null,null,null,true]
[null,null,null,null,null,null,null,null,null,null,true]
[null,null,null,null,null,null,null,null,null,null,true]
[null,null,null,null,null,null,null,null,null,null,true]
[null,null,null,null,null,null,null,null,null,null,true]
[null,null,null,null,null,null,null,null,null,null,true]
[null,null,null,null,null,null,null,null,null,null,true]
[null,null,null,null,null,null,null,null,null,null,true]
[null,null,null,null,null,null,null,null,null,null,true]
[null,null,null,null,null,null,null,null,null,null,true]
[null,null,null,null,null,null,null,null,null,null,true]
[null,null,null,null,null,null,null,null,null,null,true]
[null,null,null,null,null,null,null,null,null,null,true]
[null,null,null,null,null,null,null,null,null,null,true]
[null,null,null,null,null,null,null,null,null,null,true]
[null,null,null,null,null,null,null,null,null,null,true]

{"sheet":"Tabla 3.3","index":8,"n_rows":10,"n_cols":6,"rows_kept":10,"cut":false,"hidden":false,"merged":[[0,0,0,6]]}
["Tabla 3: SUPERVISIÓN Y AUDITORÍAS"]
[]
["3.3.- Actividades de auditoría efectuadas por la autoridad competente a autoridades de control (solo es pertinente si la autoridad competente confiere tareas de control en la autoridades de control) "]
[]
[null,"Número de autoridades de control en las que la autoridad competente ha delegado tareas de control","Número de auditorías efectuadas por la autoridad competente a autoridades de control","Cobertura de las autoridades de control auditadas por la autoridad competente durante el año de referencia","Observaciones en caso necesario"]
[null,"(K)","(L)","(M)= (L)/(K)"]
[null,"Año actual","TRUE",null,"Año actual","TRUE"]
[]
[null,"Suma de Número de autoridades de control en las que la autoridad competente ha delegado tareas de control","Suma de Número de auditorías efectuadas por la autoridad competente a autoridades de control","Cobertura M","Etiquetas de fila"]
["Durante el año de referencia",12,9,0.75," Se ha realizado la sopervisión a 7 operadores; En el caso de tres AC no realizaron auditoría interna a la Autoridad de Control en 2024 al estar establecido un mínimo de una por quinquenio. Sin embargo, indicar que en un caso, la AC participó en las auditorías de acompañamiento realizada por ENAC y en los otros, también se realizan actuaciones de supervisión de forma continua, respecto de la situaciones de los controles que se van realizando y de los incumplimientos a lo largo del año mediante informes trimestrales que se trasladan a la autoridad competente, así como reuniones de coordinación."]

{"sheet":"Datos Tabla 1.1","index":9,"n_rows":44,"n_cols":12,"rows_kept":44,"cut":false,"hidden":true,"merged":[]}
["Source.Name","Año","CA","Número de código de la autoridad competente/autoridad de control/organismo de control","Número de operadores","Número de verificaciones del cumplimiento","Controles anuales \n[artículo 38, apartado 3]","Controles adicionales basados en el riesgo\n[artículo 38, apartado 4, letra b)]","Número total de controles\n[artículo 38, apartado 3, y artículo 38, apartado 4, letra b)]","de los cuales, sin previo aviso\n[artículo 38, apartado 4, letra a)]","Número total de muestras","Número de muestras con detecciones"]
["Plantilla PNCOCA_2024_para_enviar_MAPA_con_OC_2.xlsmok.xlsm1.xlsm",2024,"ANDALUCÍA","ES-ECO-001-AN",13287,13489,13489,1755,15244,1570,842,73]
["Plantilla PNCOCA_2024_para_enviar_MAPA_con_OC_2.xlsmok.xlsm1.xlsm",2024,"ANDALUCÍA","ES-ECO-002-AN",3134,3200,3200,312,3512,407,212,22]
["Plantilla PNCOCA_2024_para_enviar_MAPA_con_OC_2.xlsmok.xlsm1.xlsm",2024,"ANDALUCÍA","ES-ECO-003-AN",4555,4649,4649,560,5209,739,404,98]
["Plantilla PNCOCA_2024_para_enviar_MAPA_con_OC_2.xlsmok.xlsm1.xlsm",2024,"ANDALUCÍA","ES-ECO-010-AN",105,107,107,15,122,16,8,0]
["Plantilla PNCOCA_2024_para_enviar_MAPA_con_OC_2.xlsmok.xlsm1.xlsm",2024,"ANDALUCÍA","ES-ECO-011-AN",1117,1155,1155,147,1302,132,52,3]
["Plantilla PNCOCA_2024_para_enviar_MAPA_con_OC_2.xlsmok.xlsm1.xlsm",2024,"ANDALUCÍA","ES-ECO-028-AN",355,341,341,38,379,40,19,1]
["Plantilla PNCOCA_2024_para_enviar_MAPA_con_OC_2.xlsmok.xlsm1.xlsm",2024,"ANDALUCÍA","ES-ECO-029-AN",16,16,16,2,18,1,2,0]
["Plantilla PNCOCA_2024_para_enviar_MAPA_con_OC_2.xlsmok.xlsm1.xlsm",2024,"ANDALUCÍA","ES-ECO-032-AN",3,4,4,0,4,0,1,0]
["Plantilla PNCOCA_2024_para_enviar_MAPA_con_OC_2.xlsmok.xlsm1.xlsm",2024,"ANDALUCÍA","ES-ECO-034-AN",19,21,21,3,24,3,3,2]
["2ndEnvio_Plantilla PNCOCA_2024_para_enviar_MAPA_sin_OC.xlsm",2024,"COMUNIDAD FORAL DE NAVARRA","ES-ECO-025-NA",767,784,784,93,877,430,83,7]
["Copia de Plantilla PNCOCA_2024_para_enviar_MAPA_con_OC.xlsm",2024,"CASTILLA Y LEÓN","ES-ECO-001-CL",465,467,467,61,528,58,29,4]
["Copia de Plantilla PNCOCA_2024_para_enviar_MAPA_con_OC.xlsm",2024,"CASTILLA Y LEÓN","ES-ECO-002-CL",230,232,232,36,268,28,30,3]
["Copia de Plantilla PNCOCA_2024_para_enviar_MAPA_con_OC.xlsm",2024,"CASTILLA Y LEÓN","ES-ECO-011-CL",12,12,12,2,14,2,2,0]
["Copia de Plantilla PNCOCA_2024_para_enviar_MAPA_con_OC.xlsm",2024,"CASTILLA Y LEÓN","ES-ECO-016-CL",1236,1242,1242,139,1381,150,96,6]
["Copia de Plantilla PNCOCA_2024_para_enviar_MAPA_con_OC.xlsm",2024,"CASTILLA Y LEÓN","ES-ECO-028-CL",2,2,2,1,3,1,1,0]
["Copia de Plantilla PNCOCA_2024_para_enviar_MAPA_con_OC.xlsm",2024,"CASTILLA Y LEÓN","ES-ECO-029-CL",0,4,4,0,4,0,0,0]
["Copia de Plantilla PNCOCA_2024_para_enviar_MAPA_con_OC.xlsm",2024,"CASTILLA Y LEÓN","ES-ECO-031-CL",225,229,229,35,264,30,14,2]
["Copia de Plantilla PNCOCA_2024_para_enviar_MAPA_con_OC.xlsm",2024,"CASTILLA Y LEÓN","ES-ECO-032-CL",22,22,22,2,24,0,1,0]
["Copia de Plantilla PNCOCA_2024_para_enviar_MAPA_con_OC.xlsm",2024,"CASTILLA Y LEÓN","ES-ECO-033-CL",44,43,43,6,49,5,4,1]
["Copia de Plantilla PNCOCA_2024_para_enviar_MAPA_con_OC.xlsm",2024,"CASTILLA Y LEÓN","ES-ECO-010-CL",0,0,0,0,0,0,0,0]
["PNCOCA_2024_sin_OC_COMUNITAT_VALENCIANA_2024_Revisado.xlsm",2024,"COMUNIDAD VALENCIANA","ES-ECO-020-CV",4329,4421,4421,502,4923,645,290,37]
["EXTREMADURA PNCOCA_2024 Envio 2..xlsm",2024,"EXTREMADURA","ES-ECO-021-EX",3327,3509,3509,408,3917,1623,204,25]
["Plantilla PNCOCA_2024_sin_OC.MADRID.xlsm",2024,"COMUNIDAD DE MADRID","ES-ECO-023-MA",483,489,489,64,553,76,51,4]
["LA RIOJA PNCOCA 2024.xlsm",2024,"LA RIOJA","ES-ECO-035-RI",505,543,543,57,600,83,26,5]
["Plantilla PNCOCA_2024_para_enviar_MAPA_sin_OC COPAE_ASTURIAS.xlsm",2024,"PRINCIPADO DE ASTURIAS","ES-ECO-012-AS",693,700,700,177,877,158,67,8]
["UTF-8Plantilla PNCOCA_2024_para_enviar_MAPA_sin_OC IIBB 25.04.25.xlsm",2024,"ISLAS BALEARES","ES-ECO-013-IB",1057,1073,1073,375,1448,161,87,11]
["Plantilla PNCOCA_2024_ARAGON.xlsm",2024,"ARAGÓN","ES-ECO-006-AR",1689,1716,1716,150,1866,1297,529,27]
["250515 Datos PNCOCA 2024 CAT v2.xlsm",2024,"CATALUÑA","ES-ECO-019-CT",5290,5400,5400,1175,6575,1108,432,40]
["Plantilla PNCOCA_2024_para_enviar_MAPA_sin_OC (1).xlsm",2024,"GALICIA","ES-ECO-022-GA",1274,1307,1307,214,1521,194,126,16]
["CLM_Plantilla_PNCOCA_2024_fusion_OC4.xlsm",2024,"CASTILLA-LA MANCHA","ES-ECO-001-CM",2791,2850,2850,386,3236,362,168,12]
["CLM_Plantilla_PNCOCA_2024_fusion_OC4.xlsm",2024,"CASTILLA-LA MANCHA","ES-ECO-002-CM",4002,4342,4342,465,4807,541,275,11]
["CLM_Plantilla_PNCOCA_2024_fusion_OC4.xlsm",2024,"CASTILLA-LA MANCHA","ES-ECO-003-CM",7,7,7,1,8,2,3,0]
["CLM_Plantilla_PNCOCA_2024_fusion_OC4.xlsm",2024,"CASTILLA-LA MANCHA","ES-ECO-011-CM",104,103,103,14,117,14,6,0]
["CLM_Plantilla_PNCOCA_2024_fusion_OC4.xlsm",2024,"CASTILLA-LA MANCHA","ES-ECO-028-CM",1140,1145,1145,141,1286,155,75,2]
["CLM_Plantilla_PNCOCA_2024_fusion_OC4.xlsm",2024,"CASTILLA-LA MANCHA","ES-ECO-033-CM",460,460,460,52,512,52,37,2]
["CLM_Plantilla_PNCOCA_2024_fusion_OC4.xlsm",2024,"CASTILLA-LA MANCHA","ES-ECO-034-CM",903,903,903,108,1011,103,63,8]
["CLM_Plantilla_PNCOCA_2024_fusion_OC4.xlsm",2024,"CASTILLA-LA MANCHA","ES-ECO-037-CM",4,4,4,1,5,1,4,0]
["CLM_Plantilla_PNCOCA_2024_fusion_OC4.xlsm",2024,"CASTILLA-LA MANCHA","ES-ECO-029-CM",0,0,0,0,0,0,0,0]
["Plantilla PNCOCA_2024_sin_OC CANTABRIA.xlsm",2024,"CANTABRIA ","ES-ECO-015-CN ",253,276,276,30,306,17,11,0]
["Plantilla PNCOCA_2024_para_enviar_MAPA_sin_OC_Murcia.xlsm",2024,"REGIÓN DE MURCIA","ES-ECO-024-MU",4839,4946,4946,539,5485,631,357,76]
["Plantilla PNCOCA_2024_ICCA Canarias v1 rev.xlsm",2024,"ISLAS CANARIAS","ES-ECO-014-IC",2110,1837,1837,229,2066,377,183,12]
["Euskadi PNCOCA_2024_para_enviar_MAPA_sin_OC.xlsm",2024,"PAÍS VASCO","ES-ECO-026-VAS",768,784,784,97,881,161,62,1]
[null,1999,null,0,0,0,0,0,0,0,0,0]

{"sheet":"Datos Tabla 1.2","index":10,"n_rows":19,"n_cols":9,"rows_kept":19,"cut":false,"hidden":true,"merged":[]}
["Source.Name","Año","CA","Número de código de la autoridad competente/autoridad de control/organismo de control","Identificación o nombre del grupo","Número total de operadores que son miembros de grupos","Número total de controles oficiales de los grupos","Número de reinspecciones a miembros de los grupos","Inspecciones en las que al menos se recogió una muestra"]
["Plantilla PNCOCA_2024_para_enviar_MAPA_con_OC_2.xlsmok.xlsm1.xlsm",2024,"ANDALUCÍA",0,0,0,0,0,0]
["2ndEnvio_Plantilla PNCOCA_2024_para_enviar_MAPA_sin_OC.xlsm",2024,"COMUNIDAD FORAL DE NAVARRA",0,0,0,0,0,0]
["Copia de Plantilla PNCOCA_2024_para_enviar_MAPA_con_OC.xlsm",2024,"CASTILLA Y LEÓN",0,0,0,0,0,0]
["PNCOCA_2024_sin_OC_COMUNITAT_VALENCIANA_2024_Revisado.xlsm",2024,"COMUNIDAD VALENCIANA",0,0,0,0,0,0]
["EXTREMADURA PNCOCA_2024 Envio 2..xlsm",2024,"EXTREMADURA",0,0,0,0,0,0]
["Plantilla PNCOCA_2024_sin_OC.MADRID.xlsm",2024,"COMUNIDAD DE MADRID",0,0,0,0,0,0]
["LA RIOJA PNCOCA 2024.xlsm",2024,"LA RIOJA",0,0,0,0,0,0]
["Plantilla PNCOCA_2024_para_enviar_MAPA_sin_OC COPAE_ASTURIAS.xlsm",2024,"PRINCIPADO DE ASTURIAS",0,0,0,0,0,0]
["UTF-8Plantilla PNCOCA_2024_para_enviar_MAPA_sin_OC IIBB 25.04.25.xlsm",2024,"ISLAS BALEARES",0,0,0,0,0,0]
["Plantilla PNCOCA_2024_ARAGON.xlsm",2024,"ARAGÓN",0,0,0,0,0,0]
["250515 Datos PNCOCA 2024 CAT v2.xlsm",2024,"CATALUÑA",0,0,0,0,0,0]
["Plantilla PNCOCA_2024_para_enviar_MAPA_sin_OC (1).xlsm",2024,"GALICIA",0,0,0,0,0,0]
["CLM_Plantilla_PNCOCA_2024_fusion_OC4.xlsm",2024,"CASTILLA-LA MANCHA",0,0,0,0,0,0]
["Plantilla PNCOCA_2024_sin_OC CANTABRIA.xlsm",2024,"CANTABRIA ",0,0,0,0,0,0]
["Plantilla PNCOCA_2024_para_enviar_MAPA_sin_OC_Murcia.xlsm",2024,"REGIÓN DE MURCIA",0,0,0,0,0,0]
["Plantilla PNCOCA_2024_ICCA Canarias v1 rev.xlsm",2024,"ISLAS CANARIAS",0,0,0,0,0,0]
["Euskadi PNCOCA_2024_para_enviar_MAPA_sin_OC.xlsm",2024,"PAÍS VASCO",0,0,0,0,0,0]
[null,1999,null,0,0,0,0,0,0]

{"sheet":" Datos Tabla 2.1","index":11,"n_rows":44,"n_cols":12,"rows_kept":44,"cut":false,"hidden":true,"merged":[]}
["Source.Name","Año","CA","Número de código de la autoridad competente/autoridad de control/organismo de control","Normas de producción generales","Normas de producción específicas","Sustancias o productos no autorizados","Excepciones","Documentos y registros","Normas para los grupos de operadores","Etiquetado","Otros"]
["Plantilla PNCOCA_2024_para_enviar_MAPA_con_OC_2.xlsmok.xlsm1.xlsm",2024,"ANDALUCÍA","ES-ECO-001-AN",44,22,51,46,15,0,1,0]
["Plantilla PNCOCA_2024_para_enviar_MAPA_con_OC_2.xlsmok.xlsm1.xlsm",2024,"ANDALUCÍA","ES-ECO-002-AN",71,0,36,15,42,0,3,4]
["Plantilla PNCOCA_2024_para_enviar_MAPA_con_OC_2.xlsmok.xlsm1.xlsm",2024,"ANDALUCÍA","ES-ECO-003-AN",85,22,61,37,9,0,3,12]
["Plantilla PNCOCA_2024_para_enviar_MAPA_con_OC_2.xlsmok.xlsm1.xlsm",2024,"ANDALUCÍA","ES-ECO-010-AN",15,2,0,6,7,0,0,1]
["Plantilla PNCOCA_2024_para_enviar_MAPA_con_OC_2.xlsmok.xlsm1.xlsm",2024,"ANDALUCÍA","ES-ECO-011-AN",1,0,0,0,0,0,0,0]
["Plantilla PNCOCA_2024_para_enviar_MAPA_con_OC_2.xlsmok.xlsm1.xlsm",2024,"ANDALUCÍA","ES-ECO-028-AN",0,1,1,4,0,0,0,0]
["Plantilla PNCOCA_2024_para_enviar_MAPA_con_OC_2.xlsmok.xlsm1.xlsm",2024,"ANDALUCÍA","ES-ECO-029-AN",0,0,0,0,0,0,0,0]
["Plantilla PNCOCA_2024_para_enviar_MAPA_con_OC_2.xlsmok.xlsm1.xlsm",2024,"ANDALUCÍA","ES-ECO-032-AN",0,0,0,0,0,0,0,0]
["Plantilla PNCOCA_2024_para_enviar_MAPA_con_OC_2.xlsmok.xlsm1.xlsm",2024,"ANDALUCÍA","ES-ECO-034-AN",3,0,2,0,1,0,0,0]
["2ndEnvio_Plantilla PNCOCA_2024_para_enviar_MAPA_sin_OC.xlsm",2024,"COMUNIDAD FORAL DE NAVARRA","ES-ECO-025-NA",16,6,10,10,0,0,0,0]
["Copia de Plantilla PNCOCA_2024_para_enviar_MAPA_con_OC.xlsm",2024,"CASTILLA Y LEÓN","ES-ECO-001-CL",6,1,1,1,0,0,0,0]
["Copia de Plantilla PNCOCA_2024_para_enviar_MAPA_con_OC.xlsm",2024,"CASTILLA Y LEÓN","ES-ECO-002-CL",1,0,3,0,0,0,0,0]
["Copia de Plantilla PNCOCA_2024_para_enviar_MAPA_con_OC.xlsm",2024,"CASTILLA Y LEÓN","ES-ECO-011-CL",0,0,0,0,0,0,0,0]
["Copia de Plantilla PNCOCA_2024_para_enviar_MAPA_con_OC.xlsm",2024,"CASTILLA Y LEÓN","ES-ECO-016-CL",2,0,4,0,0,0,0,0]
["Copia de Plantilla PNCOCA_2024_para_enviar_MAPA_con_OC.xlsm",2024,"CASTILLA Y LEÓN","ES-ECO-028-CL",0,0,0,0,0,0,0,0]
["Copia de Plantilla PNCOCA_2024_para_enviar_MAPA_con_OC.xlsm",2024,"CASTILLA Y LEÓN","ES-ECO-029-CL",0,0,0,0,0,0,0,0]
["Copia de Plantilla PNCOCA_2024_para_enviar_MAPA_con_OC.xlsm",2024,"CASTILLA Y LEÓN","ES-ECO-031-CL",1,0,1,0,3,0,0,0]
["Copia de Plantilla PNCOCA_2024_para_enviar_MAPA_con_OC.xlsm",2024,"CASTILLA Y LEÓN","ES-ECO-032-CL",2,0,0,0,0,0,0,0]
["Copia de Plantilla PNCOCA_2024_para_enviar_MAPA_con_OC.xlsm",2024,"CASTILLA Y LEÓN","ES-ECO-033-CL",0,1,0,0,0,0,0,0]
["Copia de Plantilla PNCOCA_2024_para_enviar_MAPA_con_OC.xlsm",2024,"CASTILLA Y LEÓN","ES-ECO-010-CL",0,0,0,0,0,0,0,0]
["PNCOCA_2024_sin_OC_COMUNITAT_VALENCIANA_2024_Revisado.xlsm",2024,"COMUNIDAD VALENCIANA","ES-ECO-020-CV",250,69,49,112,132,0,29,0]
["EXTREMADURA PNCOCA_2024 Envio 2..xlsm",2024,"EXTREMADURA","ES-ECO-021-EX",37,17,21,47,70,0,2,0]
["Plantilla PNCOCA_2024_sin_OC.MADRID.xlsm",2024,"COMUNIDAD DE MADRID","ES-ECO-023-MA",14,3,3,4,12,0,2,2]
["LA RIOJA PNCOCA 2024.xlsm",2024,"LA RIOJA","ES-ECO-035-RI",1,3,3,0,3,0,1,0]
["Plantilla PNCOCA_2024_para_enviar_MAPA_sin_OC COPAE_ASTURIAS.xlsm",2024,"PRINCIPADO DE ASTURIAS","ES-ECO-012-AS",3,11,8,0,16,0,1,1]
["UTF-8Plantilla PNCOCA_2024_para_enviar_MAPA_sin_OC IIBB 25.04.25.xlsm",2024,"ISLAS BALEARES","ES-ECO-013-IB",12,4,5,9,42,0,1,0]
["Plantilla PNCOCA_2024_ARAGON.xlsm",2024,"ARAGÓN","ES-ECO-006-AR",102,4,42,37,26,0,1,0]
["250515 Datos PNCOCA 2024 CAT v2.xlsm",2024,"CATALUÑA","ES-ECO-019-CT",21,27,19,2,3,0,11,3]
["Plantilla PNCOCA_2024_para_enviar_MAPA_sin_OC (1).xlsm",2024,"GALICIA","ES-ECO-022-GA",9,4,13,3,3,0,1,0]
["CLM_Plantilla_PNCOCA_2024_fusion_OC4.xlsm",2024,"CASTILLA-LA MANCHA","ES-ECO-001-CM",38,0,10,17,5,0,0,0]
["CLM_Plantilla_PNCOCA_2024_fusion_OC4.xlsm",2024,"CASTILLA-LA MANCHA","ES-ECO-002-CM",55,0,26,37,64,0,0,1]
["CLM_Plantilla_PNCOCA_2024_fusion_OC4.xlsm",2024,"CASTILLA-LA MANCHA","ES-ECO-003-CM",0,0,0,0,0,0,0,0]
["CLM_Plantilla_PNCOCA_2024_fusion_OC4.xlsm",2024,"CASTILLA-LA MANCHA","ES-ECO-011-CM",0,0,0,0,0,0,0,0]
["CLM_Plantilla_PNCOCA_2024_fusion_OC4.xlsm",2024,"CASTILLA-LA MANCHA","ES-ECO-028-CM",1,23,14,33,1,0,0,0]
["CLM_Plantilla_PNCOCA_2024_fusion_OC4.xlsm",2024,"CASTILLA-LA MANCHA","ES-ECO-033-CM",11,4,2,22,16,0,0,0]
["CLM_Plantilla_PNCOCA_2024_fusion_OC4.xlsm",2024,"CASTILLA-LA MANCHA","ES-ECO-034-CM",0,1,8,60,4,0,0,0]
["CLM_Plantilla_PNCOCA_2024_fusion_OC4.xlsm",2024,"CASTILLA-LA MANCHA","ES-ECO-037-CM",0,0,0,0,0,0,0,0]
["CLM_Plantilla_PNCOCA_2024_fusion_OC4.xlsm",2024,"CASTILLA-LA MANCHA","ES-ECO-029-CM",0,0,0,0,0,0,0,0]
["Plantilla PNCOCA_2024_sin_OC CANTABRIA.xlsm",2024,"CANTABRIA ","ES-ECO-015-CN ",2,1,0,0,1,0,0,0]
["Plantilla PNCOCA_2024_para_enviar_MAPA_sin_OC_Murcia.xlsm",2024,"REGIÓN DE MURCIA","ES-ECO-024-MU",6,1,26,0,17,0,2,0]
["Plantilla PNCOCA_2024_ICCA Canarias v1 rev.xlsm",2024,"ISLAS CANARIAS","ES-ECO-014-IC",0,3,18,4,39,0,2,30]
["Euskadi PNCOCA_2024_para_enviar_MAPA_sin_OC.xlsm",2024,"PAÍS VASCO","ES-ECO-026-VAS",3,8,2,0,3,0,0,0]
[null,1999,null,0,0,0,0,0,0,0,0,0]

{"sheet":"Datos Tabla 2.2","index":12,"n_rows":44,"n_cols":13,"rows_kept":44,"cut":false,"hidden":true,"merged":[]}
["Source.Name","Año","CA","Número de casos de incumplimientos demostrados","Mejora de la aplicación de las medidas cautelares y de los controles puestos en marcha por el operador","Ausencia de referencia a la producción ecológica en el etiquetado y la publicidad de todo el lote o campaña de producción de que se trate","Prohibición de comercializar el producto o productos afectados con referencia a la producción ecológica durante un periodo determinado","Nuevo período de conversión","Limitación del alcance del certificado","Suspensión del certificado","Retirada del certificado","Medida correctora aún por decidir","Otras"]
["Plantilla PNCOCA_2024_para_enviar_MAPA_con_OC_2.xlsmok.xlsm1.xlsm",2022,"ANDALUCÍA",179,0,80,8,10,0,203,63,0,0]
["Plantilla PNCOCA_2024_para_enviar_MAPA_con_OC_2.xlsmok.xlsm1.xlsm",2022,"ANDALUCÍA",171,0,7,0,9,0,97,24,0,0]
["Plantilla PNCOCA_2024_para_enviar_MAPA_con_OC_2.xlsmok.xlsm1.xlsm",2022,"ANDALUCÍA",229,0,24,12,12,0,68,36,0,0]
["Plantilla PNCOCA_2024_para_enviar_MAPA_con_OC_2.xlsmok.xlsm1.xlsm",2022,"ANDALUCÍA",31,0,2,0,0,1,5,1,0,0]
["Plantilla PNCOCA_2024_para_enviar_MAPA_con_OC_2.xlsmok.xlsm1.xlsm",2022,"ANDALUCÍA",1,0,0,8,0,0,0,0,0,0]
["Plantilla PNCOCA_2024_para_enviar_MAPA_con_OC_2.xlsmok.xlsm1.xlsm",2022,"ANDALUCÍA",6,2,1,0,1,0,0,0,0,0]
["Plantilla PNCOCA_2024_para_enviar_MAPA_con_OC_2.xlsmok.xlsm1.xlsm",2022,"ANDALUCÍA",0,0,0,0,0,0,0,0,0,0]
["Plantilla PNCOCA_2024_para_enviar_MAPA_con_OC_2.xlsmok.xlsm1.xlsm",2022,"ANDALUCÍA",0,0,0,0,0,0,0,1,0,0]
["Plantilla PNCOCA_2024_para_enviar_MAPA_con_OC_2.xlsmok.xlsm1.xlsm",2022,"ANDALUCÍA",6,0,0,0,0,0,1,0,0,0]
["2ndEnvio_Plantilla PNCOCA_2024_para_enviar_MAPA_sin_OC.xlsm",2022,"COMUNIDAD FORAL DE NAVARRA",42,4,22,0,8,0,13,1,0,0]
["Copia de Plantilla PNCOCA_2024_para_enviar_MAPA_con_OC.xlsm",2022,"CASTILLA Y LEÓN",9,3,2,0,0,0,6,1,0,0]
["Copia de Plantilla PNCOCA_2024_para_enviar_MAPA_con_OC.xlsm",2022,"CASTILLA Y LEÓN",4,2,3,0,1,0,2,1,0,0]
["Copia de Plantilla PNCOCA_2024_para_enviar_MAPA_con_OC.xlsm",2022,"CASTILLA Y LEÓN",0,0,0,0,0,0,0,0,0,0]
["Copia de Plantilla PNCOCA_2024_para_enviar_MAPA_con_OC.xlsm",2022,"CASTILLA Y LEÓN",6,5,4,0,0,0,1,0,0,0]
["Copia de Plantilla PNCOCA_2024_para_enviar_MAPA_con_OC.xlsm",2022,"CASTILLA Y LEÓN",0,0,0,0,0,0,0,0,0,0]
["Copia de Plantilla PNCOCA_2024_para_enviar_MAPA_con_OC.xlsm",2022,"CASTILLA Y LEÓN",0,0,0,0,0,0,0,0,0,0]
["Copia de Plantilla PNCOCA_2024_para_enviar_MAPA_con_OC.xlsm",2022,"CASTILLA Y LEÓN",5,2,1,1,0,0,1,0,0,0]
["Copia de Plantilla PNCOCA_2024_para_enviar_MAPA_con_OC.xlsm",2022,"CASTILLA Y LEÓN",2,1,0,0,0,0,1,0,0,0]
["Copia de Plantilla PNCOCA_2024_para_enviar_MAPA_con_OC.xlsm",2022,"CASTILLA Y LEÓN",1,1,1,0,0,0,0,0,0,0]
["Copia de Plantilla PNCOCA_2024_para_enviar_MAPA_con_OC.xlsm",2022,"CASTILLA Y LEÓN",0,0,0,0,0,0,0,0,0,0]
["PNCOCA_2024_sin_OC_COMUNITAT_VALENCIANA_2024_Revisado.xlsm",2022,"COMUNIDAD VALENCIANA",641,101,46,6,11,1,98,53,0,0]
["EXTREMADURA PNCOCA_2024 Envio 2..xlsm",2022,"EXTREMADURA",194,40,47,1,40,0,45,33,0,0]
["Plantilla PNCOCA_2024_sin_OC.MADRID.xlsm",2022,"COMUNIDAD DE MADRID",40,36,26,0,1,0,8,5,0,0]
["LA RIOJA PNCOCA 2024.xlsm",2022,"LA RIOJA",11,8,5,0,2,0,0,0,0,0]
["Plantilla PNCOCA_2024_para_enviar_MAPA_sin_OC COPAE_ASTURIAS.xlsm",2022,"PRINCIPADO DE ASTURIAS",40,30,1,5,2,0,2,2,0,0]
["UTF-8Plantilla PNCOCA_2024_para_enviar_MAPA_sin_OC IIBB 25.04.25.xlsm",2022,"ISLAS BALEARES",73,35,18,5,3,0,19,4,0,3]
["Plantilla PNCOCA_2024_ARAGON.xlsm",2022,"ARAGÓN",212,13,110,0,9,1,18,5,38,0]
["250515 Datos PNCOCA 2024 CAT v2.xlsm",2022,"CATALUÑA",86,86,73,10,2,1,10,4,6,0]
["Plantilla PNCOCA_2024_para_enviar_MAPA_sin_OC (1).xlsm",2022,"GALICIA",33,29,8,7,14,2,0,1,0,0]
["CLM_Plantilla_PNCOCA_2024_fusion_OC4.xlsm",2022,"CASTILLA-LA MANCHA",70,15,3,0,2,0,40,13,0,0]
["CLM_Plantilla_PNCOCA_2024_fusion_OC4.xlsm",2022,"CASTILLA-LA MANCHA",183,128,11,0,12,0,39,8,0,2]
["CLM_Plantilla_PNCOCA_2024_fusion_OC4.xlsm",2022,"CASTILLA-LA MANCHA",0,0,0,0,0,0,0,0,0,0]
["CLM_Plantilla_PNCOCA_2024_fusion_OC4.xlsm",2022,"CASTILLA-LA MANCHA",0,0,0,0,0,0,0,0,0,0]
["CLM_Plantilla_PNCOCA_2024_fusion_OC4.xlsm",2022,"CASTILLA-LA MANCHA",72,67,10,0,4,0,0,4,0,0]
["CLM_Plantilla_PNCOCA_2024_fusion_OC4.xlsm",2022,"CASTILLA-LA MANCHA",55,53,7,0,0,0,0,0,0,0]
["CLM_Plantilla_PNCOCA_2024_fusion_OC4.xlsm",2022,"CASTILLA-LA MANCHA",73,70,3,1,4,0,1,0,0,0]
["CLM_Plantilla_PNCOCA_2024_fusion_OC4.xlsm",2022,"CASTILLA-LA MANCHA",0,0,0,0,0,0,0,0,0,0]
["CLM_Plantilla_PNCOCA_2024_fusion_OC4.xlsm",2022,"CASTILLA-LA MANCHA",0,0,0,0,0,0,0,0,0,0]
["Plantilla PNCOCA_2024_sin_OC CANTABRIA.xlsm",2022,"CANTABRIA ",4,0,0,0,0,0,4,0,0,0]
["Plantilla PNCOCA_2024_para_enviar_MAPA_sin_OC_Murcia.xlsm",2022,"REGIÓN DE MURCIA",52,15,15,2,19,0,10,11,0,0]
["Plantilla PNCOCA_2024_ICCA Canarias v1 rev.xlsm",2022,"ISLAS CANARIAS",96,18,2,10,4,4,18,29,0,12]
["Euskadi PNCOCA_2024_para_enviar_MAPA_sin_OC.xlsm",2022,"PAÍS VASCO",16,0,3,0,3,0,7,3,0,0]
[null,1999,null,0,0,0,0,0,0,0,0,0,0]

{"sheet":"Datos Tabla 3.1","index":13,"n_rows":69,"n_cols":7,"rows_kept":69,"cut":false,"hidden":true,"merged":[]}
["Source.Name","Año","CA","Leyenda","Cod Leyenda","Número de organismos de control","Observaciones en caso necesario"]
["Plantilla PNCOCA_2024_para_enviar_MAPA_con_OC_2.xlsmok.xlsm1.xlsm",2024,"ANDALUCÍA","Número al inicio del año de referencia (1 de enero del año N)","(A)",9]
["Plantilla PNCOCA_2024_para_enviar_MAPA_con_OC_2.xlsmok.xlsm1.xlsm",2024,"ANDALUCÍA","Nuevos organismos de control durante el año N","(B)",0]
["Plantilla PNCOCA_2024_para_enviar_MAPA_con_OC_2.xlsmok.xlsm1.xlsm",2024,"ANDALUCÍA","Organismos de control a los que se ha retirado la delegación durante el año N","(C)",0]
["Plantilla PNCOCA_2024_para_enviar_MAPA_con_OC_2.xlsmok.xlsm1.xlsm",2024,"ANDALUCÍA","Número al final del año de referencia (31 de diciembre del año N)","(D)",9]
["2ndEnvio_Plantilla PNCOCA_2024_para_enviar_MAPA_sin_OC.xlsm",2024,"COMUNIDAD FORAL DE NAVARRA","Número al inicio del año de referencia (1 de enero del año N)","(A)",0]
["2ndEnvio_Plantilla PNCOCA_2024_para_enviar_MAPA_sin_OC.xlsm",2024,"COMUNIDAD FORAL DE NAVARRA","Nuevos organismos de control durante el año N","(B)",0]
["2ndEnvio_Plantilla PNCOCA_2024_para_enviar_MAPA_sin_OC.xlsm",2024,"COMUNIDAD FORAL DE NAVARRA","Organismos de control a los que se ha retirado la delegación durante el año N","(C)",0]
["2ndEnvio_Plantilla PNCOCA_2024_para_enviar_MAPA_sin_OC.xlsm",2024,"COMUNIDAD FORAL DE NAVARRA","Número al final del año de referencia (31 de diciembre del año N)","(D)",0]
["Copia de Plantilla PNCOCA_2024_para_enviar_MAPA_con_OC.xlsm",2024,"CASTILLA Y LEÓN","Número al inicio del año de referencia (1 de enero del año N)","(A)",9]
["Copia de Plantilla PNCOCA_2024_para_enviar_MAPA_con_OC.xlsm",2024,"CASTILLA Y LEÓN","Nuevos organismos de control durante el año N","(B)",0]
["Copia de Plantilla PNCOCA_2024_para_enviar_MAPA_con_OC.xlsm",2024,"CASTILLA Y LEÓN","Organismos de control a los que se ha retirado la delegación durante el año N","(C)",0]
["Copia de Plantilla PNCOCA_2024_para_enviar_MAPA_con_OC.xlsm",2024,"CASTILLA Y LEÓN","Número al final del año de referencia (31 de diciembre del año N)","(D)",9]
["PNCOCA_2024_sin_OC_COMUNITAT_VALENCIANA_2024_Revisado.xlsm",2024,"COMUNIDAD VALENCIANA","Número al inicio del año de referencia (1 de enero del año N)","(A)",0]
["PNCOCA_2024_sin_OC_COMUNITAT_VALENCIANA_2024_Revisado.xlsm",2024,"COMUNIDAD VALENCIANA","Nuevos organismos de control durante el año N","(B)",0]
["PNCOCA_2024_sin_OC_COMUNITAT_VALENCIANA_2024_Revisado.xlsm",2024,"COMUNIDAD VALENCIANA","Organismos de control a los que se ha retirado la delegación durante el año N","(C)",0]
["PNCOCA_2024_sin_OC_COMUNITAT_VALENCIANA_2024_Revisado.xlsm",2024,"COMUNIDAD VALENCIANA","Número al final del año de referencia (31 de diciembre del año N)","(D)",0]
["EXTREMADURA PNCOCA_2024 Envio 2..xlsm",2024,"EXTREMADURA","Número al inicio del año de referencia (1 de enero del año N)","(A)",0]
["EXTREMADURA PNCOCA_2024 Envio 2..xlsm",2024,"EXTREMADURA","Nuevos organismos de control durante el año N","(B)",0]
["EXTREMADURA PNCOCA_2024 Envio 2..xlsm",2024,"EXTREMADURA","Organismos de control a los que se ha retirado la delegación durante el año N","(C)",0]
["EXTREMADURA PNCOCA_2024 Envio 2..xlsm",2024,"EXTREMADURA","Número al final del año de referencia (31 de diciembre del año N)","(D)",0]
["Plantilla PNCOCA_2024_sin_OC.MADRID.xlsm",2024,"COMUNIDAD DE MADRID","Número al inicio del año de referencia (1 de enero del año N)","(A)",0]
["Plantilla PNCOCA_2024_sin_OC.MADRID.xlsm",2024,"COMUNIDAD DE MADRID","Nuevos organismos de control durante el año N","(B)",0]
["Plantilla PNCOCA_2024_sin_OC.MADRID.xlsm",2024,"COMUNIDAD DE MADRID","Organismos de control a los que se ha retirado la delegación durante el año N","(C)",0]
["Plantilla PNCOCA_2024_sin_OC.MADRID.xlsm",2024,"COMUNIDAD DE MADRID","Número al final del año de referencia (31 de diciembre del año N)","(D)",0]
["LA RIOJA PNCOCA 2024.xlsm",2024,"LA RIOJA","Número al inicio del año de referencia (1 de enero del año N)","(A)",0]
["LA RIOJA PNCOCA 2024.xlsm",2024,"LA RIOJA","Nuevos organismos de control durante el año N","(B)",0]
["LA RIOJA PNCOCA 2024.xlsm",2024,"LA RIOJA","Organismos de control a los que se ha retirado la delegación durante el año N","(C)",0]
["LA RIOJA PNCOCA 2024.xlsm",2024,"LA RIOJA","Número al final del año de referencia (31 de diciembre del año N)","(D)",0]
["Plantilla PNCOCA_2024_para_enviar_MAPA_sin_OC COPAE_ASTURIAS.xlsm",2024,"PRINCIPADO DE ASTURIAS","Número al inicio del año de referencia (1 de enero del año N)","(A)",0]
["Plantilla PNCOCA_2024_para_enviar_MAPA_sin_OC COPAE_ASTURIAS.xlsm",2024,"PRINCIPADO DE ASTURIAS","Nuevos organismos de control durante el año N","(B)",0]
["Plantilla PNCOCA_2024_para_enviar_MAPA_sin_OC COPAE_ASTURIAS.xlsm",2024,"PRINCIPADO DE ASTURIAS","Organismos de control a los que se ha retirado la delegación durante el año N","(C)",0]
["Plantilla PNCOCA_2024_para_enviar_MAPA_sin_OC COPAE_ASTURIAS.xlsm",2024,"PRINCIPADO DE ASTURIAS","Número al final del año de referencia (31 de diciembre del año N)","(D)",0]
["UTF-8Plantilla PNCOCA_2024_para_enviar_MAPA_sin_OC IIBB 25.04.25.xlsm",2024,"ISLAS BALEARES","Número al inicio del año de referencia (1 de enero del año N)","(A)",0]
["UTF-8Plantilla PNCOCA_2024_para_enviar_MAPA_sin_OC IIBB 25.04.25.xlsm",2024,"ISLAS BALEARES","Nuevos organismos de control durante el año N","(B)",0]
["UTF-8Plantilla PNCOCA_2024_para_enviar_MAPA_sin_OC IIBB 25.04.25.xlsm",2024,"ISLAS BALEARES","Organismos de control a los que se ha retirado la delegación durante el año N","(C)",0]
["UTF-8Plantilla PNCOCA_2024_para_enviar_MAPA_sin_OC IIBB 25.04.25.xlsm",2024,"ISLAS BALEARES","Número al final del año de referencia (31 de diciembre del año N)","(D)",0]
["Plantilla PNCOCA_2024_ARAGON.xlsm",2024,"ARAGÓN","Número al inicio del año de referencia (1 de enero del año N)","(A)",0]
["Plantilla PNCOCA_2024_ARAGON.xlsm",2024,"ARAGÓN","Nuevos organismos de control durante el año N","(B)",0]
["Plantilla PNCOCA_2024_ARAGON.xlsm",2024,"ARAGÓN","Organismos de control a los que se ha retirado la delegación durante el año N","(C)",0]
["Plantilla PNCOCA_2024_ARAGON.xlsm",2024,"ARAGÓN","Número al final del año de referencia (31 de diciembre del año N)","(D)",0]
["250515 Datos PNCOCA 2024 CAT v2.xlsm",2024,"CATALUÑA","Número al inicio del año de referencia (1 de enero del año N)","(A)",0]
["250515 Datos PNCOCA 2024 CAT v2.xlsm",2024,"CATALUÑA","Nuevos organismos de control durante el año N","(B)",0]
["250515 Datos PNCOCA 2024 CAT v2.xlsm",2024,"CATALUÑA","Organismos de control a los que se ha retirado la delegación durante el año N","(C)",0]
["250515 Datos PNCOCA 2024 CAT v2.xlsm",2024,"CATALUÑA","Número al final del año de referencia (31 de diciembre del año N)","(D)",0]
["Plantilla PNCOCA_2024_para_enviar_MAPA_sin_OC (1).xlsm",2024,"GALICIA","Número al inicio del año de referencia (1 de enero del año N)","(A)",0]
["Plantilla PNCOCA_2024_para_enviar_MAPA_sin_OC (1).xlsm",2024,"GALICIA","Nuevos organismos de control durante el año N","(B)",0]
["Plantilla PNCOCA_2024_para_enviar_MAPA_sin_OC (1).xlsm",2024,"GALICIA","Organismos de control a los que se ha retirado la delegación durante el año N","(C)",0]
["Plantilla PNCOCA_2024_para_enviar_MAPA_sin_OC (1).xlsm",2024,"GALICIA","Número al final del año de referencia (31 de diciembre del año N)","(D)",0]
["CLM_Plantilla_PNCOCA_2024_fusion_OC4.xlsm",2024,"CASTILLA-LA MANCHA","Número al inicio del año de referencia (1 de enero del año N)","(A)",9]
["CLM_Plantilla_PNCOCA_2024_fusion_OC4.xlsm",2024,"CASTILLA-LA MANCHA","Nuevos organismos de control durante el año N","(B)",0]
["CLM_Plantilla_PNCOCA_2024_fusion_OC4.xlsm",2024,"CASTILLA-LA MANCHA","Organismos de control a los que se ha retirado la delegación durante el año N","(C)",0,"De los 9 OC que estaban autorizados al inicio del año en CLM, el ES-ECO-029-CM ha dejado de tener operadores a lo largo del año, pero sigue teniendo la delegación de tareas."]
["CLM_Plantilla_PNCOCA_2024_fusion_OC4.xlsm",2024,"CASTILLA-LA MANCHA","Número al final del año de referencia (31 de diciembre del año N)","(D)",9]
["Plantilla PNCOCA_2024_sin_OC CANTABRIA.xlsm",2024,"CANTABRIA ","Número al inicio del año de referencia (1 de enero del año N)","(A)",0]
["Plantilla PNCOCA_2024_sin_OC CANTABRIA.xlsm",2024,"CANTABRIA ","Nuevos organismos de control durante el año N","(B)",0]
["Plantilla PNCOCA_2024_sin_OC CANTABRIA.xlsm",2024,"CANTABRIA ","Organismos de control a los que se ha retirado la delegación durante el año N","(C)",0]
["Plantilla PNCOCA_2024_sin_OC CANTABRIA.xlsm",2024,"CANTABRIA ","Número al final del año de referencia (31 de diciembre del año N)","(D)",0]
["Plantilla PNCOCA_2024_para_enviar_MAPA_sin_OC_Murcia.xlsm",2024,"REGIÓN DE MURCIA","Número al inicio del año de referencia (1 de enero del año N)","(A)",0]
["Plantilla PNCOCA_2024_para_enviar_MAPA_sin_OC_Murcia.xlsm",2024,"REGIÓN DE MURCIA","Nuevos organismos de control durante el año N","(B)",0]
["Plantilla PNCOCA_2024_para_enviar_MAPA_sin_OC_Murcia.xlsm",2024,"REGIÓN DE MURCIA","Organismos de control a los que se ha retirado la delegación durante el año N","(C)",0]
["Plantilla PNCOCA_2024_para_enviar_MAPA_sin_OC_Murcia.xlsm",2024,"REGIÓN DE MURCIA","Número al final del año de referencia (31 de diciembre del año N)","(D)",0]
["Plantilla PNCOCA_2024_ICCA Canarias v1 rev.xlsm",2024,"ISLAS CANARIAS","Número al inicio del año de referencia (1 de enero del año N)","(A)",0]
["Plantilla PNCOCA_2024_ICCA Canarias v1 rev.xlsm",2024,"ISLAS CANARIAS","Nuevos organismos de control durante el año N","(B)",0]
["Plantilla PNCOCA_2024_ICCA Canarias v1 rev.xlsm",2024,"ISLAS CANARIAS","Organismos de control a los que se ha retirado la delegación durante el año N","(C)",0]
["Plantilla PNCOCA_2024_ICCA Canarias v1 rev.xlsm",2024,"ISLAS CANARIAS","Número al final del año de referencia (31 de diciembre del año N)","(D)",0]
["Euskadi PNCOCA_2024_para_enviar_MAPA_sin_OC.xlsm",2024,"PAÍS VASCO","Número al inicio del año de referencia (1 de enero del año N)","(A)",0]
["Euskadi PNCOCA_2024_para_enviar_MAPA_sin_OC.xlsm",2024,"PAÍS VASCO","Nuevos organismos de control durante el año N","(B)",0]
["Euskadi PNCOCA_2024_para_enviar_MAPA_sin_OC.xlsm",2024,"PAÍS VASCO","Organismos de control a los que se ha retirado la delegación durante el año N","(C)",0]
["Euskadi PNCOCA_2024_para_enviar_MAPA_sin_OC.xlsm",2024,"PAÍS VASCO","Número al final del año de referencia (31 de diciembre del año N)","(D)",0]

{"sheet":"Datos Tabla 3.2.a","index":14,"n_rows":19,"n_cols":7,"rows_kept":19,"cut":false,"hidden":true,"merged":[]}
["Source.Name","Año","CA","Número de organismos de control al final del año de referencia","Número de auditorías de supervisión de organismos de control realizadas por la autoridad competente durante el año de referencia","Cobertura de organismos de control mediante la auditoría de supervisión de la autoridad competente","Observaciones en caso necesario"]
["Plantilla PNCOCA_2024_para_enviar_MAPA_con_OC_2.xlsmok.xlsm1.xlsm",2024,"ANDALUCÍA",9,9,1,0]
["2ndEnvio_Plantilla PNCOCA_2024_para_enviar_MAPA_sin_OC.xlsm",2024,"COMUNIDAD FORAL DE NAVARRA",null,0,null,0]
["Copia de Plantilla PNCOCA_2024_para_enviar_MAPA_con_OC.xlsm",2024,"CASTILLA Y LEÓN",9,8,0.88888888888888884,"En España a 31/12/2024 tres AC tenían delegado el control en 27 OC. De ellos, 5 estaban siendo evaluados por parte de su AC sobre el mantenimiento de la delegación (3 por no tener operadores y 2 por tener la acreditación de ENAC en suspensión temporal). La AC no pudo hacer auditoría completa sobre ES-ECO-010-CL ni ES-ECO-029-CM por no tener operadores certificados. Adicionalmente, señalar que aunque en la presente tabla se contabilizan 27 OC, en la tabla 3.2.b aparecen 28 entradas ya que también se incluye la información de la supervisión efectuada por una Autoridad Competente con sistema mixto (Autoridad de Control y Organismos de Control) a su Autoridad de Control (ES-ECO-016-CL)"]
["PNCOCA_2024_sin_OC_COMUNITAT_VALENCIANA_2024_Revisado.xlsm",2024,"COMUNIDAD VALENCIANA",null,0,null,0]
["EXTREMADURA PNCOCA_2024 Envio 2..xlsm",2024,"EXTREMADURA",null,0,null,0]
["Plantilla PNCOCA_2024_sin_OC.MADRID.xlsm",2024,"COMUNIDAD DE MADRID",null,0,null,0]
["LA RIOJA PNCOCA 2024.xlsm",2024,"LA RIOJA",null,0,null,0]
["Plantilla PNCOCA_2024_para_enviar_MAPA_sin_OC COPAE_ASTURIAS.xlsm",2024,"PRINCIPADO DE ASTURIAS",null,0,null,0]
["UTF-8Plantilla PNCOCA_2024_para_enviar_MAPA_sin_OC IIBB 25.04.25.xlsm",2024,"ISLAS BALEARES",null,0,null,0]
["Plantilla PNCOCA_2024_ARAGON.xlsm",2024,"ARAGÓN",null,0,null,0]
["250515 Datos PNCOCA 2024 CAT v2.xlsm",2024,"CATALUÑA",null,0,null,0]
["Plantilla PNCOCA_2024_para_enviar_MAPA_sin_OC (1).xlsm",2024,"GALICIA",null,0,null,0]
["CLM_Plantilla_PNCOCA_2024_fusion_OC4.xlsm",2024,"CASTILLA-LA MANCHA",9,8,0.88888888888888884,0]
["Plantilla PNCOCA_2024_sin_OC CANTABRIA.xlsm",2024,"CANTABRIA ",null,0,null,0]
["Plantilla PNCOCA_2024_para_enviar_MAPA_sin_OC_Murcia.xlsm",2024,"REGIÓN DE MURCIA",null,0,null,0]
["Plantilla PNCOCA_2024_ICCA Canarias v1 rev.xlsm",2024,"ISLAS CANARIAS",null,0,null,0]
["Euskadi PNCOCA_2024_para_enviar_MAPA_sin_OC.xlsm",2024,"PAÍS VASCO",null,0,null,0]
[null,1999,null,0,0,0,0]

{"sheet":"Datos Tabla 3.2.b","index":15,"n_rows":450,"n_cols":12,"rows_kept":450,"cut":false,"hidden":true,"merged":[]}
["Source.Name","Año","CA","Lista de todos los organismos de control bajo supervisión de la autoridad competente","Número de operadores","Número de grupos de operadores","Auditoría realizada por la autoridad competente durante el año de referencia\nsí=1/no=0","Número de expedientes de operadores revisados en la auditoría de supervisión durante el año de referencia","Cobertura del número de expedientes de operadores revisados frente al número total de operadores","Número de expedientes de grupos de operadores revisados en el transcurso de la auditoría durante el año de referencia","Cobertura del número de expedientes de grupos de operadores revisados frente al número total de grupos de operadores","Indíquese el número de referencia del formulario individual cumplimentado para el organismo de control"]
["Plantilla PNCOCA_2024_para_enviar_MAPA_con_OC_2.xlsmok.xlsm1.xlsm",2024,"ANDALUCÍA","ES-ECO-001-AN",13287,0,1,20,1.5052306766011891E-3,0,0,0]
["Plantilla PNCOCA_2024_para_enviar_MAPA_con_OC_2.xlsmok.xlsm1.xlsm",2024,"ANDALUCÍA","ES-ECO-002-AN",3134,0,1,13,4.1480536056158262E-3,0,0,0]
["Plantilla PNCOCA_2024_para_enviar_MAPA_con_OC_2.xlsmok.xlsm1.xlsm",2024,"ANDALUCÍA","ES-ECO-003-AN",4555,0,1,13,2.8540065861690448E-3,0,0,0]
["Plantilla PNCOCA_2024_para_enviar_MAPA_con_OC_2.xlsmok.xlsm1.xlsm",2024,"ANDALUCÍA","ES-ECO-010-AN",105,0,1,5,4.7619047619047616E-2,0,0,0]
["Plantilla PNCOCA_2024_para_enviar_MAPA_con_OC_2.xlsmok.xlsm1.xlsm",2024,"ANDALUCÍA","ES-ECO-011-AN",1117,0,1,8,7.162041181736795E-3,0,0,0]
["Plantilla PNCOCA_2024_para_enviar_MAPA_con_OC_2.xlsmok.xlsm1.xlsm",2024,"ANDALUCÍA","ES-ECO-028-AN",355,0,1,5,1.408450704225352E-2,0,0,0]
["Plantilla PNCOCA_2024_para_enviar_MAPA_con_OC_2.xlsmok.xlsm1.xlsm",2024,"ANDALUCÍA","ES-ECO-029-AN",16,0,1,3,0.1875,0,0,0]
["Plantilla PNCOCA_2024_para_enviar_MAPA_con_OC_2.xlsmok.xlsm1.xlsm",2024,"ANDALUCÍA","ES-ECO-032-AN",3,0,1,3,1,0,0,0]
["Plantilla PNCOCA_2024_para_enviar_MAPA_con_OC_2.xlsmok.xlsm1.xlsm",2024,"ANDALUCÍA","ES-ECO-034-AN",19,0,1,2,0.10526315789473684,0,0,0]
["2ndEnvio_Plantilla PNCOCA_2024_para_enviar_MAPA_sin_OC.xlsm",2024,"COMUNIDAD FORAL DE NAVARRA",0,0,0,0,0,0,0,0,0]
["2ndEnvio_Plantilla PNCOCA_2024_para_enviar_MAPA_sin_OC.xlsm",2024,"COMUNIDAD FORAL DE NAVARRA",0,0,0,0,0,0,0,0,0]
["2ndEnvio_Plantilla PNCOCA_2024_para_enviar_MAPA_sin_OC.xlsm",2024,"COMUNIDAD FORAL DE NAVARRA",0,0,0,0,0,0,0,0,0]
["2ndEnvio_Plantilla PNCOCA_2024_para_enviar_MAPA_sin_OC.xlsm",2024,"COMUNIDAD FORAL DE NAVARRA",0,0,0,0,0,0,0,0,0]
["2ndEnvio_Plantilla PNCOCA_2024_para_enviar_MAPA_sin_OC.xlsm",2024,"COMUNIDAD FORAL DE NAVARRA",0,0,0,0,0,0,0,0,0]
["2ndEnvio_Plantilla PNCOCA_2024_para_enviar_MAPA_sin_OC.xlsm",2024,"COMUNIDAD FORAL DE NAVARRA",0,0,0,0,0,0,0,0,0]
["2ndEnvio_Plantilla PNCOCA_2024_para_enviar_MAPA_sin_OC.xlsm",2024,"COMUNIDAD FORAL DE NAVARRA",0,0,0,0,0,0,0,0,0]
["2ndEnvio_Plantilla PNCOCA_2024_para_enviar_MAPA_sin_OC.xlsm",2024,"COMUNIDAD FORAL DE NAVARRA",0,0,0,0,0,0,0,0,0]
["2ndEnvio_Plantilla PNCOCA_2024_para_enviar_MAPA_sin_OC.xlsm",2024,"COMUNIDAD FORAL DE NAVARRA",0,0,0,0,0,0,0,0,0]
["2ndEnvio_Plantilla PNCOCA_2024_para_enviar_MAPA_sin_OC.xlsm",2024,"COMUNIDAD FORAL DE NAVARRA",0,0,0,0,0,0,0,0,0]
["2ndEnvio_Plantilla PNCOCA_2024_para_enviar_MAPA_sin_OC.xlsm",2024,"COMUNIDAD FORAL DE NAVARRA",0,0,0,0,0,0,0,0,0]
["2ndEnvio_Plantilla PNCOCA_2024_para_enviar_MAPA_sin_OC.xlsm",2024,"COMUNIDAD FORAL DE NAVARRA",0,0,0,0,0,0,0,0,0]
["2ndEnvio_Plantilla PNCOCA_2024_para_enviar_MAPA_sin_OC.xlsm",2024,"COMUNIDAD FORAL DE NAVARRA",0,0,0,0,0,0,0,0,0]
["2ndEnvio_Plantilla PNCOCA_2024_para_enviar_MAPA_sin_OC.xlsm",2024,"COMUNIDAD FORAL DE NAVARRA",0,0,0,0,0,0,0,0,0]
["2ndEnvio_Plantilla PNCOCA_2024_para_enviar_MAPA_sin_OC.xlsm",2024,"COMUNIDAD FORAL DE NAVARRA",0,0,0,0,0,0,0,0,0]
["2ndEnvio_Plantilla PNCOCA_2024_para_enviar_MAPA_sin_OC.xlsm",2024,"COMUNIDAD FORAL DE NAVARRA",0,0,0,0,0,0,0,0,0]
["2ndEnvio_Plantilla PNCOCA_2024_para_enviar_MAPA_sin_OC.xlsm",2024,"COMUNIDAD FORAL DE NAVARRA",0,0,0,0,0,0,0,0,0]
["2ndEnvio_Plantilla PNCOCA_2024_para_enviar_MAPA_sin_OC.xlsm",2024,"COMUNIDAD FORAL DE NAVARRA",0,0,0,0,0,0,0,0,0]
["2ndEnvio_Plantilla PNCOCA_2024_para_enviar_MAPA_sin_OC.xlsm",2024,"COMUNIDAD FORAL DE NAVARRA",0,0,0,0,0,0,0,0,0]
["2ndEnvio_Plantilla PNCOCA_2024_para_enviar_MAPA_sin_OC.xlsm",2024,"COMUNIDAD FORAL DE NAVARRA",0,0,0,0,0,0,0,0,0]
["2ndEnvio_Plantilla PNCOCA_2024_para_enviar_MAPA_sin_OC.xlsm",2024,"COMUNIDAD FORAL DE NAVARRA",0,0,0,0,0,0,0,0,0]
["2ndEnvio_Plantilla PNCOCA_2024_para_enviar_MAPA_sin_OC.xlsm",2024,"COMUNIDAD FORAL DE NAVARRA",0,0,0,0,0,0,0,0,0]
["2ndEnvio_Plantilla PNCOCA_2024_para_enviar_MAPA_sin_OC.xlsm",2024,"COMUNIDAD FORAL DE NAVARRA",0,0,0,0,0,0,0,0,0]
["2ndEnvio_Plantilla PNCOCA_2024_para_enviar_MAPA_sin_OC.xlsm",2024,"COMUNIDAD FORAL DE NAVARRA",0,0,0,0,0,0,0,0,0]
["2ndEnvio_Plantilla PNCOCA_2024_para_enviar_MAPA_sin_OC.xlsm",2024,"COMUNIDAD FORAL DE NAVARRA",0,0,0,0,0,0,0,0,0]
["2ndEnvio_Plantilla PNCOCA_2024_para_enviar_MAPA_sin_OC.xlsm",2024,"COMUNIDAD FORAL DE NAVARRA",0,0,0,0,0,0,0,0,0]
["2ndEnvio_Plantilla PNCOCA_2024_para_enviar_MAPA_sin_OC.xlsm",2024,"COMUNIDAD FORAL DE NAVARRA",0,0,0,0,0,0,0,0,0]
["2ndEnvio_Plantilla PNCOCA_2024_para_enviar_MAPA_sin_OC.xlsm",2024,"COMUNIDAD FORAL DE NAVARRA",0,0,0,0,0,0,0,0,0]
["2ndEnvio_Plantilla PNCOCA_2024_para_enviar_MAPA_sin_OC.xlsm",2024,"COMUNIDAD FORAL DE NAVARRA",0,0,0,0,0,0,0,0,0]
["2ndEnvio_Plantilla PNCOCA_2024_para_enviar_MAPA_sin_OC.xlsm",2024,"COMUNIDAD FORAL DE NAVARRA",0,0,0,0,0,0,0,0,0]
["Copia de Plantilla PNCOCA_2024_para_enviar_MAPA_con_OC.xlsm",2024,"CASTILLA Y LEÓN","ES-ECO-001-CL",465,0,1,5,1.0752688172043012E-2,0,0,0]
["Copia de Plantilla PNCOCA_2024_para_enviar_MAPA_con_OC.xlsm",2024,"CASTILLA Y LEÓN","ES-ECO-002-CL",230,0,1,5,2.1739130434782608E-2,0,0,0]
["Copia de Plantilla PNCOCA_2024_para_enviar_MAPA_con_OC.xlsm",2024,"CASTILLA Y LEÓN","ES-ECO-011-CL",12,0,1,3,0.25,0,0,0]
["Copia de Plantilla PNCOCA_2024_para_enviar_MAPA_con_OC.xlsm",2024,"CASTILLA Y LEÓN","ES-ECO-016-CL",1236,0,1,7,5.6634304207119745E-3,0,0,0]
["Copia de Plantilla PNCOCA_2024_para_enviar_MAPA_con_OC.xlsm",2024,"CASTILLA Y LEÓN","ES-ECO-028-CL",2,0,1,2,1,0,0,0]
["Copia de Plantilla PNCOCA_2024_para_enviar_MAPA_con_OC.xlsm",2024,"CASTILLA Y LEÓN","ES-ECO-029-CL",0,0,1,7,0,0,0,0]
["Copia de Plantilla PNCOCA_2024_para_enviar_MAPA_con_OC.xlsm",2024,"CASTILLA Y LEÓN","ES-ECO-031-CL",225,0,1,5,2.2222222222222223E-2,0,0,0]
["Copia de Plantilla PNCOCA_2024_para_enviar_MAPA_con_OC.xlsm",2024,"CASTILLA Y LEÓN","ES-ECO-032-CL",22,0,1,3,0.13636363636363635,0,0,0]
["Copia de Plantilla PNCOCA_2024_para_enviar_MAPA_con_OC.xlsm",2024,"CASTILLA Y LEÓN","ES-ECO-033-CL",44,0,1,3,6.8181818181818177E-2,0,0,0]
["Copia de Plantilla PNCOCA_2024_para_enviar_MAPA_con_OC.xlsm",2024,"CASTILLA Y LEÓN","ES-ECO-010-CL",0,0,0,0,0,0,0,0]
["PNCOCA_2024_sin_OC_COMUNITAT_VALENCIANA_2024_Revisado.xlsm",2024,"COMUNIDAD VALENCIANA",0,0,0,0,0,0,0,0,0]
["PNCOCA_2024_sin_OC_COMUNITAT_VALENCIANA_2024_Revisado.xlsm",2024,"COMUNIDAD VALENCIANA",0,0,0,0,0,0,0,0,0]
["PNCOCA_2024_sin_OC_COMUNITAT_VALENCIANA_2024_Revisado.xlsm",2024,"COMUNIDAD VALENCIANA",0,0,0,0,0,0,0,0,0]
["PNCOCA_2024_sin_OC_COMUNITAT_VALENCIANA_2024_Revisado.xlsm",2024,"COMUNIDAD VALENCIANA",0,0,0,0,0,0,0,0,0]
["PNCOCA_2024_sin_OC_COMUNITAT_VALENCIANA_2024_Revisado.xlsm",2024,"COMUNIDAD VALENCIANA",0,0,0,0,0,0,0,0,0]
["PNCOCA_2024_sin_OC_COMUNITAT_VALENCIANA_2024_Revisado.xlsm",2024,"COMUNIDAD VALENCIANA",0,0,0,0,0,0,0,0,0]
["PNCOCA_2024_sin_OC_COMUNITAT_VALENCIANA_2024_Revisado.xlsm",2024,"COMUNIDAD VALENCIANA",0,0,0,0,0,0,0,0,0]
["PNCOCA_2024_sin_OC_COMUNITAT_VALENCIANA_2024_Revisado.xlsm",2024,"COMUNIDAD VALENCIANA",0,0,0,0,0,0,0,0,0]
["PNCOCA_2024_sin_OC_COMUNITAT_VALENCIANA_2024_Revisado.xlsm",2024,"COMUNIDAD VALENCIANA",0,0,0,0,0,0,0,0,0]
["PNCOCA_2024_sin_OC_COMUNITAT_VALENCIANA_2024_Revisado.xlsm",2024,"COMUNIDAD VALENCIANA",0,0,0,0,0,0,0,0,0]
["PNCOCA_2024_sin_OC_COMUNITAT_VALENCIANA_2024_Revisado.xlsm",2024,"COMUNIDAD VALENCIANA",0,0,0,0,0,0,0,0,0]
["PNCOCA_2024_sin_OC_COMUNITAT_VALENCIANA_2024_Revisado.xlsm",2024,"COMUNIDAD VALENCIANA",0,0,0,0,0,0,0,0,0]
["PNCOCA_2024_sin_OC_COMUNITAT_VALENCIANA_2024_Revisado.xlsm",2024,"COMUNIDAD VALENCIANA",0,0,0,0,0,0,0,0,0]
["PNCOCA_2024_sin_OC_COMUNITAT_VALENCIANA_2024_Revisado.xlsm",2024,"COMUNIDAD VALENCIANA",0,0,0,0,0,0,0,0,0]
["PNCOCA_2024_sin_OC_COMUNITAT_VALENCIANA_2024_Revisado.xlsm",2024,"COMUNIDAD VALENCIANA",0,0,0,0,0,0,0,0,0]
["PNCOCA_2024_sin_OC_COMUNITAT_VALENCIANA_2024_Revisado.xlsm",2024,"COMUNIDAD VALENCIANA",0,0,0,0,0,0,0,0,0]
["PNCOCA_2024_sin_OC_COMUNITAT_VALENCIANA_2024_Revisado.xlsm",2024,"COMUNIDAD VALENCIANA",0,0,0,0,0,0,0,0,0]
["PNCOCA_2024_sin_OC_COMUNITAT_VALENCIANA_2024_Revisado.xlsm",2024,"COMUNIDAD VALENCIANA",0,0,0,0,0,0,0,0,0]
["PNCOCA_2024_sin_OC_COMUNITAT_VALENCIANA_2024_Revisado.xlsm",2024,"COMUNIDAD VALENCIANA",0,0,0,0,0,0,0,0,0]
["PNCOCA_2024_sin_OC_COMUNITAT_VALENCIANA_2024_Revisado.xlsm",2024,"COMUNIDAD VALENCIANA",0,0,0,0,0,0,0,0,0]
["PNCOCA_2024_sin_OC_COMUNITAT_VALENCIANA_2024_Revisado.xlsm",2024,"COMUNIDAD VALENCIANA",0,0,0,0,0,0,0,0,0]
["PNCOCA_2024_sin_OC_COMUNITAT_VALENCIANA_2024_Revisado.xlsm",2024,"COMUNIDAD VALENCIANA",0,0,0,0,0,0,0,0,0]
["PNCOCA_2024_sin_OC_COMUNITAT_VALENCIANA_2024_Revisado.xlsm",2024,"COMUNIDAD VALENCIANA",0,0,0,0,0,0,0,0,0]
["PNCOCA_2024_sin_OC_COMUNITAT_VALENCIANA_2024_Revisado.xlsm",2024,"COMUNIDAD VALENCIANA",0,0,0,0,0,0,0,0,0]
["PNCOCA_2024_sin_OC_COMUNITAT_VALENCIANA_2024_Revisado.xlsm",2024,"COMUNIDAD VALENCIANA",0,0,0,0,0,0,0,0,0]
["PNCOCA_2024_sin_OC_COMUNITAT_VALENCIANA_2024_Revisado.xlsm",2024,"COMUNIDAD VALENCIANA",0,0,0,0,0,0,0,0,0]
["PNCOCA_2024_sin_OC_COMUNITAT_VALENCIANA_2024_Revisado.xlsm",2024,"COMUNIDAD VALENCIANA",0,0,0,0,0,0,0,0,0]
["PNCOCA_2024_sin_OC_COMUNITAT_VALENCIANA_2024_Revisado.xlsm",2024,"COMUNIDAD VALENCIANA",0,0,0,0,0,0,0,0,0]
["PNCOCA_2024_sin_OC_COMUNITAT_VALENCIANA_2024_Revisado.xlsm",2024,"COMUNIDAD VALENCIANA",0,0,0,0,0,0,0,0,0]
["PNCOCA_2024_sin_OC_COMUNITAT_VALENCIANA_2024_Revisado.xlsm",2024,"COMUNIDAD VALENCIANA",0,0,0,0,0,0,0,0,0]
["EXTREMADURA PNCOCA_2024 Envio 2..xlsm",2024,"EXTREMADURA",0,0,0,0,0,0,0,0,0]
["EXTREMADURA PNCOCA_2024 Envio 2..xlsm",2024,"EXTREMADURA",0,0,0,0,0,0,0,0,0]
["EXTREMADURA PNCOCA_2024 Envio 2..xlsm",2024,"EXTREMADURA",0,0,0,0,0,0,0,0,0]
["EXTREMADURA PNCOCA_2024 Envio 2..xlsm",2024,"EXTREMADURA",0,0,0,0,0,0,0,0,0]
["EXTREMADURA PNCOCA_2024 Envio 2..xlsm",2024,"EXTREMADURA",0,0,0,0,0,0,0,0,0]
["EXTREMADURA PNCOCA_2024 Envio 2..xlsm",2024,"EXTREMADURA",0,0,0,0,0,0,0,0,0]
["EXTREMADURA PNCOCA_2024 Envio 2..xlsm",2024,"EXTREMADURA",0,0,0,0,0,0,0,0,0]
["EXTREMADURA PNCOCA_2024 Envio 2..xlsm",2024,"EXTREMADURA",0,0,0,0,0,0,0,0,0]
["EXTREMADURA PNCOCA_2024 Envio 2..xlsm",2024,"EXTREMADURA",0,0,0,0,0,0,0,0,0]
["EXTREMADURA PNCOCA_2024 Envio 2..xlsm",2024,"EXTREMADURA",0,0,0,0,0,0,0,0,0]
["EXTREMADURA PNCOCA_2024 Envio 2..xlsm",2024,"EXTREMADURA",0,0,0,0,0,0,0,0,0]
["EXTREMADURA PNCOCA_2024 Envio 2..xlsm",2024,"EXTREMADURA",0,0,0,0,0,0,0,0,0]
["EXTREMADURA PNCOCA_2024 Envio 2..xlsm",2024,"EXTREMADURA",0,0,0,0,0,0,0,0,0]
["EXTREMADURA PNCOCA_2024 Envio 2..xlsm",2024,"EXTREMADURA",0,0,0,0,0,0,0,0,0]
["EXTREMADURA PNCOCA_2024 Envio 2..xlsm",2024,"EXTREMADURA",0,0,0,0,0,0,0,0,0]
["EXTREMADURA PNCOCA_2024 Envio 2..xlsm",2024,"EXTREMADURA",0,0,0,0,0,0,0,0,0]
["EXTREMADURA PNCOCA_2024 Envio 2..xlsm",2024,"EXTREMADURA",0,0,0,0,0,0,0,0,0]
["EXTREMADURA PNCOCA_2024 Envio 2..xlsm",2024,"EXTREMADURA",0,0,0,0,0,0,0,0,0]
["EXTREMADURA PNCOCA_2024 Envio 2..xlsm",2024,"EXTREMADURA",0,0,0,0,0,0,0,0,0]
["EXTREMADURA PNCOCA_2024 Envio 2..xlsm",2024,"EXTREMADURA",0,0,0,0,0,0,0,0,0]
["EXTREMADURA PNCOCA_2024 Envio 2..xlsm",2024,"EXTREMADURA",0,0,0,0,0,0,0,0,0]
["EXTREMADURA PNCOCA_2024 Envio 2..xlsm",2024,"EXTREMADURA",0,0,0,0,0,0,0,0,0]
["EXTREMADURA PNCOCA_2024 Envio 2..xlsm",2024,"EXTREMADURA",0,0,0,0,0,0,0,0,0]
["EXTREMADURA PNCOCA_2024 Envio 2..xlsm",2024,"EXTREMADURA",0,0,0,0,0,0,0,0,0]
["EXTREMADURA PNCOCA_2024 Envio 2..xlsm",2024,"EXTREMADURA",0,0,0,0,0,0,0,0,0]
["EXTREMADURA PNCOCA_2024 Envio 2..xlsm",2024,"EXTREMADURA",0,0,0,0,0,0,0,0,0]
["EXTREMADURA PNCOCA_2024 Envio 2..xlsm",2024,"EXTREMADURA",0,0,0,0,0,0,0,0,0]
["EXTREMADURA PNCOCA_2024 Envio 2..xlsm",2024,"EXTREMADURA",0,0,0,0,0,0,0,0,0]
["EXTREMADURA PNCOCA_2024 Envio 2..xlsm",2024,"EXTREMADURA",0,0,0,0,0,0,0,0,0]
["EXTREMADURA PNCOCA_2024 Envio 2..xlsm",2024,"EXTREMADURA",0,0,0,0,0,0,0,0,0]
["Plantilla PNCOCA_2024_sin_OC.MADRID.xlsm",2024,"COMUNIDAD DE MADRID",0,0,0,0,0,0,0,0,0]
["Plantilla PNCOCA_2024_sin_OC.MADRID.xlsm",2024,"COMUNIDAD DE MADRID",0,0,0,0,0,0,0,0,0]
["Plantilla PNCOCA_2024_sin_OC.MADRID.xlsm",2024,"COMUNIDAD DE MADRID",0,0,0,0,0,0,0,0,0]
["Plantilla PNCOCA_2024_sin_OC.MADRID.xlsm",2024,"COMUNIDAD DE MADRID",0,0,0,0,0,0,0,0,0]
["Plantilla PNCOCA_2024_sin_OC.MADRID.xlsm",2024,"COMUNIDAD DE MADRID",0,0,0,0,0,0,0,0,0]
["Plantilla PNCOCA_2024_sin_OC.MADRID.xlsm",2024,"COMUNIDAD DE MADRID",0,0,0,0,0,0,0,0,0]
["Plantilla PNCOCA_2024_sin_OC.MADRID.xlsm",2024,"COMUNIDAD DE MADRID",0,0,0,0,0,0,0,0,0]
["Plantilla PNCOCA_2024_sin_OC.MADRID.xlsm",2024,"COMUNIDAD DE MADRID",0,0,0,0,0,0,0,0,0]
["Plantilla PNCOCA_2024_sin_OC.MADRID.xlsm",2024,"COMUNIDAD DE MADRID",0,0,0,0,0,0,0,0,0]
["Plantilla PNCOCA_2024_sin_OC.MADRID.xlsm",2024,"COMUNIDAD DE MADRID",0,0,0,0,0,0,0,0,0]
["Plantilla PNCOCA_2024_sin_OC.MADRID.xlsm",2024,"COMUNIDAD DE MADRID",0,0,0,0,0,0,0,0,0]
["Plantilla PNCOCA_2024_sin_OC.MADRID.xlsm",2024,"COMUNIDAD DE MADRID",0,0,0,0,0,0,0,0,0]
["Plantilla PNCOCA_2024_sin_OC.MADRID.xlsm",2024,"COMUNIDAD DE MADRID",0,0,0,0,0,0,0,0,0]
["Plantilla PNCOCA_2024_sin_OC.MADRID.xlsm",2024,"COMUNIDAD DE MADRID",0,0,0,0,0,0,0,0,0]
["Plantilla PNCOCA_2024_sin_OC.MADRID.xlsm",2024,"COMUNIDAD DE MADRID",0,0,0,0,0,0,0,0,0]
["Plantilla PNCOCA_2024_sin_OC.MADRID.xlsm",2024,"COMUNIDAD DE MADRID",0,0,0,0,0,0,0,0,0]
["Plantilla PNCOCA_2024_sin_OC.MADRID.xlsm",2024,"COMUNIDAD DE MADRID",0,0,0,0,0,0,0,0,0]
["Plantilla PNCOCA_2024_sin_OC.MADRID.xlsm",2024,"COMUNIDAD DE MADRID",0,0,0,0,0,0,0,0,0]
["Plantilla PNCOCA_2024_sin_OC.MADRID.xlsm",2024,"COMUNIDAD DE MADRID",0,0,0,0,0,0,0,0,0]
["Plantilla PNCOCA_2024_sin_OC.MADRID.xlsm",2024,"COMUNIDAD DE MADRID",0,0,0,0,0,0,0,0,0]
["Plantilla PNCOCA_2024_sin_OC.MADRID.xlsm",2024,"COMUNIDAD DE MADRID",0,0,0,0,0,0,0,0,0]
["Plantilla PNCOCA_2024_sin_OC.MADRID.xlsm",2024,"COMUNIDAD DE MADRID",0,0,0,0,0,0,0,0,0]
["Plantilla PNCOCA_2024_sin_OC.MADRID.xlsm",2024,"COMUNIDAD DE MADRID",0,0,0,0,0,0,0,0,0]
["Plantilla PNCOCA_2024_sin_OC.MADRID.xlsm",2024,"COMUNIDAD DE MADRID",0,0,0,0,0,0,0,0,0]
["Plantilla PNCOCA_2024_sin_OC.MADRID.xlsm",2024,"COMUNIDAD DE MADRID",0,0,0,0,0,0,0,0,0]
["Plantilla PNCOCA_2024_sin_OC.MADRID.xlsm",2024,"COMUNIDAD DE MADRID",0,0,0,0,0,0,0,0,0]
["Plantilla PNCOCA_2024_sin_OC.MADRID.xlsm",2024,"COMUNIDAD DE MADRID",0,0,0,0,0,0,0,0,0]
["Plantilla PNCOCA_2024_sin_OC.MADRID.xlsm",2024,"COMUNIDAD DE MADRID",0,0,0,0,0,0,0,0,0]
["Plantilla PNCOCA_2024_sin_OC.MADRID.xlsm",2024,"COMUNIDAD DE MADRID",0,0,0,0,0,0,0,0,0]
["Plantilla PNCOCA_2024_sin_OC.MADRID.xlsm",2024,"COMUNIDAD DE MADRID",0,0,0,0,0,0,0,0,0]
["LA RIOJA PNCOCA 2024.xlsm",2024,"LA RIOJA",0,0,0,0,0,0,0,0,0]
["LA RIOJA PNCOCA 2024.xlsm",2024,"LA RIOJA",0,0,0,0,0,0,0,0,0]
["LA RIOJA PNCOCA 2024.xlsm",2024,"LA RIOJA",0,0,0,0,0,0,0,0,0]
["LA RIOJA PNCOCA 2024.xlsm",2024,"LA RIOJA",0,0,0,0,0,0,0,0,0]
["LA RIOJA PNCOCA 2024.xlsm",2024,"LA RIOJA",0,0,0,0,0,0,0,0,0]
["LA RIOJA PNCOCA 2024.xlsm",2024,"LA RIOJA",0,0,0,0,0,0,0,0,0]
["LA RIOJA PNCOCA 2024.xlsm",2024,"LA RIOJA",0,0,0,0,0,0,0,0,0]
["LA RIOJA PNCOCA 2024.xlsm",2024,"LA RIOJA",0,0,0,0,0,0,0,0,0]
["LA RIOJA PNCOCA 2024.xlsm",2024,"LA RIOJA",0,0,0,0,0,0,0,0,0]
["LA RIOJA PNCOCA 2024.xlsm",2024,"LA RIOJA",0,0,0,0,0,0,0,0,0]
["LA RIOJA PNCOCA 2024.xlsm",2024,"LA RIOJA",0,0,0,0,0,0,0,0,0]
["LA RIOJA PNCOCA 2024.xlsm",2024,"LA RIOJA",0,0,0,0,0,0,0,0,0]
["LA RIOJA PNCOCA 2024.xlsm",2024,"LA RIOJA",0,0,0,0,0,0,0,0,0]
["LA RIOJA PNCOCA 2024.xlsm",2024,"LA RIOJA",0,0,0,0,0,0,0,0,0]
["LA RIOJA PNCOCA 2024.xlsm",2024,"LA RIOJA",0,0,0,0,0,0,0,0,0]
["LA RIOJA PNCOCA 2024.xlsm",2024,"LA RIOJA",0,0,0,0,0,0,0,0,0]
["LA RIOJA PNCOCA 2024.xlsm",2024,"LA RIOJA",0,0,0,0,0,0,0,0,0]
["LA RIOJA PNCOCA 2024.xlsm",2024,"LA RIOJA",0,0,0,0,0,0,0,0,0]
["LA RIOJA PNCOCA 2024.xlsm",2024,"LA RIOJA",0,0,0,0,0,0,0,0,0]
["LA RIOJA PNCOCA 2024.xlsm",2024,"LA RIOJA",0,0,0,0,0,0,0,0,0]
["LA RIOJA PNCOCA 2024.xlsm",2024,"LA RIOJA",0,0,0,0,0,0,0,0,0]
["LA RIOJA PNCOCA 2024.xlsm",2024,"LA RIOJA",0,0,0,0,0,0,0,0,0]
["LA RIOJA PNCOCA 2024.xlsm",2024,"LA RIOJA",0,0,0,0,0,0,0,0,0]
["LA RIOJA PNCOCA 2024.xlsm",2024,"LA RIOJA",0,0,0,0,0,0,0,0,0]
["LA RIOJA PNCOCA 2024.xlsm",2024,"LA RIOJA",0,0,0,0,0,0,0,0,0]
["LA RIOJA PNCOCA 2024.xlsm",2024,"LA RIOJA",0,0,0,0,0,0,0,0,0]
["LA RIOJA PNCOCA 2024.xlsm",2024,"LA RIOJA",0,0,0,0,0,0,0,0,0]
["LA RIOJA PNCOCA 2024.xlsm",2024,"LA RIOJA",0,0,0,0,0,0,0,0,0]
["LA RIOJA PNCOCA 2024.xlsm",2024,"LA RIOJA",0,0,0,0,0,0,0,0,0]
["LA RIOJA PNCOCA 2024.xlsm",2024,"LA RIOJA",0,0,0,0,0,0,0,0,0]
["Plantilla PNCOCA_2024_para_enviar_MAPA_sin_OC COPAE_ASTURIAS.xlsm",2024,"PRINCIPADO DE ASTURIAS",0,0,0,0,0,0,0,0,0]
["Plantilla PNCOCA_2024_para_enviar_MAPA_sin_OC COPAE_ASTURIAS.xlsm",2024,"PRINCIPADO DE ASTURIAS",0,0,0,0,0,0,0,0,0]
["Plantilla PNCOCA_2024_para_enviar_MAPA_sin_OC COPAE_ASTURIAS.xlsm",2024,"PRINCIPADO DE ASTURIAS",0,0,0,0,0,0,0,0,0]
["Plantilla PNCOCA_2024_para_enviar_MAPA_sin_OC COPAE_ASTURIAS.xlsm",2024,"PRINCIPADO DE ASTURIAS",0,0,0,0,0,0,0,0,0]
["Plantilla PNCOCA_2024_para_enviar_MAPA_sin_OC COPAE_ASTURIAS.xlsm",2024,"PRINCIPADO DE ASTURIAS",0,0,0,0,0,0,0,0,0]
["Plantilla PNCOCA_2024_para_enviar_MAPA_sin_OC COPAE_ASTURIAS.xlsm",2024,"PRINCIPADO DE ASTURIAS",0,0,0,0,0,0,0,0,0]
["Plantilla PNCOCA_2024_para_enviar_MAPA_sin_OC COPAE_ASTURIAS.xlsm",2024,"PRINCIPADO DE ASTURIAS",0,0,0,0,0,0,0,0,0]
["Plantilla PNCOCA_2024_para_enviar_MAPA_sin_OC COPAE_ASTURIAS.xlsm",2024,"PRINCIPADO DE ASTURIAS",0,0,0,0,0,0,0,0,0]
["Plantilla PNCOCA_2024_para_enviar_MAPA_sin_OC COPAE_ASTURIAS.xlsm",2024,"PRINCIPADO DE ASTURIAS",0,0,0,0,0,0,0,0,0]
["Plantilla PNCOCA_2024_para_enviar_MAPA_sin_OC COPAE_ASTURIAS.xlsm",2024,"PRINCIPADO DE ASTURIAS",0,0,0,0,0,0,0,0,0]
["Plantilla PNCOCA_2024_para_enviar_MAPA_sin_OC COPAE_ASTURIAS.xlsm",2024,"PRINCIPADO DE ASTURIAS",0,0,0,0,0,0,0,0,0]
["Plantilla PNCOCA_2024_para_enviar_MAPA_sin_OC COPAE_ASTURIAS.xlsm",2024,"PRINCIPADO DE ASTURIAS",0,0,0,0,0,0,0,0,0]
["Plantilla PNCOCA_2024_para_enviar_MAPA_sin_OC COPAE_ASTURIAS.xlsm",2024,"PRINCIPADO DE ASTURIAS",0,0,0,0,0,0,0,0,0]
["Plantilla PNCOCA_2024_para_enviar_MAPA_sin_OC COPAE_ASTURIAS.xlsm",2024,"PRINCIPADO DE ASTURIAS",0,0,0,0,0,0,0,0,0]
["Plantilla PNCOCA_2024_para_enviar_MAPA_sin_OC COPAE_ASTURIAS.xlsm",2024,"PRINCIPADO DE ASTURIAS",0,0,0,0,0,0,0,0,0]
["Plantilla PNCOCA_2024_para_enviar_MAPA_sin_OC COPAE_ASTURIAS.xlsm",2024,"PRINCIPADO DE ASTURIAS",0,0,0,0,0,0,0,0,0]
["Plantilla PNCOCA_2024_para_enviar_MAPA_sin_OC COPAE_ASTURIAS.xlsm",2024,"PRINCIPADO DE ASTURIAS",0,0,0,0,0,0,0,0,0]
["Plantilla PNCOCA_2024_para_enviar_MAPA_sin_OC COPAE_ASTURIAS.xlsm",2024,"PRINCIPADO DE ASTURIAS",0,0,0,0,0,0,0,0,0]
["Plantilla PNCOCA_2024_para_enviar_MAPA_sin_OC COPAE_ASTURIAS.xlsm",2024,"PRINCIPADO DE ASTURIAS",0,0,0,0,0,0,0,0,0]
["Plantilla PNCOCA_2024_para_enviar_MAPA_sin_OC COPAE_ASTURIAS.xlsm",2024,"PRINCIPADO DE ASTURIAS",0,0,0,0,0,0,0,0,0]
["Plantilla PNCOCA_2024_para_enviar_MAPA_sin_OC COPAE_ASTURIAS.xlsm",2024,"PRINCIPADO DE ASTURIAS",0,0,0,0,0,0,0,0,0]
["Plantilla PNCOCA_2024_para_enviar_MAPA_sin_OC COPAE_ASTURIAS.xlsm",2024,"PRINCIPADO DE ASTURIAS",0,0,0,0,0,0,0,0,0]
["Plantilla PNCOCA_2024_para_enviar_MAPA_sin_OC COPAE_ASTURIAS.xlsm",2024,"PRINCIPADO DE ASTURIAS",0,0,0,0,0,0,0,0,0]
["Plantilla PNCOCA_2024_para_enviar_MAPA_sin_OC COPAE_ASTURIAS.xlsm",2024,"PRINCIPADO DE ASTURIAS",0,0,0,0,0,0,0,0,0]
["Plantilla PNCOCA_2024_para_enviar_MAPA_sin_OC COPAE_ASTURIAS.xlsm",2024,"PRINCIPADO DE ASTURIAS",0,0,0,0,0,0,0,0,0]
["Plantilla PNCOCA_2024_para_enviar_MAPA_sin_OC COPAE_ASTURIAS.xlsm",2024,"PRINCIPADO DE ASTURIAS",0,0,0,0,0,0,0,0,0]
["Plantilla PNCOCA_2024_para_enviar_MAPA_sin_OC COPAE_ASTURIAS.xlsm",2024,"PRINCIPADO DE ASTURIAS",0,0,0,0,0,0,0,0,0]
["Plantilla PNCOCA_2024_para_enviar_MAPA_sin_OC COPAE_ASTURIAS.xlsm",2024,"PRINCIPADO DE ASTURIAS",0,0,0,0,0,0,0,0,0]
["Plantilla PNCOCA_2024_para_enviar_MAPA_sin_OC COPAE_ASTURIAS.xlsm",2024,"PRINCIPADO DE ASTURIAS",0,0,0,0,0,0,0,0,0]
["Plantilla PNCOCA_2024_para_enviar_MAPA_sin_OC COPAE_ASTURIAS.xlsm",2024,"PRINCIPADO DE ASTURIAS",0,0,0,0,0,0,0,0,0]
["UTF-8Plantilla PNCOCA_2024_para_enviar_MAPA_sin_OC IIBB 25.04.25.xlsm",2024,"ISLAS BALEARES",0,0,0,0,0,0,0,0,0]
["UTF-8Plantilla PNCOCA_2024_para_enviar_MAPA_sin_OC IIBB 25.04.25.xlsm",2024,"ISLAS BALEARES",0,0,0,0,0,0,0,0,0]
["UTF-8Plantilla PNCOCA_2024_para_enviar_MAPA_sin_OC IIBB 25.04.25.xlsm",2024,"ISLAS BALEARES",0,0,0,0,0,0,0,0,0]
["UTF-8Plantilla PNCOCA_2024_para_enviar_MAPA_sin_OC IIBB 25.04.25.xlsm",2024,"ISLAS BALEARES",0,0,0,0,0,0,0,0,0]
["UTF-8Plantilla PNCOCA_2024_para_enviar_MAPA_sin_OC IIBB 25.04.25.xlsm",2024,"ISLAS BALEARES",0,0,0,0,0,0,0,0,0]
["UTF-8Plantilla PNCOCA_2024_para_enviar_MAPA_sin_OC IIBB 25.04.25.xlsm",2024,"ISLAS BALEARES",0,0,0,0,0,0,0,0,0]
["UTF-8Plantilla PNCOCA_2024_para_enviar_MAPA_sin_OC IIBB 25.04.25.xlsm",2024,"ISLAS BALEARES",0,0,0,0,0,0,0,0,0]
["UTF-8Plantilla PNCOCA_2024_para_enviar_MAPA_sin_OC IIBB 25.04.25.xlsm",2024,"ISLAS BALEARES",0,0,0,0,0,0,0,0,0]
["UTF-8Plantilla PNCOCA_2024_para_enviar_MAPA_sin_OC IIBB 25.04.25.xlsm",2024,"ISLAS BALEARES",0,0,0,0,0,0,0,0,0]
["UTF-8Plantilla PNCOCA_2024_para_enviar_MAPA_sin_OC IIBB 25.04.25.xlsm",2024,"ISLAS BALEARES",0,0,0,0,0,0,0,0,0]
["UTF-8Plantilla PNCOCA_2024_para_enviar_MAPA_sin_OC IIBB 25.04.25.xlsm",2024,"ISLAS BALEARES",0,0,0,0,0,0,0,0,0]
["UTF-8Plantilla PNCOCA_2024_para_enviar_MAPA_sin_OC IIBB 25.04.25.xlsm",2024,"ISLAS BALEARES",0,0,0,0,0,0,0,0,0]
["UTF-8Plantilla PNCOCA_2024_para_enviar_MAPA_sin_OC IIBB 25.04.25.xlsm",2024,"ISLAS BALEARES",0,0,0,0,0,0,0,0,0]
["UTF-8Plantilla PNCOCA_2024_para_enviar_MAPA_sin_OC IIBB 25.04.25.xlsm",2024,"ISLAS BALEARES",0,0,0,0,0,0,0,0,0]
["UTF-8Plantilla PNCOCA_2024_para_enviar_MAPA_sin_OC IIBB 25.04.25.xlsm",2024,"ISLAS BALEARES",0,0,0,0,0,0,0,0,0]
["UTF-8Plantilla PNCOCA_2024_para_enviar_MAPA_sin_OC IIBB 25.04.25.xlsm",2024,"ISLAS BALEARES",0,0,0,0,0,0,0,0,0]
["UTF-8Plantilla PNCOCA_2024_para_enviar_MAPA_sin_OC IIBB 25.04.25.xlsm",2024,"ISLAS BALEARES",0,0,0,0,0,0,0,0,0]
["UTF-8Plantilla PNCOCA_2024_para_enviar_MAPA_sin_OC IIBB 25.04.25.xlsm",2024,"ISLAS BALEARES",0,0,0,0,0,0,0,0,0]
["UTF-8Plantilla PNCOCA_2024_para_enviar_MAPA_sin_OC IIBB 25.04.25.xlsm",2024,"ISLAS BALEARES",0,0,0,0,0,0,0,0,0]
["UTF-8Plantilla PNCOCA_2024_para_enviar_MAPA_sin_OC IIBB 25.04.25.xlsm",2024,"ISLAS BALEARES",0,0,0,0,0,0,0,0,0]
["UTF-8Plantilla PNCOCA_2024_para_enviar_MAPA_sin_OC IIBB 25.04.25.xlsm",2024,"ISLAS BALEARES",0,0,0,0,0,0,0,0,0]
["UTF-8Plantilla PNCOCA_2024_para_enviar_MAPA_sin_OC IIBB 25.04.25.xlsm",2024,"ISLAS BALEARES",0,0,0,0,0,0,0,0,0]
["UTF-8Plantilla PNCOCA_2024_para_enviar_MAPA_sin_OC IIBB 25.04.25.xlsm",2024,"ISLAS BALEARES",0,0,0,0,0,0,0,0,0]
["UTF-8Plantilla PNCOCA_2024_para_enviar_MAPA_sin_OC IIBB 25.04.25.xlsm",2024,"ISLAS BALEARES",0,0,0,0,0,0,0,0,0]
["UTF-8Plantilla PNCOCA_2024_para_enviar_MAPA_sin_OC IIBB 25.04.25.xlsm",2024,"ISLAS BALEARES",0,0,0,0,0,0,0,0,0]
["UTF-8Plantilla PNCOCA_2024_para_enviar_MAPA_sin_OC IIBB 25.04.25.xlsm",2024,"ISLAS BALEARES",0,0,0,0,0,0,0,0,0]
["UTF-8Plantilla PNCOCA_2024_para_enviar_MAPA_sin_OC IIBB 25.04.25.xlsm",2024,"ISLAS BALEARES",0,0,0,0,0,0,0,0,0]
["UTF-8Plantilla PNCOCA_2024_para_enviar_MAPA_sin_OC IIBB 25.04.25.xlsm",2024,"ISLAS BALEARES",0,0,0,0,0,0,0,0,0]
["UTF-8Plantilla PNCOCA_2024_para_enviar_MAPA_sin_OC IIBB 25.04.25.xlsm",2024,"ISLAS BALEARES",0,0,0,0,0,0,0,0,0]
["UTF-8Plantilla PNCOCA_2024_para_enviar_MAPA_sin_OC IIBB 25.04.25.xlsm",2024,"ISLAS BALEARES",0,0,0,0,0,0,0,0,0]
["Plantilla PNCOCA_2024_ARAGON.xlsm",2024,"ARAGÓN",0,0,0,0,0,0,0,0,0]
["Plantilla PNCOCA_2024_ARAGON.xlsm",2024,"ARAGÓN",0,0,0,0,0,0,0,0,0]
["Plantilla PNCOCA_2024_ARAGON.xlsm",2024,"ARAGÓN",0,0,0,0,0,0,0,0,0]
["Plantilla PNCOCA_2024_ARAGON.xlsm",2024,"ARAGÓN",0,0,0,0,0,0,0,0,0]
["Plantilla PNCOCA_2024_ARAGON.xlsm",2024,"ARAGÓN",0,0,0,0,0,0,0,0,0]
["Plantilla PNCOCA_2024_ARAGON.xlsm",2024,"ARAGÓN",0,0,0,0,0,0,0,0,0]
["Plantilla PNCOCA_2024_ARAGON.xlsm",2024,"ARAGÓN",0,0,0,0,0,0,0,0,0]
["Plantilla PNCOCA_2024_ARAGON.xlsm",2024,"ARAGÓN",0,0,0,0,0,0,0,0,0]
["Plantilla PNCOCA_2024_ARAGON.xlsm",2024,"ARAGÓN",0,0,0,0,0,0,0,0,0]
["Plantilla PNCOCA_2024_ARAGON.xlsm",2024,"ARAGÓN",0,0,0,0,0,0,0,0,0]
["Plantilla PNCOCA_2024_ARAGON.xlsm",2024,"ARAGÓN",0,0,0,0,0,0,0,0,0]
["Plantilla PNCOCA_2024_ARAGON.xlsm",2024,"ARAGÓN",0,0,0,0,0,0,0,0,0]
["Plantilla PNCOCA_2024_ARAGON.xlsm",2024,"ARAGÓN",0,0,0,0,0,0,0,0,0]
["Plantilla PNCOCA_2024_ARAGON.xlsm",2024,"ARAGÓN",0,0,0,0,0,0,0,0,0]
["Plantilla PNCOCA_2024_ARAGON.xlsm",2024,"ARAGÓN",0,0,0,0,0,0,0,0,0]
["Plantilla PNCOCA_2024_ARAGON.xlsm",2024,"ARAGÓN",0,0,0,0,0,0,0,0,0]
["Plantilla PNCOCA_2024_ARAGON.xlsm",2024,"ARAGÓN",0,0,0,0,0,0,0,0,0]
["Plantilla PNCOCA_2024_ARAGON.xlsm",2024,"ARAGÓN",0,0,0,0,0,0,0,0,0]
["Plantilla PNCOCA_2024_ARAGON.xlsm",2024,"ARAGÓN",0,0,0,0,0,0,0,0,0]
["Plantilla PNCOCA_2024_ARAGON.xlsm",2024,"ARAGÓN",0,0,0,0,0,0,0,0,0]
["Plantilla PNCOCA_2024_ARAGON.xlsm",2024,"ARAGÓN",0,0,0,0,0,0,0,0,0]
["Plantilla PNCOCA_2024_ARAGON.xlsm",2024,"ARAGÓN",0,0,0,0,0,0,0,0,0]
["Plantilla PNCOCA_2024_ARAGON.xlsm",2024,"ARAGÓN",0,0,0,0,0,0,0,0,0]
["Plantilla PNCOCA_2024_ARAGON.xlsm",2024,"ARAGÓN",0,0,0,0,0,0,0,0,0]
["Plantilla PNCOCA_2024_ARAGON.xlsm",2024,"ARAGÓN",0,0,0,0,0,0,0,0,0]
["Plantilla PNCOCA_2024_ARAGON.xlsm",2024,"ARAGÓN",0,0,0,0,0,0,0,0,0]
["Plantilla PNCOCA_2024_ARAGON.xlsm",2024,"ARAGÓN",0,0,0,0,0,0,0,0,0]
["Plantilla PNCOCA_2024_ARAGON.xlsm",2024,"ARAGÓN",0,0,0,0,0,0,0,0,0]
["Plantilla PNCOCA_2024_ARAGON.xlsm",2024,"ARAGÓN",0,0,0,0,0,0,0,0,0]
["Plantilla PNCOCA_2024_ARAGON.xlsm",2024,"ARAGÓN",0,0,0,0,0,0,0,0,0]
["250515 Datos PNCOCA 2024 CAT v2.xlsm",2024,"CATALUÑA",0,0,0,0,0,0,0,0,0]
["250515 Datos PNCOCA 2024 CAT v2.xlsm",2024,"CATALUÑA",0,0,0,0,0,0,0,0,0]
["250515 Datos PNCOCA 2024 CAT v2.xlsm",2024,"CATALUÑA",0,0,0,0,0,0,0,0,0]
["250515 Datos PNCOCA 2024 CAT v2.xlsm",2024,"CATALUÑA",0,0,0,0,0,0,0,0,0]
["250515 Datos PNCOCA 2024 CAT v2.xlsm",2024,"CATALUÑA",0,0,0,0,0,0,0,0,0]
["250515 Datos PNCOCA 2024 CAT v2.xlsm",2024,"CATALUÑA",0,0,0,0,0,0,0,0,0]
["250515 Datos PNCOCA 2024 CAT v2.xlsm",2024,"CATALUÑA",0,0,0,0,0,0,0,0,0]
["250515 Datos PNCOCA 2024 CAT v2.xlsm",2024,"CATALUÑA",0,0,0,0,0,0,0,0,0]
["250515 Datos PNCOCA 2024 CAT v2.xlsm",2024,"CATALUÑA",0,0,0,0,0,0,0,0,0]
["250515 Datos PNCOCA 2024 CAT v2.xlsm",2024,"CATALUÑA",0,0,0,0,0,0,0,0,0]
["250515 Datos PNCOCA 2024 CAT v2.xlsm",2024,"CATALUÑA",0,0,0,0,0,0,0,0,0]
["250515 Datos PNCOCA 2024 CAT v2.xlsm",2024,"CATALUÑA",0,0,0,0,0,0,0,0,0]
["250515 Datos PNCOCA 2024 CAT v2.xlsm",2024,"CATALUÑA",0,0,0,0,0,0,0,0,0]
["250515 Datos PNCOCA 2024 CAT v2.xlsm",2024,"CATALUÑA",0,0,0,0,0,0,0,0,0]
["250515 Datos PNCOCA 2024 CAT v2.xlsm",2024,"CATALUÑA",0,0,0,0,0,0,0,0,0]
["250515 Datos PNCOCA 2024 CAT v2.xlsm",2024,"CATALUÑA",0,0,0,0,0,0,0,0,0]
["250515 Datos PNCOCA 2024 CAT v2.xlsm",2024,"CATALUÑA",0,0,0,0,0,0,0,0,0]
["250515 Datos PNCOCA 2024 CAT v2.xlsm",2024,"CATALUÑA",0,0,0,0,0,0,0,0,0]
["250515 Datos PNCOCA 2024 CAT v2.xlsm",2024,"CATALUÑA",0,0,0,0,0,0,0,0,0]
["250515 Datos PNCOCA 2024 CAT v2.xlsm",2024,"CATALUÑA",0,0,0,0,0,0,0,0,0]
["250515 Datos PNCOCA 2024 CAT v2.xlsm",2024,"CATALUÑA",0,0,0,0,0,0,0,0,0]
["250515 Datos PNCOCA 2024 CAT v2.xlsm",2024,"CATALUÑA",0,0,0,0,0,0,0,0,0]
["250515 Datos PNCOCA 2024 CAT v2.xlsm",2024,"CATALUÑA",0,0,0,0,0,0,0,0,0]
["250515 Datos PNCOCA 2024 CAT v2.xlsm",2024,"CATALUÑA",0,0,0,0,0,0,0,0,0]
["250515 Datos PNCOCA 2024 CAT v2.xlsm",2024,"CATALUÑA",0,0,0,0,0,0,0,0,0]
["250515 Datos PNCOCA 2024 CAT v2.xlsm",2024,"CATALUÑA",0,0,0,0,0,0,0,0,0]
["250515 Datos PNCOCA 2024 CAT v2.xlsm",2024,"CATALUÑA",0,0,0,0,0,0,0,0,0]
["250515 Datos PNCOCA 2024 CAT v2.xlsm",2024,"CATALUÑA",0,0,0,0,0,0,0,0,0]
["250515 Datos PNCOCA 2024 CAT v2.xlsm",2024,"CATALUÑA",0,0,0,0,0,0,0,0,0]
["250515 Datos PNCOCA 2024 CAT v2.xlsm",2024,"CATALUÑA",0,0,0,0,0,0,0,0,0]
["Plantilla PNCOCA_2024_para_enviar_MAPA_sin_OC (1).xlsm",2024,"GALICIA",0,0,0,0,0,0,0,0,0]
["Plantilla PNCOCA_2024_para_enviar_MAPA_sin_OC (1).xlsm",2024,"GALICIA",0,0,0,0,0,0,0,0,0]
["Plantilla PNCOCA_2024_para_enviar_MAPA_sin_OC (1).xlsm",2024,"GALICIA",0,0,0,0,0,0,0,0,0]
["Plantilla PNCOCA_2024_para_enviar_MAPA_sin_OC (1).xlsm",2024,"GALICIA",0,0,0,0,0,0,0,0,0]
["Plantilla PNCOCA_2024_para_enviar_MAPA_sin_OC (1).xlsm",2024,"GALICIA",0,0,0,0,0,0,0,0,0]
["Plantilla PNCOCA_2024_para_enviar_MAPA_sin_OC (1).xlsm",2024,"GALICIA",0,0,0,0,0,0,0,0,0]
["Plantilla PNCOCA_2024_para_enviar_MAPA_sin_OC (1).xlsm",2024,"GALICIA",0,0,0,0,0,0,0,0,0]
["Plantilla PNCOCA_2024_para_enviar_MAPA_sin_OC (1).xlsm",2024,"GALICIA",0,0,0,0,0,0,0,0,0]
["Plantilla PNCOCA_2024_para_enviar_MAPA_sin_OC (1).xlsm",2024,"GALICIA",0,0,0,0,0,0,0,0,0]
["Plantilla PNCOCA_2024_para_enviar_MAPA_sin_OC (1).xlsm",2024,"GALICIA",0,0,0,0,0,0,0,0,0]
["Plantilla PNCOCA_2024_para_enviar_MAPA_sin_OC (1).xlsm",2024,"GALICIA",0,0,0,0,0,0,0,0,0]
["Plantilla PNCOCA_2024_para_enviar_MAPA_sin_OC (1).xlsm",2024,"GALICIA",0,0,0,0,0,0,0,0,0]
["Plantilla PNCOCA_2024_para_enviar_MAPA_sin_OC (1).xlsm",2024,"GALICIA",0,0,0,0,0,0,0,0,0]
["Plantilla PNCOCA_2024_para_enviar_MAPA_sin_OC (1).xlsm",2024,"GALICIA",0,0,0,0,0,0,0,0,0]
["Plantilla PNCOCA_2024_para_enviar_MAPA_sin_OC (1).xlsm",2024,"GALICIA",0,0,0,0,0,0,0,0,0]
["Plantilla PNCOCA_2024_para_enviar_MAPA_sin_OC (1).xlsm",2024,"GALICIA",0,0,0,0,0,0,0,0,0]
["Plantilla PNCOCA_2024_para_enviar_MAPA_sin_OC (1).xlsm",2024,"GALICIA",0,0,0,0,0,0,0,0,0]
["Plantilla PNCOCA_2024_para_enviar_MAPA_sin_OC (1).xlsm",2024,"GALICIA",0,0,0,0,0,0,0,0,0]
["Plantilla PNCOCA_2024_para_enviar_MAPA_sin_OC (1).xlsm",2024,"GALICIA",0,0,0,0,0,0,0,0,0]
["Plantilla PNCOCA_2024_para_enviar_MAPA_sin_OC (1).xlsm",2024,"GALICIA",0,0,0,0,0,0,0,0,0]
["Plantilla PNCOCA_2024_para_enviar_MAPA_sin_OC (1).xlsm",2024,"GALICIA",0,0,0,0,0,0,0,0,0]
["Plantilla PNCOCA_2024_para_enviar_MAPA_sin_OC (1).xlsm",2024,"GALICIA",0,0,0,0,0,0,0,0,0]
["Plantilla PNCOCA_2024_para_enviar_MAPA_sin_OC (1).xlsm",2024,"GALICIA",0,0,0,0,0,0,0,0,0]
["Plantilla PNCOCA_2024_para_enviar_MAPA_sin_OC (1).xlsm",2024,"GALICIA",0,0,0,0,0,0,0,0,0]
["Plantilla PNCOCA_2024_para_enviar_MAPA_sin_OC (1).xlsm",2024,"GALICIA",0,0,0,0,0,0,0,0,0]
["Plantilla PNCOCA_2024_para_enviar_MAPA_sin_OC (1).xlsm",2024,"GALICIA",0,0,0,0,0,0,0,0,0]
["Plantilla PNCOCA_2024_para_enviar_MAPA_sin_OC (1).xlsm",2024,"GALICIA",0,0,0,0,0,0,0,0,0]
["Plantilla PNCOCA_2024_para_enviar_MAPA_sin_OC (1).xlsm",2024,"GALICIA",0,0,0,0,0,0,0,0,0]
["Plantilla PNCOCA_2024_para_enviar_MAPA_sin_OC (1).xlsm",2024,"GALICIA",0,0,0,0,0,0,0,0,0]
["Plantilla PNCOCA_2024_para_enviar_MAPA_sin_OC (1).xlsm",2024,"GALICIA",0,0,0,0,0,0,0,0,0]
["CLM_Plantilla_PNCOCA_2024_fusion_OC4.xlsm",2024,"CASTILLA-LA MANCHA","ES-ECO-001-CM",2791,0,1,39,1.3973486205661053E-2,0,0,0]
["CLM_Plantilla_PNCOCA_2024_fusion_OC4.xlsm",2024,"CASTILLA-LA MANCHA","ES-ECO-002-CM",4002,0,1,44,1.0994502748625687E-2,0,0,0]
["CLM_Plantilla_PNCOCA_2024_fusion_OC4.xlsm",2024,"CASTILLA-LA MANCHA","ES-ECO-003-CM",7,0,1,2,0.2857142857142857,0,0,0]
["CLM_Plantilla_PNCOCA_2024_fusion_OC4.xlsm",2024,"CASTILLA-LA MANCHA","ES-ECO-011-CM",104,0,1,3,2.8846153846153848E-2,0,0,0]
["CLM_Plantilla_PNCOCA_2024_fusion_OC4.xlsm",2024,"CASTILLA-LA MANCHA","ES-ECO-028-CM",1140,0,1,19,1.6666666666666666E-2,0,0,0]
["CLM_Plantilla_PNCOCA_2024_fusion_OC4.xlsm",2024,"CASTILLA-LA MANCHA","ES-ECO-033-CM",460,0,1,6,1.3043478260869565E-2,0,0,0]
["CLM_Plantilla_PNCOCA_2024_fusion_OC4.xlsm",2024,"CASTILLA-LA MANCHA","ES-ECO-034-CM",903,0,1,11,1.2181616832779624E-2,0,0,0]
["CLM_Plantilla_PNCOCA_2024_fusion_OC4.xlsm",2024,"CASTILLA-LA MANCHA","ES-ECO-037-CM",4,0,1,1,0.25,0,0,0]
["CLM_Plantilla_PNCOCA_2024_fusion_OC4.xlsm",2024,"CASTILLA-LA MANCHA","ES-ECO-029-CM",0,0,0,0,0,0,0,0]
["Plantilla PNCOCA_2024_sin_OC CANTABRIA.xlsm",2024,"CANTABRIA ",0,0,0,0,0,0,0,0,0]
["Plantilla PNCOCA_2024_sin_OC CANTABRIA.xlsm",2024,"CANTABRIA ",0,0,0,0,0,0,0,0,0]
["Plantilla PNCOCA_2024_sin_OC CANTABRIA.xlsm",2024,"CANTABRIA ",0,0,0,0,0,0,0,0,0]
["Plantilla PNCOCA_2024_sin_OC CANTABRIA.xlsm",2024,"CANTABRIA ",0,0,0,0,0,0,0,0,0]
["Plantilla PNCOCA_2024_sin_OC CANTABRIA.xlsm",2024,"CANTABRIA ",0,0,0,0,0,0,0,0,0]
["Plantilla PNCOCA_2024_sin_OC CANTABRIA.xlsm",2024,"CANTABRIA ",0,0,0,0,0,0,0,0,0]
["Plantilla PNCOCA_2024_sin_OC CANTABRIA.xlsm",2024,"CANTABRIA ",0,0,0,0,0,0,0,0,0]
["Plantilla PNCOCA_2024_sin_OC CANTABRIA.xlsm",2024,"CANTABRIA ",0,0,0,0,0,0,0,0,0]
["Plantilla PNCOCA_2024_sin_OC CANTABRIA.xlsm",2024,"CANTABRIA ",0,0,0,0,0,0,0,0,0]
["Plantilla PNCOCA_2024_sin_OC CANTABRIA.xlsm",2024,"CANTABRIA ",0,0,0,0,0,0,0,0,0]
["Plantilla PNCOCA_2024_sin_OC CANTABRIA.xlsm",2024,"CANTABRIA ",0,0,0,0,0,0,0,0,0]
["Plantilla PNCOCA_2024_sin_OC CANTABRIA.xlsm",2024,"CANTABRIA ",0,0,0,0,0,0,0,0,0]
["Plantilla PNCOCA_2024_sin_OC CANTABRIA.xlsm",2024,"CANTABRIA ",0,0,0,0,0,0,0,0,0]
["Plantilla PNCOCA_2024_sin_OC CANTABRIA.xlsm",2024,"CANTABRIA ",0,0,0,0,0,0,0,0,0]
["Plantilla PNCOCA_2024_sin_OC CANTABRIA.xlsm",2024,"CANTABRIA ",0,0,0,0,0,0,0,0,0]
["Plantilla PNCOCA_2024_sin_OC CANTABRIA.xlsm",2024,"CANTABRIA ",0,0,0,0,0,0,0,0,0]
["Plantilla PNCOCA_2024_sin_OC CANTABRIA.xlsm",2024,"CANTABRIA ",0,0,0,0,0,0,0,0,0]
["Plantilla PNCOCA_2024_sin_OC CANTABRIA.xlsm",2024,"CANTABRIA ",0,0,0,0,0,0,0,0,0]
["Plantilla PNCOCA_2024_sin_OC CANTABRIA.xlsm",2024,"CANTABRIA ",0,0,0,0,0,0,0,0,0]
["Plantilla PNCOCA_2024_sin_OC CANTABRIA.xlsm",2024,"CANTABRIA ",0,0,0,0,0,0,0,0,0]
["Plantilla PNCOCA_2024_sin_OC CANTABRIA.xlsm",2024,"CANTABRIA ",0,0,0,0,0,0,0,0,0]
["Plantilla PNCOCA_2024_sin_OC CANTABRIA.xlsm",2024,"CANTABRIA ",0,0,0,0,0,0,0,0,0]
["Plantilla PNCOCA_2024_sin_OC CANTABRIA.xlsm",2024,"CANTABRIA ",0,0,0,0,0,0,0,0,0]
["Plantilla PNCOCA_2024_sin_OC CANTABRIA.xlsm",2024,"CANTABRIA ",0,0,0,0,0,0,0,0,0]
["Plantilla PNCOCA_2024_sin_OC CANTABRIA.xlsm",2024,"CANTABRIA ",0,0,0,0,0,0,0,0,0]
["Plantilla PNCOCA_2024_sin_OC CANTABRIA.xlsm",2024,"CANTABRIA ",0,0,0,0,0,0,0,0,0]
["Plantilla PNCOCA_2024_sin_OC CANTABRIA.xlsm",2024,"CANTABRIA ",0,0,0,0,0,0,0,0,0]
["Plantilla PNCOCA_2024_sin_OC CANTABRIA.xlsm",2024,"CANTABRIA ",0,0,0,0,0,0,0,0,0]
["Plantilla PNCOCA_2024_sin_OC CANTABRIA.xlsm",2024,"CANTABRIA ",0,0,0,0,0,0,0,0,0]
["Plantilla PNCOCA_2024_sin_OC CANTABRIA.xlsm",2024,"CANTABRIA ",0,0,0,0,0,0,0,0,0]
["Plantilla PNCOCA_2024_para_enviar_MAPA_sin_OC_Murcia.xlsm",2024,"REGIÓN DE MURCIA",0,0,0,0,0,0,0,0,0]
["Plantilla PNCOCA_2024_para_enviar_MAPA_sin_OC_Murcia.xlsm",2024,"REGIÓN DE MURCIA",0,0,0,0,0,0,0,0,0]
["Plantilla PNCOCA_2024_para_enviar_MAPA_sin_OC_Murcia.xlsm",2024,"REGIÓN DE MURCIA",0,0,0,0,0,0,0,0,0]
["Plantilla PNCOCA_2024_para_enviar_MAPA_sin_OC_Murcia.xlsm",2024,"REGIÓN DE MURCIA",0,0,0,0,0,0,0,0,0]
["Plantilla PNCOCA_2024_para_enviar_MAPA_sin_OC_Murcia.xlsm",2024,"REGIÓN DE MURCIA",0,0,0,0,0,0,0,0,0]
["Plantilla PNCOCA_2024_para_enviar_MAPA_sin_OC_Murcia.xlsm",2024,"REGIÓN DE MURCIA",0,0,0,0,0,0,0,0,0]
["Plantilla PNCOCA_2024_para_enviar_MAPA_sin_OC_Murcia.xlsm",2024,"REGIÓN DE MURCIA",0,0,0,0,0,0,0,0,0]
["Plantilla PNCOCA_2024_para_enviar_MAPA_sin_OC_Murcia.xlsm",2024,"REGIÓN DE MURCIA",0,0,0,0,0,0,0,0,0]
["Plantilla PNCOCA_2024_para_enviar_MAPA_sin_OC_Murcia.xlsm",2024,"REGIÓN DE MURCIA",0,0,0,0,0,0,0,0,0]
["Plantilla PNCOCA_2024_para_enviar_MAPA_sin_OC_Murcia.xlsm",2024,"REGIÓN DE MURCIA",0,0,0,0,0,0,0,0,0]
["Plantilla PNCOCA_2024_para_enviar_MAPA_sin_OC_Murcia.xlsm",2024,"REGIÓN DE MURCIA",0,0,0,0,0,0,0,0,0]
["Plantilla PNCOCA_2024_para_enviar_MAPA_sin_OC_Murcia.xlsm",2024,"REGIÓN DE MURCIA",0,0,0,0,0,0,0,0,0]
["Plantilla PNCOCA_2024_para_enviar_MAPA_sin_OC_Murcia.xlsm",2024,"REGIÓN DE MURCIA",0,0,0,0,0,0,0,0,0]
["Plantilla PNCOCA_2024_para_enviar_MAPA_sin_OC_Murcia.xlsm",2024,"REGIÓN DE MURCIA",0,0,0,0,0,0,0,0,0]
["Plantilla PNCOCA_2024_para_enviar_MAPA_sin_OC_Murcia.xlsm",2024,"REGIÓN DE MURCIA",0,0,0,0,0,0,0,0,0]
["Plantilla PNCOCA_2024_para_enviar_MAPA_sin_OC_Murcia.xlsm",2024,"REGIÓN DE MURCIA",0,0,0,0,0,0,0,0,0]
["Plantilla PNCOCA_2024_para_enviar_MAPA_sin_OC_Murcia.xlsm",2024,"REGIÓN DE MURCIA",0,0,0,0,0,0,0,0,0]
["Plantilla PNCOCA_2024_para_enviar_MAPA_sin_OC_Murcia.xlsm",2024,"REGIÓN DE MURCIA",0,0,0,0,0,0,0,0,0]
["Plantilla PNCOCA_2024_para_enviar_MAPA_sin_OC_Murcia.xlsm",2024,"REGIÓN DE MURCIA",0,0,0,0,0,0,0,0,0]
["Plantilla PNCOCA_2024_para_enviar_MAPA_sin_OC_Murcia.xlsm",2024,"REGIÓN DE MURCIA",0,0,0,0,0,0,0,0,0]
["Plantilla PNCOCA_2024_para_enviar_MAPA_sin_OC_Murcia.xlsm",2024,"REGIÓN DE MURCIA",0,0,0,0,0,0,0,0,0]
["Plantilla PNCOCA_2024_para_enviar_MAPA_sin_OC_Murcia.xlsm",2024,"REGIÓN DE MURCIA",0,0,0,0,0,0,0,0,0]
["Plantilla PNCOCA_2024_para_enviar_MAPA_sin_OC_Murcia.xlsm",2024,"REGIÓN DE MURCIA",0,0,0,0,0,0,0,0,0]
["Plantilla PNCOCA_2024_para_enviar_MAPA_sin_OC_Murcia.xlsm",2024,"REGIÓN DE MURCIA",0,0,0,0,0,0,0,0,0]
["Plantilla PNCOCA_2024_para_enviar_MAPA_sin_OC_Murcia.xlsm",2024,"REGIÓN DE MURCIA",0,0,0,0,0,0,0,0,0]
["Plantilla PNCOCA_2024_para_enviar_MAPA_sin_OC_Murcia.xlsm",2024,"REGIÓN DE MURCIA",0,0,0,0,0,0,0,0,0]
["Plantilla PNCOCA_2024_para_enviar_MAPA_sin_OC_Murcia.xlsm",2024,"REGIÓN DE MURCIA",0,0,0,0,0,0,0,0,0]
["Plantilla PNCOCA_2024_para_enviar_MAPA_sin_OC_Murcia.xlsm",2024,"REGIÓN DE MURCIA",0,0,0,0,0,0,0,0,0]
["Plantilla PNCOCA_2024_para_enviar_MAPA_sin_OC_Murcia.xlsm",2024,"REGIÓN DE MURCIA",0,0,0,0,0,0,0,0,0]
["Plantilla PNCOCA_2024_para_enviar_MAPA_sin_OC_Murcia.xlsm",2024,"REGIÓN DE MURCIA",0,0,0,0,0,0,0,0,0]
["Plantilla PNCOCA_2024_ICCA Canarias v1 rev.xlsm",2024,"ISLAS CANARIAS",0,0,0,0,0,0,0,0,0]
["Plantilla PNCOCA_2024_ICCA Canarias v1 rev.xlsm",2024,"ISLAS CANARIAS",0,0,0,0,0,0,0,0,0]
["Plantilla PNCOCA_2024_ICCA Canarias v1 rev.xlsm",2024,"ISLAS CANARIAS",0,0,0,0,0,0,0,0,0]
["Plantilla PNCOCA_2024_ICCA Canarias v1 rev.xlsm",2024,"ISLAS CANARIAS",0,0,0,0,0,0,0,0,0]
["Plantilla PNCOCA_2024_ICCA Canarias v1 rev.xlsm",2024,"ISLAS CANARIAS",0,0,0,0,0,0,0,0,0]
["Plantilla PNCOCA_2024_ICCA Canarias v1 rev.xlsm",2024,"ISLAS CANARIAS",0,0,0,0,0,0,0,0,0]
["Plantilla PNCOCA_2024_ICCA Canarias v1 rev.xlsm",2024,"ISLAS CANARIAS",0,0,0,0,0,0,0,0,0]
["Plantilla PNCOCA_2024_ICCA Canarias v1 rev.xlsm",2024,"ISLAS CANARIAS",0,0,0,0,0,0,0,0,0]
["Plantilla PNCOCA_2024_ICCA Canarias v1 rev.xlsm",2024,"ISLAS CANARIAS",0,0,0,0,0,0,0,0,0]
["Plantilla PNCOCA_2024_ICCA Canarias v1 rev.xlsm",2024,"ISLAS CANARIAS",0,0,0,0,0,0,0,0,0]
["Plantilla PNCOCA_2024_ICCA Canarias v1 rev.xlsm",2024,"ISLAS CANARIAS",0,0,0,0,0,0,0,0,0]
["Plantilla PNCOCA_2024_ICCA Canarias v1 rev.xlsm",2024,"ISLAS CANARIAS",0,0,0,0,0,0,0,0,0]
["Plantilla PNCOCA_2024_ICCA Canarias v1 rev.xlsm",2024,"ISLAS CANARIAS",0,0,0,0,0,0,0,0,0]
["Plantilla PNCOCA_2024_ICCA Canarias v1 rev.xlsm",2024,"ISLAS CANARIAS",0,0,0,0,0,0,0,0,0]
["Plantilla PNCOCA_2024_ICCA Canarias v1 rev.xlsm",2024,"ISLAS CANARIAS",0,0,0,0,0,0,0,0,0]
["Plantilla PNCOCA_2024_ICCA Canarias v1 rev.xlsm",2024,"ISLAS CANARIAS",0,0,0,0,0,0,0,0,0]
["Plantilla PNCOCA_2024_ICCA Canarias v1 rev.xlsm",2024,"ISLAS CANARIAS",0,0,0,0,0,0,0,0,0]
["Plantilla PNCOCA_2024_ICCA Canarias v1 rev.xlsm",2024,"ISLAS CANARIAS",0,0,0,0,0,0,0,0,0]
["Plantilla PNCOCA_2024_ICCA Canarias v1 rev.xlsm",2024,"ISLAS CANARIAS",0,0,0,0,0,0,0,0,0]
["Plantilla PNCOCA_2024_ICCA Canarias v1 rev.xlsm",2024,"ISLAS CANARIAS",0,0,0,0,0,0,0,0,0]
["Plantilla PNCOCA_2024_ICCA Canarias v1 rev.xlsm",2024,"ISLAS CANARIAS",0,0,0,0,0,0,0,0,0]
["Plantilla PNCOCA_2024_ICCA Canarias v1 rev.xlsm",2024,"ISLAS CANARIAS",0,0,0,0,0,0,0,0,0]
["Plantilla PNCOCA_2024_ICCA Canarias v1 rev.xlsm",2024,"ISLAS CANARIAS",0,0,0,0,0,0,0,0,0]
["Plantilla PNCOCA_2024_ICCA Canarias v1 rev.xlsm",2024,"ISLAS CANARIAS",0,0,0,0,0,0,0,0,0]
["Plantilla PNCOCA_2024_ICCA Canarias v1 rev.xlsm",2024,"ISLAS CANARIAS",0,0,0,0,0,0,0,0,0]
["Plantilla PNCOCA_2024_ICCA Canarias v1 rev.xlsm",2024,"ISLAS CANARIAS",0,0,0,0,0,0,0,0,0]
["Plantilla PNCOCA_2024_ICCA Canarias v1 rev.xlsm",2024,"ISLAS CANARIAS",0,0,0,0,0,0,0,0,0]
["Plantilla PNCOCA_2024_ICCA Canarias v1 rev.xlsm",2024,"ISLAS CANARIAS",0,0,0,0,0,0,0,0,0]
["Plantilla PNCOCA_2024_ICCA Canarias v1 rev.xlsm",2024,"ISLAS CANARIAS",0,0,0,0,0,0,0,0,0]
["Plantilla PNCOCA_2024_ICCA Canarias v1 rev.xlsm",2024,"ISLAS CANARIAS",0,0,0,0,0,0,0,0,0]
["Euskadi PNCOCA_2024_para_enviar_MAPA_sin_OC.xlsm",2024,"PAÍS VASCO",0,0,0,0,0,0,0,0,0]
["Euskadi PNCOCA_2024_para_enviar_MAPA_sin_OC.xlsm",2024,"PAÍS VASCO",0,0,0,0,0,0,0,0,0]
["Euskadi PNCOCA_2024_para_enviar_MAPA_sin_OC.xlsm",2024,"PAÍS VASCO",0,0,0,0,0,0,0,0,0]
["Euskadi PNCOCA_2024_para_enviar_MAPA_sin_OC.xlsm",2024,"PAÍS VASCO",0,0,0,0,0,0,0,0,0]
["Euskadi PNCOCA_2024_para_enviar_MAPA_sin_OC.xlsm",2024,"PAÍS VASCO",0,0,0,0,0,0,0,0,0]
["Euskadi PNCOCA_2024_para_enviar_MAPA_sin_OC.xlsm",2024,"PAÍS VASCO",0,0,0,0,0,0,0,0,0]
["Euskadi PNCOCA_2024_para_enviar_MAPA_sin_OC.xlsm",2024,"PAÍS VASCO",0,0,0,0,0,0,0,0,0]
["Euskadi PNCOCA_2024_para_enviar_MAPA_sin_OC.xlsm",2024,"PAÍS VASCO",0,0,0,0,0,0,0,0,0]
["Euskadi PNCOCA_2024_para_enviar_MAPA_sin_OC.xlsm",2024,"PAÍS VASCO",0,0,0,0,0,0,0,0,0]
["Euskadi PNCOCA_2024_para_enviar_MAPA_sin_OC.xlsm",2024,"PAÍS VASCO",0,0,0,0,0,0,0,0,0]
["Euskadi PNCOCA_2024_para_enviar_MAPA_sin_OC.xlsm",2024,"PAÍS VASCO",0,0,0,0,0,0,0,0,0]
["Euskadi PNCOCA_2024_para_enviar_MAPA_sin_OC.xlsm",2024,"PAÍS VASCO",0,0,0,0,0,0,0,0,0]
["Euskadi PNCOCA_2024_para_enviar_MAPA_sin_OC.xlsm",2024,"PAÍS VASCO",0,0,0,0,0,0,0,0,0]
["Euskadi PNCOCA_2024_para_enviar_MAPA_sin_OC.xlsm",2024,"PAÍS VASCO",0,0,0,0,0,0,0,0,0]
["Euskadi PNCOCA_2024_para_enviar_MAPA_sin_OC.xlsm",2024,"PAÍS VASCO",0,0,0,0,0,0,0,0,0]
["Euskadi PNCOCA_2024_para_enviar_MAPA_sin_OC.xlsm",2024,"PAÍS VASCO",0,0,0,0,0,0,0,0,0]
["Euskadi PNCOCA_2024_para_enviar_MAPA_sin_OC.xlsm",2024,"PAÍS VASCO",0,0,0,0,0,0,0,0,0]
["Euskadi PNCOCA_2024_para_enviar_MAPA_sin_OC.xlsm",2024,"PAÍS VASCO",0,0,0,0,0,0,0,0,0]
["Euskadi PNCOCA_2024_para_enviar_MAPA_sin_OC.xlsm",2024,"PAÍS VASCO",0,0,0,0,0,0,0,0,0]
["Euskadi PNCOCA_2024_para_enviar_MAPA_sin_OC.xlsm",2024,"PAÍS VASCO",0,0,0,0,0,0,0,0,0]
["Euskadi PNCOCA_2024_para_enviar_MAPA_sin_OC.xlsm",2024,"PAÍS VASCO",0,0,0,0,0,0,0,0,0]
["Euskadi PNCOCA_2024_para_enviar_MAPA_sin_OC.xlsm",2024,"PAÍS VASCO",0,0,0,0,0,0,0,0,0]
["Euskadi PNCOCA_2024_para_enviar_MAPA_sin_OC.xlsm",2024,"PAÍS VASCO",0,0,0,0,0,0,0,0,0]
["Euskadi PNCOCA_2024_para_enviar_MAPA_sin_OC.xlsm",2024,"PAÍS VASCO",0,0,0,0,0,0,0,0,0]
["Euskadi PNCOCA_2024_para_enviar_MAPA_sin_OC.xlsm",2024,"PAÍS VASCO",0,0,0,0,0,0,0,0,0]
["Euskadi PNCOCA_2024_para_enviar_MAPA_sin_OC.xlsm",2024,"PAÍS VASCO",0,0,0,0,0,0,0,0,0]
["Euskadi PNCOCA_2024_para_enviar_MAPA_sin_OC.xlsm",2024,"PAÍS VASCO",0,0,0,0,0,0,0,0,0]
["Euskadi PNCOCA_2024_para_enviar_MAPA_sin_OC.xlsm",2024,"PAÍS VASCO",0,0,0,0,0,0,0,0,0]
["Euskadi PNCOCA_2024_para_enviar_MAPA_sin_OC.xlsm",2024,"PAÍS VASCO",0,0,0,0,0,0,0,0,0]
["Euskadi PNCOCA_2024_para_enviar_MAPA_sin_OC.xlsm",2024,"PAÍS VASCO",0,0,0,0,0,0,0,0,0]
[null,1999,null,0,0,0,0,0,0,0,0,0]

{"sheet":"Datos Tabla 3.3","index":16,"n_rows":19,"n_cols":7,"rows_kept":19,"cut":false,"hidden":true,"merged":[]}
["Source.Name","Año","CA","Número de autoridades de control en las que la autoridad competente ha delegado tareas de control","Número de auditorías efectuadas por la autoridad competente a autoridades de control","Cobertura de las autoridades de control auditadas por la autoridad competente durante el año de referencia","Observaciones en caso necesario"]
["Plantilla PNCOCA_2024_para_enviar_MAPA_con_OC_2.xlsmok.xlsm1.xlsm",2024,"ANDALUCÍA",0,0,"",0]
["2ndEnvio_Plantilla PNCOCA_2024_para_enviar_MAPA_sin_OC.xlsm",2024,"COMUNIDAD FORAL DE NAVARRA",1,0,"0",0]
["Copia de Plantilla PNCOCA_2024_para_enviar_MAPA_con_OC.xlsm",2024,"CASTILLA Y LEÓN",1,1,"1","Se ha realizado la sopervisión a 7 operadores"]
["PNCOCA_2024_sin_OC_COMUNITAT_VALENCIANA_2024_Revisado.xlsm",2024,"COMUNIDAD VALENCIANA",1,1,"1",0]
["EXTREMADURA PNCOCA_2024 Envio 2..xlsm",2024,"EXTREMADURA",0,0,"-",0]
["Plantilla PNCOCA_2024_sin_OC.MADRID.xlsm",2024,"COMUNIDAD DE MADRID",1,1,"1",0]
["LA RIOJA PNCOCA 2024.xlsm",2024,"LA RIOJA",1,1,"1",0]
["Plantilla PNCOCA_2024_para_enviar_MAPA_sin_OC COPAE_ASTURIAS.xlsm",2024,"PRINCIPADO DE ASTURIAS",1,1,"1",0]
["UTF-8Plantilla PNCOCA_2024_para_enviar_MAPA_sin_OC IIBB 25.04.25.xlsm",2024,"ISLAS BALEARES",1,1,"1",0]
["Plantilla PNCOCA_2024_ARAGON.xlsm",2024,"ARAGÓN",1,0,"0",0]
["250515 Datos PNCOCA 2024 CAT v2.xlsm",2024,"CATALUÑA",1,1,"1",0]
["Plantilla PNCOCA_2024_para_enviar_MAPA_sin_OC (1).xlsm",2024,"GALICIA",1,0,"0",0]
["CLM_Plantilla_PNCOCA_2024_fusion_OC4.xlsm",2024,"CASTILLA-LA MANCHA",0,0,"",0]
["Plantilla PNCOCA_2024_sin_OC CANTABRIA.xlsm",2024,"CANTABRIA ",0,0,"",0]
["Plantilla PNCOCA_2024_para_enviar_MAPA_sin_OC_Murcia.xlsm",2024,"REGIÓN DE MURCIA",1,1,"1",0]
["Plantilla PNCOCA_2024_ICCA Canarias v1 rev.xlsm",2024,"ISLAS CANARIAS",0,0,"",0]
["Euskadi PNCOCA_2024_para_enviar_MAPA_sin_OC.xlsm",2024,"PAÍS VASCO",1,1,"1","En el caso de tres AC no realizaron auditoría interna a la Autoridad de Control en 2024 al estar establecido un mínimo de una por quinquenio. Sin embargo, indicar que en un caso, la AC participó en las auditorías de acompañamiento realizada por ENAC y en los otros, también se realizan actuaciones de supervisión de forma continua, respecto de la situaciones de los controles que se van realizando y de los incumplimientos a lo largo del año mediante informes trimestrales que se trasladan a la autoridad competente, así como reuniones de coordinación."]
[null,1999,null,0,0,0,0]

{"sheet":"Datos Tabla 4","index":17,"n_rows":18,"n_cols":14,"rows_kept":18,"cut":false,"hidden":true,"merged":[]}
["Source.Name","Año","CA","Número de referencia del formulario","Referencia","Fecha","Identificación OC","1. Condiciones para la aprobación del organismo de control y delegación de tareas de control","2. Conclusiones relativas al cumplimiento de los requisitos mínimos de control","3. Conclusiones relativas a la evaluación del riesgo de los operadores","4. Conclusiones relativas al cumplimiento del catálogo nacional de medidas","5. Conclusiones relativas al intercambio de información con la autoridad competente","6. Otras conclusiones","7. Conclusión general"]
["Plantilla PNCOCA_2024_para_enviar_MAPA_con_OC_2.xlsmok.xlsm1.xlsm",0,"0","Número de referencia del formulario",null,null,""]
["2ndEnvio_Plantilla PNCOCA_2024_para_enviar_MAPA_sin_OC.xlsm",0,"0","Número de referencia del formulario",null,null,""]
["Copia de Plantilla PNCOCA_2024_para_enviar_MAPA_con_OC.xlsm",0,"0","Número de referencia del formulario",null,null,""]
["PNCOCA_2024_sin_OC_COMUNITAT_VALENCIANA_2024_Revisado.xlsm",0,"0","Número de referencia del formulario",null,null,""]
["EXTREMADURA PNCOCA_2024 Envio 2..xlsm",0,"0","Número de referencia del formulario",null,null,""]
["Plantilla PNCOCA_2024_sin_OC.MADRID.xlsm",0,"0","Número de referencia del formulario",null,null,""]
["LA RIOJA PNCOCA 2024.xlsm",0,"0","Número de referencia del formulario",null,null,""]
["Plantilla PNCOCA_2024_para_enviar_MAPA_sin_OC COPAE_ASTURIAS.xlsm",0,"0","Número de referencia del formulario",null,null,""]
["UTF-8Plantilla PNCOCA_2024_para_enviar_MAPA_sin_OC IIBB 25.04.25.xlsm",0,"0","Número de referencia del formulario",null,null,""]
["Plantilla PNCOCA_2024_ARAGON.xlsm",0,"0","Número de referencia del formulario",null,null,""]
["250515 Datos PNCOCA 2024 CAT v2.xlsm",0,"0","Número de referencia del formulario",null,null,""]
["Plantilla PNCOCA_2024_para_enviar_MAPA_sin_OC (1).xlsm",0,"0","Número de referencia del formulario",null,null,""]
["CLM_Plantilla_PNCOCA_2024_fusion_OC4.xlsm",0,"0","Número de referencia del formulario",null,null,""]
["Plantilla PNCOCA_2024_sin_OC CANTABRIA.xlsm",0,"0","Número de referencia del formulario",null,null,""]
["Plantilla PNCOCA_2024_para_enviar_MAPA_sin_OC_Murcia.xlsm",0,"0","Número de referencia del formulario",null,null,""]
["Plantilla PNCOCA_2024_ICCA Canarias v1 rev.xlsm",0,"0","Número de referencia del formulario",null,null,""]
["Euskadi PNCOCA_2024_para_enviar_MAPA_sin_OC.xlsm",0,"0","Número de referencia del formulario",null,null,""]

{"sheet":"Obs Tabla 3","index":18,"n_rows":5,"n_cols":88,"rows_kept":5,"cut":false,"hidden":true,"merged":[]}
["Tabla 3.1","Año","Cod Leyenda","ANDALUCÍA","COMUNIDAD FORAL DE NAVARRA","CASTILLA Y LEÓN","COMUNIDAD VALENCIANA","EXTREMADURA","COMUNIDAD DE MADRID","LA RIOJA","PRINCIPADO DE ASTURIAS","ISLAS BALEARES","ARAGÓN","CATALUÑA","GALICIA","CASTILLA-LA MANCHA","CANTABRIA ","REGIÓN DE MURCIA","ISLAS CANARIAS","PAÍS VASCO","CANTABRIA",null,null,null,null,null,null,null,null,null,null,null,null,null,null,"Tabla 3.2.a.","Año","ANDALUCÍA","COMUNIDAD FORAL DE NAVARRA","CASTILLA Y LEÓN","COMUNIDAD VALENCIANA","EXTREMADURA","COMUNIDAD DE MADRID","LA RIOJA","PRINCIPADO DE ASTURIAS","ISLAS BALEARES","ARAGÓN","CATALUÑA","GALICIA","CASTILLA-LA MANCHA","CANTABRIA ","REGIÓN DE MURCIA","ISLAS CANARIAS","PAÍS VASCO","CANTABRIA",null,null,null,null,null,null,null,null,null,null,null,null,null,"Tabla 3.3","Año","ANDALUCÍA","COMUNIDAD FORAL DE NAVARRA","CASTILLA Y LEÓN","COMUNIDAD VALENCIANA","EXTREMADURA","COMUNIDAD DE MADRID","LA RIOJA","PRINCIPADO DE ASTURIAS","ISLAS BALEARES","ARAGÓN","CATALUÑA","GALICIA","CASTILLA-LA MANCHA","CANTABRIA ","REGIÓN DE MURCIA","ISLAS CANARIAS","PAÍS VASCO","CANTABRIA"]
[null,2024,"(A)",null,null,null,null,null,null,null,null,null,null,null,null,null,null,null,null,null,null,null,null,null,null,null,null,null,null,null,null,null,null,null,null,null,2024,null,null,"En España a 31/12/2024 tres AC tenían delegado el control en 27 OC. De ellos, 5 estaban siendo evaluados por parte de su AC sobre el mantenimiento de la delegación (3 por no tener operadores y 2 por tener la acreditación de ENAC en suspensión temporal). La AC no pudo hacer auditoría completa sobre ES-ECO-010-CL ni ES-ECO-029-CM por no tener operadores certificados. Adicionalmente, señalar que aunque en la presente tabla se contabilizan 27 OC, en la tabla 3.2.b aparecen 28 entradas ya que también se incluye la información de la supervisión efectuada por una Autoridad Competente con sistema mixto (Autoridad de Control y Organismos de Control) a su Autoridad de Control (ES-ECO-016-CL)",null,null,null,null,null,null,null,null,null,null,null,null,null,null,null,null,null,null,null,null,null,null,null,null,null,null,null,null,null,2024,null,null,"Se ha realizado la sopervisión a 7 operadores",null,null,null,null,null,null,null,null,null,null,null,null,null,"En el caso de tres AC no realizaron auditoría interna a la Autoridad de Control en 2024 al estar establecido un mínimo de una por quinquenio. Sin embargo, indicar que en un caso, la AC participó en las auditorías de acompañamiento realizada por ENAC y en los otros, también se realizan actuaciones de supervisión de forma continua, respecto de la situaciones de los controles que se van realizando y de los incumplimientos a lo largo del año mediante informes trimestrales que se trasladan a la autoridad competente, así como reuniones de coordinación."]
[null,2024,"(B)"]
[null,2024,"(C)",null,null,null,null,null,null,null,null,null,null,null,null,"De los 9 OC que estaban autorizados al inicio del año en CLM, el ES-ECO-029-CM ha dejado de tener operadores a lo largo del año, pero sigue teniendo la delegación de tareas."]
[null,2024,"(D)"]

{"sheet":"CCAA","index":19,"n_rows":18,"n_cols":1,"rows_kept":18,"cut":false,"hidden":true,"merged":[]}
["CA"]
["ANDALUCÍA"]
["ARAGÓN"]
["PRINCIPADO DE ASTURIAS"]
["ISLAS BALEARES"]
["ISLAS CANARIAS"]
["CANTABRIA"]
["CASTILLA-LA MANCHA"]
["CASTILLA Y LEÓN"]
["CATALUÑA"]
["EXTREMADURA"]
["GALICIA"]
["COMUNIDAD DE MADRID"]
["REGIÓN DE MURCIA"]
["COMUNIDAD FORAL DE NAVARRA"]
["PAÍS VASCO"]
["LA RIOJA"]
["COMUNIDAD VALENCIANA"]

{"sheet":"Tabla 5","index":20,"n_rows":21,"n_cols":10,"rows_kept":21,"cut":false,"hidden":false,"merged":[[0,0,0,11]]}
["Tabla 5: Acciones y medidas emprendidas por la autoridad competente durante el año de referencia para garantizar la eficacia de los controles oficiales efectuados por las autoridades de control/organismos de control"]
[]
[]
[null,null,"Comunidad Autónoma","1. Legislación nacional","2. Procedimientos de control nuevos, actualizados o revisados","3. Activiades de formación","4. Provisión de recursos adicionales o reasignación de recursos existentes tras la revisión de las prioridades","5. Iniciativas de control especiales","6. Cambios en la organización o en la gestión de las autoridades competentes","7. Otras"]
[null,null,"ANDALUCÍA",null,"Procedimiento de Supervisión a Organismos de Control Delegados para el control oficial de la Producción Ecológica        \nInstrucción para la evaluación de riesgo a operadores/as de la Producción Ecológica\nInstrucción sobre modificaciones del periodo de conversión en Producción Ecológica ","Los Organismos de Control han realizado formación variada con objeto de actualizar los conocimientos de su personal sobre: industria, explotaciones ganaderas, categorias y alcances del certificado, procedimientos de inspección, nuevas listas de verificacion y vino. Adicionalmente, los Organismos de Control han mantenido los programas básicos de formacioninicial y anual de sus inspectores."]
[null,null,"COMUNIDAD FORAL DE NAVARRA"]
[null,null,"CASTILLA Y LEÓN",null,"En 2024 se ha trabajado en la modificación del procedimiento  de control oficial para la producción ecológica pero se ha aprbado a principios de 2025. Se ha modificado el procedimiento de los controles realizados por la autoridad competente. Se ha aprobado un nuevo procedimiento en elq ue se recogen los trámites previso al procedimiento sancionador. Además se han modfiicado varias instrucciones técnicas: comunicación con la autoridad competente, modifición del periodo de conversión, uso de MRV, cambio de EC, notificación de operadores exentos de certificación, utilización de animales no ecológicos y se ha aprobado una nueva IT: criterios de análisis de riesgos","Formación en legislación y procesos, certificación y criterios de auditoría. Controles de contabilidad documentada, balance de masas. Proceso de certificación, certificación de la Norma Bio Suisse, …",null,"Se han tenido reuniones con la autoridad de control y organismos de control para unificar criterios"]
[null,null,"COMUNIDAD VALENCIANA","1.Ley 10/2006, de 26 de diciembre, de la Generalitat, de Medidas Fiscales, de Gestión Administrativa y Financiera, y de Organización de la Generalitat.\n2, Decreto 222/2007, de 9 de noviembre, del Consell, por el que se establecen normas relativas a los Consejos Reguladores u Órganos de Gestión de las denominaciones de calidad de la de la Comunidad Valenciana.\n3, Decreto 46/2010, de 12de marzo, del Consell, por el que se modifica parte del Decreto 222/2007\n\n4.Orden 30/2010, de 3 de agosto de 2010 de la Conselleria de Agricultura, Pesca y Alimentación, por la que se aprueba el texto del Reglamento sobre producción y etiquetado de los productos ecológicos y del Comité d’Agricultura Ecològica de la Comunitat Valenciana.\n\n5.Orden 6/2011, de 1 de marzo, de modificación de la Orden 30/2010, de 3 de agosto de 2010.","No hay cambios significativos ni sustanciales. La motivación de los cambios en los existentes es describir de una forma más precisa las pautas a tener en cuenta a la hora de desarrollar el trabajo que se lleva a cabo en el CAECV. No se ha creado ningún documento nuevo.  \nMCe4.Manual de Calidad\nPO01e9. Procedimiento para la identificación y control de la documentación y los registros.\t\nPO06e9. Procedimiento de auditorías internas, revisiones del sistema y gestión de acciones correctivas y preventivas.\nIT06e17.Instrucción de aplicación del catálogo de medidas aplicables en caso de incumplimiento.\nIT07e16.Instrucción general de certificación y calidad.\nIT08e3.\tInstrucción para la tramitación de solicitudes.         ","La Comunitat Valenciana, a través del Servicio de Transferencia de Tecnología y del IVIA, realiza a lo largo del año numerosas acciones formativas, distribuidas a lo largo de todo el territorio. Adicionalmente disponen de tres formaciones en línea abiertas, sobre producción y ganadería ecológicas. Por su parte, en el año 2024, la autoridad de control ha participado en 15 acciones formativas sobre producción ecológica hacia el/la operador/a.\n\nPor parte de la autoridad de control, anualmente se realiza un plan de formación con objeto de mantener formado al personal, además de cumplir una obligación establecida en el R(UE) 2017/625 sobre controles oficiales (artículo 5.4), en la norma UNE EN ISO/IEC 17065:2012 sobre requisitos que deben cumplir las entidades de certificación (puntos 6.1.2.1) y en el Estatuto de los Trabajadores. Dentro de este plan de formación, en el año 2023 se han realizado 27 acciones formativas.","En la Comunitat Valenciana, en el año 2024, la autoridad de control no ha incorporado personal  técnico adicional, solo se han cubierto tres bajas laborales, manteniendo el numero de personal técnico para el control oficial .","En la Comunitat Valenciana, en el año 2024 no se han adoptado iniciativas de control especiales.","En el año 2024 se reestructuró la administración del Consell, produciéndose un cambio en la denominación de la Conselleria con competencias en agricultura, ganadería, pesca y alimentación. La nueva Conselleria, denominada Conselleria de Agricultura, Agua, Ganadería y Pesca, ha mantenido la Dirección General del Agua y Desarrollo Rural, con competencia en producción ecológica, así como la Subdirección General del Medio Rural, Agricultura Ecológica y Calidad, y los dos servicios con competencias más directas, el Servicio de Producción Ecológica e Innovación y el Servicio de Figuras de Calidad Agroalimentaria.\n"]
[null,null,"EXTREMADURA",null,"Actualización de actas de control in situ, con la modificación de varios ítems y mejorar el control de determinados aspectos como trazabilidad de la producción.","1. Participación en el Comité organizador del XV Congreso SEAE Y II CONGRESO EXTREMEÑO DE AGROECOLOGÍ, del 24 al 27 de abril 2024, en Cáceres, con 275 participantes\n2.Reunión del Comité de Agricultura Ecológica de Extremadura (CAEX), 24 de abril 2024\n3.Reunión de la autoridad competente con el sector ecológico, representantes de sindicatos agrarios, y de la administración\n4.Formación para inspectores y técnicos de oficina de la Autoridad de Control.\n5.Jornadas de formación dirigidas a las entidades colaboradoras:\n\tAPAG-ASAJA\n\tUPA-UCE Extremadura\n\tCooperativas Agroalimentarias de Extremadura\n\tEntidades bancarias\n6.Jornadas de transferencia en colegios, AMPAS, sobre alimentación ecológica a través del Proyecto de Ecocomedores escolares, donde la D.G. Agricultura y Ganadería es participante (varias actividades a largo de 2024)\n7.Asistencia a: BTSF: Organic Production and labeling of organic products. 5-8 febrero y 25-28 de marzo de 2024.","Se ha reforzado el equipo de técnicos sobre el equipo de trabajo habitual, sumando un total de 36 personas, con 22 técnicos de campo y 14 personas en el equipo técnico y administrativo","CONTROLES DE CALIDAD propios que se han realizado en la 2024.","Sin cambios.","Se mantienen las reuniones de coordinación técnica entre el personal de la autoridad competente, logrando unificar criterios para la revisión de expedientes y catalogación de incumplimientos. \n\tTambién se mantienen los comités de investigaciones de incumplimientos supuestos sobre todo en caso de incumplimientos críticos y graves, a través de asesoramiento jurídico."]
[null,null,"COMUNIDAD DE MADRID",null,"Durante 2024, el CAEM ha modificado y actualizado algunos de sus procedimientos y formatos del Sistema de Gestión, identificados a continuación:\n- CT1. COMPETENCIA PERSONAL Y FORMACION.Ver.1.3.Junio 2024\n- F1CT1.  COMPTENCIAS AUDITORES CAEM. junio 24\n-F3CT1. SUPERVISION AUDITOR. Ver 0.1 junio 24\n-F4CT1. COMPETENCIAS REVISOR TECNICO. Ver 0.1 junio 24\n-F6CT1. COMPETENCIAS DECISOR.Ver 0.0. enero 24.","Formación de INTERICO del 9-11/04/2025. 18 horas: Formación para la revisión de la aplicación del cuaderno digital en las explotaciones, revisión de tratamientos veterinarios en la producción ecológica, y grupos de trabajo para resolución de cuestiones prácticas relacionados con las distintas normas de producción ecológica. 8 personas.\nFormación 26/04/2024. 4 horas: Formación anual de refuerzo para la realización de controles y gestión de incumplimientos. 10 personas\nFormación 11/09/2024. 4 horas: Formación de refuerzo para el proceso de toma de muestras. 9 personas"]
[null,null,"LA RIOJA",null,"Programa de Control de Producción Ecológica en La Rioja, ver.2                                                                                                                      ITECCPENE: 03 Instrucción técnica de exención de certificación para comercialización de productos ecológicos no envasados, ver.1        ","Operadores. Curso de producción ecológica de 30 horas, 40 operadores.Comercialización de la producción ecológica, 30 operadores. Curso horticultura 10 horas, 10 operadores. Curso fruticultura 10 horas, 10 operadores\nAutoridad de Control:Requisitos para organismos que certifican productos, procesos y servicios 7 horas, 4 auditores. Capacitaciones, 16 horas, 3 auditores. Formaciones internas, 33 horas, 4 auditores\nAutoridad Competente: Curso Producción Ecológica para Técnicos 6 horas, 4 auditores. Curso Formación Interna Servicio Producción Agraria, 5 horas, 16 técnicos."]
[null,null,"PRINCIPADO DE ASTURIAS",null,null,"Formación de la normativa de la producción ecológica, 1 Persona 80 horas. Fromación Jornada INTERECO 5 personas 18 horas               ",null,null,"Cambios en el Jefe de Sección y Jefa de Servicio con los nombramiento de Eduardo Cristos Bonal y Gemma Mª Polledo Ruiz, respectivamente"]
[null,null,"ISLAS BALEARES",null,"Procedimiento para la autorización de introducción de pollitas no ecologicas de menos de tres días en explotaciones ecológicas. Introducción de animales no ecológicos para la constitución inicial de la explotación. Introducción de animales no ecológicos para la reposición o renovación del ganado. Instrucción del procedimiento para solicitar el reconocimiento retroactivo del período de conversión. Procedimiento para la excepción de operaciones de mutilación en ganado ecológico. Procedimiento para la excepción del amarre y aislamiento de animales en producción ecológica. Procedimiento actualización aplicación ECOSID."]
[null,null,"ARAGÓN",null,null,"Se adjunta documento excel FORMACIÓN_2024_ARAGÓN.xlsx",null,null,null,"Se adjunta documento excel FORMACIÓN_2024_ARAGÓN.xlsx"]
[null,null,"CATALUÑA","ORDEN ARP/205/2024, de 30 de septiembre, por la que se aprueban determinadas normas aplicables a la producción agroalimentaria ecológica y a las explotaciones de helicicultura ecológica (DOGC Núm. 9259 - 2.10.2024)","PR011-15 Procediment per a l'autorització per a la comercialització de producte; PR015-05  Procediment per al tractament de l'ús indegut de les indicacions de la PAE; PR010-13  Procediment de canvis abast de la certificació sollicitats pels operadors; PR018-11Procediment autorització per l'ús de material de reproducció vegetal; PR013-11 Procediment de baixa; PR021-05 Procediment actualitzacio de les normatives de certificació de productes; PR012-04  Procediment emissio certificats a peticio operador; IT001-30  Instrucció Tècnica d'Inspecció; IT002-22  Instrucció Tècnica per a empreses agràries de producció vegetal; IT003-16  Instrucció Tècnica per a empreses agràries de producció ramadera; IT004-20Instrucció Tècnica per a empreses elaborades comercialitzadores i-o importadores; IT005-15  Instrucció Tècnica de Presa de Mostres; IT016-00; IT013-06 Instrucció tècnica per a la inspecció de grans comerços minoristes; IT017-01 Instruccio tecnica comite certificacio","Durante el año 2024 se han realizado 595,5 horas de formación relacionada con el régimen de control "]
[null,null,"GALICIA",null,"Procedimiento de control y certificación\nProcedimiento para la formación y cualificación del personal\nProcedimiento para la gestión de la inscripción en los registros\nInstrucción técnica para la realización de controles a los operadores de producción ecológica. ","Jornada Interna de Formación Socios de Intereco (9, 10 y 11 de abril de 2024 - 18 horas)",null,"Igual que en el año anterior, las previsiones son las de mantener el número de muestras rrealizadas durante los tres últimos años que suponen el doble de las solicitadas, así como mantener o incrementar el número de visitas adicionales y sin previo aviso. "]
[null,null,"CASTILLA-LA MANCHA","Nada que reseñar","Debido a la entrada en aplicación del Reglamento 2018/848 se modificaron los procedimientos de control de todos los organismos de control autorizados adaptándose a la legislación vigente. Durante el año 2023 se aprobó un documento de análisis de riesgo de los operadores de Producción Ecológica consensuado para las Comunidades Autónomas de Andalucía, Castilla y León y Castilla-La Mancha que se implantó en 2024, con la vocación, de actualizarse siempre que se entienda que es necesario. A finales de 2024, con la experiencia de todo el año, se hizo una nueva versión de este documento con el objeto de tener un análisis de riesgo armonizado y que se pueda elaborar de una forma más práctica","Los organismos de control han realizado formación variada con objeto de actualizar información sobre procedimientos de la entidad, proceso de certificación y criterios de auditoría en base a la Norma ISO 17065. La Autoridad Competente ha tenido jornadas de formación para establecer criterios de supervisión de los organismos de control y actualización normativa","Nada que reseñar en 2024","El porcentaje de tomas de muestra en nuestra Comunidad, estaba muy por encima de lo regulado en los Reglamentos Comunitarios, así mismo, las visitas adicionales y no anunciadas, con carácter general, se realizaban por encima de los porcentajes establecidos en la legislación vigente. Durante 2024 se ha reducido significativamente el número de muestras tomadas al alinear a la normativa comunitaria el porcentaje de muestras a tomar por parte de los organismos de control","No ha habido","Nada que reseñar"]
[null,null,"CANTABRIA ",null,"Se han elaborado nuevos procedimientos para la gestion de los expedientes electronicos ecologicos. ","Participacion en BTSF Producción ecológica y etiquetado de los productos ecológicos\nParticipaciones en en el curso de auditores impartifdo por Audicap. Participacion en cursos INTERECO. ","En el año 2024 solo se ha contado con el personal del medio propio, que son las encargadas de realizar los controles de campo hasta el 1 agosto del 2024. La falta de personal inspector en la oficina es reiterativa. "]
[null,null,"REGIÓN DE MURCIA",null,"CAP-05. PERSONAL, FORMACIÓN, CUALIFICACIÓN Y SUPERVISIÓN DEL PERSONAL (ed14)\nCAP-06. CONTROL DE LA DOCUMENTACIÓN Y LOS REGISTROS (ed02)\nPE-01. PROCEDIMIENTO DE CERTIFICACIÓN (ed12)\nPE-03. PROCEDIMIENTO USO DE LA MARCA (ed06)\nIT-06. CATALOGO DE MEDIDAS EN CASO DE INCUMPLIMIENTOS (ed06)\nIT-07. EVALUACIÓN DEL NIVEL DE RIESGO DE INCUMPLIMIENTO (ed04)\nIT-08. GESTIÓN DE ETIQUETAS (ed03).\nAARPI. ANÁLISIS DE ACTIVIDADES Y RIESGOS PARA LA IMPARCIALIDAD\n","Cursos impartidos por personal del CAERM\nCurso de Control en producción ecológica (INTERECO)\nCurso de inspectores de agricultura ecológica (SEAE)\nCurso Producción ecológica: Producción, normativa, asesoramiento y comercialización (MAPA)\n\nCursos recibidos por personal del CAERM:\nJornada interna de producción ecológica de Intereco"]
[null,null,"ISLAS CANARIAS","Ninguna en el ámbito de la Comunidad Autónoma de Canarias","Elaboración manual de calidad para auditoría recibida por la AC de Galicia.","Cursos de materias transversales como contratación ","Aumento del presupuesto para el control de la producción ecológica.","Implementar protocolo para operadores ilocalizables","Ninguno reseñable","Seguimiento para poner en marcha la nueva aplicación de control y ceritficación"]
[null,null,"PAÍS VASCO",null,"Durante el año 2024 se han actualizado los siguientes procedimientos: NE-ZIUR-PZ-01 PROCEDIMIENTO CERTIFICACION rev6, PO-06 PROCEDIMIENTO de  Quejas y Apelaciones rev2, PO-13 PROCEDIMIENTO para la integridad de las bases de datos Rev2. Todos los formularios de auditoría se han revisado. No se han generado nuevos procedimientos. ","Durante el año 2024, el personal del Consejo ha recibido formación en:Viticultura ecológica, Fertilización sostenible, Alimentación en ganadería con criterios de proximidad, Fitoterapia en ganadería,Formación en el estudio de alertas por contaminación en productos ecológicos (OFIS), Formación anual de Intereco en Galicia, Practicas culturales dañinas en el suelo, Farm incubators organizado por RETA (Red de espacios test agrarios),Encuentro de formación interno del Consejo con dos días de duración. Se han impartido cursos de formación en AE: 4 cursos con un total de 535 horas lectivas y 59 asistencias; 2 cursos en los que se imparte contenido de producción ecológica."]